Workbook

Sheet Summary of Funding (hidden)
A1: Date Issued: 28th March 2024 | H1: Last Amended: 26th March 2024
A2: COVENTRY CITY COUNCIL
A3: 2024-25 Funding Allocations for Special Schools & Alternative Provision | P3: 8
A4: Summary of Funding
A6: =_xlfn.XLOOKUP($P$3,Data!A4:A12,Data!B4:B12) -> Woodfield Special School
A9: =IF(P42=0,"","***ERROR - CALCULATED ADJUSTMENT DOES NOT EQUAL ACTUAL ***") -> 
A10: Coventry Budget Share Elements
A12: Place Led Funding - see 'Place Led Funding' tab | F12: ='Place Led Funding'!M26 -> 1550000 | P12: =_xlfn.XLOOKUP(P3,Data!A113:A122,Data!C113:C122)-F12 -> 0
A14: INDICATIVE Coventry Top-up Funding - see 'Top-up Funding' tabs | F14: ='Summer 2024 Top-up'!K29+'Autumn 2024 Top-up'!K29+'Spring 2025 Top-up'!K29 -> 3008136.015 | P14: =_xlfn.XLOOKUP(P3,Data!A113:A122,Data!D113:D122)-F14 -> 0
A16: Teachers Pay & Pension Grants | F16: =_xlfn.XLOOKUP('Summary of Funding'!$P$3,Data!$A$4:$A$12,Data!AQ4:AQ12) -> 102300 | P16: =_xlfn.XLOOKUP(P3,Data!A4:A12,Data!AQ4:AQ12)-'Summary of Funding'!F16 -> 0
A18: Split Site Funding | F18: =_xlfn.XLOOKUP('Summary of Funding'!$P$3,Data!$A$4:$A$12,Data!AS4:AS12) -> 90000
A20: RPA Adjustment | F20: =_xlfn.XLOOKUP('Summary of Funding'!$P$3,Data!$A$4:$A$12,Data!AT4:AT12) -> -3565
H23: =F12+F14+F16+F18+F20 -> 4746871.015 | P23: =P14+P12 -> 0
A25: Other LA Budget Share Elements
A27: INDICATIVE Other LA Top-up Funding - see 'Top-up Funding' tabs | F27: ='Summer 2024 Top-up'!K51+'Autumn 2024 Top-up'!K51+'Spring 2025 Top-up'!K51 -> 24196.30895 | P27: =_xlfn.XLOOKUP(P3,Data!A99:A107,Data!AS99:AS107)-F27 -> 0
H29: =F27 -> 24196.30895 | P29: =P27 -> 0
A31: INDICATIVE Total Budget Share 2024/25 | H31: =H23+H29 -> 4771067.324 | P31: =P29+P23 -> 0
A33: Other Funding Elements
A35: INDICATIVE Teachers Pay Additional Grant | F35: =VLOOKUP(P3,Data!A4:AR12,44,FALSE) -> 63649.89957
A37: INDICATIVE Pupil Premium Grant 2024/25 | F37: =_xlfn.XLOOKUP('Summary of Funding'!$P$3,Data!$A$4:$A$12,Data!AP4:AP12) -> 65100 | P37: =_xlfn.XLOOKUP(P3,Data!A4:A12,Data!AP4:AP12)-F37 -> 0
H39: =F35+F37 -> 128749.8996
A41: INDICATIVE Total Revenue Resources | H41: =H31+H39 -> 4899817.224 | P41: =P39+P31 -> 0
A44: Notes
A46: This funding summary is intended to give you an overview of the indicative resources allocated to the school for the 2024/25 financial year.
A47: The actual budget that you will receive is based on the real-time movement of pupils and so will not be finalised until March 2025.
A49: Your level of top-up funding shown for the summer 2024, autumn 2024 and spring 2025 terms is indicative only. These top-up figures are
A50: based on the level of provision your school delivered in the same terms in the 2023-24 financial years. Where the number of places at your
A51: school has changed we have scaled the indicative level of provision up or down as appropriate to reflect the changing position at the school
A52: - but we have not allowed this to increase above your number of comissioned places.
A54: RPA Adjustments are the the 2023/24 adjustments. Once 2024/25 adjustments are published, these will be updated.
A56: Pupil Premium Funding is based on your 2023/24 eligibility position but has been updated to reflect the 2024/25 financial year rates. This
A57: allocation will change once 2024/25 eligibility for Pupil Premium is published by the DFE. We will then update this figure.
A59: In 2023/24 additonal high needs funding was received separately to top up funding. In 2024/25 this has now been incorporated into the
A60: high needs top up rates.

Sheet Place Led Funding (hidden)
A1: ='Summary of Funding'!A1 -> Date Issued: 28th March 2024 | M1: ='Summary of Funding'!H1 -> Last Amended: 26th March 2024
A2: ='Summary of Funding'!A2 -> COVENTRY CITY COUNCIL
A3: ='Summary of Funding'!A3 -> 2024-25 Funding Allocations for Special Schools & Alternative Provision | P3: ='Summary of Funding'!P3 -> 8
A4: Place Led Funding
A6: =_xlfn.XLOOKUP(P3,Data!A4:A12,Data!B4:B12) -> Woodfield Special School | P6: Checks
A10: Factors | C10: Factor Measurement | G10: Number of Units | I10: Funding Per Unit | K10: Pro Rata | M10: Funding Allocated
I11: £ | M11: £
A13: Pre-16 Funding | C13: No. Places comissioned (Apr 2024 - Jul 2024) | G13: =_xlfn.XLOOKUP($P$3,Data!A4:A12,Data!F4:F12) -> 155 | I13: 10000 | K13: =4/12 -> 0.3333333333 | M13: =G13*I13*K13 -> 516666.6667
C14: No. Places comissioned (Aug 2024) | G14: =_xlfn.XLOOKUP($P$3,Data!A4:A12,Data!G4:G12) -> 155 | I14: 10000 | K14: 0.08333333333 | M14: =G14*I14*K14 -> 129166.6667
C15: No. Places comissioned (Sep 2024 - Mar 2025) | G15: =_xlfn.XLOOKUP($P$3,Data!A4:A12,Data!H4:H12) -> 155 | I15: 10000 | K15: 0.5833333333 | M15: =G15*I15*K15 -> 904166.6667
M17: =SUM(M13:M15) -> 1550000 | P17: =_xlfn.XLOOKUP(P3,Data!A4:A12,Data!O4:O12)+_xlfn.XLOOKUP(P3,Data!A4:A12,Data!P4:P12)+_xlfn.XLOOKUP(P3,Data!A4:A12,Data!Q4:Q12)-M17 -> 0
A19: Post-16 Funding | C19: No. Places comissioned (Apr 2024 - Jul 2024) | G19: =_xlfn.XLOOKUP($P$3,Data!A4:A12,Data!I4:I12) -> 0 | I19: 10000 | K19: =4/12 -> 0.3333333333 | M19: =G19*I19*K19 -> 0
C20: No. Places comissioned (Aug 2024) | G20: =_xlfn.XLOOKUP($P$3,Data!A4:A12,Data!I4:I12) -> 0 | I20: 10000 | K20: 0.08333333333 | M20: =G20*I20*K20 -> 0
C21: No. Places comissioned (Sep 2024 - Mar 2025) | G21: =_xlfn.XLOOKUP($P$3,Data!A4:A12,Data!J4:J12) -> 0 | I21: 10000 | K21: 0.5833333333 | M21: =G21*I21*K21 -> 0
M23: =SUM(M19:M21) -> 0 | P23: =_xlfn.XLOOKUP(P3,Data!A4:A12,Data!R4:R12)+_xlfn.XLOOKUP(P3,Data!A4:A12,Data!S4:S12)+_xlfn.XLOOKUP(P3,Data!A4:A12,Data!T4:T12)-'Place Led Funding'!M23 -> 0
A26: Total Indicative Place Led Funding | M26: =M17+M23 -> 1550000 | P26: =P23+P17 -> 0

Sheet HN Framework Values (hidden)
A1: ='Summary of Funding'!A1 -> Date Issued: 28th March 2024 | K1: ='Summary of Funding'!H1 -> Last Amended: 26th March 2024
A2: ='Summary of Funding'!A2 -> COVENTRY CITY COUNCIL
A3: ='Summary of Funding'!A3 -> 2024-25 Funding Allocations for Special Schools & Alternative Provision | P3: ='Summary of Funding'!P3 -> 8
A4: High Needs Banded Framework Top-up Rates
A6: =_xlfn.XLOOKUP(P3,Data!A4:A12,Data!B4:B12) -> Woodfield Special School | P6: Checks
A11: High Needs Banded Framework
A12: Table 1 | D12: Cat 1 | E12: Cat 2 | F12: Cat 3 | G12: Cat 4 | H12: Cat 5 | I12: Cat 6
D13: Communication and Interaction | E13: Cognition and Learning | F13: SEMH | G13: Sensory &/or Physical | H13: Exceptional | I13: Personalised
C14: Level A | D14: Universal | I14: Early Support - only as agreed with Head of SS
C15: Level B | D15: Targeted
C16: Level C | D16: S&L Disorder | E16: Specific LD
C17: Level D | D17: Social Comm - Moderate | E17: MLD | F17: SEMH - Moderate | G17: HI/VI
C18: Level E | D18: Social Comm - High | E18: SLD | F18: SEMH - High | G18: PD - High | H18: OOC - only as agreed with Head of SS | I18: CC - only as agreed with Head of SS
C19: Level F | D19: Social Comm - Severe | E19: PMLD | F19: SEMH - Severe | G19: MSI
C21: Cov ELC | D21: ELC Band
A23: HN Framework Top-up Rates
A24: Table 2 | D24: Cat 1 | E24: Cat 2 | F24: Cat 3 | G24: Cat 4 | H24: Cat 5 | I24: Cat 6
D25: Communication and Interaction | E25: Cognition and Learning | F25: SEMH | G25: Sensory &/or Physical | H25: Exceptional | I25: Personalised
C26: Level A | D26: 0 | E26: 0 | F26: 0 | G26: 0 | I26: As agreed with Head of SS
C27: Level B | D27: 0 | E27: 0 | F27: 0 | G27: 0
C28: Level C | D28: =D40 -> 2761.360792 | E28: =E40 -> 3313.63768
C29: Level D | D29: =D41 -> 3313.63768 | E29: 5522.721585 | F29: =F41 -> 8284.094199 | G29: 8284.094199
C30: Level E | D30: 11045.45499 | E30: 10217.05148 | F30: =F42 -> 13806.81578 | G30: 13806.81578 | H30: As agreed with Head of SS | I30: As agreed with Head of SS
C31: Level F | D31: =D43 -> 17948.86879 | E31: =E43 -> 16568.17658 | F31: =F43 -> 17948.86879 | G31: 16568.17658
C33: Cov ELC | D33: =Data!V12 -> 13434.51733
A35: MFG PROTECTED Top-up Rates
A36: Table 3 | D36: Cat 1 | E36: Cat 2 | F36: Cat 3 | G36: Cat 4 | H36: Cat 5 | I36: Cat 6
A37: Protection | D37: Communication and Interaction | E37: Cognition and Learning | F37: SEMH | G37: Sensory &/or Physical | H37: Exceptional | I37: Personalised
A38: Level: | B38: =((D43/D31)-1) -> 0 | C38: Level A | D38: 0 | E38: 0 | F38: 0 | G38: 0 | H38: 0 | I38: 0
C39: Level B | D39: 0 | E39: 0 | F39: 0 | G39: 0 | H39: 0 | I39: 0
C40: Level C | D40: =_xlfn.XLOOKUP($P$3,Data!$A$4:$A$12,Data!W4:W12) -> 2761.360792 | E40: =_xlfn.XLOOKUP($P$3,Data!$A$4:$A$12,Data!X4:X12) -> 3313.63768 | F40: 0 | G40: 0 | H40: 0 | I40: 0
C41: Level D | D41: =_xlfn.XLOOKUP($P$3,Data!$A$4:$A$12,Data!Y4:Y12) -> 3313.63768 | E41: =_xlfn.XLOOKUP($P$3,Data!$A$4:$A$12,Data!Z4:Z12) -> 5522.721585 | F41: =_xlfn.XLOOKUP($P$3,Data!$A$4:$A$12,Data!AA4:AA12) -> 8284.094199 | G41: =_xlfn.XLOOKUP($P$3,Data!$A$4:$A$12,Data!AB4:AB12) -> 8284.094199 | H41: 0 | I41: 0
C42: Level E | D42: =_xlfn.XLOOKUP($P$3,Data!$A$4:$A$12,Data!AC4:AC12) -> 11045.45499 | E42: =_xlfn.XLOOKUP($P$3,Data!$A$4:$A$12,Data!AD4:AD12) -> 10217.05148 | F42: =_xlfn.XLOOKUP($P$3,Data!$A$4:$A$12,Data!AE4:AE12) -> 13806.81578 | G42: =_xlfn.XLOOKUP($P$3,Data!$A$4:$A$12,Data!AF4:AF12) -> 13806.81578 | H42: =_xlfn.XLOOKUP($P$3,Data!$A$4:$A$12,Data!AG4:AG12) -> 24631.3373 | I42: =_xlfn.XLOOKUP($P$3,Data!$A$4:$A$12,Data!AH4:AH12) -> 0
C43: Level F | D43: =_xlfn.XLOOKUP($P$3,Data!$A$4:$A$12,Data!AI4:AI12) -> 17948.86879 | E43: =_xlfn.XLOOKUP($P$3,Data!$A$4:$A$12,Data!AJ4:AJ12) -> 16568.17658 | F43: =_xlfn.XLOOKUP($P$3,Data!$A$4:$A$12,Data!AK4:AK12) -> 17948.86879 | G43: =_xlfn.XLOOKUP($P$3,Data!$A$4:$A$12,Data!AL4:AL12) -> 16568.17658 | H43: =_xlfn.XLOOKUP($P$3,Data!$A$4:$A$12,Data!AM4:AM12) -> 49262.67461 | I43: =_xlfn.XLOOKUP($P$3,Data!$A$4:$A$12,Data!AN4:AN12) -> 0
A46: Notes
A48: Table 2 shows the High Needs Top-up Rates that apply to special schools for each element of the High Needs Funding Matrix. All top up
A49: rates have seen an inflationary increase of 1.4% plus the additional grant has now been incorporated into these rates.
A53: =IF(N4="MFG","standard High Needs Top-up rates. Your protected top-up rates are shown in table 3 and apply to your school for the 2021/22 financial year.","") -> 

Sheet Summer 2024 Top-up (hidden)
A1: ='Summary of Funding'!A1 -> Date Issued: 28th March 2024 | M1: ='Summary of Funding'!H1 -> Last Amended: 26th March 2024
A2: ='Summary of Funding'!A2 -> COVENTRY CITY COUNCIL
A3: ='Summary of Funding'!A3 -> 2024-25 Funding Allocations for Special Schools & Alternative Provision | P3: ='Summary of Funding'!P3 -> 8
A4: Summer 2024 Top-up Funding
A6: =_xlfn.XLOOKUP(P3,Data!A4:A12,Data!B4:B12) -> Woodfield Special School | P6: Checks
A10: Total days in term: | B10: =Data!A20 -> 69
A11: Summer 2024 Funded days - Coventry
A12: Indicative | D12: Cat 1 | E12: Cat 2 | F12: Cat 3 | G12: Cat 4 | H12: Cat 5 | I12: Cat 6
C13: Level A | D13: 0 | E13: 0 | F13: 0 | G13: 0 | H13: 0 | I13: 0
C14: Level B | D14: 0 | E14: 0 | F14: 0 | G14: 0 | H14: 0 | I14: 0
C15: Level C | D15: =_xlfn.XLOOKUP($P$3,Data!$A$33:$A$41,Data!E33:E41) -> 0 | E15: =_xlfn.XLOOKUP($P$3,Data!$A$33:$A$41,Data!F33:F41) -> 0 | F15: 0 | G15: 0 | H15: 0 | I15: 0
C16: Level D | D16: =_xlfn.XLOOKUP($P$3,Data!$A$33:$A$41,Data!G33:G41) -> 0 | E16: =_xlfn.XLOOKUP($P$3,Data!$A$33:$A$41,Data!H33:H41) -> 0 | F16: =_xlfn.XLOOKUP($P$3,Data!$A$33:$A$41,Data!I33:I41) -> 0 | G16: =_xlfn.XLOOKUP($P$3,Data!$A$33:$A$41,Data!J33:J41) -> 0 | H16: 0 | I16: 0
C17: Level E | D17: =_xlfn.XLOOKUP($P$3,Data!$A$33:$A$41,Data!K33:K41) -> 0 | E17: =_xlfn.XLOOKUP($P$3,Data!$A$33:$A$41,Data!L33:L41) -> 0 | F17: =_xlfn.XLOOKUP($P$3,Data!$A$33:$A$41,Data!M33:M41) -> 0 | G17: =_xlfn.XLOOKUP($P$3,Data!$A$33:$A$41,Data!N33:N41) -> 0 | H17: =_xlfn.XLOOKUP($P$3,Data!$A$33:$A$41,Data!O33:O41) -> 1073.664106 | I17: =_xlfn.XLOOKUP($P$3,Data!$A$33:$A$41,Data!P33:P41) -> 0 | K17: Total FTE
C18: Level F | D18: =_xlfn.XLOOKUP($P$3,Data!$A$33:$A$41,Data!Q33:Q41) -> 0 | E18: =_xlfn.XLOOKUP($P$3,Data!$A$33:$A$41,Data!R33:R41) -> 0 | F18: =_xlfn.XLOOKUP($P$3,Data!$A$33:$A$41,Data!S33:S41) -> 9101.385352 | G18: =_xlfn.XLOOKUP($P$3,Data!$A$33:$A$41,Data!T33:T41) -> 0 | H18: =_xlfn.XLOOKUP($P$3,Data!$A$33:$A$41,Data!U33:U41) -> 445.6718931 | I18: =_xlfn.XLOOKUP($P$3,Data!$A$33:$A$41,Data!V33:V41) -> 0 | K18: =SUM(D13:I20)/B10 -> 153.9234978
C20: PRU | D20: =_xlfn.XLOOKUP($P$3,Data!$A$33:$A$41,Data!D33:D41) -> 0
A22: Summer 2024 Top-up Funding - Coventry
A23: Indicative | D23: Cat 1 | E23: Cat 2 | F23: Cat 3 | G23: Cat 4 | H23: Cat 5 | I23: Cat 6
C24: Level A | D24: =D13*('HN Framework Values'!D38/Data!$A$16) -> 0 | E24: =E13*('HN Framework Values'!E38/Data!$A$16) -> 0 | F24: =F13*('HN Framework Values'!F38/Data!$A$16) -> 0 | G24: =G13*('HN Framework Values'!G38/Data!$A$16) -> 0 | H24: 0 | I24: 0
C25: Level B | D25: =D14*('HN Framework Values'!D39/Data!$A$16) -> 0 | E25: =E14*('HN Framework Values'!E39/Data!$A$16) -> 0 | F25: =F14*('HN Framework Values'!F39/Data!$A$16) -> 0 | G25: =G14*('HN Framework Values'!G39/Data!$A$16) -> 0 | H25: 0 | I25: 0
C26: Level C | D26: =D15*('HN Framework Values'!D40/Data!$A$16) -> 0 | E26: =E15*('HN Framework Values'!E40/Data!$A$16) -> 0 | F26: =F15*('HN Framework Values'!F40/Data!$A$16) -> 0 | G26: =G15*('HN Framework Values'!G40/Data!$A$16) -> 0 | H26: 0 | I26: 0 | K26: Total Coventry Top-up
C27: Level D | D27: =D16*('HN Framework Values'!D41/Data!$A$16) -> 0 | E27: =E16*('HN Framework Values'!E41/Data!$A$16) -> 0 | F27: =F16*('HN Framework Values'!F41/Data!$A$16) -> 0 | G27: =G16*('HN Framework Values'!G41/Data!$A$16) -> 0 | H27: 0 | I27: 0
C28: Level E | D28: =D17*('HN Framework Values'!D42/Data!$A$16) -> 0 | E28: =E17*('HN Framework Values'!E42/Data!$A$16) -> 0 | F28: =F17*('HN Framework Values'!F42/Data!$A$16) -> 0 | G28: =G17*('HN Framework Values'!G42/Data!$A$16) -> 0 | H28: =H17*('HN Framework Values'!H42/Data!$A$16) -> 132228.9137 | I28: =I17*('HN Framework Values'!I42/Data!$A$16) -> 0
C29: Level F | D29: =D18*('HN Framework Values'!D43/Data!$A$16) -> 0 | E29: =E18*('HN Framework Values'!E43/Data!$A$16) -> 0 | F29: =F18*('HN Framework Values'!F43/Data!$A$16) -> 816797.8576 | G29: =G18*('HN Framework Values'!G43/Data!$A$16) -> 0 | H29: =H18*('HN Framework Values'!H43/Data!$A$16) -> 109774.9472 | I29: =I18*('HN Framework Values'!I43/Data!$A$16) -> 0 | K29: =SUM(D24:I31) -> 1058801.719
C31: PRU | D31: =D20*'HN Framework Values'!D33/Data!A16 -> 0
A33: Summer 2024 Funded days - Other LAs
A34: Indicative | D34: Cat 1 | E34: Cat 2 | F34: Cat 3 | G34: Cat 4 | H34: Cat 5 | I34: Cat 6
C35: Level A | D35: 0 | E35: 0 | F35: 0 | G35: 0 | H35: 0 | I35: 0
C36: Level B | D36: 0 | E36: 0 | F36: 0 | G36: 0 | H36: 0 | I36: 0
C37: Level C | D37: =_xlfn.XLOOKUP($P$3,Data!$A$33:$A$41,Data!Z33:Z41) -> 0 | E37: =_xlfn.XLOOKUP($P$3,Data!$A$33:$A$41,Data!AA33:AA41) -> 0 | F37: 0 | G37: 0 | H37: 0 | I37: 0
C38: Level D | D38: =_xlfn.XLOOKUP($P$3,Data!$A$33:$A$41,Data!AB33:AB41) -> 0 | E38: =_xlfn.XLOOKUP($P$3,Data!$A$33:$A$41,Data!AC33:AC41) -> 0 | F38: =_xlfn.XLOOKUP($P$3,Data!$A$33:$A$41,Data!AD33:AD41) -> 0 | G38: =_xlfn.XLOOKUP($P$3,Data!$A$33:$A$41,Data!AE33:AE41) -> 0 | H38: 0 | I38: 0
C39: Level E | D39: =_xlfn.XLOOKUP($P$3,Data!$A$33:$A$41,Data!AF33:AF41) -> 0 | E39: =_xlfn.XLOOKUP($P$3,Data!$A$33:$A$41,Data!AG33:AG41) -> 0 | F39: =_xlfn.XLOOKUP($P$3,Data!$A$33:$A$41,Data!AH33:AH41) -> 0 | G39: =_xlfn.XLOOKUP($P$3,Data!$A$33:$A$41,Data!AI33:AI41) -> 0 | H39: =_xlfn.XLOOKUP($P$3,Data!$A$33:$A$41,Data!AJ33:AJ41) -> 0 | I39: =_xlfn.XLOOKUP($P$3,Data!$A$33:$A$41,Data!AK33:AK41) -> 0 | K39: Total FTE
C40: Level F | D40: =_xlfn.XLOOKUP($P$3,Data!$A$33:$A$41,Data!AL33:AL41) -> 0 | E40: =_xlfn.XLOOKUP($P$3,Data!$A$33:$A$41,Data!AM33:AM41) -> 0 | F40: =_xlfn.XLOOKUP($P$3,Data!$A$33:$A$41,Data!AN33:AN41) -> 74.27864885 | G40: =_xlfn.XLOOKUP($P$3,Data!$A$33:$A$41,Data!AO33:AO41) -> 0 | H40: =_xlfn.XLOOKUP($P$3,Data!$A$33:$A$41,Data!AP33:AP41) -> 0 | I40: =_xlfn.XLOOKUP($P$3,Data!$A$33:$A$41,Data!AQ33:AQ41) -> 0 | K40: =SUM(D35:I42)/B10 -> 1.076502157
C42: PRU | D42: =_xlfn.XLOOKUP($P$3,Data!$A$33:$A$41,Data!Y33:Y41) -> 0
A44: Summer 2024 Top-up Funding - Other LAs
A45: Indicative | D45: Cat 1 | E45: Cat 2 | F45: Cat 3 | G45: Cat 4 | H45: Cat 5 | I45: Cat 6
C46: Level A | D46: =D35*('HN Framework Values'!D38/Data!$A$16) -> 0 | E46: =E35*('HN Framework Values'!E38/Data!$A$16) -> 0 | F46: =F35*('HN Framework Values'!F38/Data!$A$16) -> 0 | G46: =G35*('HN Framework Values'!G38/Data!$A$16) -> 0 | H46: =H35*('HN Framework Values'!H38/Data!$A$16) -> 0 | I46: =I35*('HN Framework Values'!I38/Data!$A$16) -> 0
C47: Level B | D47: =D36*('HN Framework Values'!D39/Data!$A$16) -> 0 | E47: =E36*('HN Framework Values'!E39/Data!$A$16) -> 0 | F47: =F36*('HN Framework Values'!F39/Data!$A$16) -> 0 | G47: =G36*('HN Framework Values'!G39/Data!$A$16) -> 0 | H47: =H36*('HN Framework Values'!H39/Data!$A$16) -> 0 | I47: =I36*('HN Framework Values'!I39/Data!$A$16) -> 0
C48: Level C | D48: =D37*('HN Framework Values'!D40/Data!$A$16) -> 0 | E48: =E37*('HN Framework Values'!E40/Data!$A$16) -> 0 | F48: =F37*('HN Framework Values'!F40/Data!$A$16) -> 0 | G48: =G37*('HN Framework Values'!G40/Data!$A$16) -> 0 | H48: =H37*('HN Framework Values'!H40/Data!$A$16) -> 0 | I48: =I37*('HN Framework Values'!I40/Data!$A$16) -> 0 | K48: Total Other LA Top-up
C49: Level D | D49: =D38*('HN Framework Values'!D41/Data!$A$16) -> 0 | E49: =E38*('HN Framework Values'!E41/Data!$A$16) -> 0 | F49: =F38*('HN Framework Values'!F41/Data!$A$16) -> 0 | G49: =G38*('HN Framework Values'!G41/Data!$A$16) -> 0 | H49: =H38*('HN Framework Values'!H41/Data!$A$16) -> 0 | I49: =I38*('HN Framework Values'!I41/Data!$A$16) -> 0
C50: Level E | D50: =D39*('HN Framework Values'!D42/Data!$A$16) -> 0 | E50: =E39*('HN Framework Values'!E42/Data!$A$16) -> 0 | F50: =F39*('HN Framework Values'!F42/Data!$A$16) -> 0 | G50: =G39*('HN Framework Values'!G42/Data!$A$16) -> 0 | H50: =H39*('HN Framework Values'!H42/Data!$A$16) -> 0 | I50: =I39*('HN Framework Values'!I42/Data!$A$16) -> 0
C51: Level F | D51: =D40*('HN Framework Values'!D43/Data!$A$16) -> 0 | E51: =E40*('HN Framework Values'!E43/Data!$A$16) -> 0 | F51: =F40*('HN Framework Values'!F43/Data!$A$16) -> 6666.088612 | G51: =G40*('HN Framework Values'!G43/Data!$A$16) -> 0 | H51: =H40*('HN Framework Values'!H43/Data!$A$16) -> 0 | I51: =I40*('HN Framework Values'!I43/Data!$A$16) -> 0 | K51: =SUM(D46:I53) -> 6666.088612
C53: PRU | D53: =D42*'HN Framework Values'!D33/Data!A16 -> 0
A55: Total INDICATIVE Summer 2024 Top-up Funding | K55: =K51+K29 -> 1065467.807 | Q55: =_xlfn.XLOOKUP(P3,Data!A33:A41,Data!AT33:AT41)-K55 -> 0
A59: Notes
A61: Top up funding is allocated to pupils based on their High Needs Banding and how many days they are on roll at your school.
A63: This data is based on the level of provision your school delivered in the summer term 2023.
A65: Other LA Top-up funding is not paid to you by Coventry City Council and you will need to invoice the relevant Local Authorities for this
A66: funding. If you need contact information for any other Local Authority please contact SEN Management Services on 024 7683 1614.

Sheet Autumn 2024 Top-up (hidden)
A1: ='Summary of Funding'!A1 -> Date Issued: 28th March 2024 | M1: ='Summary of Funding'!H1 -> Last Amended: 26th March 2024
A2: ='Summary of Funding'!A2 -> COVENTRY CITY COUNCIL
A3: ='Summary of Funding'!A3 -> 2024-25 Funding Allocations for Special Schools & Alternative Provision | P3: ='Summary of Funding'!P3 -> 8
A4: Autumn 2024 Top-up Funding
A6: =_xlfn.XLOOKUP(P3,Data!A4:A12,Data!B4:B12) -> Woodfield Special School | P6: Checks
A10: Total days in term: | B10: =Data!$A$46 -> 75
A11: Autumn 2024 Funded days - Coventry
A12: Indicative | D12: Cat 1 | E12: Cat 2 | F12: Cat 3 | G12: Cat 4 | H12: Cat 5 | I12: Cat 6
C13: Level A | D13: 0 | E13: 0 | F13: 0 | G13: 0 | H13: 0 | I13: 0
C14: Level B | D14: 0 | E14: 0 | F14: 0 | G14: 0 | H14: 0 | I14: 0
C15: Level C | D15: =_xlfn.XLOOKUP($P$3,Data!$A$59:$A$67,Data!E59:E67) -> 0 | E15: =_xlfn.XLOOKUP($P$3,Data!$A$59:$A$67,Data!F59:F67) -> 0 | F15: 0 | G15: 0 | H15: 0 | I15: 0
C16: Level D | D16: =_xlfn.XLOOKUP($P$3,Data!$A$59:$A$67,Data!G59:G67) -> 0 | E16: =_xlfn.XLOOKUP($P$3,Data!$A$59:$A$67,Data!H59:H67) -> 0 | F16: =_xlfn.XLOOKUP($P$3,Data!$A$59:$A$67,Data!I59:I67) -> 0 | G16: =_xlfn.XLOOKUP($P$3,Data!$A$59:$A$67,Data!J59:J67) -> 0 | H16: 0 | I16: 0
C17: Level E | D17: =_xlfn.XLOOKUP($P$3,Data!$A$59:$A$67,Data!K59:K67) -> 0 | E17: =_xlfn.XLOOKUP($P$3,Data!$A$59:$A$67,Data!L59:L67) -> 0 | F17: =_xlfn.XLOOKUP($P$3,Data!$A$59:$A$67,Data!M59:M67) -> 0 | G17: =_xlfn.XLOOKUP($P$3,Data!$A$59:$A$67,Data!N59:N67) -> 0 | H17: =_xlfn.XLOOKUP($P$3,Data!$A$59:$A$67,Data!O59:O67) -> 1034.822957 | I17: =_xlfn.XLOOKUP($P$3,Data!$A$59:$A$67,Data!P59:P67) -> 0 | K17: Total FTE
C18: Level F | D18: =_xlfn.XLOOKUP($P$3,Data!$A$59:$A$67,Data!Q59:Q67) -> 0 | E18: =_xlfn.XLOOKUP($P$3,Data!$A$59:$A$67,Data!R59:R67) -> 0 | F18: =_xlfn.XLOOKUP($P$3,Data!$A$59:$A$67,Data!S59:S67) -> 10192.16821 | G18: =_xlfn.XLOOKUP($P$3,Data!$A$59:$A$67,Data!T59:T67) -> 0 | H18: =_xlfn.XLOOKUP($P$3,Data!$A$59:$A$67,Data!U59:U67) -> 318.4070637 | I18: =_xlfn.XLOOKUP($P$3,Data!$A$59:$A$67,Data!V59:V67) -> 0 | K18: =SUM(D13:I20)/B10 -> 153.9386431
C20: PRU | D20: =_xlfn.XLOOKUP($P$3,Data!$A$59:$A$67,Data!D59:D67) -> 0
A22: Autumn 2024 Top-up Funding - Coventry
A23: Indicative | D23: Cat 1 | E23: Cat 2 | F23: Cat 3 | G23: Cat 4 | H23: Cat 5 | I23: Cat 6
C24: Level A | D24: =D13*('HN Framework Values'!D38/Data!$A$16) -> 0 | E24: =E13*('HN Framework Values'!E38/Data!$A$16) -> 0 | F24: =F13*('HN Framework Values'!F38/Data!$A$16) -> 0 | G24: =G13*('HN Framework Values'!G38/Data!$A$16) -> 0 | H24: 0 | I24: 0
C25: Level B | D25: =D14*('HN Framework Values'!D39/Data!$A$16) -> 0 | E25: =E14*('HN Framework Values'!E39/Data!$A$16) -> 0 | F25: =F14*('HN Framework Values'!F39/Data!$A$16) -> 0 | G25: =G14*('HN Framework Values'!G39/Data!$A$16) -> 0 | H25: 0 | I25: 0
C26: Level C | D26: =D15*('HN Framework Values'!D40/Data!$A$16) -> 0 | E26: =E15*('HN Framework Values'!E40/Data!$A$16) -> 0 | F26: =F15*('HN Framework Values'!F40/Data!$A$16) -> 0 | G26: =G15*('HN Framework Values'!G40/Data!$A$16) -> 0 | H26: 0 | I26: 0 | K26: Total Coventry Top-up
C27: Level D | D27: =D16*('HN Framework Values'!D41/Data!$A$16) -> 0 | E27: =E16*('HN Framework Values'!E41/Data!$A$16) -> 0 | F27: =F16*('HN Framework Values'!F41/Data!$A$16) -> 0 | G27: =G16*('HN Framework Values'!G41/Data!$A$16) -> 0 | H27: 0 | I27: 0
C28: Level E | D28: =D17*('HN Framework Values'!D42/Data!$A$16) -> 0 | E28: =E17*('HN Framework Values'!E42/Data!$A$16) -> 0 | F28: =F17*('HN Framework Values'!F42/Data!$A$16) -> 0 | G28: =G17*('HN Framework Values'!G42/Data!$A$16) -> 0 | H28: =H17*('HN Framework Values'!H42/Data!$A$16) -> 127445.3665 | I28: =I17*('HN Framework Values'!I42/Data!$A$16) -> 0
C29: Level F | D29: =D18*('HN Framework Values'!D43/Data!$A$16) -> 0 | E29: =E18*('HN Framework Values'!E43/Data!$A$16) -> 0 | F29: =F18*('HN Framework Values'!F43/Data!$A$16) -> 914689.4499 | G29: =G18*('HN Framework Values'!G43/Data!$A$16) -> 0 | H29: =H18*('HN Framework Values'!H43/Data!$A$16) -> 78427.91786 | I29: =I18*('HN Framework Values'!I43/Data!$A$16) -> 0 | K29: =SUM(D24:I31) -> 1120562.734
C31: PRU | D31: =D20*'HN Framework Values'!D33/Data!A16 -> 0
A33: Autumn 2024 Funded days - Other LAs
A34: Indicative | D34: Cat 1 | E34: Cat 2 | F34: Cat 3 | G34: Cat 4 | H34: Cat 5 | I34: Cat 6
C35: Level A | D35: 0 | E35: 0 | F35: 0 | G35: 0 | H35: 0 | I35: 0
C36: Level B | D36: 0 | E36: 0 | F36: 0 | G36: 0 | H36: 0 | I36: 0
C37: Level C | D37: =_xlfn.XLOOKUP($P$3,Data!$A$59:$A$67,Data!Z59:Z67) -> 0 | E37: =_xlfn.XLOOKUP($P$3,Data!$A$59:$A$67,Data!AA59:AA67) -> 0 | F37: 0 | G37: 0 | H37: 0 | I37: 0
C38: Level D | D38: =_xlfn.XLOOKUP($P$3,Data!$A$59:$A$67,Data!AB59:AB67) -> 0 | E38: =_xlfn.XLOOKUP($P$3,Data!$A$59:$A$67,Data!AC59:AC67) -> 0 | F38: =_xlfn.XLOOKUP($P$3,Data!$A$59:$A$67,Data!AD59:AD67) -> 0 | G38: =_xlfn.XLOOKUP($P$3,Data!$A$59:$A$67,Data!AE59:AE67) -> 0 | H38: 0 | I38: 0
C39: Level E | D39: =_xlfn.XLOOKUP($P$3,Data!$A$59:$A$67,Data!AF59:AF67) -> 0 | E39: =_xlfn.XLOOKUP($P$3,Data!$A$59:$A$67,Data!AG59:AG67) -> 0 | F39: =_xlfn.XLOOKUP($P$3,Data!$A$59:$A$67,Data!AH59:AH67) -> 0 | G39: =_xlfn.XLOOKUP($P$3,Data!$A$59:$A$67,Data!AI59:AI67) -> 0 | H39: =_xlfn.XLOOKUP($P$3,Data!$A$59:$A$67,Data!AJ59:AJ67) -> 0 | I39: =_xlfn.XLOOKUP($P$3,Data!$A$59:$A$67,Data!AK59:AK67) -> 0 | K39: Total FTE
C40: Level F | D40: =_xlfn.XLOOKUP($P$3,Data!$A$59:$A$67,Data!AL59:AL67) -> 0 | E40: =_xlfn.XLOOKUP($P$3,Data!$A$59:$A$67,Data!AM59:AM67) -> 0 | F40: =_xlfn.XLOOKUP($P$3,Data!$A$59:$A$67,Data!AN59:AN67) -> 79.60176592 | G40: =_xlfn.XLOOKUP($P$3,Data!$A$59:$A$67,Data!AO59:AO67) -> 0 | H40: =_xlfn.XLOOKUP($P$3,Data!$A$59:$A$67,Data!AP59:AP67) -> 0 | I40: =_xlfn.XLOOKUP($P$3,Data!$A$59:$A$67,Data!AQ59:AQ67) -> 0 | K40: =SUM(D35:I42)/B10 -> 1.061356879
C42: PRU | D42: =_xlfn.XLOOKUP($P$3,Data!$A$59:$A$67,Data!Y59:Y67) -> 0
A44: Autumn 2024 Top-up Funding - Other LAs
A45: Indicative | D45: Cat 1 | E45: Cat 2 | F45: Cat 3 | G45: Cat 4 | H45: Cat 5 | I45: Cat 6
C46: Level A | D46: =D35*('HN Framework Values'!D38/Data!$A$16) -> 0 | E46: =E35*('HN Framework Values'!E38/Data!$A$16) -> 0 | F46: =F35*('HN Framework Values'!F38/Data!$A$16) -> 0 | G46: =G35*('HN Framework Values'!G38/Data!$A$16) -> 0 | H46: =H35*('HN Framework Values'!H38/Data!$A$16) -> 0 | I46: =I35*('HN Framework Values'!I38/Data!$A$16) -> 0
C47: Level B | D47: =D36*('HN Framework Values'!D39/Data!$A$16) -> 0 | E47: =E36*('HN Framework Values'!E39/Data!$A$16) -> 0 | F47: =F36*('HN Framework Values'!F39/Data!$A$16) -> 0 | G47: =G36*('HN Framework Values'!G39/Data!$A$16) -> 0 | H47: =H36*('HN Framework Values'!H39/Data!$A$16) -> 0 | I47: =I36*('HN Framework Values'!I39/Data!$A$16) -> 0
C48: Level C | D48: =D37*('HN Framework Values'!D40/Data!$A$16) -> 0 | E48: =E37*('HN Framework Values'!E40/Data!$A$16) -> 0 | F48: =F37*('HN Framework Values'!F40/Data!$A$16) -> 0 | G48: =G37*('HN Framework Values'!G40/Data!$A$16) -> 0 | H48: =H37*('HN Framework Values'!H40/Data!$A$16) -> 0 | I48: =I37*('HN Framework Values'!I40/Data!$A$16) -> 0 | K48: Total Other LA Top-up
C49: Level D | D49: =D38*('HN Framework Values'!D41/Data!$A$16) -> 0 | E49: =E38*('HN Framework Values'!E41/Data!$A$16) -> 0 | F49: =F38*('HN Framework Values'!F41/Data!$A$16) -> 0 | G49: =G38*('HN Framework Values'!G41/Data!$A$16) -> 0 | H49: =H38*('HN Framework Values'!H41/Data!$A$16) -> 0 | I49: =I38*('HN Framework Values'!I41/Data!$A$16) -> 0
C50: Level E | D50: =D39*('HN Framework Values'!D42/Data!$A$16) -> 0 | E50: =E39*('HN Framework Values'!E42/Data!$A$16) -> 0 | F50: =F39*('HN Framework Values'!F42/Data!$A$16) -> 0 | G50: =G39*('HN Framework Values'!G42/Data!$A$16) -> 0 | H50: =H39*('HN Framework Values'!H42/Data!$A$16) -> 0 | I50: =I39*('HN Framework Values'!I42/Data!$A$16) -> 0
C51: Level F | D51: =D40*('HN Framework Values'!D43/Data!$A$16) -> 0 | E51: =E40*('HN Framework Values'!E43/Data!$A$16) -> 0 | F51: =F40*('HN Framework Values'!F43/Data!$A$16) -> 7143.808262 | G51: =G40*('HN Framework Values'!G43/Data!$A$16) -> 0 | H51: =H40*('HN Framework Values'!H43/Data!$A$16) -> 0 | I51: =I40*('HN Framework Values'!I43/Data!$A$16) -> 0 | K51: =SUM(D46:I53) -> 7143.808262
C53: PRU | D53: =D42*'HN Framework Values'!D33/Data!A16 -> 0
A55: Total INDICATIVE Autumn 2024 Top-up Funding | K55: =K51+K29 -> 1127706.543 | Q55: =_xlfn.XLOOKUP(P3,Data!A59:A67,Data!AT59:AT67)-K55 -> 0
A59: Notes
A61: Top up funding is allocated to pupils based on their High Needs Banding and how many days they are on roll at your school.
A63: This data is based on the level of provision your school delivered in the 2023 autumn term. Where the number of places at your school
A64: has changed we have scaled the indicative level of provision up or down as appropriate to reflect the changing position at the school -
A65: but we have not allowed this to increase above your number of comissioned places.
A67: This will be updated at the end of each term to reflect the actual number of Full Time Equivilant pupils that have been educated in this
A68: period. Your top-up funding budget will change accordingly.
A70: Other LA Top-up funding is not paid to you by Coventry City Council and you will need to invoice the relevant Local Authorities for this
A71: funding. If you need contact information for any other Local Authority please contact SEN Management Services on 024 7683 1614.

Sheet Spring 2025 Top-up (hidden)
A1: ='Summary of Funding'!A1 -> Date Issued: 28th March 2024 | M1: ='Summary of Funding'!H1 -> Last Amended: 26th March 2024
A2: ='Summary of Funding'!A2 -> COVENTRY CITY COUNCIL
A3: ='Summary of Funding'!A3 -> 2024-25 Funding Allocations for Special Schools & Alternative Provision | P3: ='Summary of Funding'!P3 -> 8
A4: Spring 2025 Top-up Funding
A6: =_xlfn.XLOOKUP(P3,Data!A4:A12,Data!B4:B12) -> Woodfield Special School | P6: Checks
A10: Total days in term: | B10: =Data!$A$73 -> 56
A11: Spring 2025 Funded days - Coventry
A12: Indicative | D12: Cat 1 | E12: Cat 2 | F12: Cat 3 | G12: Cat 4 | H12: Cat 5 | I12: Cat 6
C13: Level A | D13: 0 | E13: 0 | F13: 0 | G13: 0 | H13: 0 | I13: 0
C14: Level B | D14: 0 | E14: 0 | F14: 0 | G14: 0 | H14: 0 | I14: 0
C15: Level C | D15: =_xlfn.XLOOKUP($P$3,Data!$A$86:$A$94,Data!E86:E94) -> 0 | E15: =_xlfn.XLOOKUP($P$3,Data!$A$86:$A$94,Data!F86:F94) -> 0 | F15: 0 | G15: 0 | H15: 0 | I15: 0
C16: Level D | D16: =_xlfn.XLOOKUP($P$3,Data!$A$86:$A$94,Data!G86:G94) -> 0 | E16: =_xlfn.XLOOKUP($P$3,Data!$A$86:$A$94,Data!H86:H94) -> 0 | F16: =_xlfn.XLOOKUP($P$3,Data!$A$86:$A$94,Data!I86:I94) -> 0 | G16: =_xlfn.XLOOKUP($P$3,Data!$A$86:$A$94,Data!J86:J94) -> 0 | H16: 0 | I16: 0
C17: Level E | D17: =_xlfn.XLOOKUP($P$3,Data!$A$86:$A$94,Data!K86:K94) -> 0 | E17: =_xlfn.XLOOKUP($P$3,Data!$A$86:$A$94,Data!L86:L94) -> 0 | F17: =_xlfn.XLOOKUP($P$3,Data!$A$86:$A$94,Data!M86:M94) -> 57.86666667 | G17: =_xlfn.XLOOKUP($P$3,Data!$A$86:$A$94,Data!N86:N94) -> 0 | H17: =_xlfn.XLOOKUP($P$3,Data!$A$86:$A$94,Data!O86:O94) -> 752.2666667 | I17: =_xlfn.XLOOKUP($P$3,Data!$A$86:$A$94,Data!P86:P94) -> 0 | K17: Total FTE
C18: Level F | D18: =_xlfn.XLOOKUP($P$3,Data!$A$86:$A$94,Data!Q86:Q94) -> 0 | E18: =_xlfn.XLOOKUP($P$3,Data!$A$86:$A$94,Data!R86:R94) -> 0 | F18: =_xlfn.XLOOKUP($P$3,Data!$A$86:$A$94,Data!S86:S94) -> 7522.666667 | G18: =_xlfn.XLOOKUP($P$3,Data!$A$86:$A$94,Data!T86:T94) -> 0 | H18: =_xlfn.XLOOKUP($P$3,Data!$A$86:$A$94,Data!U86:U94) -> 231.4666667 | I18: =_xlfn.XLOOKUP($P$3,Data!$A$86:$A$94,Data!V86:V94) -> 0 | K18: =SUM(D13:I20)/B10 -> 152.9333333
C20: PRU | D20: =_xlfn.XLOOKUP($P$3,Data!$A$86:$A$94,Data!D86:D94) -> 0
A22: Spring 2025 Top-up Funding - Coventry
A23: Indicative | D23: Cat 1 | E23: Cat 2 | F23: Cat 3 | G23: Cat 4 | H23: Cat 5 | I23: Cat 6
C24: Level A | D24: =D13*('HN Framework Values'!D38/Data!$A$16) -> 0 | E24: =E13*('HN Framework Values'!E38/Data!$A$16) -> 0 | F24: =F13*('HN Framework Values'!F38/Data!$A$16) -> 0 | G24: =G13*('HN Framework Values'!G38/Data!$A$16) -> 0 | H24: 0 | I24: 0
C25: Level B | D25: =D14*('HN Framework Values'!D39/Data!$A$16) -> 0 | E25: =E14*('HN Framework Values'!E39/Data!$A$16) -> 0 | F25: =F14*('HN Framework Values'!F39/Data!$A$16) -> 0 | G25: =G14*('HN Framework Values'!G39/Data!$A$16) -> 0 | H25: 0 | I25: 0
C26: Level C | D26: =D15*('HN Framework Values'!D40/Data!$A$16) -> 0 | E26: =E15*('HN Framework Values'!E40/Data!$A$16) -> 0 | F26: =F15*('HN Framework Values'!F40/Data!$A$16) -> 0 | G26: =G15*('HN Framework Values'!G40/Data!$A$16) -> 0 | H26: 0 | I26: 0 | K26: Total Coventry Top-up
C27: Level D | D27: =D16*('HN Framework Values'!D41/Data!$A$16) -> 0 | E27: =E16*('HN Framework Values'!E41/Data!$A$16) -> 0 | F27: =F16*('HN Framework Values'!F41/Data!$A$16) -> 0 | G27: =G16*('HN Framework Values'!G41/Data!$A$16) -> 0 | H27: 0 | I27: 0
C28: Level E | D28: =D17*('HN Framework Values'!D42/Data!$A$16) -> 0 | E28: =E17*('HN Framework Values'!E42/Data!$A$16) -> 0 | F28: =F17*('HN Framework Values'!F42/Data!$A$16) -> 3994.772033 | G28: =G17*('HN Framework Values'!G42/Data!$A$16) -> 0 | H28: =H17*('HN Framework Values'!H42/Data!$A$16) -> 92646.67004 | I28: =I17*('HN Framework Values'!I42/Data!$A$16) -> 0
C29: Level F | D29: =D18*('HN Framework Values'!D43/Data!$A$16) -> 0 | E29: =E18*('HN Framework Values'!E43/Data!$A$16) -> 0 | F29: =F18*('HN Framework Values'!F43/Data!$A$16) -> 675116.7849 | G29: =G18*('HN Framework Values'!G43/Data!$A$16) -> 0 | H29: =H18*('HN Framework Values'!H43/Data!$A$16) -> 57013.33541 | I29: =I18*('HN Framework Values'!I43/Data!$A$16) -> 0 | K29: =SUM(D24:I31) -> 828771.5624
C31: PRU | D31: =D20*'HN Framework Values'!D33/Data!A16 -> 0
A33: Spring 2025 Funded days - Other LAs
A34: Indicative | D34: Cat 1 | E34: Cat 2 | F34: Cat 3 | G34: Cat 4 | H34: Cat 5 | I34: Cat 6
C35: Level A | D35: 0 | E35: 0 | F35: 0 | G35: 0 | H35: 0 | I35: 0
C36: Level B | D36: 0 | E36: 0 | F36: 0 | G36: 0 | H36: 0 | I36: 0
C37: Level C | D37: =_xlfn.XLOOKUP($P$3,Data!$A$86:$A$94,Data!Z86:Z94) -> 0 | E37: =_xlfn.XLOOKUP($P$3,Data!$A$86:$A$94,Data!AA86:AA94) -> 0 | F37: 0 | G37: 0 | H37: 0 | I37: 0
C38: Level D | D38: =_xlfn.XLOOKUP($P$3,Data!$A$86:$A$94,Data!AB86:AB94) -> 0 | E38: =_xlfn.XLOOKUP($P$3,Data!$A$86:$A$94,Data!AC86:AC94) -> 0 | F38: =_xlfn.XLOOKUP($P$3,Data!$A$86:$A$94,Data!AD86:AD94) -> 0 | G38: =_xlfn.XLOOKUP($P$3,Data!$A$86:$A$94,Data!AE86:AE94) -> 0 | H38: 0 | I38: 0
C39: Level E | D39: =_xlfn.XLOOKUP($P$3,Data!$A$86:$A$94,Data!AF86:AF94) -> 0 | E39: =_xlfn.XLOOKUP($P$3,Data!$A$86:$A$94,Data!AG86:AG94) -> 0 | F39: =_xlfn.XLOOKUP($P$3,Data!$A$86:$A$94,Data!AH86:AH94) -> 0 | G39: =_xlfn.XLOOKUP($P$3,Data!$A$86:$A$94,Data!AI86:AI94) -> 0 | H39: =_xlfn.XLOOKUP($P$3,Data!$A$86:$A$94,Data!AJ86:AJ94) -> 0 | I39: =_xlfn.XLOOKUP($P$3,Data!$A$86:$A$94,Data!AK86:AK94) -> 0 | K39: Total FTE
C40: Level F | D40: =_xlfn.XLOOKUP($P$3,Data!$A$86:$A$94,Data!AL86:AL94) -> 0 | E40: =_xlfn.XLOOKUP($P$3,Data!$A$86:$A$94,Data!AM86:AM94) -> 0 | F40: =_xlfn.XLOOKUP($P$3,Data!$A$86:$A$94,Data!AN86:AN94) -> 115.7333333 | G40: =_xlfn.XLOOKUP($P$3,Data!$A$86:$A$94,Data!AO86:AO94) -> 0 | H40: =_xlfn.XLOOKUP($P$3,Data!$A$86:$A$94,Data!AP86:AP94) -> 0 | I40: =_xlfn.XLOOKUP($P$3,Data!$A$86:$A$94,Data!AQ86:AQ94) -> 0 | K40: =SUM(D35:I42)/B10 -> 2.066666667
C42: PRU | D42: =_xlfn.XLOOKUP($P$3,Data!$A$86:$A$94,Data!Y86:Y94) -> 0
A44: Spring 2025 Top-up Funding - Other LAs
A45: Indicative | D45: Cat 1 | E45: Cat 2 | F45: Cat 3 | G45: Cat 4 | H45: Cat 5 | I45: Cat 6
C46: Level A | D46: =D35*('HN Framework Values'!D38/Data!$A$16) -> 0 | E46: =E35*('HN Framework Values'!E38/Data!$A$16) -> 0 | F46: =F35*('HN Framework Values'!F38/Data!$A$16) -> 0 | G46: =G35*('HN Framework Values'!G38/Data!$A$16) -> 0 | H46: =H35*('HN Framework Values'!H38/Data!$A$16) -> 0 | I46: =I35*('HN Framework Values'!I38/Data!$A$16) -> 0
C47: Level B | D47: =D36*('HN Framework Values'!D39/Data!$A$16) -> 0 | E47: =E36*('HN Framework Values'!E39/Data!$A$16) -> 0 | F47: =F36*('HN Framework Values'!F39/Data!$A$16) -> 0 | G47: =G36*('HN Framework Values'!G39/Data!$A$16) -> 0 | H47: =H36*('HN Framework Values'!H39/Data!$A$16) -> 0 | I47: =I36*('HN Framework Values'!I39/Data!$A$16) -> 0
C48: Level C | D48: =D37*('HN Framework Values'!D40/Data!$A$16) -> 0 | E48: =E37*('HN Framework Values'!E40/Data!$A$16) -> 0 | F48: =F37*('HN Framework Values'!F40/Data!$A$16) -> 0 | G48: =G37*('HN Framework Values'!G40/Data!$A$16) -> 0 | H48: =H37*('HN Framework Values'!H40/Data!$A$16) -> 0 | I48: =I37*('HN Framework Values'!I40/Data!$A$16) -> 0 | K48: Total Other LA Top-up
C49: Level D | D49: =D38*('HN Framework Values'!D41/Data!$A$16) -> 0 | E49: =E38*('HN Framework Values'!E41/Data!$A$16) -> 0 | F49: =F38*('HN Framework Values'!F41/Data!$A$16) -> 0 | G49: =G38*('HN Framework Values'!G41/Data!$A$16) -> 0 | H49: =H38*('HN Framework Values'!H41/Data!$A$16) -> 0 | I49: =I38*('HN Framework Values'!I41/Data!$A$16) -> 0
C50: Level E | D50: =D39*('HN Framework Values'!D42/Data!$A$16) -> 0 | E50: =E39*('HN Framework Values'!E42/Data!$A$16) -> 0 | F50: =F39*('HN Framework Values'!F42/Data!$A$16) -> 0 | G50: =G39*('HN Framework Values'!G42/Data!$A$16) -> 0 | H50: =H39*('HN Framework Values'!H42/Data!$A$16) -> 0 | I50: =I39*('HN Framework Values'!I42/Data!$A$16) -> 0
C51: Level F | D51: =D40*('HN Framework Values'!D43/Data!$A$16) -> 0 | E51: =E40*('HN Framework Values'!E43/Data!$A$16) -> 0 | F51: =F40*('HN Framework Values'!F43/Data!$A$16) -> 10386.41208 | G51: =G40*('HN Framework Values'!G43/Data!$A$16) -> 0 | H51: =H40*('HN Framework Values'!H43/Data!$A$16) -> 0 | I51: =I40*('HN Framework Values'!I43/Data!$A$16) -> 0 | K51: =SUM(D46:I53) -> 10386.41208
C53: PRU | D53: =D42*'HN Framework Values'!D33/Data!A16 -> 0
A55: Total INDICATIVE Spring 2025 Top-up Funding | K55: =K51+K29 -> 839157.9745 | Q55: =_xlfn.XLOOKUP(P3,Data!A86:A94,Data!AT86:AT94)-K55 -> 0
A60: Notes
A62: Top up funding is allocated to pupils based on their High Needs Banding and how many days they are on roll at your school.
A64: This data is based on the level of provision your school delivered in the 2024 spring term. Where the number of places at your school
A65: has changed we have scaled the indicative level of provision up or down as appropriate to reflect the changing position at the school -
A66: but we have not allowed this to increase above your number of comissioned places.
A68: This will be updated at the end of each term to reflect the actual number of Full Time Equivilant pupils that have been educated in this
A69: period. Your top-up funding budget will change accordingly.
A71: Other LA Top-up funding is not paid to you by Coventry City Council and you will need to invoice the relevant Local Authorities for this
A72: funding. If you need contact information for any other Local Authority please contact SEN Management Services on 024 7683 1614.

Sheet Data (hidden)
A1: 1 | B1: 2 | C1: 3 | D1: 4 | E1: 5 | F1: 6 | G1: 7 | H1: 8 | I1: 9 | J1: 10 | K1: 11 | L1: 12 | M1: 13 | N1: 14 | O1: 15 | P1: 16 | Q1: 17 | R1: 18 | S1: 19 | T1: 20 | U1: 21 | V1: 22 | W1: 23 | X1: 24 | Y1: 25 | Z1: 26 | AA1: 27 | AB1: 28 | AC1: 29 | AD1: 30 | AE1: 31 | AF1: 32 | AG1: 33 | AH1: 34 | AI1: 35 | AJ1: 36 | AK1: 37 | AL1: 38 | AM1: 39 | AN1: 40 | AO1: 41 | AP1: 42 | AQ1: 43 | AR1: 44 | AS1: 45 | AT1: 46
C2: 2023-24 places* | F2: 2024-25 Places Information | O2: Place Led Funding | V2: Funding Rate Information | AP2: Other Funding Elements | AT2: Deductions
A3: Ref # | B3: School Name | C3: TOTAL Apr - Jul PLACES | D3: TOTAL Aug PLACES | E3: TOTAL Sep - Mar PLACES | F3: Pre-16 Apr - Jul | G3: Pre-16 Aug | H3: Pre-16 Sept - Mar | I3: Post-16 Apr - Jul | J3: Post-16 Aug - Mar | K3: TOTAL Apr - Jul PLACES | L3: TOTAL Aug PLACES | M3: TOTAL Sep - Mar PLACES | O3: Pre-16 Apr - Jul | P3: Pre-16 Aug | Q3: Pre-16 Sept - Mar | R3: Post-16 Apr - Jul | S3: Post-16 Aug | T3: Post-16 Sept - Mar | V3: Coventry ELC Band | W3: Band 1C | X3: Band 2C | Y3: Band 1D | Z3: Band 2D | AA3: Band 3D | AB3: Band 4D | AC3: Band 1E | AD3: Band 2E | AE3: Band 3E | AF3: Band 4E | AG3: Band 5E | AH3: Band 6E | AI3: Band 1F | AJ3: Band 2F | AK3: Band 3F | AL3: Band 4F | AM3: Band 5F | AN3: Band 6F | AP3: 2024/25 Pupil Premium | AQ3: 2024/25 TPG/TPECG | AR3: 2024/25 TPAG | AS3: Split Site Funding | AT3: RPA
A4: 1 | B4: Castle Wood Special School | C4: =[5]Data!$K4 -> 160 | D4: =[5]Data!$L4 -> 160 | E4: =[5]Data!$M4 -> 160 | F4: 160 | G4: 160 | H4: 160 | I4: 0 | J4: 0 | K4: =F4+I4 -> 160 | L4: =G4+J4 -> 160 | M4: =H4+J4 -> 160 | O4: =F4*10000*4/12 -> 533333.3333 | P4: =G4*10000*1/12 -> 133333.3333 | Q4: =H4*10000*7/12 -> 933333.3333 | R4: =I4*10000*4/12 -> 0 | S4: =I4*10000*1/12 -> 0 | T4: =J4*10000*7/12 -> 0 | V4: 0 | W4: =+[6]Sheet1!$B$27 -> 2761.360792 | X4: =+[6]Sheet1!$C$27 -> 3313.63768 | Y4: =+[6]Sheet1!$B$28 -> 3313.63768 | Z4: =+[6]Sheet1!$C$28 -> 5522.721585 | AA4: =+[6]Sheet1!$D$28 -> 8284.094199 | AB4: =+[6]Sheet1!$E$28 -> 8284.094199 | AC4: =+[6]Sheet1!$B$29 -> 11045.45499 | AD4: =+[6]Sheet1!$C$29 -> 10217.05148 | AE4: =+[6]Sheet1!$D$29 -> 13806.81578 | AF4: =+[6]Sheet1!$E$29 -> 13806.81578 | AG4: =+[6]Sheet1!$F$29 -> 24631.3373 | AH4: 0 | AI4: =+[6]Sheet1!$B$30 -> 17948.86879 | AJ4: =+[6]Sheet1!$C$30 -> 16568.17658 | AK4: =+[6]Sheet1!$D$30 -> 17948.86879 | AL4: =+[6]Sheet1!$E$30 -> 16568.17658 | AM4: =+[6]Sheet1!$F$30 -> 49262.67461 | AN4: 0 | AP4: =[7]Allocations!$U$62 -> 98020 | AQ4: =[8]Sheet1!K2 -> 105600 | AR4: =[9]Data!AR4/7*12 -> 65703.12214 | AS4: 0 | AT4: =-IFERROR(_xlfn.XLOOKUP(A4,'[10]LAMS Data'!$AH$2:$AH$38,'[10]LAMS Data'!$AE$2:$AE$38),0) -> -3680
A5: 2 | B5: Kingsbury Academy | C5: =[5]Data!$K5 -> 100 | D5: =[5]Data!$L5 -> 100 | E5: =[5]Data!$M5 -> 100 | F5: 100 | G5: 100 | H5: 100 | I5: 0 | J5: 0 | K5: 100 | L5: 100 | M5: 100 | O5: 333333.3333 | P5: 83333.33333 | Q5: 583333.3333 | R5: 0 | S5: 0 | T5: 0 | V5: 0 | W5: =+[6]Sheet1!$B$27 -> 2761.360792 | X5: =+[6]Sheet1!$C$27 -> 3313.63768 | Y5: =+[6]Sheet1!$B$28 -> 3313.63768 | Z5: =+[6]Sheet1!$C$28 -> 5522.721585 | AA5: =+[6]Sheet1!$D$28 -> 8284.094199 | AB5: =+[6]Sheet1!$E$28 -> 8284.094199 | AC5: =+[6]Sheet1!$B$29 -> 11045.45499 | AD5: =+[6]Sheet1!$C$29 -> 10217.05148 | AE5: =+[6]Sheet1!$D$29 -> 13806.81578 | AF5: =+[6]Sheet1!$E$29 -> 13806.81578 | AG5: =+[6]Sheet1!$F$29 -> 24631.3373 | AH5: 0 | AI5: =+[6]Sheet1!$B$30 -> 17948.86879 | AJ5: =+[6]Sheet1!$C$30 -> 16568.17658 | AK5: =+[6]Sheet1!$D$30 -> 17948.86879 | AL5: =+[6]Sheet1!$E$30 -> 16568.17658 | AM5: =+[6]Sheet1!$F$30 -> 49262.67461 | AN5: 0 | AP5: 0 | AQ5: =[8]Sheet1!K3 -> 66000 | AR5: =[9]Data!AR5/7*12 -> 41064.45134 | AS5: 0 | AT5: =-IFERROR(_xlfn.XLOOKUP(A5,'[10]LAMS Data'!$AH$2:$AH$38,'[10]LAMS Data'!$AE$2:$AE$38),0) -> 0
A6: 3 | B6: Riverbank Academy | C6: =[5]Data!$K6 -> 200 | D6: =[5]Data!$L6 -> 200 | E6: =[5]Data!$M6 -> 200 | F6: 180 | G6: 180 | H6: 180 | I6: 20 | J6: 20 | K6: 200 | L6: 200 | M6: 200 | O6: 600000 | P6: 150000 | Q6: 1050000 | R6: 66666.66667 | S6: 16666.66667 | T6: 116666.6667 | V6: 0 | W6: =+[6]Sheet1!$B$27 -> 2761.360792 | X6: =+[6]Sheet1!$C$27 -> 3313.63768 | Y6: =+[6]Sheet1!$B$28 -> 3313.63768 | Z6: =+[6]Sheet1!$C$28 -> 5522.721585 | AA6: =+[6]Sheet1!$D$28 -> 8284.094199 | AB6: =+[6]Sheet1!$E$28 -> 8284.094199 | AC6: =+[6]Sheet1!$B$29 -> 11045.45499 | AD6: =+[6]Sheet1!$C$29 -> 10217.05148 | AE6: =+[6]Sheet1!$D$29 -> 13806.81578 | AF6: =+[6]Sheet1!$E$29 -> 13806.81578 | AG6: =+[6]Sheet1!$F$29 -> 24631.3373 | AH6: =(33083.19*1.014)*(1+AW8) -> 35530.10817 | AI6: =+[6]Sheet1!$B$30 -> 17948.86879 | AJ6: =+[6]Sheet1!$C$30 -> 16568.17658 | AK6: =+[6]Sheet1!$D$30 -> 17948.86879 | AL6: =+[6]Sheet1!$E$30 -> 16568.17658 | AM6: =+[6]Sheet1!$F$30 -> 49262.67461 | AN6: 0 | AP6: 0 | AQ6: =[8]Sheet1!K4 -> 132000 | AR6: =[9]Data!AR6/7*12 -> 82128.90267 | AS6: 0 | AT6: =-IFERROR(_xlfn.XLOOKUP(A6,'[10]LAMS Data'!$AH$2:$AH$38,'[10]LAMS Data'!$AE$2:$AE$38),0) -> 0
A7: 4 | B7: Corley Academy | C7: =[5]Data!$K7 -> 129 | D7: =[5]Data!$L7 -> 129 | E7: =[5]Data!$M7 -> 140 | F7: 130 | G7: 130 | H7: 145 | I7: 10 | J7: 10 | K7: 140 | L7: 140 | M7: 155 | O7: 433333.3333 | P7: 108333.3333 | Q7: 845833.3333 | R7: 33333.33333 | S7: 8333.333333 | T7: 58333.33333 | V7: 0 | W7: =+[6]Sheet1!$B$27 -> 2761.360792 | X7: =+[6]Sheet1!$C$27 -> 3313.63768 | Y7: =+[6]Sheet1!$B$28 -> 3313.63768 | Z7: =+[6]Sheet1!$C$28 -> 5522.721585 | AA7: =+[6]Sheet1!$D$28 -> 8284.094199 | AB7: =+[6]Sheet1!$E$28 -> 8284.094199 | AC7: =+[6]Sheet1!$B$29 -> 11045.45499 | AD7: =+[6]Sheet1!$C$29 -> 10217.05148 | AE7: =+[6]Sheet1!$D$29 -> 13806.81578 | AF7: =+[6]Sheet1!$E$29 -> 13806.81578 | AG7: =+[6]Sheet1!$F$29 -> 24631.3373 | AH7: 0 | AI7: =+[6]Sheet1!$B$30 -> 17948.86879 | AJ7: =+[6]Sheet1!$C$30 -> 16568.17658 | AK7: =+[6]Sheet1!$D$30 -> 17948.86879 | AL7: =+[6]Sheet1!$E$30 -> 16568.17658 | AM7: =+[6]Sheet1!$F$30 -> 49262.67461 | AN7: 0 | AP7: 0 | AQ7: =[8]Sheet1!K5 -> 89375 | AR7: =[9]Data!AR7/7*12 -> 57490.23187 | AS7: 0 | AT7: =-IFERROR(_xlfn.XLOOKUP(A7,'[10]LAMS Data'!$AH$2:$AH$38,'[10]LAMS Data'!$AE$2:$AE$38),0) -> 0
A8: 5 | B8: Tiverton Special School | C8: =[5]Data!$K8 -> 112 | D8: =[5]Data!$L8 -> 112 | E8: =[5]Data!$M8 -> 118 | F8: 119 | G8: 119 | H8: 121 | I8: 0 | J8: 0 | K8: 119 | L8: 119 | M8: 121 | O8: 396666.6667 | P8: 99166.66667 | Q8: 705833.3333 | R8: 0 | S8: 0 | T8: 0 | V8: 0 | W8: =+[6]Sheet1!$B$27 -> 2761.360792 | X8: =+[6]Sheet1!$C$27 -> 3313.63768 | Y8: =+[6]Sheet1!$B$28 -> 3313.63768 | Z8: =+[6]Sheet1!$C$28 -> 5522.721585 | AA8: =+[6]Sheet1!$D$28 -> 8284.094199 | AB8: =+[6]Sheet1!$E$28 -> 8284.094199 | AC8: =+[6]Sheet1!$B$29 -> 11045.45499 | AD8: =+[6]Sheet1!$C$29 -> 10217.05148 | AE8: =+[6]Sheet1!$D$29 -> 13806.81578 | AF8: =+[6]Sheet1!$E$29 -> 13806.81578 | AG8: =+[6]Sheet1!$F$29 -> 24631.3373 | AH8: 0 | AI8: =+[6]Sheet1!$B$30 -> 17948.86879 | AJ8: =+[6]Sheet1!$C$30 -> 16568.17658 | AK8: =+[6]Sheet1!$D$30 -> 17948.86879 | AL8: =+[6]Sheet1!$E$30 -> 16568.17658 | AM8: =+[6]Sheet1!$F$30 -> 49262.67461 | AN8: 0 | AP8: =[7]Allocations!$U$63 -> 54370 | AQ8: =[8]Sheet1!K6 -> 73920 | AR8: =[9]Data!AR8/7*12 -> 48866.69709 | AS8: 0 | AT8: =-IFERROR(_xlfn.XLOOKUP(A8,'[10]LAMS Data'!$AH$2:$AH$38,'[10]LAMS Data'!$AE$2:$AE$38),0) -> 0 | AV8: Goal Seek | AW8: 0.05913469681
A9: 6 | B9: Baginton Fields Special School | C9: =[5]Data!$K9 -> 116 | D9: =[5]Data!$L9 -> 116 | E9: =[5]Data!$M9 -> 126 | F9: 88 | G9: 88 | H9: 88 | I9: 38 | J9: 38 | K9: 126 | L9: 126 | M9: 126 | O9: 293333.3333 | P9: 73333.33333 | Q9: 513333.3333 | R9: 126666.6667 | S9: 31666.66667 | T9: 221666.6667 | V9: 0 | W9: =+[6]Sheet1!$B$27 -> 2761.360792 | X9: =+[6]Sheet1!$C$27 -> 3313.63768 | Y9: =+[6]Sheet1!$B$28 -> 3313.63768 | Z9: =+[6]Sheet1!$C$28 -> 5522.721585 | AA9: =+[6]Sheet1!$D$28 -> 8284.094199 | AB9: =+[6]Sheet1!$E$28 -> 8284.094199 | AC9: =+[6]Sheet1!$B$29 -> 11045.45499 | AD9: =+[6]Sheet1!$C$29 -> 10217.05148 | AE9: =+[6]Sheet1!$D$29 -> 13806.81578 | AF9: =+[6]Sheet1!$E$29 -> 13806.81578 | AG9: =+[6]Sheet1!$F$29 -> 24631.3373 | AH9: 0 | AI9: =+[6]Sheet1!$B$30 -> 17948.86879 | AJ9: =+[6]Sheet1!$C$30 -> 16568.17658 | AK9: =+[6]Sheet1!$D$30 -> 17948.86879 | AL9: =+[6]Sheet1!$E$30 -> 16568.17658 | AM9: =+[6]Sheet1!$F$30 -> 49262.67461 | AN9: 0 | AP9: =[7]Allocations!$U$69 -> 43050 | AQ9: =[8]Sheet1!K7 -> 76560 | AR9: =[9]Data!AR9/7*12 -> 51741.20868 | AS9: 0 | AT9: =-IFERROR(_xlfn.XLOOKUP(A9,'[10]LAMS Data'!$AH$2:$AH$38,'[10]LAMS Data'!$AE$2:$AE$38),0) -> -2714 | AV9: =K121 -> 16905477.14
A10: 7 | B10: Sherbourne Fields Special School | C10: =[5]Data!$K10 -> 240 | D10: =[5]Data!$L10 -> 240 | E10: =[5]Data!$M10 -> 251 | F10: 217 | G10: 217 | H10: 224 | I10: 34 | J10: 34 | K10: 251 | L10: 251 | M10: 258 | O10: 723333.3333 | P10: 180833.3333 | Q10: 1306666.667 | R10: 113333.3333 | S10: 28333.33333 | T10: 198333.3333 | V10: 0 | W10: =+[6]Sheet1!$B$27 -> 2761.360792 | X10: =+[6]Sheet1!$C$27 -> 3313.63768 | Y10: =+[6]Sheet1!$B$28 -> 3313.63768 | Z10: =+[6]Sheet1!$C$28 -> 5522.721585 | AA10: =+[6]Sheet1!$D$28 -> 8284.094199 | AB10: =+[6]Sheet1!$E$28 -> 8284.094199 | AC10: =+[6]Sheet1!$B$29 -> 11045.45499 | AD10: =+[6]Sheet1!$C$29 -> 10217.05148 | AE10: =+[6]Sheet1!$D$29 -> 13806.81578 | AF10: =+[6]Sheet1!$E$29 -> 13806.81578 | AG10: =+[6]Sheet1!$F$29 -> 24631.3373 | AH10: 0 | AI10: =+[6]Sheet1!$B$30 -> 17948.86879 | AJ10: =+[6]Sheet1!$C$30 -> 16568.17658 | AK10: =+[6]Sheet1!$D$30 -> 17948.86879 | AL10: =+[6]Sheet1!$E$30 -> 16568.17658 | AM10: =+[6]Sheet1!$F$30 -> 49262.67461 | AN10: 0 | AP10: =[7]Allocations!$U$70 -> 52500 | AQ10: =[8]Sheet1!K8 -> 160325 | AR10: =[9]Data!AR10/7*12 -> 103071.7729 | AS10: 0 | AT10: =-IFERROR(_xlfn.XLOOKUP(A10,'[10]LAMS Data'!$AH$2:$AH$38,'[10]LAMS Data'!$AE$2:$AE$38),0) -> -5060 | AV10: 896123
A11: 8 | B11: Woodfield Special School | C11: =[5]Data!$K11 -> 155 | D11: =[5]Data!$L11 -> 155 | E11: =[5]Data!$M11 -> 155 | F11: 155 | G11: 155 | H11: 155 | I11: 0 | J11: 0 | K11: 155 | L11: 155 | M11: 155 | O11: 516666.6667 | P11: 129166.6667 | Q11: 904166.6667 | R11: 0 | S11: 0 | T11: 0 | V11: 0 | W11: =+[6]Sheet1!$B$27 -> 2761.360792 | X11: =+[6]Sheet1!$C$27 -> 3313.63768 | Y11: =+[6]Sheet1!$B$28 -> 3313.63768 | Z11: =+[6]Sheet1!$C$28 -> 5522.721585 | AA11: =+[6]Sheet1!$D$28 -> 8284.094199 | AB11: =+[6]Sheet1!$E$28 -> 8284.094199 | AC11: =+[6]Sheet1!$B$29 -> 11045.45499 | AD11: =+[6]Sheet1!$C$29 -> 10217.05148 | AE11: =+[6]Sheet1!$D$29 -> 13806.81578 | AF11: =+[6]Sheet1!$E$29 -> 13806.81578 | AG11: =+[6]Sheet1!$F$29 -> 24631.3373 | AH11: 0 | AI11: =+[6]Sheet1!$B$30 -> 17948.86879 | AJ11: =+[6]Sheet1!$C$30 -> 16568.17658 | AK11: =+[6]Sheet1!$D$30 -> 17948.86879 | AL11: =+[6]Sheet1!$E$30 -> 16568.17658 | AM11: =+[6]Sheet1!$F$30 -> 49262.67461 | AN11: 0 | AP11: =[7]Allocations!$U$71 -> 65100 | AQ11: =[8]Sheet1!K9 -> 102300 | AR11: =[9]Data!AR11/7*12 -> 63649.89957 | AS11: 90000 | AT11: =-IFERROR(_xlfn.XLOOKUP(A11,'[10]LAMS Data'!$AH$2:$AH$38,'[10]LAMS Data'!$AE$2:$AE$38),0) -> -3565 | AV11: =SUM(AV9:AV10) -> 17801600.14
A12: 9 | B12: Coventry Extended Learning Centre | C12: =[5]Data!$K12 -> 120 | D12: =[5]Data!$L12 -> 120 | E12: =[5]Data!$M12 -> 120 | F12: 120 | G12: 120 | H12: 120 | I12: 0 | J12: 0 | K12: 120 | L12: 120 | M12: 120 | O12: 400000 | P12: 100000 | Q12: 700000 | R12: 0 | S12: 0 | T12: 0 | V12: =+[6]Sheet1!$B$36 -> 13434.51733 | W12: 0 | X12: 0 | Y12: 0 | Z12: 0 | AA12: 0 | AB12: 0 | AC12: 0 | AD12: 0 | AE12: 0 | AF12: 0 | AG12: 0 | AH12: 0 | AI12: 0 | AJ12: 0 | AK12: 0 | AL12: 0 | AM12: 0 | AN12: 0 | AP12: =[7]Allocations!$U$75 -> 49350 | AQ12: 76255 | AR12: =[9]Data!AR12/7*12 -> 49277.3416 | AS12: 0 | AT12: 0
C13: =SUM(C4:C12) -> 1332 | D13: 1332 | E13: 1370 | F13: 1269 | G13: 1269 | H13: 1293 | I13: 102 | J13: 102 | K13: 1371 | L13: 1371 | M13: 1395 | O13: =SUM(O4:O12) -> 4230000 | P13: 1057500 | Q13: 7542500 | R13: 340000 | S13: 85000 | T13: 595000 | AP13: =SUM(AP4:AP12) -> 362390 | AQ13: 882335 | AR13: =SUM(AR4:AR12) -> 562993.6278 | AS13: =SUM(AS4:AS12) -> 90000 | AT13: -15019
AM15: =X5*66/197 -> 1110.152725
A16: 200 | D16: Coventry pupils | Y16: Other LA Pupils
C17: Place Led | D17: Cov ELC Band | E17: Band 1C | F17: Band 2C | G17: Band 1D | H17: Band 2D | I17: Band 3D | J17: Band 4D | K17: Band 1E | L17: Band 2E | M17: Band 3E | N17: Band 4E | O17: Band 5E | P17: Band 6E | Q17: Band 1F | R17: Band 2F | S17: Band 3F | T17: Band 4F | U17: Band 5F | V17: Band 6F | W17: No. FTEs | X17: Coventry | Y17: Cov ELC Band | Z17: Band 1C | AA17: Band 2C | AB17: Band 1D | AC17: Band 2D | AD17: Band 3D | AE17: Band 4D | AF17: Band 1E | AG17: Band 2E | AH17: Band 3E | AI17: Band 4E | AJ17: Band 5E | AK17: Band 6E | AL17: Band 1F | AM17: Band 2F | AN17: Band 3F | AO17: Band 4F | AP17: Band 5F | AQ17: Band 6F | AR17: No. FTEs | AS17: Other LA | AT17: Total Top Up | AV17: Manual Check | AW17: Total | AX17: 23/24 | AY17: 23/24 | AZ17: Budget Setting | BA17: 23/24 | BB17: Additional
C18: Day Rate | D18: Day Units | E18: Day Units | F18: Day Units | G18: Day Units | H18: Day Units | I18: Day Units | J18: Day Units | K18: Day Units | L18: Day Units | M18: Day Units | N18: Day Units | O18: Day Units | P18: Day Units | Q18: Day Units | R18: Day Units | S18: Day Units | T18: Day Units | U18: Day Units | V18: Day Units | W18: Equivalency | X18: Funding £ | Y18: Day Units | Z18: Day Units | AA18: Day Units | AB18: Day Units | AC18: Day Units | AD18: Day Units | AE18: Day Units | AF18: Day Units | AG18: Day Units | AH18: Day Units | AI18: Day Units | AJ18: Day Units | AK18: Day Units | AL18: Day Units | AM18: Day Units | AN18: Day Units | AO18: Day Units | AP18: Day Units | AQ18: Day Units | AR18: Equivalency | AS18: Funding £ | AT18: Funding £ | AU18: No. FTE | AW18: Places | AX18: v4 FTE | AY18: Places | BA18: Term Days | BB18: Place Days | BD18: ELC Band | BE18: Band 1C | BF18: Band 2C | BG18: Band 1D | BH18: Band 2D | BI18: Band 3D | BJ18: Band 4D | BK18: Band 1E | BL18: Band 2E | BM18: Band 3E | BN18: Band 4E | BO18: Band 5E | BP18: Band 6E | BQ18: Band 1F | BR18: Band 2F | BS18: Band 3F | BT18: Band 4F | BU18: Band 5F | BV18: Band 6F | BX18: ELC Band | BY18: Band 1C | BZ18: Band 2C | CA18: Band 1D | CB18: Band 2D | CC18: Band 3D | CD18: Band 4D | CE18: Band 1E | CF18: Band 2E | CG18: Band 3E | CH18: Band 4E | CI18: Band 5E | CJ18: Band 6E | CK18: Band 1F | CL18: Band 2F | CM18: Band 3F | CN18: Band 4F | CO18: Band 5F | CP18: Band 6F
B19: Summer Term 2024
A20: 69 | B20: School | BA20: 66
A21: 1 | B21: Castle Wood | C21: =10000/$A$16 -> 50 | D21: 0 | E21: =SUMIFS(SummerProvRep!$H:$H,SummerProvRep!$A:$A,Data!$A$21,SummerProvRep!$G:$G,"Coventry",SummerProvRep!$P:$P,Data!E$17) -> 0 | F21: =SUMIFS(SummerProvRep!$H:$H,SummerProvRep!$A:$A,Data!$A$21,SummerProvRep!$G:$G,"Coventry",SummerProvRep!$P:$P,Data!F$17) -> 0 | G21: =SUMIFS(SummerProvRep!$H:$H,SummerProvRep!$A:$A,Data!$A$21,SummerProvRep!$G:$G,"Coventry",SummerProvRep!$P:$P,Data!G$17) -> 0 | H21: =SUMIFS(SummerProvRep!$H:$H,SummerProvRep!$A:$A,Data!$A$21,SummerProvRep!$G:$G,"Coventry",SummerProvRep!$P:$P,Data!H$17) -> 0 | I21: =SUMIFS(SummerProvRep!$H:$H,SummerProvRep!$A:$A,Data!$A$21,SummerProvRep!$G:$G,"Coventry",SummerProvRep!$P:$P,Data!I$17) -> 0 | J21: =SUMIFS(SummerProvRep!$H:$H,SummerProvRep!$A:$A,Data!$A$21,SummerProvRep!$G:$G,"Coventry",SummerProvRep!$P:$P,Data!J$17) -> 66 | K21: =SUMIFS(SummerProvRep!$H:$H,SummerProvRep!$A:$A,Data!$A$21,SummerProvRep!$G:$G,"Coventry",SummerProvRep!$P:$P,Data!K$17) -> 5788 | L21: =SUMIFS(SummerProvRep!$H:$H,SummerProvRep!$A:$A,Data!$A$21,SummerProvRep!$G:$G,"Coventry",SummerProvRep!$P:$P,Data!L$17) -> 1122 | M21: =SUMIFS(SummerProvRep!$H:$H,SummerProvRep!$A:$A,Data!$A$21,SummerProvRep!$G:$G,"Coventry",SummerProvRep!$P:$P,Data!M$17)/$BA$20*$A$20 -> 0 | N21: =SUMIFS(SummerProvRep!$H:$H,SummerProvRep!$A:$A,Data!$A$21,SummerProvRep!$G:$G,"Coventry",SummerProvRep!$P:$P,Data!N$17)/$BA$20*$A$20 -> 345 | O21: =SUMIFS(SummerProvRep!$H:$H,SummerProvRep!$A:$A,Data!$A$21,SummerProvRep!$G:$G,"Coventry",SummerProvRep!$P:$P,Data!O$17)/$BA$20*$A$20 -> 519.5909091 | P21: =SUMIFS(SummerProvRep!$H:$H,SummerProvRep!$A:$A,Data!$A$21,SummerProvRep!$G:$G,"Coventry",SummerProvRep!$P:$P,Data!P$17)/$BA$20*$A$20 -> 0 | Q21: =SUMIFS(SummerProvRep!$H:$H,SummerProvRep!$A:$A,Data!$A$21,SummerProvRep!$G:$G,"Coventry",SummerProvRep!$P:$P,Data!Q$17)/$BA$20*$A$20 -> 1708.272727 | R21: =SUMIFS(SummerProvRep!$H:$H,SummerProvRep!$A:$A,Data!$A$21,SummerProvRep!$G:$G,"Coventry",SummerProvRep!$P:$P,Data!R$17)/$BA$20*$A$20 -> 759 | S21: =SUMIFS(SummerProvRep!$H:$H,SummerProvRep!$A:$A,Data!$A$21,SummerProvRep!$G:$G,"Coventry",SummerProvRep!$P:$P,Data!S$17)/$BA$20*$A$20 -> 0 | T21: =SUMIFS(SummerProvRep!$H:$H,SummerProvRep!$A:$A,Data!$A$21,SummerProvRep!$G:$G,"Coventry",SummerProvRep!$P:$P,Data!T$17)/$BA$20*$A$20 -> 276 | U21: =SUMIFS(SummerProvRep!$H:$H,SummerProvRep!$A:$A,Data!$A$21,SummerProvRep!$G:$G,"Coventry",SummerProvRep!$P:$P,Data!U$17)/$BA$20*$A$20 -> 69 | V21: =SUMIFS(SummerProvRep!$H:$H,SummerProvRep!$A:$A,Data!$A$21,SummerProvRep!$G:$G,"Coventry",SummerProvRep!$P:$P,Data!V$17)/$BA$20*$A$20 -> 0 | W21: =SUM(D21:V21)/$A$20 -> 154.3893281 | X21: =SUMPRODUCT(E21:V21,$W$6:$AN$6)/$A$16 -> 723558.481 | Y21: 0 | Z21: =SUMIFS(SummerProvRep!$H:$H,SummerProvRep!$A:$A,Data!$A$21,SummerProvRep!$G:$G,"<>Coventry",SummerProvRep!$P:$P,Data!Z$17) -> 0 | AA21: =SUMIFS(SummerProvRep!$H:$H,SummerProvRep!$A:$A,Data!$A$21,SummerProvRep!$G:$G,"<>Coventry",SummerProvRep!$P:$P,Data!AA$17) -> 0 | AB21: =SUMIFS(SummerProvRep!$H:$H,SummerProvRep!$A:$A,Data!$A$21,SummerProvRep!$G:$G,"<>Coventry",SummerProvRep!$P:$P,Data!AB$17) -> 0 | AC21: =SUMIFS(SummerProvRep!$H:$H,SummerProvRep!$A:$A,Data!$A$21,SummerProvRep!$G:$G,"<>Coventry",SummerProvRep!$P:$P,Data!AC$17) -> 0 | AD21: =SUMIFS(SummerProvRep!$H:$H,SummerProvRep!$A:$A,Data!$A$21,SummerProvRep!$G:$G,"<>Coventry",SummerProvRep!$P:$P,Data!AD$17) -> 0 | AE21: =SUMIFS(SummerProvRep!$H:$H,SummerProvRep!$A:$A,Data!$A$21,SummerProvRep!$G:$G,"<>Coventry",SummerProvRep!$P:$P,Data!AE$17) -> 0 | AF21: =SUMIFS(SummerProvRep!$H:$H,SummerProvRep!$A:$A,Data!$A$21,SummerProvRep!$G:$G,"<>Coventry",SummerProvRep!$P:$P,Data!AF$17) -> 66 | AG21: =SUMIFS(SummerProvRep!$H:$H,SummerProvRep!$A:$A,Data!$A$21,SummerProvRep!$G:$G,"<>Coventry",SummerProvRep!$P:$P,Data!AG$17) -> 0 | AH21: =SUMIFS(SummerProvRep!$H:$H,SummerProvRep!$A:$A,Data!$A$21,SummerProvRep!$G:$G,"<>Coventry",SummerProvRep!$P:$P,Data!AH$17) -> 0 | AI21: =SUMIFS(SummerProvRep!$H:$H,SummerProvRep!$A:$A,Data!$A$21,SummerProvRep!$G:$G,"<>Coventry",SummerProvRep!$P:$P,Data!AI$17) -> 0 | AJ21: =SUMIFS(SummerProvRep!$H:$H,SummerProvRep!$A:$A,Data!$A$21,SummerProvRep!$G:$G,"<>Coventry",SummerProvRep!$P:$P,Data!AJ$17) -> 0 | AK21: =SUMIFS(SummerProvRep!$H:$H,SummerProvRep!$A:$A,Data!$A$21,SummerProvRep!$G:$G,"<>Coventry",SummerProvRep!$P:$P,Data!AK$17) -> 0 | AL21: =SUMIFS(SummerProvRep!$H:$H,SummerProvRep!$A:$A,Data!$A$21,SummerProvRep!$G:$G,"<>Coventry",SummerProvRep!$P:$P,Data!AL$17) -> 0 | AM21: =SUMIFS(SummerProvRep!$H:$H,SummerProvRep!$A:$A,Data!$A$21,SummerProvRep!$G:$G,"<>Coventry",SummerProvRep!$P:$P,Data!AM$17) -> 0 | AN21: =SUMIFS(SummerProvRep!$H:$H,SummerProvRep!$A:$A,Data!$A$21,SummerProvRep!$G:$G,"<>Coventry",SummerProvRep!$P:$P,Data!AN$17) -> 0 | AO21: =SUMIFS(SummerProvRep!$H:$H,SummerProvRep!$A:$A,Data!$A$21,SummerProvRep!$G:$G,"<>Coventry",SummerProvRep!$P:$P,Data!AO$17) -> 0 | AP21: =SUMIFS(SummerProvRep!$H:$H,SummerProvRep!$A:$A,Data!$A$21,SummerProvRep!$G:$G,"<>Coventry",SummerProvRep!$P:$P,Data!AP$17) -> 0 | AQ21: =SUMIFS(SummerProvRep!$H:$H,SummerProvRep!$A:$A,Data!$A$21,SummerProvRep!$G:$G,"<>Coventry",SummerProvRep!$P:$P,Data!AQ$17) -> 0 | AR21: =SUM(Z21:AQ21)/$A$20 -> 0.9565217391 | AS21: =SUMPRODUCT(Y21:AQ21,$V$6:$AN$6)/$A$16 -> 3645.000147 | AT21: =X21+AS21 -> 727203.4812 | AU21: =AR21+W21 -> 155.3458498 | AV21: =AU21-AW21 -> -4.654150198 | AW21: =K4 -> 160 | AX21: =[5]Data!$AU21 -> 159.9848485 | AY21: =C4 -> 160 | BB21: =($K$4-$AU$21)*$A$20 -> 321.1363636 | BC21: =AU21*$A$20 -> 10718.86364 | BD21: =$BB$21/$BC$21*D21 -> 0 | BE21: =$BB$21/$BC$21*E21 -> 0 | BF21: 0 | BG21: 0 | BH21: 0 | BI21: 0 | BJ21: 1.97735513 | BK21: 173.4080529 | BL21: 33.61503721 | BM21: 0 | BN21: 10.33617454 | BO21: 15.5669053 | BP21: 0 | BQ21: 51.17972486 | BR21: 22.739584 | BS21: 0 | BT21: 8.268939635 | BU21: 2.067234909 | BV21: 0 | BX21: =$BB$21/$BC$21*Y21 -> 0 | BY21: =$BB$21/$BC$21*Z21 -> 0 | BZ21: 0 | CA21: 0 | CB21: 0 | CC21: 0 | CD21: 0 | CE21: 1.97735513 | CF21: 0 | CG21: 0 | CH21: 0 | CI21: 0 | CJ21: 0 | CK21: 0 | CL21: 0 | CM21: 0 | CN21: 0 | CO21: 0 | CP21: 0
A22: 2 | B22: Kingsbury | C22: =10000/$A$16 -> 50 | D22: 0 | E22: =SUMIFS(SummerProvRep!$H:$H,SummerProvRep!$A:$A,Data!$A$22,SummerProvRep!$G:$G,"Coventry",SummerProvRep!$P:$P,Data!E$17) -> 0 | F22: =SUMIFS(SummerProvRep!$H:$H,SummerProvRep!$A:$A,Data!$A$22,SummerProvRep!$G:$G,"Coventry",SummerProvRep!$P:$P,Data!F$17) -> 0 | G22: =SUMIFS(SummerProvRep!$H:$H,SummerProvRep!$A:$A,Data!$A$22,SummerProvRep!$G:$G,"Coventry",SummerProvRep!$P:$P,Data!G$17) -> 0 | H22: =SUMIFS(SummerProvRep!$H:$H,SummerProvRep!$A:$A,Data!$A$22,SummerProvRep!$G:$G,"Coventry",SummerProvRep!$P:$P,Data!H$17) -> 0 | I22: =SUMIFS(SummerProvRep!$H:$H,SummerProvRep!$A:$A,Data!$A$22,SummerProvRep!$G:$G,"Coventry",SummerProvRep!$P:$P,Data!I$17) -> 0 | J22: =SUMIFS(SummerProvRep!$H:$H,SummerProvRep!$A:$A,Data!$A$22,SummerProvRep!$G:$G,"Coventry",SummerProvRep!$P:$P,Data!J$17) -> 0 | K22: =SUMIFS(SummerProvRep!$H:$H,SummerProvRep!$A:$A,Data!$A$22,SummerProvRep!$G:$G,"Coventry",SummerProvRep!$P:$P,Data!K$17) -> 3570 | L22: =SUMIFS(SummerProvRep!$H:$H,SummerProvRep!$A:$A,Data!$A$22,SummerProvRep!$G:$G,"Coventry",SummerProvRep!$P:$P,Data!L$17) -> 462 | M22: =SUMIFS(SummerProvRep!$H:$H,SummerProvRep!$A:$A,Data!$A$22,SummerProvRep!$G:$G,"Coventry",SummerProvRep!$P:$P,Data!M$17) -> 0 | N22: =SUMIFS(SummerProvRep!$H:$H,SummerProvRep!$A:$A,Data!$A$22,SummerProvRep!$G:$G,"Coventry",SummerProvRep!$P:$P,Data!N$17) -> 0 | O22: =SUMIFS(SummerProvRep!$H:$H,SummerProvRep!$A:$A,Data!$A$22,SummerProvRep!$G:$G,"Coventry",SummerProvRep!$P:$P,Data!O$17) -> 462 | P22: =SUMIFS(SummerProvRep!$H:$H,SummerProvRep!$A:$A,Data!$A$22,SummerProvRep!$G:$G,"Coventry",SummerProvRep!$P:$P,Data!P$17) -> 0 | Q22: =SUMIFS(SummerProvRep!$H:$H,SummerProvRep!$A:$A,Data!$A$22,SummerProvRep!$G:$G,"Coventry",SummerProvRep!$P:$P,Data!Q$17) -> 1700 | R22: =SUMIFS(SummerProvRep!$H:$H,SummerProvRep!$A:$A,Data!$A$22,SummerProvRep!$G:$G,"Coventry",SummerProvRep!$P:$P,Data!R$17) -> 132 | S22: =SUMIFS(SummerProvRep!$H:$H,SummerProvRep!$A:$A,Data!$A$22,SummerProvRep!$G:$G,"Coventry",SummerProvRep!$P:$P,Data!S$17) -> 0 | T22: =SUMIFS(SummerProvRep!$H:$H,SummerProvRep!$A:$A,Data!$A$22,SummerProvRep!$G:$G,"Coventry",SummerProvRep!$P:$P,Data!T$17) -> 0 | U22: =SUMIFS(SummerProvRep!$H:$H,SummerProvRep!$A:$A,Data!$A$22,SummerProvRep!$G:$G,"Coventry",SummerProvRep!$P:$P,Data!U$17) -> 0 | V22: =SUMIFS(SummerProvRep!$H:$H,SummerProvRep!$A:$A,Data!$A$22,SummerProvRep!$G:$G,"Coventry",SummerProvRep!$P:$P,Data!V$17) -> 0 | W22: =SUM(D22:V22)/$A$20 -> 91.68115942 | X22: 441161.531 | Y22: 0 | Z22: =SUMIFS(SummerProvRep!$H:$H,SummerProvRep!$A:$A,Data!$A$22,SummerProvRep!$G:$G,"<>Coventry",SummerProvRep!$P:$P,Data!Z$17) -> 0 | AA22: =SUMIFS(SummerProvRep!$H:$H,SummerProvRep!$A:$A,Data!$A$22,SummerProvRep!$G:$G,"<>Coventry",SummerProvRep!$P:$P,Data!AA$17) -> 0 | AB22: =SUMIFS(SummerProvRep!$H:$H,SummerProvRep!$A:$A,Data!$A$22,SummerProvRep!$G:$G,"<>Coventry",SummerProvRep!$P:$P,Data!AB$17) -> 0 | AC22: =SUMIFS(SummerProvRep!$H:$H,SummerProvRep!$A:$A,Data!$A$22,SummerProvRep!$G:$G,"<>Coventry",SummerProvRep!$P:$P,Data!AC$17) -> 0 | AD22: =SUMIFS(SummerProvRep!$H:$H,SummerProvRep!$A:$A,Data!$A$22,SummerProvRep!$G:$G,"<>Coventry",SummerProvRep!$P:$P,Data!AD$17) -> 0 | AE22: =SUMIFS(SummerProvRep!$H:$H,SummerProvRep!$A:$A,Data!$A$22,SummerProvRep!$G:$G,"<>Coventry",SummerProvRep!$P:$P,Data!AE$17) -> 0 | AF22: =SUMIFS(SummerProvRep!$H:$H,SummerProvRep!$A:$A,Data!$A$22,SummerProvRep!$G:$G,"<>Coventry",SummerProvRep!$P:$P,Data!AF$17) -> 66 | AG22: =SUMIFS(SummerProvRep!$H:$H,SummerProvRep!$A:$A,Data!$A$22,SummerProvRep!$G:$G,"<>Coventry",SummerProvRep!$P:$P,Data!AG$17) -> 66 | AH22: =SUMIFS(SummerProvRep!$H:$H,SummerProvRep!$A:$A,Data!$A$22,SummerProvRep!$G:$G,"<>Coventry",SummerProvRep!$P:$P,Data!AH$17) -> 0 | AI22: =SUMIFS(SummerProvRep!$H:$H,SummerProvRep!$A:$A,Data!$A$22,SummerProvRep!$G:$G,"<>Coventry",SummerProvRep!$P:$P,Data!AI$17) -> 0 | AJ22: =SUMIFS(SummerProvRep!$H:$H,SummerProvRep!$A:$A,Data!$A$22,SummerProvRep!$G:$G,"<>Coventry",SummerProvRep!$P:$P,Data!AJ$17) -> 0 | AK22: =SUMIFS(SummerProvRep!$H:$H,SummerProvRep!$A:$A,Data!$A$22,SummerProvRep!$G:$G,"<>Coventry",SummerProvRep!$P:$P,Data!AK$17) -> 0 | AL22: =SUMIFS(SummerProvRep!$H:$H,SummerProvRep!$A:$A,Data!$A$22,SummerProvRep!$G:$G,"<>Coventry",SummerProvRep!$P:$P,Data!AL$17) -> 66 | AM22: =SUMIFS(SummerProvRep!$H:$H,SummerProvRep!$A:$A,Data!$A$22,SummerProvRep!$G:$G,"<>Coventry",SummerProvRep!$P:$P,Data!AM$17) -> 0 | AN22: =SUMIFS(SummerProvRep!$H:$H,SummerProvRep!$A:$A,Data!$A$22,SummerProvRep!$G:$G,"<>Coventry",SummerProvRep!$P:$P,Data!AN$17) -> 0 | AO22: =SUMIFS(SummerProvRep!$H:$H,SummerProvRep!$A:$A,Data!$A$22,SummerProvRep!$G:$G,"<>Coventry",SummerProvRep!$P:$P,Data!AO$17) -> 0 | AP22: =SUMIFS(SummerProvRep!$H:$H,SummerProvRep!$A:$A,Data!$A$22,SummerProvRep!$G:$G,"<>Coventry",SummerProvRep!$P:$P,Data!AP$17) -> 0 | AQ22: =SUMIFS(SummerProvRep!$H:$H,SummerProvRep!$A:$A,Data!$A$22,SummerProvRep!$G:$G,"<>Coventry",SummerProvRep!$P:$P,Data!AQ$17) -> 0 | AR22: 2.869565217 | AS22: 12939.75384 | AT22: 454101.2848 | AU22: 94.55072464 | AV22: =AU22-AW22 -> -5.449275362 | AW22: 100 | AX22: =[5]Data!$AU22 -> 98.84848485 | AY22: 100 | BB22: =($K$5-$AU$22)*$A$20 -> 376 | BC22: =AU22*$A$20 -> 6524 | BD22: =$BB$22/$BC$22*D22 -> 0 | BE22: =$BB$22/$BC$22*E22 -> 0 | BF22: 0 | BG22: 0 | BH22: 0 | BI22: 0 | BJ22: 0 | BK22: 205.751073 | BL22: 26.62660944 | BM22: 0 | BN22: 0 | BO22: 26.62660944 | BP22: 0 | BQ22: 97.97670141 | BR22: 7.607602698 | BS22: 0 | BT22: 0 | BU22: 0 | BV22: 0 | BX22: =$BB$22/$BC$22*Y22 -> 0 | BY22: =$BB$22/$BC$22*Z22 -> 0 | BZ22: 0 | CA22: 0 | CB22: 0 | CC22: 0 | CD22: 0 | CE22: 3.803801349 | CF22: 3.803801349 | CG22: 0 | CH22: 0 | CI22: 0 | CJ22: 0 | CK22: 3.803801349 | CL22: 0 | CM22: 0 | CN22: 0 | CO22: 0 | CP22: 0
A23: 3 | B23: Riverbank | C23: 50 | D23: 0 | E23: =SUMIFS(SummerProvRep!$H:$H,SummerProvRep!$A:$A,Data!$A$23,SummerProvRep!$G:$G,"Coventry",SummerProvRep!$P:$P,Data!E$17) -> 0 | F23: =SUMIFS(SummerProvRep!$H:$H,SummerProvRep!$A:$A,Data!$A$23,SummerProvRep!$G:$G,"Coventry",SummerProvRep!$P:$P,Data!F$17) -> 0 | G23: =SUMIFS(SummerProvRep!$H:$H,SummerProvRep!$A:$A,Data!$A$23,SummerProvRep!$G:$G,"Coventry",SummerProvRep!$P:$P,Data!G$17) -> 792 | H23: =SUMIFS(SummerProvRep!$H:$H,SummerProvRep!$A:$A,Data!$A$23,SummerProvRep!$G:$G,"Coventry",SummerProvRep!$P:$P,Data!H$17) -> 1254 | I23: =SUMIFS(SummerProvRep!$H:$H,SummerProvRep!$A:$A,Data!$A$23,SummerProvRep!$G:$G,"Coventry",SummerProvRep!$P:$P,Data!I$17) -> 66 | J23: =SUMIFS(SummerProvRep!$H:$H,SummerProvRep!$A:$A,Data!$A$23,SummerProvRep!$G:$G,"Coventry",SummerProvRep!$P:$P,Data!J$17) -> 66 | K23: =SUMIFS(SummerProvRep!$H:$H,SummerProvRep!$A:$A,Data!$A$23,SummerProvRep!$G:$G,"Coventry",SummerProvRep!$P:$P,Data!K$17) -> 3828 | L23: =SUMIFS(SummerProvRep!$H:$H,SummerProvRep!$A:$A,Data!$A$23,SummerProvRep!$G:$G,"Coventry",SummerProvRep!$P:$P,Data!L$17) -> 3808 | M23: =SUMIFS(SummerProvRep!$H:$H,SummerProvRep!$A:$A,Data!$A$23,SummerProvRep!$G:$G,"Coventry",SummerProvRep!$P:$P,Data!M$17) -> 132 | N23: =SUMIFS(SummerProvRep!$H:$H,SummerProvRep!$A:$A,Data!$A$23,SummerProvRep!$G:$G,"Coventry",SummerProvRep!$P:$P,Data!N$17) -> 528 | O23: =SUMIFS(SummerProvRep!$H:$H,SummerProvRep!$A:$A,Data!$A$23,SummerProvRep!$G:$G,"Coventry",SummerProvRep!$P:$P,Data!O$17) -> 152 | P23: =SUMIFS(SummerProvRep!$H:$H,SummerProvRep!$A:$A,Data!$A$23,SummerProvRep!$G:$G,"Coventry",SummerProvRep!$P:$P,Data!P$17) -> 264 | Q23: =SUMIFS(SummerProvRep!$H:$H,SummerProvRep!$A:$A,Data!$A$23,SummerProvRep!$G:$G,"Coventry",SummerProvRep!$P:$P,Data!Q$17) -> 1679 | R23: =SUMIFS(SummerProvRep!$H:$H,SummerProvRep!$A:$A,Data!$A$23,SummerProvRep!$G:$G,"Coventry",SummerProvRep!$P:$P,Data!R$17) -> 264 | S23: =SUMIFS(SummerProvRep!$H:$H,SummerProvRep!$A:$A,Data!$A$23,SummerProvRep!$G:$G,"Coventry",SummerProvRep!$P:$P,Data!S$17) -> 0 | T23: =SUMIFS(SummerProvRep!$H:$H,SummerProvRep!$A:$A,Data!$A$23,SummerProvRep!$G:$G,"Coventry",SummerProvRep!$P:$P,Data!T$17) -> 66 | U23: =SUMIFS(SummerProvRep!$H:$H,SummerProvRep!$A:$A,Data!$A$23,SummerProvRep!$G:$G,"Coventry",SummerProvRep!$P:$P,Data!U$17) -> 0 | V23: =SUMIFS(SummerProvRep!$H:$H,SummerProvRep!$A:$A,Data!$A$23,SummerProvRep!$G:$G,"Coventry",SummerProvRep!$P:$P,Data!V$17) -> 0 | W23: 186.942029 | X23: 748359.9366 | Y23: 0 | Z23: =SUMIFS(SummerProvRep!$H:$H,SummerProvRep!$A:$A,Data!$A$23,SummerProvRep!$G:$G,"<>Coventry",SummerProvRep!$P:$P,Data!Z$17) -> 0 | AA23: =SUMIFS(SummerProvRep!$H:$H,SummerProvRep!$A:$A,Data!$A$23,SummerProvRep!$G:$G,"<>Coventry",SummerProvRep!$P:$P,Data!AA$17) -> 0 | AB23: =SUMIFS(SummerProvRep!$H:$H,SummerProvRep!$A:$A,Data!$A$23,SummerProvRep!$G:$G,"<>Coventry",SummerProvRep!$P:$P,Data!AB$17) -> 66 | AC23: =SUMIFS(SummerProvRep!$H:$H,SummerProvRep!$A:$A,Data!$A$23,SummerProvRep!$G:$G,"<>Coventry",SummerProvRep!$P:$P,Data!AC$17) -> 0 | AD23: =SUMIFS(SummerProvRep!$H:$H,SummerProvRep!$A:$A,Data!$A$23,SummerProvRep!$G:$G,"<>Coventry",SummerProvRep!$P:$P,Data!AD$17) -> 0 | AE23: =SUMIFS(SummerProvRep!$H:$H,SummerProvRep!$A:$A,Data!$A$23,SummerProvRep!$G:$G,"<>Coventry",SummerProvRep!$P:$P,Data!AE$17) -> 0 | AF23: =SUMIFS(SummerProvRep!$H:$H,SummerProvRep!$A:$A,Data!$A$23,SummerProvRep!$G:$G,"<>Coventry",SummerProvRep!$P:$P,Data!AF$17) -> 66 | AG23: =SUMIFS(SummerProvRep!$H:$H,SummerProvRep!$A:$A,Data!$A$23,SummerProvRep!$G:$G,"<>Coventry",SummerProvRep!$P:$P,Data!AG$17) -> 0 | AH23: =SUMIFS(SummerProvRep!$H:$H,SummerProvRep!$A:$A,Data!$A$23,SummerProvRep!$G:$G,"<>Coventry",SummerProvRep!$P:$P,Data!AH$17) -> 0 | AI23: =SUMIFS(SummerProvRep!$H:$H,SummerProvRep!$A:$A,Data!$A$23,SummerProvRep!$G:$G,"<>Coventry",SummerProvRep!$P:$P,Data!AI$17) -> 0 | AJ23: =SUMIFS(SummerProvRep!$H:$H,SummerProvRep!$A:$A,Data!$A$23,SummerProvRep!$G:$G,"<>Coventry",SummerProvRep!$P:$P,Data!AJ$17) -> 0 | AK23: =SUMIFS(SummerProvRep!$H:$H,SummerProvRep!$A:$A,Data!$A$23,SummerProvRep!$G:$G,"<>Coventry",SummerProvRep!$P:$P,Data!AK$17) -> 0 | AL23: =SUMIFS(SummerProvRep!$H:$H,SummerProvRep!$A:$A,Data!$A$23,SummerProvRep!$G:$G,"<>Coventry",SummerProvRep!$P:$P,Data!AL$17) -> 0 | AM23: =SUMIFS(SummerProvRep!$H:$H,SummerProvRep!$A:$A,Data!$A$23,SummerProvRep!$G:$G,"<>Coventry",SummerProvRep!$P:$P,Data!AM$17) -> 0 | AN23: =SUMIFS(SummerProvRep!$H:$H,SummerProvRep!$A:$A,Data!$A$23,SummerProvRep!$G:$G,"<>Coventry",SummerProvRep!$P:$P,Data!AN$17) -> 0 | AO23: =SUMIFS(SummerProvRep!$H:$H,SummerProvRep!$A:$A,Data!$A$23,SummerProvRep!$G:$G,"<>Coventry",SummerProvRep!$P:$P,Data!AO$17) -> 0 | AP23: =SUMIFS(SummerProvRep!$H:$H,SummerProvRep!$A:$A,Data!$A$23,SummerProvRep!$G:$G,"<>Coventry",SummerProvRep!$P:$P,Data!AP$17) -> 0 | AQ23: =SUMIFS(SummerProvRep!$H:$H,SummerProvRep!$A:$A,Data!$A$23,SummerProvRep!$G:$G,"<>Coventry",SummerProvRep!$P:$P,Data!AQ$17) -> 0 | AR23: 1.913043478 | AS23: 4738.500581 | AT23: 753098.4372 | AU23: 188.8550725 | AV23: =AU23-AW23 -> -11.14492754 | AW23: 200 | AX23: =[5]Data!$AU23 -> 197.4393939 | AY23: 200 | BB23: =($K$6-$AU$23)*$A$20 -> 769 | BC23: =AU23*$A$20 -> 13031 | BD23: =$BB$23/$BC$23*D23 -> 0 | BE23: =$BB$23/$BC$23*E23 -> 0 | BF23: 0 | BG23: 46.73839306 | BH23: 74.00245568 | BI23: 3.894866089 | BJ23: 3.894866089 | BK23: 225.9022331 | BL23: 224.7219707 | BM23: 7.789732177 | BN23: 31.15892871 | BO23: 8.969994628 | BP23: 15.57946435 | BQ23: 99.08303277 | BR23: 15.57946435 | BS23: 0 | BT23: 3.894866089 | BU23: 0 | BV23: 0 | BX23: =$BB$23/$BC$23*Y23 -> 0 | BY23: =$BB$23/$BC$23*Z23 -> 0 | BZ23: 0 | CA23: 3.894866089 | CB23: 0 | CC23: 0 | CD23: 0 | CE23: 3.894866089 | CF23: 0 | CG23: 0 | CH23: 0 | CI23: 0 | CJ23: 0 | CK23: 0 | CL23: 0 | CM23: 0 | CN23: 0 | CO23: 0 | CP23: 0
A24: 4 | B24: Corley | C24: 50 | D24: 0 | E24: =SUMIFS(SummerProvRep!$H:$H,SummerProvRep!$A:$A,Data!$A$24,SummerProvRep!$G:$G,"Coventry",SummerProvRep!$P:$P,Data!E$17) -> 0 | F24: =SUMIFS(SummerProvRep!$H:$H,SummerProvRep!$A:$A,Data!$A$24,SummerProvRep!$G:$G,"Coventry",SummerProvRep!$P:$P,Data!F$17) -> 0 | G24: =SUMIFS(SummerProvRep!$H:$H,SummerProvRep!$A:$A,Data!$A$24,SummerProvRep!$G:$G,"Coventry",SummerProvRep!$P:$P,Data!G$17) -> 0 | H24: =SUMIFS(SummerProvRep!$H:$H,SummerProvRep!$A:$A,Data!$A$24,SummerProvRep!$G:$G,"Coventry",SummerProvRep!$P:$P,Data!H$17) -> 0 | I24: =SUMIFS(SummerProvRep!$H:$H,SummerProvRep!$A:$A,Data!$A$24,SummerProvRep!$G:$G,"Coventry",SummerProvRep!$P:$P,Data!I$17) -> 0 | J24: =SUMIFS(SummerProvRep!$H:$H,SummerProvRep!$A:$A,Data!$A$24,SummerProvRep!$G:$G,"Coventry",SummerProvRep!$P:$P,Data!J$17) -> 0 | K24: =SUMIFS(SummerProvRep!$H:$H,SummerProvRep!$A:$A,Data!$A$24,SummerProvRep!$G:$G,"Coventry",SummerProvRep!$P:$P,Data!K$17) -> 7092 | L24: =SUMIFS(SummerProvRep!$H:$H,SummerProvRep!$A:$A,Data!$A$24,SummerProvRep!$G:$G,"Coventry",SummerProvRep!$P:$P,Data!L$17) -> 0 | M24: =SUMIFS(SummerProvRep!$H:$H,SummerProvRep!$A:$A,Data!$A$24,SummerProvRep!$G:$G,"Coventry",SummerProvRep!$P:$P,Data!M$17) -> 594 | N24: =SUMIFS(SummerProvRep!$H:$H,SummerProvRep!$A:$A,Data!$A$24,SummerProvRep!$G:$G,"Coventry",SummerProvRep!$P:$P,Data!N$17) -> 0 | O24: =SUMIFS(SummerProvRep!$H:$H,SummerProvRep!$A:$A,Data!$A$24,SummerProvRep!$G:$G,"Coventry",SummerProvRep!$P:$P,Data!O$17) -> 300 | P24: =SUMIFS(SummerProvRep!$H:$H,SummerProvRep!$A:$A,Data!$A$24,SummerProvRep!$G:$G,"Coventry",SummerProvRep!$P:$P,Data!P$17) -> 0 | Q24: =SUMIFS(SummerProvRep!$H:$H,SummerProvRep!$A:$A,Data!$A$24,SummerProvRep!$G:$G,"Coventry",SummerProvRep!$P:$P,Data!Q$17) -> 924 | R24: =SUMIFS(SummerProvRep!$H:$H,SummerProvRep!$A:$A,Data!$A$24,SummerProvRep!$G:$G,"Coventry",SummerProvRep!$P:$P,Data!R$17) -> 0 | S24: =SUMIFS(SummerProvRep!$H:$H,SummerProvRep!$A:$A,Data!$A$24,SummerProvRep!$G:$G,"Coventry",SummerProvRep!$P:$P,Data!S$17) -> 0 | T24: =SUMIFS(SummerProvRep!$H:$H,SummerProvRep!$A:$A,Data!$A$24,SummerProvRep!$G:$G,"Coventry",SummerProvRep!$P:$P,Data!T$17) -> 0 | U24: =SUMIFS(SummerProvRep!$H:$H,SummerProvRep!$A:$A,Data!$A$24,SummerProvRep!$G:$G,"Coventry",SummerProvRep!$P:$P,Data!U$17) -> 0 | V24: =SUMIFS(SummerProvRep!$H:$H,SummerProvRep!$A:$A,Data!$A$24,SummerProvRep!$G:$G,"Coventry",SummerProvRep!$P:$P,Data!V$17) -> 0 | W24: 129.1304348 | X24: 552548.8567 | Y24: 0 | Z24: =SUMIFS(SummerProvRep!$H:$H,SummerProvRep!$A:$A,Data!$A$24,SummerProvRep!$G:$G,"<>Coventry",SummerProvRep!$P:$P,Data!Z$17) -> 0 | AA24: =SUMIFS(SummerProvRep!$H:$H,SummerProvRep!$A:$A,Data!$A$24,SummerProvRep!$G:$G,"<>Coventry",SummerProvRep!$P:$P,Data!AA$17) -> 0 | AB24: =SUMIFS(SummerProvRep!$H:$H,SummerProvRep!$A:$A,Data!$A$24,SummerProvRep!$G:$G,"<>Coventry",SummerProvRep!$P:$P,Data!AB$17) -> 0 | AC24: =SUMIFS(SummerProvRep!$H:$H,SummerProvRep!$A:$A,Data!$A$24,SummerProvRep!$G:$G,"<>Coventry",SummerProvRep!$P:$P,Data!AC$17) -> 0 | AD24: =SUMIFS(SummerProvRep!$H:$H,SummerProvRep!$A:$A,Data!$A$24,SummerProvRep!$G:$G,"<>Coventry",SummerProvRep!$P:$P,Data!AD$17) -> 0 | AE24: =SUMIFS(SummerProvRep!$H:$H,SummerProvRep!$A:$A,Data!$A$24,SummerProvRep!$G:$G,"<>Coventry",SummerProvRep!$P:$P,Data!AE$17) -> 0 | AF24: =SUMIFS(SummerProvRep!$H:$H,SummerProvRep!$A:$A,Data!$A$24,SummerProvRep!$G:$G,"<>Coventry",SummerProvRep!$P:$P,Data!AF$17) -> 66 | AG24: =SUMIFS(SummerProvRep!$H:$H,SummerProvRep!$A:$A,Data!$A$24,SummerProvRep!$G:$G,"<>Coventry",SummerProvRep!$P:$P,Data!AG$17) -> 0 | AH24: =SUMIFS(SummerProvRep!$H:$H,SummerProvRep!$A:$A,Data!$A$24,SummerProvRep!$G:$G,"<>Coventry",SummerProvRep!$P:$P,Data!AH$17) -> 0 | AI24: =SUMIFS(SummerProvRep!$H:$H,SummerProvRep!$A:$A,Data!$A$24,SummerProvRep!$G:$G,"<>Coventry",SummerProvRep!$P:$P,Data!AI$17) -> 0 | AJ24: =SUMIFS(SummerProvRep!$H:$H,SummerProvRep!$A:$A,Data!$A$24,SummerProvRep!$G:$G,"<>Coventry",SummerProvRep!$P:$P,Data!AJ$17) -> 0 | AK24: =SUMIFS(SummerProvRep!$H:$H,SummerProvRep!$A:$A,Data!$A$24,SummerProvRep!$G:$G,"<>Coventry",SummerProvRep!$P:$P,Data!AK$17) -> 0 | AL24: =SUMIFS(SummerProvRep!$H:$H,SummerProvRep!$A:$A,Data!$A$24,SummerProvRep!$G:$G,"<>Coventry",SummerProvRep!$P:$P,Data!AL$17) -> 0 | AM24: =SUMIFS(SummerProvRep!$H:$H,SummerProvRep!$A:$A,Data!$A$24,SummerProvRep!$G:$G,"<>Coventry",SummerProvRep!$P:$P,Data!AM$17) -> 0 | AN24: =SUMIFS(SummerProvRep!$H:$H,SummerProvRep!$A:$A,Data!$A$24,SummerProvRep!$G:$G,"<>Coventry",SummerProvRep!$P:$P,Data!AN$17) -> 0 | AO24: =SUMIFS(SummerProvRep!$H:$H,SummerProvRep!$A:$A,Data!$A$24,SummerProvRep!$G:$G,"<>Coventry",SummerProvRep!$P:$P,Data!AO$17) -> 0 | AP24: =SUMIFS(SummerProvRep!$H:$H,SummerProvRep!$A:$A,Data!$A$24,SummerProvRep!$G:$G,"<>Coventry",SummerProvRep!$P:$P,Data!AP$17) -> 0 | AQ24: =SUMIFS(SummerProvRep!$H:$H,SummerProvRep!$A:$A,Data!$A$24,SummerProvRep!$G:$G,"<>Coventry",SummerProvRep!$P:$P,Data!AQ$17) -> 0 | AR24: 0.9565217391 | AS24: 3645.000147 | AT24: 556193.8568 | AU24: 130.0869565 | AV24: -9.913043478 | AW24: 140 | AX24: =[5]Data!$AU24 -> 136 | AY24: 129 | BB24: =($K$7-$AU$24)*$A$20 -> 684 | BC24: 8976 | BD24: =$BB$24/$BC$24*D24 -> 0 | BE24: =$BB$24/$BC$24*E24 -> 0 | BF24: 0 | BG24: 0 | BH24: 0 | BI24: 0 | BJ24: 0 | BK24: 540.4331551 | BL24: 0 | BM24: 45.26470588 | BN24: 0 | BO24: 22.86096257 | BP24: 0 | BQ24: 70.41176471 | BR24: 0 | BS24: 0 | BT24: 0 | BU24: 0 | BV24: 0 | BX24: =$BB$24/$BC$24*Y24 -> 0 | BY24: =$BB$24/$BC$24*Z24 -> 0 | BZ24: 0 | CA24: 0 | CB24: 0 | CC24: 0 | CD24: 0 | CE24: 5.029411765 | CF24: 0 | CG24: 0 | CH24: 0 | CI24: 0 | CJ24: 0 | CK24: 0 | CL24: 0 | CM24: 0 | CN24: 0 | CO24: 0 | CP24: 0
A25: 5 | B25: Tiverton | C25: 50 | D25: 0 | E25: =SUMIFS(SummerProvRep!$H:$H,SummerProvRep!$A:$A,Data!$A$25,SummerProvRep!$G:$G,"Coventry",SummerProvRep!$P:$P,Data!E$17) -> 0 | F25: =SUMIFS(SummerProvRep!$H:$H,SummerProvRep!$A:$A,Data!$A$25,SummerProvRep!$G:$G,"Coventry",SummerProvRep!$P:$P,Data!F$17) -> 0 | G25: =SUMIFS(SummerProvRep!$H:$H,SummerProvRep!$A:$A,Data!$A$25,SummerProvRep!$G:$G,"Coventry",SummerProvRep!$P:$P,Data!G$17) -> 0 | H25: =SUMIFS(SummerProvRep!$H:$H,SummerProvRep!$A:$A,Data!$A$25,SummerProvRep!$G:$G,"Coventry",SummerProvRep!$P:$P,Data!H$17) -> 0 | I25: =SUMIFS(SummerProvRep!$H:$H,SummerProvRep!$A:$A,Data!$A$25,SummerProvRep!$G:$G,"Coventry",SummerProvRep!$P:$P,Data!I$17) -> 0 | J25: =SUMIFS(SummerProvRep!$H:$H,SummerProvRep!$A:$A,Data!$A$25,SummerProvRep!$G:$G,"Coventry",SummerProvRep!$P:$P,Data!J$17) -> 0 | K25: =SUMIFS(SummerProvRep!$H:$H,SummerProvRep!$A:$A,Data!$A$25,SummerProvRep!$G:$G,"Coventry",SummerProvRep!$P:$P,Data!K$17) -> 3710 | L25: =SUMIFS(SummerProvRep!$H:$H,SummerProvRep!$A:$A,Data!$A$25,SummerProvRep!$G:$G,"Coventry",SummerProvRep!$P:$P,Data!L$17) -> 924 | M25: =SUMIFS(SummerProvRep!$H:$H,SummerProvRep!$A:$A,Data!$A$25,SummerProvRep!$G:$G,"Coventry",SummerProvRep!$P:$P,Data!M$17) -> 0 | N25: =SUMIFS(SummerProvRep!$H:$H,SummerProvRep!$A:$A,Data!$A$25,SummerProvRep!$G:$G,"Coventry",SummerProvRep!$P:$P,Data!N$17) -> 462 | O25: =SUMIFS(SummerProvRep!$H:$H,SummerProvRep!$A:$A,Data!$A$25,SummerProvRep!$G:$G,"Coventry",SummerProvRep!$P:$P,Data!O$17) -> 298 | P25: =SUMIFS(SummerProvRep!$H:$H,SummerProvRep!$A:$A,Data!$A$25,SummerProvRep!$G:$G,"Coventry",SummerProvRep!$P:$P,Data!P$17) -> 0 | Q25: =SUMIFS(SummerProvRep!$H:$H,SummerProvRep!$A:$A,Data!$A$25,SummerProvRep!$G:$G,"Coventry",SummerProvRep!$P:$P,Data!Q$17) -> 1140 | R25: =SUMIFS(SummerProvRep!$H:$H,SummerProvRep!$A:$A,Data!$A$25,SummerProvRep!$G:$G,"Coventry",SummerProvRep!$P:$P,Data!R$17) -> 462 | S25: =SUMIFS(SummerProvRep!$H:$H,SummerProvRep!$A:$A,Data!$A$25,SummerProvRep!$G:$G,"Coventry",SummerProvRep!$P:$P,Data!S$17) -> 0 | T25: =SUMIFS(SummerProvRep!$H:$H,SummerProvRep!$A:$A,Data!$A$25,SummerProvRep!$G:$G,"Coventry",SummerProvRep!$P:$P,Data!T$17) -> 330 | U25: =SUMIFS(SummerProvRep!$H:$H,SummerProvRep!$A:$A,Data!$A$25,SummerProvRep!$G:$G,"Coventry",SummerProvRep!$P:$P,Data!U$17) -> 0 | V25: =SUMIFS(SummerProvRep!$H:$H,SummerProvRep!$A:$A,Data!$A$25,SummerProvRep!$G:$G,"Coventry",SummerProvRep!$P:$P,Data!V$17) -> 0 | W25: 106.173913 | X25: 488608.9364 | Y25: 0 | Z25: =SUMIFS(SummerProvRep!$H:$H,SummerProvRep!$A:$A,Data!$A$25,SummerProvRep!$G:$G,"<>Coventry",SummerProvRep!$P:$P,Data!Z$17) -> 0 | AA25: =SUMIFS(SummerProvRep!$H:$H,SummerProvRep!$A:$A,Data!$A$25,SummerProvRep!$G:$G,"<>Coventry",SummerProvRep!$P:$P,Data!AA$17) -> 0 | AB25: =SUMIFS(SummerProvRep!$H:$H,SummerProvRep!$A:$A,Data!$A$25,SummerProvRep!$G:$G,"<>Coventry",SummerProvRep!$P:$P,Data!AB$17) -> 0 | AC25: =SUMIFS(SummerProvRep!$H:$H,SummerProvRep!$A:$A,Data!$A$25,SummerProvRep!$G:$G,"<>Coventry",SummerProvRep!$P:$P,Data!AC$17) -> 0 | AD25: =SUMIFS(SummerProvRep!$H:$H,SummerProvRep!$A:$A,Data!$A$25,SummerProvRep!$G:$G,"<>Coventry",SummerProvRep!$P:$P,Data!AD$17) -> 0 | AE25: =SUMIFS(SummerProvRep!$H:$H,SummerProvRep!$A:$A,Data!$A$25,SummerProvRep!$G:$G,"<>Coventry",SummerProvRep!$P:$P,Data!AE$17) -> 0 | AF25: =SUMIFS(SummerProvRep!$H:$H,SummerProvRep!$A:$A,Data!$A$25,SummerProvRep!$G:$G,"<>Coventry",SummerProvRep!$P:$P,Data!AF$17) -> 66 | AG25: =SUMIFS(SummerProvRep!$H:$H,SummerProvRep!$A:$A,Data!$A$25,SummerProvRep!$G:$G,"<>Coventry",SummerProvRep!$P:$P,Data!AG$17) -> 0 | AH25: =SUMIFS(SummerProvRep!$H:$H,SummerProvRep!$A:$A,Data!$A$25,SummerProvRep!$G:$G,"<>Coventry",SummerProvRep!$P:$P,Data!AH$17) -> 0 | AI25: =SUMIFS(SummerProvRep!$H:$H,SummerProvRep!$A:$A,Data!$A$25,SummerProvRep!$G:$G,"<>Coventry",SummerProvRep!$P:$P,Data!AI$17) -> 0 | AJ25: =SUMIFS(SummerProvRep!$H:$H,SummerProvRep!$A:$A,Data!$A$25,SummerProvRep!$G:$G,"<>Coventry",SummerProvRep!$P:$P,Data!AJ$17) -> 0 | AK25: =SUMIFS(SummerProvRep!$H:$H,SummerProvRep!$A:$A,Data!$A$25,SummerProvRep!$G:$G,"<>Coventry",SummerProvRep!$P:$P,Data!AK$17) -> 0 | AL25: =SUMIFS(SummerProvRep!$H:$H,SummerProvRep!$A:$A,Data!$A$25,SummerProvRep!$G:$G,"<>Coventry",SummerProvRep!$P:$P,Data!AL$17) -> 66 | AM25: =SUMIFS(SummerProvRep!$H:$H,SummerProvRep!$A:$A,Data!$A$25,SummerProvRep!$G:$G,"<>Coventry",SummerProvRep!$P:$P,Data!AM$17) -> 0 | AN25: =SUMIFS(SummerProvRep!$H:$H,SummerProvRep!$A:$A,Data!$A$25,SummerProvRep!$G:$G,"<>Coventry",SummerProvRep!$P:$P,Data!AN$17) -> 0 | AO25: =SUMIFS(SummerProvRep!$H:$H,SummerProvRep!$A:$A,Data!$A$25,SummerProvRep!$G:$G,"<>Coventry",SummerProvRep!$P:$P,Data!AO$17) -> 0 | AP25: =SUMIFS(SummerProvRep!$H:$H,SummerProvRep!$A:$A,Data!$A$25,SummerProvRep!$G:$G,"<>Coventry",SummerProvRep!$P:$P,Data!AP$17) -> 0 | AQ25: =SUMIFS(SummerProvRep!$H:$H,SummerProvRep!$A:$A,Data!$A$25,SummerProvRep!$G:$G,"<>Coventry",SummerProvRep!$P:$P,Data!AQ$17) -> 0 | AR25: 1.913043478 | AS25: 9568.126849 | AT25: 498177.0632 | AU25: 108.0869565 | AV25: -10.91304348 | AW25: 119 | AX25: =[5]Data!$AU25 -> 113 | AY25: 112 | BB25: =($K$8-$AU$25)*$A$20 -> 753 | BC25: 7458 | BD25: =$BB$25/$BC$25*D25 -> 0 | BE25: =$BB$25/$BC$25*E25 -> 0 | BF25: 0 | BG25: 0 | BH25: 0 | BI25: 0 | BJ25: 0 | BK25: 374.5816573 | BL25: 93.2920354 | BM25: 0 | BN25: 46.6460177 | BO25: 30.08769107 | BP25: 0 | BQ25: 115.1005632 | BR25: 46.6460177 | BS25: 0 | BT25: 33.31858407 | BU25: 0 | BV25: 0 | BX25: =$BB$25/$BC$25*Y25 -> 0 | BY25: =$BB$25/$BC$25*Z25 -> 0 | BZ25: 0 | CA25: 0 | CB25: 0 | CC25: 0 | CD25: 0 | CE25: 6.663716814 | CF25: 0 | CG25: 0 | CH25: 0 | CI25: 0 | CJ25: 0 | CK25: 6.663716814 | CL25: 0 | CM25: 0 | CN25: 0 | CO25: 0 | CP25: 0
A26: 6 | B26: Baginton Fields | C26: 50 | D26: 0 | E26: =SUMIFS(SummerProvRep!$H:$H,SummerProvRep!$A:$A,Data!$A$26,SummerProvRep!$G:$G,"Coventry",SummerProvRep!$P:$P,Data!E$17) -> 0 | F26: =SUMIFS(SummerProvRep!$H:$H,SummerProvRep!$A:$A,Data!$A$26,SummerProvRep!$G:$G,"Coventry",SummerProvRep!$P:$P,Data!F$17) -> 0 | G26: =SUMIFS(SummerProvRep!$H:$H,SummerProvRep!$A:$A,Data!$A$26,SummerProvRep!$G:$G,"Coventry",SummerProvRep!$P:$P,Data!G$17) -> 0 | H26: =SUMIFS(SummerProvRep!$H:$H,SummerProvRep!$A:$A,Data!$A$26,SummerProvRep!$G:$G,"Coventry",SummerProvRep!$P:$P,Data!H$17) -> 0 | I26: =SUMIFS(SummerProvRep!$H:$H,SummerProvRep!$A:$A,Data!$A$26,SummerProvRep!$G:$G,"Coventry",SummerProvRep!$P:$P,Data!I$17) -> 0 | J26: =SUMIFS(SummerProvRep!$H:$H,SummerProvRep!$A:$A,Data!$A$26,SummerProvRep!$G:$G,"Coventry",SummerProvRep!$P:$P,Data!J$17) -> 0 | K26: =SUMIFS(SummerProvRep!$H:$H,SummerProvRep!$A:$A,Data!$A$26,SummerProvRep!$G:$G,"Coventry",SummerProvRep!$P:$P,Data!K$17) -> 1518 | L26: =SUMIFS(SummerProvRep!$H:$H,SummerProvRep!$A:$A,Data!$A$26,SummerProvRep!$G:$G,"Coventry",SummerProvRep!$P:$P,Data!L$17) -> 2442 | M26: =SUMIFS(SummerProvRep!$H:$H,SummerProvRep!$A:$A,Data!$A$26,SummerProvRep!$G:$G,"Coventry",SummerProvRep!$P:$P,Data!M$17) -> 66 | N26: =SUMIFS(SummerProvRep!$H:$H,SummerProvRep!$A:$A,Data!$A$26,SummerProvRep!$G:$G,"Coventry",SummerProvRep!$P:$P,Data!N$17) -> 66 | O26: =SUMIFS(SummerProvRep!$H:$H,SummerProvRep!$A:$A,Data!$A$26,SummerProvRep!$G:$G,"Coventry",SummerProvRep!$P:$P,Data!O$17) -> 666 | P26: =SUMIFS(SummerProvRep!$H:$H,SummerProvRep!$A:$A,Data!$A$26,SummerProvRep!$G:$G,"Coventry",SummerProvRep!$P:$P,Data!P$17) -> 0 | Q26: =SUMIFS(SummerProvRep!$H:$H,SummerProvRep!$A:$A,Data!$A$26,SummerProvRep!$G:$G,"Coventry",SummerProvRep!$P:$P,Data!Q$17) -> 1974 | R26: =SUMIFS(SummerProvRep!$H:$H,SummerProvRep!$A:$A,Data!$A$26,SummerProvRep!$G:$G,"Coventry",SummerProvRep!$P:$P,Data!R$17) -> 660 | S26: =SUMIFS(SummerProvRep!$H:$H,SummerProvRep!$A:$A,Data!$A$26,SummerProvRep!$G:$G,"Coventry",SummerProvRep!$P:$P,Data!S$17) -> 0 | T26: =SUMIFS(SummerProvRep!$H:$H,SummerProvRep!$A:$A,Data!$A$26,SummerProvRep!$G:$G,"Coventry",SummerProvRep!$P:$P,Data!T$17) -> 132 | U26: =SUMIFS(SummerProvRep!$H:$H,SummerProvRep!$A:$A,Data!$A$26,SummerProvRep!$G:$G,"Coventry",SummerProvRep!$P:$P,Data!U$17) -> 0 | V26: =SUMIFS(SummerProvRep!$H:$H,SummerProvRep!$A:$A,Data!$A$26,SummerProvRep!$G:$G,"Coventry",SummerProvRep!$P:$P,Data!V$17) -> 0 | W26: 109.0434783 | X26: 542485.3679 | Y26: 0 | Z26: =SUMIFS(SummerProvRep!$H:$H,SummerProvRep!$A:$A,Data!$A$26,SummerProvRep!$G:$G,"<>Coventry",SummerProvRep!$P:$P,Data!Z$17) -> 0 | AA26: =SUMIFS(SummerProvRep!$H:$H,SummerProvRep!$A:$A,Data!$A$26,SummerProvRep!$G:$G,"<>Coventry",SummerProvRep!$P:$P,Data!AA$17) -> 0 | AB26: =SUMIFS(SummerProvRep!$H:$H,SummerProvRep!$A:$A,Data!$A$26,SummerProvRep!$G:$G,"<>Coventry",SummerProvRep!$P:$P,Data!AB$17) -> 0 | AC26: =SUMIFS(SummerProvRep!$H:$H,SummerProvRep!$A:$A,Data!$A$26,SummerProvRep!$G:$G,"<>Coventry",SummerProvRep!$P:$P,Data!AC$17) -> 0 | AD26: =SUMIFS(SummerProvRep!$H:$H,SummerProvRep!$A:$A,Data!$A$26,SummerProvRep!$G:$G,"<>Coventry",SummerProvRep!$P:$P,Data!AD$17) -> 0 | AE26: =SUMIFS(SummerProvRep!$H:$H,SummerProvRep!$A:$A,Data!$A$26,SummerProvRep!$G:$G,"<>Coventry",SummerProvRep!$P:$P,Data!AE$17) -> 0 | AF26: =SUMIFS(SummerProvRep!$H:$H,SummerProvRep!$A:$A,Data!$A$26,SummerProvRep!$G:$G,"<>Coventry",SummerProvRep!$P:$P,Data!AF$17) -> 0 | AG26: =SUMIFS(SummerProvRep!$H:$H,SummerProvRep!$A:$A,Data!$A$26,SummerProvRep!$G:$G,"<>Coventry",SummerProvRep!$P:$P,Data!AG$17) -> 66 | AH26: =SUMIFS(SummerProvRep!$H:$H,SummerProvRep!$A:$A,Data!$A$26,SummerProvRep!$G:$G,"<>Coventry",SummerProvRep!$P:$P,Data!AH$17) -> 0 | AI26: =SUMIFS(SummerProvRep!$H:$H,SummerProvRep!$A:$A,Data!$A$26,SummerProvRep!$G:$G,"<>Coventry",SummerProvRep!$P:$P,Data!AI$17) -> 0 | AJ26: =SUMIFS(SummerProvRep!$H:$H,SummerProvRep!$A:$A,Data!$A$26,SummerProvRep!$G:$G,"<>Coventry",SummerProvRep!$P:$P,Data!AJ$17) -> 0 | AK26: =SUMIFS(SummerProvRep!$H:$H,SummerProvRep!$A:$A,Data!$A$26,SummerProvRep!$G:$G,"<>Coventry",SummerProvRep!$P:$P,Data!AK$17) -> 0 | AL26: =SUMIFS(SummerProvRep!$H:$H,SummerProvRep!$A:$A,Data!$A$26,SummerProvRep!$G:$G,"<>Coventry",SummerProvRep!$P:$P,Data!AL$17) -> 0 | AM26: =SUMIFS(SummerProvRep!$H:$H,SummerProvRep!$A:$A,Data!$A$26,SummerProvRep!$G:$G,"<>Coventry",SummerProvRep!$P:$P,Data!AM$17) -> 0 | AN26: =SUMIFS(SummerProvRep!$H:$H,SummerProvRep!$A:$A,Data!$A$26,SummerProvRep!$G:$G,"<>Coventry",SummerProvRep!$P:$P,Data!AN$17) -> 0 | AO26: =SUMIFS(SummerProvRep!$H:$H,SummerProvRep!$A:$A,Data!$A$26,SummerProvRep!$G:$G,"<>Coventry",SummerProvRep!$P:$P,Data!AO$17) -> 0 | AP26: =SUMIFS(SummerProvRep!$H:$H,SummerProvRep!$A:$A,Data!$A$26,SummerProvRep!$G:$G,"<>Coventry",SummerProvRep!$P:$P,Data!AP$17) -> 0 | AQ26: =SUMIFS(SummerProvRep!$H:$H,SummerProvRep!$A:$A,Data!$A$26,SummerProvRep!$G:$G,"<>Coventry",SummerProvRep!$P:$P,Data!AQ$17) -> 0 | AR26: 0.9565217391 | AS26: 3371.626989 | AT26: 545856.9949 | AU26: 110 | AV26: -16 | AW26: 126 | AX26: =[5]Data!$AU26 -> 115 | AY26: 116 | BB26: =($K$9-$AU$26)*$A$20 -> 1104 | BC26: 7590 | BD26: =$BB$26/$BC$26*D26 -> 0 | BE26: =$BB$26/$BC$26*E26 -> 0 | BF26: 0 | BG26: 0 | BH26: 0 | BI26: 0 | BJ26: 0 | BK26: 220.8 | BL26: 355.2 | BM26: 9.6 | BN26: 9.6 | BO26: 96.87272727 | BP26: 0 | BQ26: 287.1272727 | BR26: 96 | BS26: 0 | BT26: 19.2 | BU26: 0 | BV26: 0 | BX26: =$BB$26/$BC$26*Y26 -> 0 | BY26: =$BB$26/$BC$26*Z26 -> 0 | BZ26: 0 | CA26: 0 | CB26: 0 | CC26: 0 | CD26: 0 | CE26: 0 | CF26: 9.6 | CG26: 0 | CH26: 0 | CI26: 0 | CJ26: 0 | CK26: 0 | CL26: 0 | CM26: 0 | CN26: 0 | CO26: 0 | CP26: 0
A27: 7 | B27: Sherbourne Fields | C27: 50 | D27: 0 | E27: =SUMIFS(SummerProvRep!$H:$H,SummerProvRep!$A:$A,Data!$A$27,SummerProvRep!$G:$G,"Coventry",SummerProvRep!$P:$P,Data!E$17) -> 0 | F27: =SUMIFS(SummerProvRep!$H:$H,SummerProvRep!$A:$A,Data!$A$27,SummerProvRep!$G:$G,"Coventry",SummerProvRep!$P:$P,Data!F$17) -> 0 | G27: =SUMIFS(SummerProvRep!$H:$H,SummerProvRep!$A:$A,Data!$A$27,SummerProvRep!$G:$G,"Coventry",SummerProvRep!$P:$P,Data!G$17) -> 0 | H27: =SUMIFS(SummerProvRep!$H:$H,SummerProvRep!$A:$A,Data!$A$27,SummerProvRep!$G:$G,"Coventry",SummerProvRep!$P:$P,Data!H$17) -> 132 | I27: =SUMIFS(SummerProvRep!$H:$H,SummerProvRep!$A:$A,Data!$A$27,SummerProvRep!$G:$G,"Coventry",SummerProvRep!$P:$P,Data!I$17) -> 0 | J27: =SUMIFS(SummerProvRep!$H:$H,SummerProvRep!$A:$A,Data!$A$27,SummerProvRep!$G:$G,"Coventry",SummerProvRep!$P:$P,Data!J$17) -> 132 | K27: =SUMIFS(SummerProvRep!$H:$H,SummerProvRep!$A:$A,Data!$A$27,SummerProvRep!$G:$G,"Coventry",SummerProvRep!$P:$P,Data!K$17) -> 4620 | L27: =SUMIFS(SummerProvRep!$H:$H,SummerProvRep!$A:$A,Data!$A$27,SummerProvRep!$G:$G,"Coventry",SummerProvRep!$P:$P,Data!L$17) -> 4290 | M27: =SUMIFS(SummerProvRep!$H:$H,SummerProvRep!$A:$A,Data!$A$27,SummerProvRep!$G:$G,"Coventry",SummerProvRep!$P:$P,Data!M$17) -> 0 | N27: =SUMIFS(SummerProvRep!$H:$H,SummerProvRep!$A:$A,Data!$A$27,SummerProvRep!$G:$G,"Coventry",SummerProvRep!$P:$P,Data!N$17) -> 1848 | O27: =SUMIFS(SummerProvRep!$H:$H,SummerProvRep!$A:$A,Data!$A$27,SummerProvRep!$G:$G,"Coventry",SummerProvRep!$P:$P,Data!O$17) -> 198 | P27: =SUMIFS(SummerProvRep!$H:$H,SummerProvRep!$A:$A,Data!$A$27,SummerProvRep!$G:$G,"Coventry",SummerProvRep!$P:$P,Data!P$17) -> 0 | Q27: =SUMIFS(SummerProvRep!$H:$H,SummerProvRep!$A:$A,Data!$A$27,SummerProvRep!$G:$G,"Coventry",SummerProvRep!$P:$P,Data!Q$17) -> 1716 | R27: =SUMIFS(SummerProvRep!$H:$H,SummerProvRep!$A:$A,Data!$A$27,SummerProvRep!$G:$G,"Coventry",SummerProvRep!$P:$P,Data!R$17) -> 1386 | S27: =SUMIFS(SummerProvRep!$H:$H,SummerProvRep!$A:$A,Data!$A$27,SummerProvRep!$G:$G,"Coventry",SummerProvRep!$P:$P,Data!S$17) -> 0 | T27: =SUMIFS(SummerProvRep!$H:$H,SummerProvRep!$A:$A,Data!$A$27,SummerProvRep!$G:$G,"Coventry",SummerProvRep!$P:$P,Data!T$17) -> 1254 | U27: =SUMIFS(SummerProvRep!$H:$H,SummerProvRep!$A:$A,Data!$A$27,SummerProvRep!$G:$G,"Coventry",SummerProvRep!$P:$P,Data!U$17) -> 66 | V27: =SUMIFS(SummerProvRep!$H:$H,SummerProvRep!$A:$A,Data!$A$27,SummerProvRep!$G:$G,"Coventry",SummerProvRep!$P:$P,Data!V$17) -> 0 | W27: 226.6956522 | X27: 1024336.172 | Y27: 0 | Z27: =SUMIFS(SummerProvRep!$H:$H,SummerProvRep!$A:$A,Data!$A$27,SummerProvRep!$G:$G,"<>Coventry",SummerProvRep!$P:$P,Data!Z$17) -> 0 | AA27: =SUMIFS(SummerProvRep!$H:$H,SummerProvRep!$A:$A,Data!$A$27,SummerProvRep!$G:$G,"<>Coventry",SummerProvRep!$P:$P,Data!AA$17) -> 0 | AB27: =SUMIFS(SummerProvRep!$H:$H,SummerProvRep!$A:$A,Data!$A$27,SummerProvRep!$G:$G,"<>Coventry",SummerProvRep!$P:$P,Data!AB$17) -> 0 | AC27: =SUMIFS(SummerProvRep!$H:$H,SummerProvRep!$A:$A,Data!$A$27,SummerProvRep!$G:$G,"<>Coventry",SummerProvRep!$P:$P,Data!AC$17) -> 0 | AD27: =SUMIFS(SummerProvRep!$H:$H,SummerProvRep!$A:$A,Data!$A$27,SummerProvRep!$G:$G,"<>Coventry",SummerProvRep!$P:$P,Data!AD$17) -> 0 | AE27: =SUMIFS(SummerProvRep!$H:$H,SummerProvRep!$A:$A,Data!$A$27,SummerProvRep!$G:$G,"<>Coventry",SummerProvRep!$P:$P,Data!AE$17) -> 0 | AF27: =SUMIFS(SummerProvRep!$H:$H,SummerProvRep!$A:$A,Data!$A$27,SummerProvRep!$G:$G,"<>Coventry",SummerProvRep!$P:$P,Data!AF$17) -> 66 | AG27: =SUMIFS(SummerProvRep!$H:$H,SummerProvRep!$A:$A,Data!$A$27,SummerProvRep!$G:$G,"<>Coventry",SummerProvRep!$P:$P,Data!AG$17) -> 0 | AH27: =SUMIFS(SummerProvRep!$H:$H,SummerProvRep!$A:$A,Data!$A$27,SummerProvRep!$G:$G,"<>Coventry",SummerProvRep!$P:$P,Data!AH$17) -> 0 | AI27: =SUMIFS(SummerProvRep!$H:$H,SummerProvRep!$A:$A,Data!$A$27,SummerProvRep!$G:$G,"<>Coventry",SummerProvRep!$P:$P,Data!AI$17) -> 66 | AJ27: =SUMIFS(SummerProvRep!$H:$H,SummerProvRep!$A:$A,Data!$A$27,SummerProvRep!$G:$G,"<>Coventry",SummerProvRep!$P:$P,Data!AJ$17) -> 0 | AK27: =SUMIFS(SummerProvRep!$H:$H,SummerProvRep!$A:$A,Data!$A$27,SummerProvRep!$G:$G,"<>Coventry",SummerProvRep!$P:$P,Data!AK$17) -> 0 | AL27: =SUMIFS(SummerProvRep!$H:$H,SummerProvRep!$A:$A,Data!$A$27,SummerProvRep!$G:$G,"<>Coventry",SummerProvRep!$P:$P,Data!AL$17) -> 0 | AM27: =SUMIFS(SummerProvRep!$H:$H,SummerProvRep!$A:$A,Data!$A$27,SummerProvRep!$G:$G,"<>Coventry",SummerProvRep!$P:$P,Data!AM$17) -> 0 | AN27: =SUMIFS(SummerProvRep!$H:$H,SummerProvRep!$A:$A,Data!$A$27,SummerProvRep!$G:$G,"<>Coventry",SummerProvRep!$P:$P,Data!AN$17) -> 0 | AO27: =SUMIFS(SummerProvRep!$H:$H,SummerProvRep!$A:$A,Data!$A$27,SummerProvRep!$G:$G,"<>Coventry",SummerProvRep!$P:$P,Data!AO$17) -> 113 | AP27: =SUMIFS(SummerProvRep!$H:$H,SummerProvRep!$A:$A,Data!$A$27,SummerProvRep!$G:$G,"<>Coventry",SummerProvRep!$P:$P,Data!AP$17) -> 0 | AQ27: =SUMIFS(SummerProvRep!$H:$H,SummerProvRep!$A:$A,Data!$A$27,SummerProvRep!$G:$G,"<>Coventry",SummerProvRep!$P:$P,Data!AQ$17) -> 0 | AR27: 3.550724638 | AS27: 17562.26912 | AT27: 1041898.442 | AU27: 230.2463768 | AV27: -20.75362319 | AW27: 251 | AX27: =[5]Data!$AU27 -> 240.7121212 | AY27: 240 | BB27: =($K$10-$AU$27)*$A$20 -> 1432 | BC27: 15887 | BD27: =$BB$27/$BC$27*D27 -> 0 | BE27: =$BB$27/$BC$27*E27 -> 0 | BF27: 0 | BG27: 0 | BH27: 11.89802984 | BI27: 0 | BJ27: 11.89802984 | BK27: 416.4310443 | BL27: 386.6859697 | BM27: 0 | BN27: 166.5724177 | BO27: 17.84704475 | BP27: 0 | BQ27: 154.6743879 | BR27: 124.9293133 | BS27: 0 | BT27: 113.0312834 | BU27: 5.949014918 | BV27: 0 | BX27: =$BB$27/$BC$27*Y27 -> 0 | BY27: =$BB$27/$BC$27*Z27 -> 0 | BZ27: 0 | CA27: 0 | CB27: 0 | CC27: 0 | CD27: 0 | CE27: 5.949014918 | CF27: 0 | CG27: 0 | CH27: 5.949014918 | CI27: 0 | CJ27: 0 | CK27: 0 | CL27: 0 | CM27: 0 | CN27: 10.18543463 | CO27: 0 | CP27: 0
A28: 8 | B28: Woodfield | C28: =10000/$A$16 -> 50 | D28: 0 | E28: =SUMIFS(SummerProvRep!$H:$H,SummerProvRep!$A:$A,Data!$A$28,SummerProvRep!$G:$G,"Coventry",SummerProvRep!$P:$P,Data!E$17) -> 0 | F28: =SUMIFS(SummerProvRep!$H:$H,SummerProvRep!$A:$A,Data!$A$28,SummerProvRep!$G:$G,"Coventry",SummerProvRep!$P:$P,Data!F$17) -> 0 | G28: =SUMIFS(SummerProvRep!$H:$H,SummerProvRep!$A:$A,Data!$A$28,SummerProvRep!$G:$G,"Coventry",SummerProvRep!$P:$P,Data!G$17) -> 0 | H28: =SUMIFS(SummerProvRep!$H:$H,SummerProvRep!$A:$A,Data!$A$28,SummerProvRep!$G:$G,"Coventry",SummerProvRep!$P:$P,Data!H$17) -> 0 | I28: =SUMIFS(SummerProvRep!$H:$H,SummerProvRep!$A:$A,Data!$A$28,SummerProvRep!$G:$G,"Coventry",SummerProvRep!$P:$P,Data!I$17) -> 0 | J28: =SUMIFS(SummerProvRep!$H:$H,SummerProvRep!$A:$A,Data!$A$28,SummerProvRep!$G:$G,"Coventry",SummerProvRep!$P:$P,Data!J$17) -> 0 | K28: =SUMIFS(SummerProvRep!$H:$H,SummerProvRep!$A:$A,Data!$A$28,SummerProvRep!$G:$G,"Coventry",SummerProvRep!$P:$P,Data!K$17) -> 0 | L28: =SUMIFS(SummerProvRep!$H:$H,SummerProvRep!$A:$A,Data!$A$28,SummerProvRep!$G:$G,"Coventry",SummerProvRep!$P:$P,Data!L$17) -> 0 | M28: =SUMIFS(SummerProvRep!$H:$H,SummerProvRep!$A:$A,Data!$A$28,SummerProvRep!$G:$G,"Coventry",SummerProvRep!$P:$P,Data!M$17) -> 0 | N28: =SUMIFS(SummerProvRep!$H:$H,SummerProvRep!$A:$A,Data!$A$28,SummerProvRep!$G:$G,"Coventry",SummerProvRep!$P:$P,Data!N$17) -> 0 | O28: =SUMIFS(SummerProvRep!$H:$H,SummerProvRep!$A:$A,Data!$A$28,SummerProvRep!$G:$G,"Coventry",SummerProvRep!$P:$P,Data!O$17) -> 954 | P28: =SUMIFS(SummerProvRep!$H:$H,SummerProvRep!$A:$A,Data!$A$28,SummerProvRep!$G:$G,"Coventry",SummerProvRep!$P:$P,Data!P$17) -> 0 | Q28: =SUMIFS(SummerProvRep!$H:$H,SummerProvRep!$A:$A,Data!$A$28,SummerProvRep!$G:$G,"Coventry",SummerProvRep!$P:$P,Data!Q$17) -> 0 | R28: =SUMIFS(SummerProvRep!$H:$H,SummerProvRep!$A:$A,Data!$A$28,SummerProvRep!$G:$G,"Coventry",SummerProvRep!$P:$P,Data!R$17) -> 0 | S28: =SUMIFS(SummerProvRep!$H:$H,SummerProvRep!$A:$A,Data!$A$28,SummerProvRep!$G:$G,"Coventry",SummerProvRep!$P:$P,Data!S$17) -> 8087 | T28: =SUMIFS(SummerProvRep!$H:$H,SummerProvRep!$A:$A,Data!$A$28,SummerProvRep!$G:$G,"Coventry",SummerProvRep!$P:$P,Data!T$17) -> 0 | U28: =SUMIFS(SummerProvRep!$H:$H,SummerProvRep!$A:$A,Data!$A$28,SummerProvRep!$G:$G,"Coventry",SummerProvRep!$P:$P,Data!U$17) -> 396 | V28: =SUMIFS(SummerProvRep!$H:$H,SummerProvRep!$A:$A,Data!$A$28,SummerProvRep!$G:$G,"Coventry",SummerProvRep!$P:$P,Data!V$17) -> 0 | W28: 136.7681159 | X28: 940794.0843 | Y28: 0 | Z28: =SUMIFS(SummerProvRep!$H:$H,SummerProvRep!$A:$A,Data!$A$28,SummerProvRep!$G:$G,"<>Coventry",SummerProvRep!$P:$P,Data!Z$17) -> 0 | AA28: =SUMIFS(SummerProvRep!$H:$H,SummerProvRep!$A:$A,Data!$A$28,SummerProvRep!$G:$G,"<>Coventry",SummerProvRep!$P:$P,Data!AA$17) -> 0 | AB28: =SUMIFS(SummerProvRep!$H:$H,SummerProvRep!$A:$A,Data!$A$28,SummerProvRep!$G:$G,"<>Coventry",SummerProvRep!$P:$P,Data!AB$17) -> 0 | AC28: =SUMIFS(SummerProvRep!$H:$H,SummerProvRep!$A:$A,Data!$A$28,SummerProvRep!$G:$G,"<>Coventry",SummerProvRep!$P:$P,Data!AC$17) -> 0 | AD28: =SUMIFS(SummerProvRep!$H:$H,SummerProvRep!$A:$A,Data!$A$28,SummerProvRep!$G:$G,"<>Coventry",SummerProvRep!$P:$P,Data!AD$17) -> 0 | AE28: =SUMIFS(SummerProvRep!$H:$H,SummerProvRep!$A:$A,Data!$A$28,SummerProvRep!$G:$G,"<>Coventry",SummerProvRep!$P:$P,Data!AE$17) -> 0 | AF28: =SUMIFS(SummerProvRep!$H:$H,SummerProvRep!$A:$A,Data!$A$28,SummerProvRep!$G:$G,"<>Coventry",SummerProvRep!$P:$P,Data!AF$17) -> 0 | AG28: =SUMIFS(SummerProvRep!$H:$H,SummerProvRep!$A:$A,Data!$A$28,SummerProvRep!$G:$G,"<>Coventry",SummerProvRep!$P:$P,Data!AG$17) -> 0 | AH28: =SUMIFS(SummerProvRep!$H:$H,SummerProvRep!$A:$A,Data!$A$28,SummerProvRep!$G:$G,"<>Coventry",SummerProvRep!$P:$P,Data!AH$17) -> 0 | AI28: =SUMIFS(SummerProvRep!$H:$H,SummerProvRep!$A:$A,Data!$A$28,SummerProvRep!$G:$G,"<>Coventry",SummerProvRep!$P:$P,Data!AI$17) -> 0 | AJ28: =SUMIFS(SummerProvRep!$H:$H,SummerProvRep!$A:$A,Data!$A$28,SummerProvRep!$G:$G,"<>Coventry",SummerProvRep!$P:$P,Data!AJ$17) -> 0 | AK28: =SUMIFS(SummerProvRep!$H:$H,SummerProvRep!$A:$A,Data!$A$28,SummerProvRep!$G:$G,"<>Coventry",SummerProvRep!$P:$P,Data!AK$17) -> 0 | AL28: =SUMIFS(SummerProvRep!$H:$H,SummerProvRep!$A:$A,Data!$A$28,SummerProvRep!$G:$G,"<>Coventry",SummerProvRep!$P:$P,Data!AL$17) -> 0 | AM28: =SUMIFS(SummerProvRep!$H:$H,SummerProvRep!$A:$A,Data!$A$28,SummerProvRep!$G:$G,"<>Coventry",SummerProvRep!$P:$P,Data!AM$17) -> 0 | AN28: =SUMIFS(SummerProvRep!$H:$H,SummerProvRep!$A:$A,Data!$A$28,SummerProvRep!$G:$G,"<>Coventry",SummerProvRep!$P:$P,Data!AN$17) -> 66 | AO28: =SUMIFS(SummerProvRep!$H:$H,SummerProvRep!$A:$A,Data!$A$28,SummerProvRep!$G:$G,"<>Coventry",SummerProvRep!$P:$P,Data!AO$17) -> 0 | AP28: =SUMIFS(SummerProvRep!$H:$H,SummerProvRep!$A:$A,Data!$A$28,SummerProvRep!$G:$G,"<>Coventry",SummerProvRep!$P:$P,Data!AP$17) -> 0 | AQ28: =SUMIFS(SummerProvRep!$H:$H,SummerProvRep!$A:$A,Data!$A$28,SummerProvRep!$G:$G,"<>Coventry",SummerProvRep!$P:$P,Data!AQ$17) -> 0 | AR28: =SUM(Y28:AQ28)/$A$20 -> 0.9565217391 | AS28: 5923.126702 | AT28: 946717.211 | AU28: 137.7246377 | AV28: =AU28-AW28 -> -17.27536232 | AW28: 155 | AX28: =[5]Data!$AU28 -> 143.9848485 | AY28: 155 | BB28: =($K$11-$AU$28)*$A$20 -> 1192 | BC28: 9503 | BD28: =$BB$28/$BC$28*D28 -> 0 | BE28: =$BB$28/$BC$28*E28 -> 0 | BF28: 0 | BG28: 0 | BH28: 0 | BI28: 0 | BJ28: 0 | BK28: 0 | BL28: 0 | BM28: 0 | BN28: 0 | BO28: 119.6641061 | BP28: 0 | BQ28: 0 | BR28: 0 | BS28: 1014.385352 | BT28: 0 | BU28: 49.67189309 | BV28: 0 | BX28: =$BB$28/$BC$28*Y28 -> 0 | BY28: =$BB$28/$BC$28*Z28 -> 0 | BZ28: 0 | CA28: 0 | CB28: 0 | CC28: 0 | CD28: 0 | CE28: 0 | CF28: 0 | CG28: 0 | CH28: 0 | CI28: 0 | CJ28: 0 | CK28: 0 | CL28: 0 | CM28: 8.278648848 | CN28: 0 | CO28: 0 | CP28: 0
A29: 9 | B29: Coventry ELC | C29: =10000/$A$16 -> 50 | D29: =120*A20 -> 8280 | E29: 0 | F29: 0 | G29: 0 | H29: 0 | I29: 0 | J29: 0 | K29: 0 | L29: 0 | M29: 0 | N29: 0 | O29: 0 | P29: 0 | Q29: 0 | R29: 0 | S29: 0 | T29: 0 | U29: 0 | V29: 0 | W29: 120 | X29: =SUMPRODUCT(D29:V29,$V$12:$AN$12)/$A$16 -> 556189.0176 | Y29: 0 | Z29: 0 | AA29: 0 | AB29: 0 | AC29: 0 | AD29: 0 | AE29: 0 | AF29: 0 | AG29: 0 | AH29: 0 | AI29: 0 | AJ29: 0 | AK29: 0 | AL29: 0 | AM29: 0 | AN29: 0 | AO29: 0 | AP29: 0 | AQ29: 0 | AR29: =SUM(Y29:AQ29)/$A$20 -> 0 | AS29: =SUMPRODUCT(Y29:AQ29,$V$12:$AN$12)/$A$16 -> 0 | AT29: 556189.0176 | AU29: 120 | AV29: =AU29-AW29 -> 0 | AW29: 120 | AX29: =[5]Data!$AU29 -> 120 | AY29: 120 | BB29: =($K$12-$AU$29)*$A$20 -> 0 | BC29: 8280 | BD29: =$BB$29/$BC$29*D29 -> 0 | BE29: =$BB$29/$BC$29*E29 -> 0 | BF29: 0 | BG29: 0 | BH29: 0 | BI29: 0 | BJ29: 0 | BK29: 0 | BL29: 0 | BM29: 0 | BN29: 0 | BO29: 0 | BP29: 0 | BQ29: 0 | BR29: 0 | BS29: 0 | BT29: 0 | BU29: 0 | BV29: 0 | BX29: =$BB$29/$BC$29*Y29 -> 0 | BY29: =$BB$29/$BC$29*Z29 -> 0 | BZ29: 0 | CA29: 0 | CB29: 0 | CC29: 0 | CD29: 0 | CE29: 0 | CF29: 0 | CG29: 0 | CH29: 0 | CI29: 0 | CJ29: 0 | CK29: 0 | CL29: 0 | CM29: 0 | CN29: 0 | CO29: 0 | CP29: 0
AS30: =SUM(AS21:AS29) -> 61393.40438 | AT30: =SUM(AT21:AT29) -> 6079435.788 | AU30: =SUM(AU21:AU29) -> 1274.896574
B31: Summer Term 2024
A32: 69 | B32: School
A33: 1 | B33: Castle Wood | C33: =10000/$A$16 -> 50 | D33: =D21+BD21 -> 0 | E33: =E21+BE21 -> 0 | F33: 0 | G33: 0 | H33: 0 | I33: 0 | J33: 67.97735513 | K33: 5961.408053 | L33: 1155.615037 | M33: 0 | N33: 355.3361745 | O33: 535.1578144 | P33: 0 | Q33: =Q21+BQ21 -> 1759.452452 | R33: =R21+BR21 -> 781.739584 | S33: =S21+BS21 -> 0 | T33: =T21+BT21 -> 284.2689396 | U33: =U21+BU21 -> 71.06723491 | V33: =V21+BV21 -> 0 | W33: =SUM(D33:V33)/$A$20 -> 159.0148209 | X33: =SUMPRODUCT(E33:V33,$W$6:$AN$6)/$A$16 -> 745236.2397 | Y33: =Y21+BX21 -> 0 | Z33: =Z21+BY21 -> 0 | AA33: 0 | AB33: 0 | AC33: 0 | AD33: 0 | AE33: 0 | AF33: 67.97735513 | AG33: 0 | AH33: 0 | AI33: 0 | AJ33: 0 | AK33: 0 | AL33: 0 | AM33: 0 | AN33: 0 | AO33: 0 | AP33: 0 | AQ33: 0 | AR33: =SUM(Z33:AQ33)/$A$20 -> 0.9851790599 | AS33: =SUMPRODUCT(Y33:AQ33,$V$6:$AN$6)/$A$16 -> 3754.204083 | AT33: =X33+AS33 -> 748990.4438 | AU33: =AR33+W33 -> 160 | AV33: =AU33-AW33 -> 0 | AW33: =K4 -> 160 | AX33: =[5]Data!$AU21 -> 159.9848485 | AY33: =C4 -> 160 | BA33: =(AT33/69*200)/AU33 -> 13568.66746
A34: 2 | B34: Kingsbury | C34: =10000/$A$16 -> 50 | D34: =D22+BD22 -> 0 | E34: =E22+BE22 -> 0 | F34: =F22+BF22 -> 0 | G34: =G22+BG22 -> 0 | H34: =H22+BH22 -> 0 | I34: =I22+BI22 -> 0 | J34: =J22+BJ22 -> 0 | K34: =K22+BK22 -> 3775.751073 | L34: =L22+BL22 -> 488.6266094 | M34: =M22+BM22 -> 0 | N34: =N22+BN22 -> 0 | O34: =O22+BO22 -> 488.6266094 | P34: =P22+BP22 -> 0 | Q34: 1797.976701 | R34: =R22+BR22 -> 139.6076027 | S34: =S22+BS22 -> 0 | T34: =T22+BT22 -> 0 | U34: =U22+BU22 -> 0 | V34: =V22+BV22 -> 0 | W34: =SUM(D34:V34)/$A$20 -> 96.96505212 | X34: 466587.1496 | Y34: =Y22+BX22 -> 0 | Z34: =Z22+BY22 -> 0 | AA34: =AA22+BZ22 -> 0 | AB34: =AB22+CA22 -> 0 | AC34: =AC22+CB22 -> 0 | AD34: =AD22+CC22 -> 0 | AE34: =AE22+CD22 -> 0 | AF34: =AF22+CE22 -> 69.80380135 | AG34: =AG22+CF22 -> 69.80380135 | AH34: =AH22+CG22 -> 0 | AI34: =AI22+CH22 -> 0 | AJ34: =AJ22+CI22 -> 0 | AK34: =AK22+CJ22 -> 0 | AL34: =AL22+CK22 -> 69.80380135 | AM34: =AM22+CL22 -> 0 | AN34: =AN22+CM22 -> 0 | AO34: =AO22+CN22 -> 0 | AP34: =AP22+CO22 -> 0 | AQ34: =AQ22+CP22 -> 0 | AR34: 3.034947885 | AS34: 13685.51525 | AT34: 480272.6648 | AU34: 100 | AV34: =AU34-AW34 -> 0 | AW34: 100 | AX34: =[5]Data!$AU22 -> 98.84848485 | AY34: 100 | BA34: =(AT34/69*200)/AU34 -> 13920.94681
A35: 3 | B35: Riverbank | C35: 50 | D35: 0 | E35: 0 | F35: 0 | G35: 838.7383931 | H35: 1328.002456 | I35: 69.89486609 | J35: 69.89486609 | K35: 4053.902233 | L35: 4032.721971 | M35: 139.7897322 | N35: 559.1589287 | O35: 160.9699946 | P35: 279.5794644 | Q35: =Q23+BQ23 -> 1778.083033 | R35: 279.5794644 | S35: 0 | T35: 69.89486609 | U35: 0 | V35: 0 | W35: 197.9740619 | X35: 792522.9932 | Y35: 0 | Z35: 0 | AA35: 0 | AB35: 69.89486609 | AC35: 0 | AD35: 0 | AE35: 0 | AF35: 69.89486609 | AG35: 0 | AH35: 0 | AI35: 0 | AJ35: 0 | AK35: 0 | AL35: 0 | AM35: 0 | AN35: 0 | AO35: 0 | AP35: 0 | AQ35: 0 | AR35: 2.025938147 | AS35: 5018.134297 | AT35: 797541.1275 | AU35: 200 | AV35: =AU35-AW35 -> 0 | AW35: 200 | AX35: =[5]Data!$AU23 -> 197.4393939 | AY35: 200 | BA35: =(AT35/69*200)/AU35 -> 11558.56707
A36: 4 | B36: Corley | C36: 50 | D36: 0 | E36: 0 | F36: 0 | G36: 0 | H36: 0 | I36: 0 | J36: 0 | K36: 7632.433155 | L36: 0 | M36: 639.2647059 | N36: 0 | O36: 322.8609626 | P36: 0 | Q36: 994.4117647 | R36: 0 | S36: 0 | T36: 0 | U36: 0 | V36: 0 | W36: 138.9705882 | X36: 594654.8524 | Y36: 0 | Z36: 0 | AA36: 0 | AB36: 0 | AC36: 0 | AD36: 0 | AE36: 0 | AF36: 71.02941176 | AG36: 0 | AH36: 0 | AI36: 0 | AJ36: 0 | AK36: 0 | AL36: 0 | AM36: 0 | AN36: 0 | AO36: 0 | AP36: 0 | AQ36: 0 | AR36: 1.029411765 | AS36: 3922.760854 | AT36: 598577.6133 | AU36: 140 | AV36: =AU36-AW36 -> 0 | AW36: 140 | AX36: =[5]Data!$AU24 -> 136 | AY36: 129 | BA36: 12392.91125
A37: 5 | B37: Tiverton | C37: 50 | D37: 0 | E37: 0 | F37: 0 | G37: 0 | H37: 0 | I37: 0 | J37: 0 | K37: 4084.581657 | L37: 1017.292035 | M37: 0 | N37: 508.6460177 | O37: 328.0876911 | P37: 0 | Q37: 1255.100563 | R37: 508.6460177 | S37: 0 | T37: 363.3185841 | U37: 0 | V37: 0 | W37: 116.8938053 | X37: 537941.5361 | Y37: 0 | Z37: 0 | AA37: 0 | AB37: 0 | AC37: 0 | AD37: 0 | AE37: 0 | AF37: 72.66371681 | AG37: 0 | AH37: 0 | AI37: 0 | AJ37: 0 | AK37: 0 | AL37: 72.66371681 | AM37: 0 | AN37: 0 | AO37: 0 | AP37: 0 | AQ37: 0 | AR37: 2.10619469 | AS37: 10534.17666 | AT37: 548475.7128 | AU37: 119 | AV37: 0 | AW37: 119 | AX37: =[5]Data!$AU25 -> 113 | AY37: 112 | BA37: 13359.53508
A38: 6 | B38: Baginton Fields | C38: 50 | D38: 0 | E38: 0 | F38: 0 | G38: 0 | H38: 0 | I38: 0 | J38: 0 | K38: 1738.8 | L38: 2797.2 | M38: 75.6 | N38: 75.6 | O38: 762.8727273 | P38: 0 | Q38: 2261.127273 | R38: 756 | S38: 0 | T38: 151.2 | U38: 0 | V38: 0 | W38: 124.9043478 | X38: 621392.3305 | Y38: 0 | Z38: 0 | AA38: 0 | AB38: 0 | AC38: 0 | AD38: 0 | AE38: 0 | AF38: 0 | AG38: 75.6 | AH38: 0 | AI38: 0 | AJ38: 0 | AK38: 0 | AL38: 0 | AM38: 0 | AN38: 0 | AO38: 0 | AP38: 0 | AQ38: 0 | AR38: 1.095652174 | AS38: 3862.04546 | AT38: 625254.3759 | AU38: 126 | AV38: 0 | AW38: 126 | AX38: =[5]Data!$AU26 -> 115 | AY38: 116 | BA38: 14383.58353
A39: 7 | B39: Sherbourne Fields | C39: 50 | D39: 0 | E39: 0 | F39: 0 | G39: 0 | H39: 143.8980298 | I39: 0 | J39: 143.8980298 | K39: 5036.431044 | L39: 4676.68597 | M39: 0 | N39: 2014.572418 | O39: 215.8470448 | P39: 0 | Q39: 1870.674388 | R39: 1510.929313 | S39: 0 | T39: 1367.031283 | U39: 71.94901492 | V39: 0 | W39: 247.1292252 | X39: 1116666.342 | Y39: 0 | Z39: 0 | AA39: 0 | AB39: 0 | AC39: 0 | AD39: 0 | AE39: 0 | AF39: 71.94901492 | AG39: 0 | AH39: 0 | AI39: 71.94901492 | AJ39: 0 | AK39: 0 | AL39: 0 | AM39: 0 | AN39: 0 | AO39: 123.1854346 | AP39: 0 | AQ39: 0 | AR39: 3.870774847 | AS39: 19145.27217 | AT39: 1135811.614 | AU39: 251 | AV39: 0 | AW39: 251 | AX39: =[5]Data!$AU27 -> 240.7121212 | AY39: 240 | BA39: 13116.36485
A40: 8 | B40: Woodfield | C40: =10000/$A$16 -> 50 | D40: 0 | E40: 0 | F40: 0 | G40: 0 | H40: 0 | I40: 0 | J40: 0 | K40: 0 | L40: 0 | M40: 0 | N40: 0 | O40: 1073.664106 | P40: 0 | Q40: 0 | R40: 0 | S40: 9101.385352 | T40: 0 | U40: 445.6718931 | V40: 0 | W40: 153.9234978 | X40: 1058801.719 | Y40: 0 | Z40: 0 | AA40: 0 | AB40: 0 | AC40: 0 | AD40: 0 | AE40: 0 | AF40: 0 | AG40: 0 | AH40: 0 | AI40: 0 | AJ40: 0 | AK40: 0 | AL40: 0 | AM40: 0 | AN40: 74.27864885 | AO40: 0 | AP40: 0 | AQ40: 0 | AR40: =SUM(Y40:AQ40)/$A$20 -> 1.076502157 | AS40: 6666.088612 | AT40: 1065467.807 | AU40: 155 | AV40: =AU40-AW40 -> 0 | AW40: 155 | AX40: =[5]Data!$AU28 -> 143.9848485 | AY40: 155 | BA40: 19924.59668
A41: 9 | B41: Coventry ELC | C41: =10000/$A$16 -> 50 | D41: 8280 | E41: 0 | F41: 0 | G41: 0 | H41: 0 | I41: 0 | J41: 0 | K41: 0 | L41: 0 | M41: 0 | N41: 0 | O41: 0 | P41: 0 | Q41: 0 | R41: 0 | S41: 0 | T41: 0 | U41: 0 | V41: 0 | W41: 120 | X41: =SUMPRODUCT(D41:V41,$V$12:$AN$12)/$A$16 -> 556189.0176 | Y41: 0 | Z41: 0 | AA41: 0 | AB41: 0 | AC41: 0 | AD41: 0 | AE41: 0 | AF41: 0 | AG41: 0 | AH41: 0 | AI41: 0 | AJ41: 0 | AK41: 0 | AL41: 0 | AM41: 0 | AN41: 0 | AO41: 0 | AP41: 0 | AQ41: 0 | AR41: =SUM(Y41:AQ41)/$A$20 -> 0 | AS41: =SUMPRODUCT(Y41:AQ41,$V$12:$AN$12)/$A$16 -> 0 | AT41: 556189.0176 | AU41: 120 | AV41: =AU41-AW41 -> 0 | AW41: 120 | AX41: =[5]Data!$AU29 -> 120 | AY41: 120 | BA41: 13434.51733
AS42: =SUM(AS33:AS41) -> 66588.19739 | AT42: =SUM(AT33:AT41) -> 6556580.377 | AU42: =SUM(AU33:AU41) -> 1371
D44: Coventry pupils | Y44: Other LA Pupils
B45: Autumn Term 2024
A46: 75 | B46: School | BA46: 76
A47: 1 | B47: Castle Wood | C47: =10000/$A$16 -> 50 | D47: 0 | E47: =SUMIFS(AutumnProvRep!$H:$H,AutumnProvRep!$A:$A,Data!$A$21,AutumnProvRep!$G:$G,"Coventry",AutumnProvRep!$P:$P,Data!E$17)/$BA$46*$A$46 -> 0 | F47: =SUMIFS(AutumnProvRep!$H:$H,AutumnProvRep!$A:$A,Data!$A$21,AutumnProvRep!$G:$G,"Coventry",AutumnProvRep!$P:$P,Data!F$17)/$BA$46*$A$46 -> 0 | G47: =SUMIFS(AutumnProvRep!$H:$H,AutumnProvRep!$A:$A,Data!$A$21,AutumnProvRep!$G:$G,"Coventry",AutumnProvRep!$P:$P,Data!G$17)/$BA$46*$A$46 -> 0 | H47: =SUMIFS(AutumnProvRep!$H:$H,AutumnProvRep!$A:$A,Data!$A$21,AutumnProvRep!$G:$G,"Coventry",AutumnProvRep!$P:$P,Data!H$17)/$BA$46*$A$46 -> 0 | I47: =SUMIFS(AutumnProvRep!$H:$H,AutumnProvRep!$A:$A,Data!$A$21,AutumnProvRep!$G:$G,"Coventry",AutumnProvRep!$P:$P,Data!I$17)/$BA$46*$A$46 -> 0 | J47: =SUMIFS(AutumnProvRep!$H:$H,AutumnProvRep!$A:$A,Data!$A$21,AutumnProvRep!$G:$G,"Coventry",AutumnProvRep!$P:$P,Data!J$17)/$BA$46*$A$46 -> 75 | K47: =SUMIFS(AutumnProvRep!$H:$H,AutumnProvRep!$A:$A,Data!$A$21,AutumnProvRep!$G:$G,"Coventry",AutumnProvRep!$P:$P,Data!K$17)/$BA$46*$A$46 -> 6412.5 | L47: =SUMIFS(AutumnProvRep!$H:$H,AutumnProvRep!$A:$A,Data!$A$21,AutumnProvRep!$G:$G,"Coventry",AutumnProvRep!$P:$P,Data!L$17)/$BA$46*$A$46 -> 1024.342105 | M47: =SUMIFS(AutumnProvRep!$H:$H,AutumnProvRep!$A:$A,Data!$A$21,AutumnProvRep!$G:$G,"Coventry",AutumnProvRep!$P:$P,Data!M$17)/$BA$46*$A$46 -> 75 | N47: =SUMIFS(AutumnProvRep!$H:$H,AutumnProvRep!$A:$A,Data!$A$21,AutumnProvRep!$G:$G,"Coventry",AutumnProvRep!$P:$P,Data!N$17)/$BA$46*$A$46 -> 375 | O47: =SUMIFS(AutumnProvRep!$H:$H,AutumnProvRep!$A:$A,Data!$A$21,AutumnProvRep!$G:$G,"Coventry",AutumnProvRep!$P:$P,Data!O$17)/$BA$46*$A$46 -> 600 | P47: =SUMIFS(AutumnProvRep!$H:$H,AutumnProvRep!$A:$A,Data!$A$21,AutumnProvRep!$G:$G,"Coventry",AutumnProvRep!$P:$P,Data!P$17)/$BA$46*$A$46 -> 0 | Q47: =SUMIFS(AutumnProvRep!$H:$H,AutumnProvRep!$A:$A,Data!$A$21,AutumnProvRep!$G:$G,"Coventry",AutumnProvRep!$P:$P,Data!Q$17)/$BA$46*$A$46 -> 2175 | R47: =SUMIFS(AutumnProvRep!$H:$H,AutumnProvRep!$A:$A,Data!$A$21,AutumnProvRep!$G:$G,"Coventry",AutumnProvRep!$P:$P,Data!R$17)/$BA$46*$A$46 -> 600 | S47: =SUMIFS(AutumnProvRep!$H:$H,AutumnProvRep!$A:$A,Data!$A$21,AutumnProvRep!$G:$G,"Coventry",AutumnProvRep!$P:$P,Data!S$17)/$BA$46*$A$46 -> 0 | T47: =SUMIFS(AutumnProvRep!$H:$H,AutumnProvRep!$A:$A,Data!$A$21,AutumnProvRep!$G:$G,"Coventry",AutumnProvRep!$P:$P,Data!T$17)/$BA$46*$A$46 -> 415.4605263 | U47: =SUMIFS(AutumnProvRep!$H:$H,AutumnProvRep!$A:$A,Data!$A$21,AutumnProvRep!$G:$G,"Coventry",AutumnProvRep!$P:$P,Data!U$17)/$BA$46*$A$46 -> 112.5 | V47: =SUMIFS(AutumnProvRep!$H:$H,AutumnProvRep!$A:$A,Data!$A$21,AutumnProvRep!$G:$G,"Coventry",AutumnProvRep!$P:$P,Data!V$17)/$BA$46*$A$46 -> 0 | W47: =SUM(D47:V47)/$A$46 -> 158.1973684 | X47: =SUMPRODUCT(D47:V47,$V$6:$AN$6)/$A$16 -> 821565.4127 | Y47: 0 | Z47: =SUMIFS(AutumnProvRep!$H:$H,AutumnProvRep!$A:$A,Data!$A$21,AutumnProvRep!$G:$G,"<>Coventry",AutumnProvRep!$P:$P,Data!Z$17)/$BA$46*$A$46 -> 0 | AA47: =SUMIFS(AutumnProvRep!$H:$H,AutumnProvRep!$A:$A,Data!$A$21,AutumnProvRep!$G:$G,"<>Coventry",AutumnProvRep!$P:$P,Data!AA$17)/$BA$46*$A$46 -> 0 | AB47: =SUMIFS(AutumnProvRep!$H:$H,AutumnProvRep!$A:$A,Data!$A$21,AutumnProvRep!$G:$G,"<>Coventry",AutumnProvRep!$P:$P,Data!AB$17)/$BA$46*$A$46 -> 0 | AC47: =SUMIFS(AutumnProvRep!$H:$H,AutumnProvRep!$A:$A,Data!$A$21,AutumnProvRep!$G:$G,"<>Coventry",AutumnProvRep!$P:$P,Data!AC$17)/$BA$46*$A$46 -> 0 | AD47: =SUMIFS(AutumnProvRep!$H:$H,AutumnProvRep!$A:$A,Data!$A$21,AutumnProvRep!$G:$G,"<>Coventry",AutumnProvRep!$P:$P,Data!AD$17)/$BA$46*$A$46 -> 0 | AE47: =SUMIFS(AutumnProvRep!$H:$H,AutumnProvRep!$A:$A,Data!$A$21,AutumnProvRep!$G:$G,"<>Coventry",AutumnProvRep!$P:$P,Data!AE$17)/$BA$46*$A$46 -> 0 | AF47: =SUMIFS(AutumnProvRep!$H:$H,AutumnProvRep!$A:$A,Data!$A$21,AutumnProvRep!$G:$G,"<>Coventry",AutumnProvRep!$P:$P,Data!AF$17)/$BA$46*$A$46 -> 75 | AG47: =SUMIFS(AutumnProvRep!$H:$H,AutumnProvRep!$A:$A,Data!$A$21,AutumnProvRep!$G:$G,"<>Coventry",AutumnProvRep!$P:$P,Data!AG$17)/$BA$46*$A$46 -> 0 | AH47: =SUMIFS(AutumnProvRep!$H:$H,AutumnProvRep!$A:$A,Data!$A$21,AutumnProvRep!$G:$G,"<>Coventry",AutumnProvRep!$P:$P,Data!AH$17)/$BA$46*$A$46 -> 0 | AI47: =SUMIFS(AutumnProvRep!$H:$H,AutumnProvRep!$A:$A,Data!$A$21,AutumnProvRep!$G:$G,"<>Coventry",AutumnProvRep!$P:$P,Data!AI$17)/$BA$46*$A$46 -> 0 | AJ47: =SUMIFS(AutumnProvRep!$H:$H,AutumnProvRep!$A:$A,Data!$A$21,AutumnProvRep!$G:$G,"<>Coventry",AutumnProvRep!$P:$P,Data!AJ$17)/$BA$46*$A$46 -> 0 | AK47: =SUMIFS(AutumnProvRep!$H:$H,AutumnProvRep!$A:$A,Data!$A$21,AutumnProvRep!$G:$G,"<>Coventry",AutumnProvRep!$P:$P,Data!AK$17)/$BA$46*$A$46 -> 0 | AL47: =SUMIFS(AutumnProvRep!$H:$H,AutumnProvRep!$A:$A,Data!$A$21,AutumnProvRep!$G:$G,"<>Coventry",AutumnProvRep!$P:$P,Data!AL$17)/$BA$46*$A$46 -> 0 | AM47: =SUMIFS(AutumnProvRep!$H:$H,AutumnProvRep!$A:$A,Data!$A$21,AutumnProvRep!$G:$G,"<>Coventry",AutumnProvRep!$P:$P,Data!AM$17)/$BA$46*$A$46 -> 0 | AN47: =SUMIFS(AutumnProvRep!$H:$H,AutumnProvRep!$A:$A,Data!$A$21,AutumnProvRep!$G:$G,"<>Coventry",AutumnProvRep!$P:$P,Data!AN$17)/$BA$46*$A$46 -> 0 | AO47: =SUMIFS(AutumnProvRep!$H:$H,AutumnProvRep!$A:$A,Data!$A$21,AutumnProvRep!$G:$G,"<>Coventry",AutumnProvRep!$P:$P,Data!AO$17)/$BA$46*$A$46 -> 0 | AP47: =SUMIFS(AutumnProvRep!$H:$H,AutumnProvRep!$A:$A,Data!$A$21,AutumnProvRep!$G:$G,"<>Coventry",AutumnProvRep!$P:$P,Data!AP$17)/$BA$46*$A$46 -> 0 | AQ47: =SUMIFS(AutumnProvRep!$H:$H,AutumnProvRep!$A:$A,Data!$A$21,AutumnProvRep!$G:$G,"<>Coventry",AutumnProvRep!$P:$P,Data!AQ$17)/$BA$46*$A$46 -> 0 | AR47: =SUM(Y47:AQ47)/$A$46 -> 1 | AS47: =SUMPRODUCT(Y47:AQ47,$V$6:$AN$6)/$A$16 -> 4142.045622 | AT47: =X47+AS47 -> 825707.4583 | AU47: =AR47+W47 -> 159.1973684 | AV47: =AU47-AW47 -> -0.8026315789 | AW47: =M4 -> 160 | AX47: =[5]Data!$AU35 -> 160.2 | AY47: =E4 -> 160 | BB47: =($M$4-$AU$47)*$A$46 -> 60.19736842 | BC47: =AU47*$A$46 -> 11939.80263 | BD47: =$BB$47/$BC$47*D47 -> 0 | BE47: =$BB$47/$BC$47*E47 -> 0 | BF47: 0 | BG47: 0 | BH47: 0 | BI47: 0 | BJ47: 0.378130424 | BK47: 32.33015125 | BL47: 5.164465528 | BM47: 0.378130424 | BN47: 1.89065212 | BO47: 3.025043392 | BP47: 0 | BQ47: 10.9657823 | BR47: 3.025043392 | BS47: 0 | BT47: 2.094643533 | BU47: =$BB$47/$BC$47*U47 -> 0.567195636 | BV47: 0 | BX47: =$BB$47/$BC$47*Y47 -> 0 | BY47: =$BB$47/$BC$47*Z47 -> 0 | BZ47: 0 | CA47: 0 | CB47: 0 | CC47: 0 | CD47: 0 | CE47: 0.378130424 | CF47: 0 | CG47: 0 | CH47: 0 | CI47: 0 | CJ47: 0 | CK47: 0 | CL47: 0 | CM47: 0 | CN47: 0 | CO47: 0 | CP47: 0
A48: 2 | B48: Kingsbury | C48: =10000/$A$16 -> 50 | D48: 0 | E48: =SUMIFS(AutumnProvRep!$H:$H,AutumnProvRep!$A:$A,Data!$A$22,AutumnProvRep!$G:$G,"Coventry",AutumnProvRep!$P:$P,Data!E$17)/$BA$46*$A$46 -> 0 | F48: =SUMIFS(AutumnProvRep!$H:$H,AutumnProvRep!$A:$A,Data!$A$22,AutumnProvRep!$G:$G,"Coventry",AutumnProvRep!$P:$P,Data!F$17)/$BA$46*$A$46 -> 0 | G48: =SUMIFS(AutumnProvRep!$H:$H,AutumnProvRep!$A:$A,Data!$A$22,AutumnProvRep!$G:$G,"Coventry",AutumnProvRep!$P:$P,Data!G$17)/$BA$46*$A$46 -> 0 | H48: =SUMIFS(AutumnProvRep!$H:$H,AutumnProvRep!$A:$A,Data!$A$22,AutumnProvRep!$G:$G,"Coventry",AutumnProvRep!$P:$P,Data!H$17)/$BA$46*$A$46 -> 0 | I48: =SUMIFS(AutumnProvRep!$H:$H,AutumnProvRep!$A:$A,Data!$A$22,AutumnProvRep!$G:$G,"Coventry",AutumnProvRep!$P:$P,Data!I$17)/$BA$46*$A$46 -> 0 | J48: =SUMIFS(AutumnProvRep!$H:$H,AutumnProvRep!$A:$A,Data!$A$22,AutumnProvRep!$G:$G,"Coventry",AutumnProvRep!$P:$P,Data!J$17)/$BA$46*$A$46 -> 0 | K48: =SUMIFS(AutumnProvRep!$H:$H,AutumnProvRep!$A:$A,Data!$A$22,AutumnProvRep!$G:$G,"Coventry",AutumnProvRep!$P:$P,Data!K$17)/$BA$46*$A$46 -> 4575 | L48: =SUMIFS(AutumnProvRep!$H:$H,AutumnProvRep!$A:$A,Data!$A$22,AutumnProvRep!$G:$G,"Coventry",AutumnProvRep!$P:$P,Data!L$17)/$BA$46*$A$46 -> 375 | M48: =SUMIFS(AutumnProvRep!$H:$H,AutumnProvRep!$A:$A,Data!$A$22,AutumnProvRep!$G:$G,"Coventry",AutumnProvRep!$P:$P,Data!M$17)/$BA$46*$A$46 -> 0 | N48: =SUMIFS(AutumnProvRep!$H:$H,AutumnProvRep!$A:$A,Data!$A$22,AutumnProvRep!$G:$G,"Coventry",AutumnProvRep!$P:$P,Data!N$17)/$BA$46*$A$46 -> 0 | O48: =SUMIFS(AutumnProvRep!$H:$H,AutumnProvRep!$A:$A,Data!$A$22,AutumnProvRep!$G:$G,"Coventry",AutumnProvRep!$P:$P,Data!O$17)/$BA$46*$A$46 -> 250.6578947 | P48: =SUMIFS(AutumnProvRep!$H:$H,AutumnProvRep!$A:$A,Data!$A$22,AutumnProvRep!$G:$G,"Coventry",AutumnProvRep!$P:$P,Data!P$17)/$BA$46*$A$46 -> 0 | Q48: =SUMIFS(AutumnProvRep!$H:$H,AutumnProvRep!$A:$A,Data!$A$22,AutumnProvRep!$G:$G,"Coventry",AutumnProvRep!$P:$P,Data!Q$17)/$BA$46*$A$46 -> 1875 | R48: =SUMIFS(AutumnProvRep!$H:$H,AutumnProvRep!$A:$A,Data!$A$22,AutumnProvRep!$G:$G,"Coventry",AutumnProvRep!$P:$P,Data!R$17)/$BA$46*$A$46 -> 150 | S48: =SUMIFS(AutumnProvRep!$H:$H,AutumnProvRep!$A:$A,Data!$A$22,AutumnProvRep!$G:$G,"Coventry",AutumnProvRep!$P:$P,Data!S$17)/$BA$46*$A$46 -> 0 | T48: =SUMIFS(AutumnProvRep!$H:$H,AutumnProvRep!$A:$A,Data!$A$22,AutumnProvRep!$G:$G,"Coventry",AutumnProvRep!$P:$P,Data!T$17)/$BA$46*$A$46 -> 0 | U48: =SUMIFS(AutumnProvRep!$H:$H,AutumnProvRep!$A:$A,Data!$A$22,AutumnProvRep!$G:$G,"Coventry",AutumnProvRep!$P:$P,Data!U$17)/$BA$46*$A$46 -> 49.34210526 | V48: =SUMIFS(AutumnProvRep!$H:$H,AutumnProvRep!$A:$A,Data!$A$22,AutumnProvRep!$G:$G,"Coventry",AutumnProvRep!$P:$P,Data!V$17)/$BA$46*$A$46 -> 0 | W48: 97 | X48: 495542.348 | Y48: 0 | Z48: =SUMIFS(AutumnProvRep!$H:$H,AutumnProvRep!$A:$A,Data!$A$22,AutumnProvRep!$G:$G,"<>Coventry",AutumnProvRep!$P:$P,Data!Z$17)/$BA$46*$A$46 -> 0 | AA48: =SUMIFS(AutumnProvRep!$H:$H,AutumnProvRep!$A:$A,Data!$A$22,AutumnProvRep!$G:$G,"<>Coventry",AutumnProvRep!$P:$P,Data!AA$17)/$BA$46*$A$46 -> 0 | AB48: =SUMIFS(AutumnProvRep!$H:$H,AutumnProvRep!$A:$A,Data!$A$22,AutumnProvRep!$G:$G,"<>Coventry",AutumnProvRep!$P:$P,Data!AB$17)/$BA$46*$A$46 -> 0 | AC48: =SUMIFS(AutumnProvRep!$H:$H,AutumnProvRep!$A:$A,Data!$A$22,AutumnProvRep!$G:$G,"<>Coventry",AutumnProvRep!$P:$P,Data!AC$17)/$BA$46*$A$46 -> 0 | AD48: =SUMIFS(AutumnProvRep!$H:$H,AutumnProvRep!$A:$A,Data!$A$22,AutumnProvRep!$G:$G,"<>Coventry",AutumnProvRep!$P:$P,Data!AD$17)/$BA$46*$A$46 -> 0 | AE48: =SUMIFS(AutumnProvRep!$H:$H,AutumnProvRep!$A:$A,Data!$A$22,AutumnProvRep!$G:$G,"<>Coventry",AutumnProvRep!$P:$P,Data!AE$17)/$BA$46*$A$46 -> 0 | AF48: =SUMIFS(AutumnProvRep!$H:$H,AutumnProvRep!$A:$A,Data!$A$22,AutumnProvRep!$G:$G,"<>Coventry",AutumnProvRep!$P:$P,Data!AF$17)/$BA$46*$A$46 -> 150 | AG48: =SUMIFS(AutumnProvRep!$H:$H,AutumnProvRep!$A:$A,Data!$A$22,AutumnProvRep!$G:$G,"<>Coventry",AutumnProvRep!$P:$P,Data!AG$17)/$BA$46*$A$46 -> 75 | AH48: =SUMIFS(AutumnProvRep!$H:$H,AutumnProvRep!$A:$A,Data!$A$22,AutumnProvRep!$G:$G,"<>Coventry",AutumnProvRep!$P:$P,Data!AH$17)/$BA$46*$A$46 -> 0 | AI48: =SUMIFS(AutumnProvRep!$H:$H,AutumnProvRep!$A:$A,Data!$A$22,AutumnProvRep!$G:$G,"<>Coventry",AutumnProvRep!$P:$P,Data!AI$17)/$BA$46*$A$46 -> 0 | AJ48: =SUMIFS(AutumnProvRep!$H:$H,AutumnProvRep!$A:$A,Data!$A$22,AutumnProvRep!$G:$G,"<>Coventry",AutumnProvRep!$P:$P,Data!AJ$17)/$BA$46*$A$46 -> 0 | AK48: =SUMIFS(AutumnProvRep!$H:$H,AutumnProvRep!$A:$A,Data!$A$22,AutumnProvRep!$G:$G,"<>Coventry",AutumnProvRep!$P:$P,Data!AK$17)/$BA$46*$A$46 -> 0 | AL48: =SUMIFS(AutumnProvRep!$H:$H,AutumnProvRep!$A:$A,Data!$A$22,AutumnProvRep!$G:$G,"<>Coventry",AutumnProvRep!$P:$P,Data!AL$17)/$BA$46*$A$46 -> 75 | AM48: =SUMIFS(AutumnProvRep!$H:$H,AutumnProvRep!$A:$A,Data!$A$22,AutumnProvRep!$G:$G,"<>Coventry",AutumnProvRep!$P:$P,Data!AM$17)/$BA$46*$A$46 -> 0 | AN48: =SUMIFS(AutumnProvRep!$H:$H,AutumnProvRep!$A:$A,Data!$A$22,AutumnProvRep!$G:$G,"<>Coventry",AutumnProvRep!$P:$P,Data!AN$17)/$BA$46*$A$46 -> 0 | AO48: =SUMIFS(AutumnProvRep!$H:$H,AutumnProvRep!$A:$A,Data!$A$22,AutumnProvRep!$G:$G,"<>Coventry",AutumnProvRep!$P:$P,Data!AO$17)/$BA$46*$A$46 -> 0 | AP48: =SUMIFS(AutumnProvRep!$H:$H,AutumnProvRep!$A:$A,Data!$A$22,AutumnProvRep!$G:$G,"<>Coventry",AutumnProvRep!$P:$P,Data!AP$17)/$BA$46*$A$46 -> 0 | AQ48: =SUMIFS(AutumnProvRep!$H:$H,AutumnProvRep!$A:$A,Data!$A$22,AutumnProvRep!$G:$G,"<>Coventry",AutumnProvRep!$P:$P,Data!AQ$17)/$BA$46*$A$46 -> 0 | AR48: =SUM(Y48:AQ48)/$A$46 -> 4 | AS48: 18846.31135 | AT48: 514388.6593 | AU48: =AR48+W48 -> 101 | AV48: 1 | AW48: 100 | AX48: =[5]Data!$AU36 -> 100.1428571 | AY48: 100 | BB48: =($M$5-$AU$48)*$A$46 -> -75 | BC48: =AU48*$A$46 -> 7575 | BD48: =$BB$48/$BC$48*D48 -> 0 | BE48: =$BB$48/$BC$48*E48 -> 0 | BF48: 0 | BG48: 0 | BH48: 0 | BI48: 0 | BJ48: 0 | BK48: -45.2970297 | BL48: -3.712871287 | BM48: 0 | BN48: 0 | BO48: -2.481761334 | BP48: 0 | BQ48: -18.56435644 | BR48: -1.485148515 | BS48: 0 | BT48: 0 | BU48: -0.4885356957 | BV48: 0 | BX48: =$BB$48/$BC$48*Y48 -> 0 | BY48: =$BB$48/$BC$48*Z48 -> 0 | BZ48: 0 | CA48: 0 | CB48: 0 | CC48: 0 | CD48: 0 | CE48: -1.485148515 | CF48: -0.7425742574 | CG48: 0 | CH48: 0 | CI48: 0 | CJ48: 0 | CK48: -0.7425742574 | CL48: 0 | CM48: 0 | CN48: 0 | CO48: 0 | CP48: 0
A49: 3 | B49: RiverBank | C49: 50 | D49: 0 | E49: =SUMIFS(AutumnProvRep!$H:$H,AutumnProvRep!$A:$A,Data!$A$23,AutumnProvRep!$G:$G,"Coventry",AutumnProvRep!$P:$P,Data!E$17)/$BA$46*$A$46 -> 0 | F49: =SUMIFS(AutumnProvRep!$H:$H,AutumnProvRep!$A:$A,Data!$A$23,AutumnProvRep!$G:$G,"Coventry",AutumnProvRep!$P:$P,Data!F$17)/$BA$46*$A$46 -> 0 | G49: =SUMIFS(AutumnProvRep!$H:$H,AutumnProvRep!$A:$A,Data!$A$23,AutumnProvRep!$G:$G,"Coventry",AutumnProvRep!$P:$P,Data!G$17)/$BA$46*$A$46 -> 750 | H49: =SUMIFS(AutumnProvRep!$H:$H,AutumnProvRep!$A:$A,Data!$A$23,AutumnProvRep!$G:$G,"Coventry",AutumnProvRep!$P:$P,Data!H$17)/$BA$46*$A$46 -> 1125 | I49: =SUMIFS(AutumnProvRep!$H:$H,AutumnProvRep!$A:$A,Data!$A$23,AutumnProvRep!$G:$G,"Coventry",AutumnProvRep!$P:$P,Data!I$17)/$BA$46*$A$46 -> 0 | J49: =SUMIFS(AutumnProvRep!$H:$H,AutumnProvRep!$A:$A,Data!$A$23,AutumnProvRep!$G:$G,"Coventry",AutumnProvRep!$P:$P,Data!J$17)/$BA$46*$A$46 -> 0 | K49: =SUMIFS(AutumnProvRep!$H:$H,AutumnProvRep!$A:$A,Data!$A$23,AutumnProvRep!$G:$G,"Coventry",AutumnProvRep!$P:$P,Data!K$17)/$BA$46*$A$46 -> 5175 | L49: =SUMIFS(AutumnProvRep!$H:$H,AutumnProvRep!$A:$A,Data!$A$23,AutumnProvRep!$G:$G,"Coventry",AutumnProvRep!$P:$P,Data!L$17)/$BA$46*$A$46 -> 4050 | M49: =SUMIFS(AutumnProvRep!$H:$H,AutumnProvRep!$A:$A,Data!$A$23,AutumnProvRep!$G:$G,"Coventry",AutumnProvRep!$P:$P,Data!M$17)/$BA$46*$A$46 -> 150 | N49: =SUMIFS(AutumnProvRep!$H:$H,AutumnProvRep!$A:$A,Data!$A$23,AutumnProvRep!$G:$G,"Coventry",AutumnProvRep!$P:$P,Data!N$17)/$BA$46*$A$46 -> 525 | O49: =SUMIFS(AutumnProvRep!$H:$H,AutumnProvRep!$A:$A,Data!$A$23,AutumnProvRep!$G:$G,"Coventry",AutumnProvRep!$P:$P,Data!O$17)/$BA$46*$A$46 -> 300 | P49: =SUMIFS(AutumnProvRep!$H:$H,AutumnProvRep!$A:$A,Data!$A$23,AutumnProvRep!$G:$G,"Coventry",AutumnProvRep!$P:$P,Data!P$17)/$BA$46*$A$46 -> 225 | Q49: =SUMIFS(AutumnProvRep!$H:$H,AutumnProvRep!$A:$A,Data!$A$23,AutumnProvRep!$G:$G,"Coventry",AutumnProvRep!$P:$P,Data!Q$17)/$BA$46*$A$46 -> 1800 | R49: =SUMIFS(AutumnProvRep!$H:$H,AutumnProvRep!$A:$A,Data!$A$23,AutumnProvRep!$G:$G,"Coventry",AutumnProvRep!$P:$P,Data!R$17)/$BA$46*$A$46 -> 375 | S49: =SUMIFS(AutumnProvRep!$H:$H,AutumnProvRep!$A:$A,Data!$A$23,AutumnProvRep!$G:$G,"Coventry",AutumnProvRep!$P:$P,Data!S$17)/$BA$46*$A$46 -> 0 | T49: =SUMIFS(AutumnProvRep!$H:$H,AutumnProvRep!$A:$A,Data!$A$23,AutumnProvRep!$G:$G,"Coventry",AutumnProvRep!$P:$P,Data!T$17)/$BA$46*$A$46 -> 150 | U49: =SUMIFS(AutumnProvRep!$H:$H,AutumnProvRep!$A:$A,Data!$A$23,AutumnProvRep!$G:$G,"Coventry",AutumnProvRep!$P:$P,Data!U$17)/$BA$46*$A$46 -> 0 | V49: =SUMIFS(AutumnProvRep!$H:$H,AutumnProvRep!$A:$A,Data!$A$23,AutumnProvRep!$G:$G,"Coventry",AutumnProvRep!$P:$P,Data!V$17)/$BA$46*$A$46 -> 0 | W49: 195 | X49: 864735.5542 | Y49: 0 | Z49: =SUMIFS(AutumnProvRep!$H:$H,AutumnProvRep!$A:$A,Data!$A$23,AutumnProvRep!$G:$G,"<>Coventry",AutumnProvRep!$P:$P,Data!Z$17)/$BA$46*$A$46 -> 0 | AA49: =SUMIFS(AutumnProvRep!$H:$H,AutumnProvRep!$A:$A,Data!$A$23,AutumnProvRep!$G:$G,"<>Coventry",AutumnProvRep!$P:$P,Data!AA$17)/$BA$46*$A$46 -> 0 | AB49: =SUMIFS(AutumnProvRep!$H:$H,AutumnProvRep!$A:$A,Data!$A$23,AutumnProvRep!$G:$G,"<>Coventry",AutumnProvRep!$P:$P,Data!AB$17)/$BA$46*$A$46 -> 75 | AC49: =SUMIFS(AutumnProvRep!$H:$H,AutumnProvRep!$A:$A,Data!$A$23,AutumnProvRep!$G:$G,"<>Coventry",AutumnProvRep!$P:$P,Data!AC$17)/$BA$46*$A$46 -> 0 | AD49: =SUMIFS(AutumnProvRep!$H:$H,AutumnProvRep!$A:$A,Data!$A$23,AutumnProvRep!$G:$G,"<>Coventry",AutumnProvRep!$P:$P,Data!AD$17)/$BA$46*$A$46 -> 0 | AE49: =SUMIFS(AutumnProvRep!$H:$H,AutumnProvRep!$A:$A,Data!$A$23,AutumnProvRep!$G:$G,"<>Coventry",AutumnProvRep!$P:$P,Data!AE$17)/$BA$46*$A$46 -> 0 | AF49: =SUMIFS(AutumnProvRep!$H:$H,AutumnProvRep!$A:$A,Data!$A$23,AutumnProvRep!$G:$G,"<>Coventry",AutumnProvRep!$P:$P,Data!AF$17)/$BA$46*$A$46 -> 75 | AG49: =SUMIFS(AutumnProvRep!$H:$H,AutumnProvRep!$A:$A,Data!$A$23,AutumnProvRep!$G:$G,"<>Coventry",AutumnProvRep!$P:$P,Data!AG$17)/$BA$46*$A$46 -> 0 | AH49: =SUMIFS(AutumnProvRep!$H:$H,AutumnProvRep!$A:$A,Data!$A$23,AutumnProvRep!$G:$G,"<>Coventry",AutumnProvRep!$P:$P,Data!AH$17)/$BA$46*$A$46 -> 0 | AI49: =SUMIFS(AutumnProvRep!$H:$H,AutumnProvRep!$A:$A,Data!$A$23,AutumnProvRep!$G:$G,"<>Coventry",AutumnProvRep!$P:$P,Data!AI$17)/$BA$46*$A$46 -> 0 | AJ49: =SUMIFS(AutumnProvRep!$H:$H,AutumnProvRep!$A:$A,Data!$A$23,AutumnProvRep!$G:$G,"<>Coventry",AutumnProvRep!$P:$P,Data!AJ$17)/$BA$46*$A$46 -> 0 | AK49: =SUMIFS(AutumnProvRep!$H:$H,AutumnProvRep!$A:$A,Data!$A$23,AutumnProvRep!$G:$G,"<>Coventry",AutumnProvRep!$P:$P,Data!AK$17)/$BA$46*$A$46 -> 0 | AL49: =SUMIFS(AutumnProvRep!$H:$H,AutumnProvRep!$A:$A,Data!$A$23,AutumnProvRep!$G:$G,"<>Coventry",AutumnProvRep!$P:$P,Data!AL$17)/$BA$46*$A$46 -> 0 | AM49: =SUMIFS(AutumnProvRep!$H:$H,AutumnProvRep!$A:$A,Data!$A$23,AutumnProvRep!$G:$G,"<>Coventry",AutumnProvRep!$P:$P,Data!AM$17)/$BA$46*$A$46 -> 0 | AN49: =SUMIFS(AutumnProvRep!$H:$H,AutumnProvRep!$A:$A,Data!$A$23,AutumnProvRep!$G:$G,"<>Coventry",AutumnProvRep!$P:$P,Data!AN$17)/$BA$46*$A$46 -> 0 | AO49: =SUMIFS(AutumnProvRep!$H:$H,AutumnProvRep!$A:$A,Data!$A$23,AutumnProvRep!$G:$G,"<>Coventry",AutumnProvRep!$P:$P,Data!AO$17)/$BA$46*$A$46 -> 0 | AP49: =SUMIFS(AutumnProvRep!$H:$H,AutumnProvRep!$A:$A,Data!$A$23,AutumnProvRep!$G:$G,"<>Coventry",AutumnProvRep!$P:$P,Data!AP$17)/$BA$46*$A$46 -> 0 | AQ49: =SUMIFS(AutumnProvRep!$H:$H,AutumnProvRep!$A:$A,Data!$A$23,AutumnProvRep!$G:$G,"<>Coventry",AutumnProvRep!$P:$P,Data!AQ$17)/$BA$46*$A$46 -> 0 | AR49: 2 | AS49: 5384.659752 | AT49: 870120.214 | AU49: 197 | AV49: -3 | AW49: 200 | AX49: =[5]Data!$AU37 -> 198.3142857 | AY49: 200 | BB49: =($M$6-$AU$49)*$A$46 -> 225 | BC49: 14775 | BD49: =$BB$49/$BC$49*D49 -> 0 | BE49: =$BB$49/$BC$49*E49 -> 0 | BF49: 0 | BG49: 11.4213198 | BH49: 17.1319797 | BI49: 0 | BJ49: 0 | BK49: 78.8071066 | BL49: 61.6751269 | BM49: 2.284263959 | BN49: 7.994923858 | BO49: 4.568527919 | BP49: 3.426395939 | BQ49: 27.41116751 | BR49: 5.710659898 | BS49: 0 | BT49: 2.284263959 | BU49: 0 | BV49: 0 | BX49: =$BB$49/$BC$49*Y49 -> 0 | BY49: =$BB$49/$BC$49*Z49 -> 0 | BZ49: 0 | CA49: 1.14213198 | CB49: 0 | CC49: 0 | CD49: 0 | CE49: 1.14213198 | CF49: 0 | CG49: 0 | CH49: 0 | CI49: 0 | CJ49: 0 | CK49: 0 | CL49: 0 | CM49: 0 | CN49: 0 | CO49: 0 | CP49: 0
A50: 4 | B50: Corley | C50: 50 | D50: 0 | E50: =SUMIFS(AutumnProvRep!$H:$H,AutumnProvRep!$A:$A,Data!$A$24,AutumnProvRep!$G:$G,"Coventry",AutumnProvRep!$P:$P,Data!E$17)/$BA$46*$A$46 -> 0 | F50: =SUMIFS(AutumnProvRep!$H:$H,AutumnProvRep!$A:$A,Data!$A$24,AutumnProvRep!$G:$G,"Coventry",AutumnProvRep!$P:$P,Data!F$17)/$BA$46*$A$46 -> 0 | G50: =SUMIFS(AutumnProvRep!$H:$H,AutumnProvRep!$A:$A,Data!$A$24,AutumnProvRep!$G:$G,"Coventry",AutumnProvRep!$P:$P,Data!G$17)/$BA$46*$A$46 -> 0 | H50: =SUMIFS(AutumnProvRep!$H:$H,AutumnProvRep!$A:$A,Data!$A$24,AutumnProvRep!$G:$G,"Coventry",AutumnProvRep!$P:$P,Data!H$17)/$BA$46*$A$46 -> 0 | I50: =SUMIFS(AutumnProvRep!$H:$H,AutumnProvRep!$A:$A,Data!$A$24,AutumnProvRep!$G:$G,"Coventry",AutumnProvRep!$P:$P,Data!I$17)/$BA$46*$A$46 -> 0 | J50: =SUMIFS(AutumnProvRep!$H:$H,AutumnProvRep!$A:$A,Data!$A$24,AutumnProvRep!$G:$G,"Coventry",AutumnProvRep!$P:$P,Data!J$17)/$BA$46*$A$46 -> 0 | K50: =SUMIFS(AutumnProvRep!$H:$H,AutumnProvRep!$A:$A,Data!$A$24,AutumnProvRep!$G:$G,"Coventry",AutumnProvRep!$P:$P,Data!K$17)/$BA$46*$A$46 -> 8325 | L50: =SUMIFS(AutumnProvRep!$H:$H,AutumnProvRep!$A:$A,Data!$A$24,AutumnProvRep!$G:$G,"Coventry",AutumnProvRep!$P:$P,Data!L$17)/$BA$46*$A$46 -> 225 | M50: =SUMIFS(AutumnProvRep!$H:$H,AutumnProvRep!$A:$A,Data!$A$24,AutumnProvRep!$G:$G,"Coventry",AutumnProvRep!$P:$P,Data!M$17)/$BA$46*$A$46 -> 395.7236842 | N50: =SUMIFS(AutumnProvRep!$H:$H,AutumnProvRep!$A:$A,Data!$A$24,AutumnProvRep!$G:$G,"Coventry",AutumnProvRep!$P:$P,Data!N$17)/$BA$46*$A$46 -> 0 | O50: =SUMIFS(AutumnProvRep!$H:$H,AutumnProvRep!$A:$A,Data!$A$24,AutumnProvRep!$G:$G,"Coventry",AutumnProvRep!$P:$P,Data!O$17)/$BA$46*$A$46 -> 279.2763158 | P50: =SUMIFS(AutumnProvRep!$H:$H,AutumnProvRep!$A:$A,Data!$A$24,AutumnProvRep!$G:$G,"Coventry",AutumnProvRep!$P:$P,Data!P$17)/$BA$46*$A$46 -> 0 | Q50: =SUMIFS(AutumnProvRep!$H:$H,AutumnProvRep!$A:$A,Data!$A$24,AutumnProvRep!$G:$G,"Coventry",AutumnProvRep!$P:$P,Data!Q$17)/$BA$46*$A$46 -> 1275 | R50: =SUMIFS(AutumnProvRep!$H:$H,AutumnProvRep!$A:$A,Data!$A$24,AutumnProvRep!$G:$G,"Coventry",AutumnProvRep!$P:$P,Data!R$17)/$BA$46*$A$46 -> 0 | S50: =SUMIFS(AutumnProvRep!$H:$H,AutumnProvRep!$A:$A,Data!$A$24,AutumnProvRep!$G:$G,"Coventry",AutumnProvRep!$P:$P,Data!S$17)/$BA$46*$A$46 -> 0 | T50: =SUMIFS(AutumnProvRep!$H:$H,AutumnProvRep!$A:$A,Data!$A$24,AutumnProvRep!$G:$G,"Coventry",AutumnProvRep!$P:$P,Data!T$17)/$BA$46*$A$46 -> 0 | U50: =SUMIFS(AutumnProvRep!$H:$H,AutumnProvRep!$A:$A,Data!$A$24,AutumnProvRep!$G:$G,"Coventry",AutumnProvRep!$P:$P,Data!U$17)/$BA$46*$A$46 -> 0 | V50: =SUMIFS(AutumnProvRep!$H:$H,AutumnProvRep!$A:$A,Data!$A$24,AutumnProvRep!$G:$G,"Coventry",AutumnProvRep!$P:$P,Data!V$17)/$BA$46*$A$46 -> 0 | W50: 140 | X50: 647398.4512 | Y50: 0 | Z50: =SUMIFS(AutumnProvRep!$H:$H,AutumnProvRep!$A:$A,Data!$A$24,AutumnProvRep!$G:$G,"<>Coventry",AutumnProvRep!$P:$P,Data!Z$17)/$BA$46*$A$46 -> 0 | AA50: =SUMIFS(AutumnProvRep!$H:$H,AutumnProvRep!$A:$A,Data!$A$24,AutumnProvRep!$G:$G,"<>Coventry",AutumnProvRep!$P:$P,Data!AA$17)/$BA$46*$A$46 -> 0 | AB50: =SUMIFS(AutumnProvRep!$H:$H,AutumnProvRep!$A:$A,Data!$A$24,AutumnProvRep!$G:$G,"<>Coventry",AutumnProvRep!$P:$P,Data!AB$17)/$BA$46*$A$46 -> 0 | AC50: =SUMIFS(AutumnProvRep!$H:$H,AutumnProvRep!$A:$A,Data!$A$24,AutumnProvRep!$G:$G,"<>Coventry",AutumnProvRep!$P:$P,Data!AC$17)/$BA$46*$A$46 -> 0 | AD50: =SUMIFS(AutumnProvRep!$H:$H,AutumnProvRep!$A:$A,Data!$A$24,AutumnProvRep!$G:$G,"<>Coventry",AutumnProvRep!$P:$P,Data!AD$17)/$BA$46*$A$46 -> 0 | AE50: =SUMIFS(AutumnProvRep!$H:$H,AutumnProvRep!$A:$A,Data!$A$24,AutumnProvRep!$G:$G,"<>Coventry",AutumnProvRep!$P:$P,Data!AE$17)/$BA$46*$A$46 -> 0 | AF50: =SUMIFS(AutumnProvRep!$H:$H,AutumnProvRep!$A:$A,Data!$A$24,AutumnProvRep!$G:$G,"<>Coventry",AutumnProvRep!$P:$P,Data!AF$17)/$BA$46*$A$46 -> 75 | AG50: =SUMIFS(AutumnProvRep!$H:$H,AutumnProvRep!$A:$A,Data!$A$24,AutumnProvRep!$G:$G,"<>Coventry",AutumnProvRep!$P:$P,Data!AG$17)/$BA$46*$A$46 -> 0 | AH50: =SUMIFS(AutumnProvRep!$H:$H,AutumnProvRep!$A:$A,Data!$A$24,AutumnProvRep!$G:$G,"<>Coventry",AutumnProvRep!$P:$P,Data!AH$17)/$BA$46*$A$46 -> 0 | AI50: =SUMIFS(AutumnProvRep!$H:$H,AutumnProvRep!$A:$A,Data!$A$24,AutumnProvRep!$G:$G,"<>Coventry",AutumnProvRep!$P:$P,Data!AI$17)/$BA$46*$A$46 -> 0 | AJ50: =SUMIFS(AutumnProvRep!$H:$H,AutumnProvRep!$A:$A,Data!$A$24,AutumnProvRep!$G:$G,"<>Coventry",AutumnProvRep!$P:$P,Data!AJ$17)/$BA$46*$A$46 -> 0 | AK50: =SUMIFS(AutumnProvRep!$H:$H,AutumnProvRep!$A:$A,Data!$A$24,AutumnProvRep!$G:$G,"<>Coventry",AutumnProvRep!$P:$P,Data!AK$17)/$BA$46*$A$46 -> 0 | AL50: =SUMIFS(AutumnProvRep!$H:$H,AutumnProvRep!$A:$A,Data!$A$24,AutumnProvRep!$G:$G,"<>Coventry",AutumnProvRep!$P:$P,Data!AL$17)/$BA$46*$A$46 -> 0 | AM50: =SUMIFS(AutumnProvRep!$H:$H,AutumnProvRep!$A:$A,Data!$A$24,AutumnProvRep!$G:$G,"<>Coventry",AutumnProvRep!$P:$P,Data!AM$17)/$BA$46*$A$46 -> 0 | AN50: =SUMIFS(AutumnProvRep!$H:$H,AutumnProvRep!$A:$A,Data!$A$24,AutumnProvRep!$G:$G,"<>Coventry",AutumnProvRep!$P:$P,Data!AN$17)/$BA$46*$A$46 -> 0 | AO50: =SUMIFS(AutumnProvRep!$H:$H,AutumnProvRep!$A:$A,Data!$A$24,AutumnProvRep!$G:$G,"<>Coventry",AutumnProvRep!$P:$P,Data!AO$17)/$BA$46*$A$46 -> 0 | AP50: =SUMIFS(AutumnProvRep!$H:$H,AutumnProvRep!$A:$A,Data!$A$24,AutumnProvRep!$G:$G,"<>Coventry",AutumnProvRep!$P:$P,Data!AP$17)/$BA$46*$A$46 -> 0 | AQ50: =SUMIFS(AutumnProvRep!$H:$H,AutumnProvRep!$A:$A,Data!$A$24,AutumnProvRep!$G:$G,"<>Coventry",AutumnProvRep!$P:$P,Data!AQ$17)/$BA$46*$A$46 -> 0 | AR50: 1 | AS50: 4142.045622 | AT50: 651540.4968 | AU50: 141 | AV50: -14 | AW50: 155 | AX50: =[5]Data!$AU38 -> 148.6511628 | AY50: 140 | BB50: =($M$7-$AU$50)*$A$46 -> 1050 | BC50: 10575 | BD50: =$BB$50/$BC$50*D50 -> 0 | BE50: =$BB$50/$BC$50*E50 -> 0 | BF50: 0 | BG50: 0 | BH50: 0 | BI50: 0 | BJ50: 0 | BK50: 826.5957447 | BL50: 22.34042553 | BM50: 39.29171333 | BN50: 0 | BO50: 27.72956327 | BP50: 0 | BQ50: 126.5957447 | BR50: 0 | BS50: 0 | BT50: 0 | BU50: 0 | BV50: 0 | BX50: =$BB$50/$BC$50*Y50 -> 0 | BY50: =$BB$50/$BC$50*Z50 -> 0 | BZ50: 0 | CA50: 0 | CB50: 0 | CC50: 0 | CD50: 0 | CE50: 7.446808511 | CF50: 0 | CG50: 0 | CH50: 0 | CI50: 0 | CJ50: 0 | CK50: 0 | CL50: 0 | CM50: 0 | CN50: 0 | CO50: 0 | CP50: 0
A51: 5 | B51: Tiverton | C51: 50 | D51: 0 | E51: =SUMIFS(AutumnProvRep!$H:$H,AutumnProvRep!$A:$A,Data!$A$25,AutumnProvRep!$G:$G,"Coventry",AutumnProvRep!$P:$P,Data!E$17)/$BA$46*$A$46 -> 0 | F51: =SUMIFS(AutumnProvRep!$H:$H,AutumnProvRep!$A:$A,Data!$A$25,AutumnProvRep!$G:$G,"Coventry",AutumnProvRep!$P:$P,Data!F$17)/$BA$46*$A$46 -> 0 | G51: =SUMIFS(AutumnProvRep!$H:$H,AutumnProvRep!$A:$A,Data!$A$25,AutumnProvRep!$G:$G,"Coventry",AutumnProvRep!$P:$P,Data!G$17)/$BA$46*$A$46 -> 0 | H51: =SUMIFS(AutumnProvRep!$H:$H,AutumnProvRep!$A:$A,Data!$A$25,AutumnProvRep!$G:$G,"Coventry",AutumnProvRep!$P:$P,Data!H$17)/$BA$46*$A$46 -> 0 | I51: =SUMIFS(AutumnProvRep!$H:$H,AutumnProvRep!$A:$A,Data!$A$25,AutumnProvRep!$G:$G,"Coventry",AutumnProvRep!$P:$P,Data!I$17)/$BA$46*$A$46 -> 0 | J51: =SUMIFS(AutumnProvRep!$H:$H,AutumnProvRep!$A:$A,Data!$A$25,AutumnProvRep!$G:$G,"Coventry",AutumnProvRep!$P:$P,Data!J$17)/$BA$46*$A$46 -> 0 | K51: =SUMIFS(AutumnProvRep!$H:$H,AutumnProvRep!$A:$A,Data!$A$25,AutumnProvRep!$G:$G,"Coventry",AutumnProvRep!$P:$P,Data!K$17)/$BA$46*$A$46 -> 4788.157895 | L51: =SUMIFS(AutumnProvRep!$H:$H,AutumnProvRep!$A:$A,Data!$A$25,AutumnProvRep!$G:$G,"Coventry",AutumnProvRep!$P:$P,Data!L$17)/$BA$46*$A$46 -> 975 | M51: =SUMIFS(AutumnProvRep!$H:$H,AutumnProvRep!$A:$A,Data!$A$25,AutumnProvRep!$G:$G,"Coventry",AutumnProvRep!$P:$P,Data!M$17)/$BA$46*$A$46 -> 0 | N51: =SUMIFS(AutumnProvRep!$H:$H,AutumnProvRep!$A:$A,Data!$A$25,AutumnProvRep!$G:$G,"Coventry",AutumnProvRep!$P:$P,Data!N$17)/$BA$46*$A$46 -> 450 | O51: =SUMIFS(AutumnProvRep!$H:$H,AutumnProvRep!$A:$A,Data!$A$25,AutumnProvRep!$G:$G,"Coventry",AutumnProvRep!$P:$P,Data!O$17)/$BA$46*$A$46 -> 450 | P51: =SUMIFS(AutumnProvRep!$H:$H,AutumnProvRep!$A:$A,Data!$A$25,AutumnProvRep!$G:$G,"Coventry",AutumnProvRep!$P:$P,Data!P$17)/$BA$46*$A$46 -> 0 | Q51: =SUMIFS(AutumnProvRep!$H:$H,AutumnProvRep!$A:$A,Data!$A$25,AutumnProvRep!$G:$G,"Coventry",AutumnProvRep!$P:$P,Data!Q$17)/$BA$46*$A$46 -> 1259.210526 | R51: =SUMIFS(AutumnProvRep!$H:$H,AutumnProvRep!$A:$A,Data!$A$25,AutumnProvRep!$G:$G,"Coventry",AutumnProvRep!$P:$P,Data!R$17)/$BA$46*$A$46 -> 525 | S51: =SUMIFS(AutumnProvRep!$H:$H,AutumnProvRep!$A:$A,Data!$A$25,AutumnProvRep!$G:$G,"Coventry",AutumnProvRep!$P:$P,Data!S$17)/$BA$46*$A$46 -> 0 | T51: =SUMIFS(AutumnProvRep!$H:$H,AutumnProvRep!$A:$A,Data!$A$25,AutumnProvRep!$G:$G,"Coventry",AutumnProvRep!$P:$P,Data!T$17)/$BA$46*$A$46 -> 300 | U51: =SUMIFS(AutumnProvRep!$H:$H,AutumnProvRep!$A:$A,Data!$A$25,AutumnProvRep!$G:$G,"Coventry",AutumnProvRep!$P:$P,Data!U$17)/$BA$46*$A$46 -> 0 | V51: =SUMIFS(AutumnProvRep!$H:$H,AutumnProvRep!$A:$A,Data!$A$25,AutumnProvRep!$G:$G,"Coventry",AutumnProvRep!$P:$P,Data!V$17)/$BA$46*$A$46 -> 0 | W51: 116.6315789 | X51: 582081.634 | Y51: 0 | Z51: =SUMIFS(AutumnProvRep!$H:$H,AutumnProvRep!$A:$A,Data!$A$25,AutumnProvRep!$G:$G,"<>Coventry",AutumnProvRep!$P:$P,Data!Z$17)/$BA$46*$A$46 -> 0 | AA51: =SUMIFS(AutumnProvRep!$H:$H,AutumnProvRep!$A:$A,Data!$A$25,AutumnProvRep!$G:$G,"<>Coventry",AutumnProvRep!$P:$P,Data!AA$17)/$BA$46*$A$46 -> 0 | AB51: =SUMIFS(AutumnProvRep!$H:$H,AutumnProvRep!$A:$A,Data!$A$25,AutumnProvRep!$G:$G,"<>Coventry",AutumnProvRep!$P:$P,Data!AB$17)/$BA$46*$A$46 -> 0 | AC51: =SUMIFS(AutumnProvRep!$H:$H,AutumnProvRep!$A:$A,Data!$A$25,AutumnProvRep!$G:$G,"<>Coventry",AutumnProvRep!$P:$P,Data!AC$17)/$BA$46*$A$46 -> 0 | AD51: =SUMIFS(AutumnProvRep!$H:$H,AutumnProvRep!$A:$A,Data!$A$25,AutumnProvRep!$G:$G,"<>Coventry",AutumnProvRep!$P:$P,Data!AD$17)/$BA$46*$A$46 -> 0 | AE51: =SUMIFS(AutumnProvRep!$H:$H,AutumnProvRep!$A:$A,Data!$A$25,AutumnProvRep!$G:$G,"<>Coventry",AutumnProvRep!$P:$P,Data!AE$17)/$BA$46*$A$46 -> 0 | AF51: =SUMIFS(AutumnProvRep!$H:$H,AutumnProvRep!$A:$A,Data!$A$25,AutumnProvRep!$G:$G,"<>Coventry",AutumnProvRep!$P:$P,Data!AF$17)/$BA$46*$A$46 -> 75 | AG51: =SUMIFS(AutumnProvRep!$H:$H,AutumnProvRep!$A:$A,Data!$A$25,AutumnProvRep!$G:$G,"<>Coventry",AutumnProvRep!$P:$P,Data!AG$17)/$BA$46*$A$46 -> 0 | AH51: =SUMIFS(AutumnProvRep!$H:$H,AutumnProvRep!$A:$A,Data!$A$25,AutumnProvRep!$G:$G,"<>Coventry",AutumnProvRep!$P:$P,Data!AH$17)/$BA$46*$A$46 -> 0 | AI51: =SUMIFS(AutumnProvRep!$H:$H,AutumnProvRep!$A:$A,Data!$A$25,AutumnProvRep!$G:$G,"<>Coventry",AutumnProvRep!$P:$P,Data!AI$17)/$BA$46*$A$46 -> 0 | AJ51: =SUMIFS(AutumnProvRep!$H:$H,AutumnProvRep!$A:$A,Data!$A$25,AutumnProvRep!$G:$G,"<>Coventry",AutumnProvRep!$P:$P,Data!AJ$17)/$BA$46*$A$46 -> 0 | AK51: =SUMIFS(AutumnProvRep!$H:$H,AutumnProvRep!$A:$A,Data!$A$25,AutumnProvRep!$G:$G,"<>Coventry",AutumnProvRep!$P:$P,Data!AK$17)/$BA$46*$A$46 -> 0 | AL51: =SUMIFS(AutumnProvRep!$H:$H,AutumnProvRep!$A:$A,Data!$A$25,AutumnProvRep!$G:$G,"<>Coventry",AutumnProvRep!$P:$P,Data!AL$17)/$BA$46*$A$46 -> 75 | AM51: =SUMIFS(AutumnProvRep!$H:$H,AutumnProvRep!$A:$A,Data!$A$25,AutumnProvRep!$G:$G,"<>Coventry",AutumnProvRep!$P:$P,Data!AM$17)/$BA$46*$A$46 -> 0 | AN51: =SUMIFS(AutumnProvRep!$H:$H,AutumnProvRep!$A:$A,Data!$A$25,AutumnProvRep!$G:$G,"<>Coventry",AutumnProvRep!$P:$P,Data!AN$17)/$BA$46*$A$46 -> 0 | AO51: =SUMIFS(AutumnProvRep!$H:$H,AutumnProvRep!$A:$A,Data!$A$25,AutumnProvRep!$G:$G,"<>Coventry",AutumnProvRep!$P:$P,Data!AO$17)/$BA$46*$A$46 -> 0 | AP51: =SUMIFS(AutumnProvRep!$H:$H,AutumnProvRep!$A:$A,Data!$A$25,AutumnProvRep!$G:$G,"<>Coventry",AutumnProvRep!$P:$P,Data!AP$17)/$BA$46*$A$46 -> 0 | AQ51: =SUMIFS(AutumnProvRep!$H:$H,AutumnProvRep!$A:$A,Data!$A$25,AutumnProvRep!$G:$G,"<>Coventry",AutumnProvRep!$P:$P,Data!AQ$17)/$BA$46*$A$46 -> 0 | AR51: 2 | AS51: 10872.87142 | AT51: 592954.5054 | AU51: 118.6315789 | AV51: -2.368421053 | AW51: 121 | AX51: =[5]Data!$AU39 -> 119.0535714 | AY51: 118 | BB51: =($M$8-$AU$51)*$A$46 -> 177.6315789 | BC51: 8897.368421 | BD51: =$BB$51/$BC$51*D51 -> 0 | BE51: =$BB$51/$BC$51*E51 -> 0 | BF51: 0 | BG51: 0 | BH51: 0 | BI51: 0 | BJ51: 0 | BK51: 95.5932144 | BL51: 19.46539485 | BM51: 0 | BN51: 8.984028394 | BO51: 8.984028394 | BP51: 0 | BQ51: 25.13951805 | BR51: 10.48136646 | BS51: 0 | BT51: 5.989352263 | BU51: 0 | BV51: 0 | BX51: =$BB$51/$BC$51*Y51 -> 0 | BY51: =$BB$51/$BC$51*Z51 -> 0 | BZ51: 0 | CA51: 0 | CB51: 0 | CC51: 0 | CD51: 0 | CE51: 1.497338066 | CF51: 0 | CG51: 0 | CH51: 0 | CI51: 0 | CJ51: 0 | CK51: 1.497338066 | CL51: 0 | CM51: 0 | CN51: 0 | CO51: 0 | CP51: 0
A52: 6 | B52: Baginton Fields | C52: 50 | D52: 0 | E52: =SUMIFS(AutumnProvRep!$H:$H,AutumnProvRep!$A:$A,Data!$A$26,AutumnProvRep!$G:$G,"Coventry",AutumnProvRep!$P:$P,Data!E$17)/$BA$46*$A$46 -> 0 | F52: =SUMIFS(AutumnProvRep!$H:$H,AutumnProvRep!$A:$A,Data!$A$26,AutumnProvRep!$G:$G,"Coventry",AutumnProvRep!$P:$P,Data!F$17)/$BA$46*$A$46 -> 0 | G52: =SUMIFS(AutumnProvRep!$H:$H,AutumnProvRep!$A:$A,Data!$A$26,AutumnProvRep!$G:$G,"Coventry",AutumnProvRep!$P:$P,Data!G$17)/$BA$46*$A$46 -> 0 | H52: =SUMIFS(AutumnProvRep!$H:$H,AutumnProvRep!$A:$A,Data!$A$26,AutumnProvRep!$G:$G,"Coventry",AutumnProvRep!$P:$P,Data!H$17)/$BA$46*$A$46 -> 0 | I52: =SUMIFS(AutumnProvRep!$H:$H,AutumnProvRep!$A:$A,Data!$A$26,AutumnProvRep!$G:$G,"Coventry",AutumnProvRep!$P:$P,Data!I$17)/$BA$46*$A$46 -> 0 | J52: =SUMIFS(AutumnProvRep!$H:$H,AutumnProvRep!$A:$A,Data!$A$26,AutumnProvRep!$G:$G,"Coventry",AutumnProvRep!$P:$P,Data!J$17)/$BA$46*$A$46 -> 0 | K52: =SUMIFS(AutumnProvRep!$H:$H,AutumnProvRep!$A:$A,Data!$A$26,AutumnProvRep!$G:$G,"Coventry",AutumnProvRep!$P:$P,Data!K$17)/$BA$46*$A$46 -> 2206.578947 | L52: =SUMIFS(AutumnProvRep!$H:$H,AutumnProvRep!$A:$A,Data!$A$26,AutumnProvRep!$G:$G,"Coventry",AutumnProvRep!$P:$P,Data!L$17)/$BA$46*$A$46 -> 3119.407895 | M52: =SUMIFS(AutumnProvRep!$H:$H,AutumnProvRep!$A:$A,Data!$A$26,AutumnProvRep!$G:$G,"Coventry",AutumnProvRep!$P:$P,Data!M$17)/$BA$46*$A$46 -> 0 | N52: =SUMIFS(AutumnProvRep!$H:$H,AutumnProvRep!$A:$A,Data!$A$26,AutumnProvRep!$G:$G,"Coventry",AutumnProvRep!$P:$P,Data!N$17)/$BA$46*$A$46 -> 75 | O52: =SUMIFS(AutumnProvRep!$H:$H,AutumnProvRep!$A:$A,Data!$A$26,AutumnProvRep!$G:$G,"Coventry",AutumnProvRep!$P:$P,Data!O$17)/$BA$46*$A$46 -> 677.9605263 | P52: =SUMIFS(AutumnProvRep!$H:$H,AutumnProvRep!$A:$A,Data!$A$26,AutumnProvRep!$G:$G,"Coventry",AutumnProvRep!$P:$P,Data!P$17)/$BA$46*$A$46 -> 0 | Q52: =SUMIFS(AutumnProvRep!$H:$H,AutumnProvRep!$A:$A,Data!$A$26,AutumnProvRep!$G:$G,"Coventry",AutumnProvRep!$P:$P,Data!Q$17)/$BA$46*$A$46 -> 1990.460526 | R52: =SUMIFS(AutumnProvRep!$H:$H,AutumnProvRep!$A:$A,Data!$A$26,AutumnProvRep!$G:$G,"Coventry",AutumnProvRep!$P:$P,Data!R$17)/$BA$46*$A$46 -> 900 | S52: =SUMIFS(AutumnProvRep!$H:$H,AutumnProvRep!$A:$A,Data!$A$26,AutumnProvRep!$G:$G,"Coventry",AutumnProvRep!$P:$P,Data!S$17)/$BA$46*$A$46 -> 0 | T52: =SUMIFS(AutumnProvRep!$H:$H,AutumnProvRep!$A:$A,Data!$A$26,AutumnProvRep!$G:$G,"Coventry",AutumnProvRep!$P:$P,Data!T$17)/$BA$46*$A$46 -> 150 | U52: =SUMIFS(AutumnProvRep!$H:$H,AutumnProvRep!$A:$A,Data!$A$26,AutumnProvRep!$G:$G,"Coventry",AutumnProvRep!$P:$P,Data!U$17)/$BA$46*$A$46 -> 0 | V52: =SUMIFS(AutumnProvRep!$H:$H,AutumnProvRep!$A:$A,Data!$A$26,AutumnProvRep!$G:$G,"Coventry",AutumnProvRep!$P:$P,Data!V$17)/$BA$46*$A$46 -> 0 | W52: 121.5921053 | X52: 635507.5266 | Y52: 0 | Z52: =SUMIFS(AutumnProvRep!$H:$H,AutumnProvRep!$A:$A,Data!$A$26,AutumnProvRep!$G:$G,"<>Coventry",AutumnProvRep!$P:$P,Data!Z$17)/$BA$46*$A$46 -> 0 | AA52: =SUMIFS(AutumnProvRep!$H:$H,AutumnProvRep!$A:$A,Data!$A$26,AutumnProvRep!$G:$G,"<>Coventry",AutumnProvRep!$P:$P,Data!AA$17)/$BA$46*$A$46 -> 0 | AB52: =SUMIFS(AutumnProvRep!$H:$H,AutumnProvRep!$A:$A,Data!$A$26,AutumnProvRep!$G:$G,"<>Coventry",AutumnProvRep!$P:$P,Data!AB$17)/$BA$46*$A$46 -> 0 | AC52: =SUMIFS(AutumnProvRep!$H:$H,AutumnProvRep!$A:$A,Data!$A$26,AutumnProvRep!$G:$G,"<>Coventry",AutumnProvRep!$P:$P,Data!AC$17)/$BA$46*$A$46 -> 0 | AD52: =SUMIFS(AutumnProvRep!$H:$H,AutumnProvRep!$A:$A,Data!$A$26,AutumnProvRep!$G:$G,"<>Coventry",AutumnProvRep!$P:$P,Data!AD$17)/$BA$46*$A$46 -> 0 | AE52: =SUMIFS(AutumnProvRep!$H:$H,AutumnProvRep!$A:$A,Data!$A$26,AutumnProvRep!$G:$G,"<>Coventry",AutumnProvRep!$P:$P,Data!AE$17)/$BA$46*$A$46 -> 0 | AF52: =SUMIFS(AutumnProvRep!$H:$H,AutumnProvRep!$A:$A,Data!$A$26,AutumnProvRep!$G:$G,"<>Coventry",AutumnProvRep!$P:$P,Data!AF$17)/$BA$46*$A$46 -> 0 | AG52: =SUMIFS(AutumnProvRep!$H:$H,AutumnProvRep!$A:$A,Data!$A$26,AutumnProvRep!$G:$G,"<>Coventry",AutumnProvRep!$P:$P,Data!AG$17)/$BA$46*$A$46 -> 150 | AH52: =SUMIFS(AutumnProvRep!$H:$H,AutumnProvRep!$A:$A,Data!$A$26,AutumnProvRep!$G:$G,"<>Coventry",AutumnProvRep!$P:$P,Data!AH$17)/$BA$46*$A$46 -> 0 | AI52: =SUMIFS(AutumnProvRep!$H:$H,AutumnProvRep!$A:$A,Data!$A$26,AutumnProvRep!$G:$G,"<>Coventry",AutumnProvRep!$P:$P,Data!AI$17)/$BA$46*$A$46 -> 0 | AJ52: =SUMIFS(AutumnProvRep!$H:$H,AutumnProvRep!$A:$A,Data!$A$26,AutumnProvRep!$G:$G,"<>Coventry",AutumnProvRep!$P:$P,Data!AJ$17)/$BA$46*$A$46 -> 0 | AK52: =SUMIFS(AutumnProvRep!$H:$H,AutumnProvRep!$A:$A,Data!$A$26,AutumnProvRep!$G:$G,"<>Coventry",AutumnProvRep!$P:$P,Data!AK$17)/$BA$46*$A$46 -> 0 | AL52: =SUMIFS(AutumnProvRep!$H:$H,AutumnProvRep!$A:$A,Data!$A$26,AutumnProvRep!$G:$G,"<>Coventry",AutumnProvRep!$P:$P,Data!AL$17)/$BA$46*$A$46 -> 0 | AM52: =SUMIFS(AutumnProvRep!$H:$H,AutumnProvRep!$A:$A,Data!$A$26,AutumnProvRep!$G:$G,"<>Coventry",AutumnProvRep!$P:$P,Data!AM$17)/$BA$46*$A$46 -> 0 | AN52: =SUMIFS(AutumnProvRep!$H:$H,AutumnProvRep!$A:$A,Data!$A$26,AutumnProvRep!$G:$G,"<>Coventry",AutumnProvRep!$P:$P,Data!AN$17)/$BA$46*$A$46 -> 0 | AO52: =SUMIFS(AutumnProvRep!$H:$H,AutumnProvRep!$A:$A,Data!$A$26,AutumnProvRep!$G:$G,"<>Coventry",AutumnProvRep!$P:$P,Data!AO$17)/$BA$46*$A$46 -> 0 | AP52: =SUMIFS(AutumnProvRep!$H:$H,AutumnProvRep!$A:$A,Data!$A$26,AutumnProvRep!$G:$G,"<>Coventry",AutumnProvRep!$P:$P,Data!AP$17)/$BA$46*$A$46 -> 0 | AQ52: =SUMIFS(AutumnProvRep!$H:$H,AutumnProvRep!$A:$A,Data!$A$26,AutumnProvRep!$G:$G,"<>Coventry",AutumnProvRep!$P:$P,Data!AQ$17)/$BA$46*$A$46 -> 0 | AR52: 2 | AS52: 7662.788612 | AT52: 643170.3152 | AU52: 123.5921053 | AV52: -2.407894737 | AW52: 126 | AX52: =[5]Data!$AU40 -> 124.7517787 | AY52: 126 | BB52: =($M$9-$AU$52)*$A$46 -> 180.5921053 | BC52: 9269.407895 | BD52: =$BB$52/$BC$52*D52 -> 0 | BE52: =$BB$52/$BC$52*E52 -> 0 | BF52: 0 | BG52: 0 | BH52: 0 | BI52: 0 | BJ52: 0 | BK52: 42.98988048 | BL52: 60.77415573 | BM52: 0 | BN52: 1.461194507 | BO52: 13.20842929 | BP52: 0 | BQ52: 38.77933315 | BR52: 17.53433408 | BS52: 0 | BT52: 2.922389013 | BU52: 0 | BV52: 0 | BX52: =$BB$52/$BC$52*Y52 -> 0 | BY52: =$BB$52/$BC$52*Z52 -> 0 | BZ52: 0 | CA52: 0 | CB52: 0 | CC52: 0 | CD52: 0 | CE52: 0 | CF52: 2.922389013 | CG52: 0 | CH52: 0 | CI52: 0 | CJ52: 0 | CK52: 0 | CL52: 0 | CM52: 0 | CN52: 0 | CO52: 0 | CP52: 0
A53: 7 | B53: Sherbourne Fields | C53: 50 | D53: 0 | E53: =SUMIFS(AutumnProvRep!$H:$H,AutumnProvRep!$A:$A,Data!$A$27,AutumnProvRep!$G:$G,"Coventry",AutumnProvRep!$P:$P,Data!E$17)/$BA$46*$A$46 -> 0 | F53: =SUMIFS(AutumnProvRep!$H:$H,AutumnProvRep!$A:$A,Data!$A$27,AutumnProvRep!$G:$G,"Coventry",AutumnProvRep!$P:$P,Data!F$17)/$BA$46*$A$46 -> 0 | G53: =SUMIFS(AutumnProvRep!$H:$H,AutumnProvRep!$A:$A,Data!$A$27,AutumnProvRep!$G:$G,"Coventry",AutumnProvRep!$P:$P,Data!G$17)/$BA$46*$A$46 -> 0 | H53: =SUMIFS(AutumnProvRep!$H:$H,AutumnProvRep!$A:$A,Data!$A$27,AutumnProvRep!$G:$G,"Coventry",AutumnProvRep!$P:$P,Data!H$17)/$BA$46*$A$46 -> 75 | I53: =SUMIFS(AutumnProvRep!$H:$H,AutumnProvRep!$A:$A,Data!$A$27,AutumnProvRep!$G:$G,"Coventry",AutumnProvRep!$P:$P,Data!I$17)/$BA$46*$A$46 -> 0 | J53: =SUMIFS(AutumnProvRep!$H:$H,AutumnProvRep!$A:$A,Data!$A$27,AutumnProvRep!$G:$G,"Coventry",AutumnProvRep!$P:$P,Data!J$17)/$BA$46*$A$46 -> 0 | K53: =SUMIFS(AutumnProvRep!$H:$H,AutumnProvRep!$A:$A,Data!$A$27,AutumnProvRep!$G:$G,"Coventry",AutumnProvRep!$P:$P,Data!K$17)/$BA$46*$A$46 -> 5996.052632 | L53: =SUMIFS(AutumnProvRep!$H:$H,AutumnProvRep!$A:$A,Data!$A$27,AutumnProvRep!$G:$G,"Coventry",AutumnProvRep!$P:$P,Data!L$17)/$BA$46*$A$46 -> 4950 | M53: =SUMIFS(AutumnProvRep!$H:$H,AutumnProvRep!$A:$A,Data!$A$27,AutumnProvRep!$G:$G,"Coventry",AutumnProvRep!$P:$P,Data!M$17)/$BA$46*$A$46 -> 0 | N53: =SUMIFS(AutumnProvRep!$H:$H,AutumnProvRep!$A:$A,Data!$A$27,AutumnProvRep!$G:$G,"Coventry",AutumnProvRep!$P:$P,Data!N$17)/$BA$46*$A$46 -> 2186.842105 | O53: =SUMIFS(AutumnProvRep!$H:$H,AutumnProvRep!$A:$A,Data!$A$27,AutumnProvRep!$G:$G,"Coventry",AutumnProvRep!$P:$P,Data!O$17)/$BA$46*$A$46 -> 225 | P53: =SUMIFS(AutumnProvRep!$H:$H,AutumnProvRep!$A:$A,Data!$A$27,AutumnProvRep!$G:$G,"Coventry",AutumnProvRep!$P:$P,Data!P$17)/$BA$46*$A$46 -> 0 | Q53: =SUMIFS(AutumnProvRep!$H:$H,AutumnProvRep!$A:$A,Data!$A$27,AutumnProvRep!$G:$G,"Coventry",AutumnProvRep!$P:$P,Data!Q$17)/$BA$46*$A$46 -> 1875 | R53: =SUMIFS(AutumnProvRep!$H:$H,AutumnProvRep!$A:$A,Data!$A$27,AutumnProvRep!$G:$G,"Coventry",AutumnProvRep!$P:$P,Data!R$17)/$BA$46*$A$46 -> 1425 | S53: =SUMIFS(AutumnProvRep!$H:$H,AutumnProvRep!$A:$A,Data!$A$27,AutumnProvRep!$G:$G,"Coventry",AutumnProvRep!$P:$P,Data!S$17)/$BA$46*$A$46 -> 0 | T53: =SUMIFS(AutumnProvRep!$H:$H,AutumnProvRep!$A:$A,Data!$A$27,AutumnProvRep!$G:$G,"Coventry",AutumnProvRep!$P:$P,Data!T$17)/$BA$46*$A$46 -> 1575 | U53: =SUMIFS(AutumnProvRep!$H:$H,AutumnProvRep!$A:$A,Data!$A$27,AutumnProvRep!$G:$G,"Coventry",AutumnProvRep!$P:$P,Data!U$17)/$BA$46*$A$46 -> 75 | V53: =SUMIFS(AutumnProvRep!$H:$H,AutumnProvRep!$A:$A,Data!$A$27,AutumnProvRep!$G:$G,"Coventry",AutumnProvRep!$P:$P,Data!V$17)/$BA$46*$A$46 -> 0 | W53: 245.1052632 | X53: 1200032.374 | Y53: 0 | Z53: =SUMIFS(AutumnProvRep!$H:$H,AutumnProvRep!$A:$A,Data!$A$27,AutumnProvRep!$G:$G,"<>Coventry",AutumnProvRep!$P:$P,Data!Z$17)/$BA$46*$A$46 -> 0 | AA53: =SUMIFS(AutumnProvRep!$H:$H,AutumnProvRep!$A:$A,Data!$A$27,AutumnProvRep!$G:$G,"<>Coventry",AutumnProvRep!$P:$P,Data!AA$17)/$BA$46*$A$46 -> 0 | AB53: =SUMIFS(AutumnProvRep!$H:$H,AutumnProvRep!$A:$A,Data!$A$27,AutumnProvRep!$G:$G,"<>Coventry",AutumnProvRep!$P:$P,Data!AB$17)/$BA$46*$A$46 -> 0 | AC53: =SUMIFS(AutumnProvRep!$H:$H,AutumnProvRep!$A:$A,Data!$A$27,AutumnProvRep!$G:$G,"<>Coventry",AutumnProvRep!$P:$P,Data!AC$17)/$BA$46*$A$46 -> 0 | AD53: =SUMIFS(AutumnProvRep!$H:$H,AutumnProvRep!$A:$A,Data!$A$27,AutumnProvRep!$G:$G,"<>Coventry",AutumnProvRep!$P:$P,Data!AD$17)/$BA$46*$A$46 -> 0 | AE53: =SUMIFS(AutumnProvRep!$H:$H,AutumnProvRep!$A:$A,Data!$A$27,AutumnProvRep!$G:$G,"<>Coventry",AutumnProvRep!$P:$P,Data!AE$17)/$BA$46*$A$46 -> 0 | AF53: =SUMIFS(AutumnProvRep!$H:$H,AutumnProvRep!$A:$A,Data!$A$27,AutumnProvRep!$G:$G,"<>Coventry",AutumnProvRep!$P:$P,Data!AF$17)/$BA$46*$A$46 -> 75 | AG53: =SUMIFS(AutumnProvRep!$H:$H,AutumnProvRep!$A:$A,Data!$A$27,AutumnProvRep!$G:$G,"<>Coventry",AutumnProvRep!$P:$P,Data!AG$17)/$BA$46*$A$46 -> 0 | AH53: =SUMIFS(AutumnProvRep!$H:$H,AutumnProvRep!$A:$A,Data!$A$27,AutumnProvRep!$G:$G,"<>Coventry",AutumnProvRep!$P:$P,Data!AH$17)/$BA$46*$A$46 -> 0 | AI53: =SUMIFS(AutumnProvRep!$H:$H,AutumnProvRep!$A:$A,Data!$A$27,AutumnProvRep!$G:$G,"<>Coventry",AutumnProvRep!$P:$P,Data!AI$17)/$BA$46*$A$46 -> 75 | AJ53: =SUMIFS(AutumnProvRep!$H:$H,AutumnProvRep!$A:$A,Data!$A$27,AutumnProvRep!$G:$G,"<>Coventry",AutumnProvRep!$P:$P,Data!AJ$17)/$BA$46*$A$46 -> 0 | AK53: =SUMIFS(AutumnProvRep!$H:$H,AutumnProvRep!$A:$A,Data!$A$27,AutumnProvRep!$G:$G,"<>Coventry",AutumnProvRep!$P:$P,Data!AK$17)/$BA$46*$A$46 -> 0 | AL53: =SUMIFS(AutumnProvRep!$H:$H,AutumnProvRep!$A:$A,Data!$A$27,AutumnProvRep!$G:$G,"<>Coventry",AutumnProvRep!$P:$P,Data!AL$17)/$BA$46*$A$46 -> 0 | AM53: =SUMIFS(AutumnProvRep!$H:$H,AutumnProvRep!$A:$A,Data!$A$27,AutumnProvRep!$G:$G,"<>Coventry",AutumnProvRep!$P:$P,Data!AM$17)/$BA$46*$A$46 -> 0 | AN53: =SUMIFS(AutumnProvRep!$H:$H,AutumnProvRep!$A:$A,Data!$A$27,AutumnProvRep!$G:$G,"<>Coventry",AutumnProvRep!$P:$P,Data!AN$17)/$BA$46*$A$46 -> 0 | AO53: =SUMIFS(AutumnProvRep!$H:$H,AutumnProvRep!$A:$A,Data!$A$27,AutumnProvRep!$G:$G,"<>Coventry",AutumnProvRep!$P:$P,Data!AO$17)/$BA$46*$A$46 -> 150 | AP53: =SUMIFS(AutumnProvRep!$H:$H,AutumnProvRep!$A:$A,Data!$A$27,AutumnProvRep!$G:$G,"<>Coventry",AutumnProvRep!$P:$P,Data!AP$17)/$BA$46*$A$46 -> 0 | AQ53: =SUMIFS(AutumnProvRep!$H:$H,AutumnProvRep!$A:$A,Data!$A$27,AutumnProvRep!$G:$G,"<>Coventry",AutumnProvRep!$P:$P,Data!AQ$17)/$BA$46*$A$46 -> 0 | AR53: 4 | AS53: 21745.73397 | AT53: 1221778.108 | AU53: 249.1052632 | AV53: -8.894736842 | AW53: 258 | AX53: =[5]Data!$AU41 -> 249.2160557 | AY53: 251 | BB53: =($M$10-$AU$53)*$A$46 -> 667.1052632 | BC53: 18682.89474 | BD53: =$BB$53/$BC$53*D53 -> 0 | BE53: =$BB$53/$BC$53*E53 -> 0 | BF53: 0 | BG53: 0 | BH53: 2.678005493 | BI53: 0 | BJ53: 0 | BK53: 214.0994918 | BL53: 176.7483626 | BM53: 0 | BN53: 78.08500228 | BO53: 8.03401648 | BP53: 0 | BQ53: 66.95013733 | BR53: 50.88210437 | BS53: 0 | BT53: 56.23811536 | BU53: 2.678005493 | BV53: 0 | BX53: =$BB$53/$BC$53*Y53 -> 0 | BY53: =$BB$53/$BC$53*Z53 -> 0 | BZ53: 0 | CA53: 0 | CB53: 0 | CC53: 0 | CD53: 0 | CE53: 2.678005493 | CF53: 0 | CG53: 0 | CH53: 2.678005493 | CI53: 0 | CJ53: 0 | CK53: 0 | CL53: 0 | CM53: 0 | CN53: 5.356010987 | CO53: 0 | CP53: 0
A54: 8 | B54: Woodfield | C54: =10000/$A$16 -> 50 | D54: 0 | E54: =SUMIFS(AutumnProvRep!$H:$H,AutumnProvRep!$A:$A,Data!$A$28,AutumnProvRep!$G:$G,"Coventry",AutumnProvRep!$P:$P,Data!E$17)/$BA$46*$A$46 -> 0 | F54: =SUMIFS(AutumnProvRep!$H:$H,AutumnProvRep!$A:$A,Data!$A$28,AutumnProvRep!$G:$G,"Coventry",AutumnProvRep!$P:$P,Data!F$17)/$BA$46*$A$46 -> 0 | G54: =SUMIFS(AutumnProvRep!$H:$H,AutumnProvRep!$A:$A,Data!$A$28,AutumnProvRep!$G:$G,"Coventry",AutumnProvRep!$P:$P,Data!G$17)/$BA$46*$A$46 -> 0 | H54: =SUMIFS(AutumnProvRep!$H:$H,AutumnProvRep!$A:$A,Data!$A$28,AutumnProvRep!$G:$G,"Coventry",AutumnProvRep!$P:$P,Data!H$17)/$BA$46*$A$46 -> 0 | I54: =SUMIFS(AutumnProvRep!$H:$H,AutumnProvRep!$A:$A,Data!$A$28,AutumnProvRep!$G:$G,"Coventry",AutumnProvRep!$P:$P,Data!I$17)/$BA$46*$A$46 -> 0 | J54: =SUMIFS(AutumnProvRep!$H:$H,AutumnProvRep!$A:$A,Data!$A$28,AutumnProvRep!$G:$G,"Coventry",AutumnProvRep!$P:$P,Data!J$17)/$BA$46*$A$46 -> 0 | K54: =SUMIFS(AutumnProvRep!$H:$H,AutumnProvRep!$A:$A,Data!$A$28,AutumnProvRep!$G:$G,"Coventry",AutumnProvRep!$P:$P,Data!K$17)/$BA$46*$A$46 -> 0 | L54: =SUMIFS(AutumnProvRep!$H:$H,AutumnProvRep!$A:$A,Data!$A$28,AutumnProvRep!$G:$G,"Coventry",AutumnProvRep!$P:$P,Data!L$17)/$BA$46*$A$46 -> 0 | M54: =SUMIFS(AutumnProvRep!$H:$H,AutumnProvRep!$A:$A,Data!$A$28,AutumnProvRep!$G:$G,"Coventry",AutumnProvRep!$P:$P,Data!M$17)/$BA$46*$A$46 -> 0 | N54: =SUMIFS(AutumnProvRep!$H:$H,AutumnProvRep!$A:$A,Data!$A$28,AutumnProvRep!$G:$G,"Coventry",AutumnProvRep!$P:$P,Data!N$17)/$BA$46*$A$46 -> 0 | O54: =SUMIFS(AutumnProvRep!$H:$H,AutumnProvRep!$A:$A,Data!$A$28,AutumnProvRep!$G:$G,"Coventry",AutumnProvRep!$P:$P,Data!O$17)/$BA$46*$A$46 -> 975 | P54: =SUMIFS(AutumnProvRep!$H:$H,AutumnProvRep!$A:$A,Data!$A$28,AutumnProvRep!$G:$G,"Coventry",AutumnProvRep!$P:$P,Data!P$17)/$BA$46*$A$46 -> 0 | Q54: =SUMIFS(AutumnProvRep!$H:$H,AutumnProvRep!$A:$A,Data!$A$28,AutumnProvRep!$G:$G,"Coventry",AutumnProvRep!$P:$P,Data!Q$17)/$BA$46*$A$46 -> 0 | R54: =SUMIFS(AutumnProvRep!$H:$H,AutumnProvRep!$A:$A,Data!$A$28,AutumnProvRep!$G:$G,"Coventry",AutumnProvRep!$P:$P,Data!R$17)/$BA$46*$A$46 -> 0 | S54: =SUMIFS(AutumnProvRep!$H:$H,AutumnProvRep!$A:$A,Data!$A$28,AutumnProvRep!$G:$G,"Coventry",AutumnProvRep!$P:$P,Data!S$17)/$BA$46*$A$46 -> 9602.960526 | T54: =SUMIFS(AutumnProvRep!$H:$H,AutumnProvRep!$A:$A,Data!$A$28,AutumnProvRep!$G:$G,"Coventry",AutumnProvRep!$P:$P,Data!T$17)/$BA$46*$A$46 -> 0 | U54: =SUMIFS(AutumnProvRep!$H:$H,AutumnProvRep!$A:$A,Data!$A$28,AutumnProvRep!$G:$G,"Coventry",AutumnProvRep!$P:$P,Data!U$17)/$BA$46*$A$46 -> 300 | V54: =SUMIFS(AutumnProvRep!$H:$H,AutumnProvRep!$A:$A,Data!$A$28,AutumnProvRep!$G:$G,"Coventry",AutumnProvRep!$P:$P,Data!V$17)/$BA$46*$A$46 -> 0 | W54: =SUM(D54:V54)/$A$46 -> 145.0394737 | X54: 1055783.174 | Y54: 0 | Z54: =SUMIFS(AutumnProvRep!$H:$H,AutumnProvRep!$A:$A,Data!$A$28,AutumnProvRep!$G:$G,"<>Coventry",AutumnProvRep!$P:$P,Data!Z$17)/$BA$46*$A$46 -> 0 | AA54: =SUMIFS(AutumnProvRep!$H:$H,AutumnProvRep!$A:$A,Data!$A$28,AutumnProvRep!$G:$G,"<>Coventry",AutumnProvRep!$P:$P,Data!AA$17)/$BA$46*$A$46 -> 0 | AB54: =SUMIFS(AutumnProvRep!$H:$H,AutumnProvRep!$A:$A,Data!$A$28,AutumnProvRep!$G:$G,"<>Coventry",AutumnProvRep!$P:$P,Data!AB$17)/$BA$46*$A$46 -> 0 | AC54: =SUMIFS(AutumnProvRep!$H:$H,AutumnProvRep!$A:$A,Data!$A$28,AutumnProvRep!$G:$G,"<>Coventry",AutumnProvRep!$P:$P,Data!AC$17)/$BA$46*$A$46 -> 0 | AD54: =SUMIFS(AutumnProvRep!$H:$H,AutumnProvRep!$A:$A,Data!$A$28,AutumnProvRep!$G:$G,"<>Coventry",AutumnProvRep!$P:$P,Data!AD$17)/$BA$46*$A$46 -> 0 | AE54: =SUMIFS(AutumnProvRep!$H:$H,AutumnProvRep!$A:$A,Data!$A$28,AutumnProvRep!$G:$G,"<>Coventry",AutumnProvRep!$P:$P,Data!AE$17)/$BA$46*$A$46 -> 0 | AF54: =SUMIFS(AutumnProvRep!$H:$H,AutumnProvRep!$A:$A,Data!$A$28,AutumnProvRep!$G:$G,"<>Coventry",AutumnProvRep!$P:$P,Data!AF$17)/$BA$46*$A$46 -> 0 | AG54: =SUMIFS(AutumnProvRep!$H:$H,AutumnProvRep!$A:$A,Data!$A$28,AutumnProvRep!$G:$G,"<>Coventry",AutumnProvRep!$P:$P,Data!AG$17)/$BA$46*$A$46 -> 0 | AH54: =SUMIFS(AutumnProvRep!$H:$H,AutumnProvRep!$A:$A,Data!$A$28,AutumnProvRep!$G:$G,"<>Coventry",AutumnProvRep!$P:$P,Data!AH$17)/$BA$46*$A$46 -> 0 | AI54: =SUMIFS(AutumnProvRep!$H:$H,AutumnProvRep!$A:$A,Data!$A$28,AutumnProvRep!$G:$G,"<>Coventry",AutumnProvRep!$P:$P,Data!AI$17)/$BA$46*$A$46 -> 0 | AJ54: =SUMIFS(AutumnProvRep!$H:$H,AutumnProvRep!$A:$A,Data!$A$28,AutumnProvRep!$G:$G,"<>Coventry",AutumnProvRep!$P:$P,Data!AJ$17)/$BA$46*$A$46 -> 0 | AK54: =SUMIFS(AutumnProvRep!$H:$H,AutumnProvRep!$A:$A,Data!$A$28,AutumnProvRep!$G:$G,"<>Coventry",AutumnProvRep!$P:$P,Data!AK$17)/$BA$46*$A$46 -> 0 | AL54: =SUMIFS(AutumnProvRep!$H:$H,AutumnProvRep!$A:$A,Data!$A$28,AutumnProvRep!$G:$G,"<>Coventry",AutumnProvRep!$P:$P,Data!AL$17)/$BA$46*$A$46 -> 0 | AM54: =SUMIFS(AutumnProvRep!$H:$H,AutumnProvRep!$A:$A,Data!$A$28,AutumnProvRep!$G:$G,"<>Coventry",AutumnProvRep!$P:$P,Data!AM$17)/$BA$46*$A$46 -> 0 | AN54: =SUMIFS(AutumnProvRep!$H:$H,AutumnProvRep!$A:$A,Data!$A$28,AutumnProvRep!$G:$G,"<>Coventry",AutumnProvRep!$P:$P,Data!AN$17)/$BA$46*$A$46 -> 75 | AO54: =SUMIFS(AutumnProvRep!$H:$H,AutumnProvRep!$A:$A,Data!$A$28,AutumnProvRep!$G:$G,"<>Coventry",AutumnProvRep!$P:$P,Data!AO$17)/$BA$46*$A$46 -> 0 | AP54: =SUMIFS(AutumnProvRep!$H:$H,AutumnProvRep!$A:$A,Data!$A$28,AutumnProvRep!$G:$G,"<>Coventry",AutumnProvRep!$P:$P,Data!AP$17)/$BA$46*$A$46 -> 0 | AQ54: =SUMIFS(AutumnProvRep!$H:$H,AutumnProvRep!$A:$A,Data!$A$28,AutumnProvRep!$G:$G,"<>Coventry",AutumnProvRep!$P:$P,Data!AQ$17)/$BA$46*$A$46 -> 0 | AR54: 1 | AS54: 6730.825798 | AT54: 1062514 | AU54: 146.0394737 | AV54: -8.960526316 | AW54: 155 | AX54: =[5]Data!$AU42 -> 151.7857143 | AY54: 155 | BB54: =($M$11-$AU$54)*$A$46 -> 672.0394737 | BC54: 10952.96053 | BD54: =$BB$54/$BC$54*D54 -> 0 | BE54: =$BB$54/$BC$54*E54 -> 0 | BF54: 0 | BG54: 0 | BH54: 0 | BI54: 0 | BJ54: 0 | BK54: 0 | BL54: 0 | BM54: 0 | BN54: 0 | BO54: 59.82295702 | BP54: 0 | BQ54: 0 | BR54: 0 | BS54: 589.207687 | BT54: 0 | BU54: 18.4070637 | BV54: 0 | BX54: =$BB$54/$BC$54*Y54 -> 0 | BY54: =$BB$54/$BC$54*Z54 -> 0 | BZ54: 0 | CA54: 0 | CB54: 0 | CC54: 0 | CD54: 0 | CE54: 0 | CF54: 0 | CG54: 0 | CH54: 0 | CI54: 0 | CJ54: 0 | CK54: 0 | CL54: 0 | CM54: 4.601765925 | CN54: 0 | CO54: 0 | CP54: 0
A55: 9 | B55: Coventry ELC | C55: =10000/$A$16 -> 50 | D55: =120*A46 -> 9000 | E55: 0 | F55: 0 | G55: 0 | H55: 0 | I55: 0 | J55: 0 | K55: 0 | L55: 0 | M55: 0 | N55: 0 | O55: 0 | P55: 0 | Q55: 0 | R55: 0 | S55: 0 | T55: 0 | U55: 0 | V55: 0 | W55: =SUM(D55:V55)/$A$46 -> 120 | X55: =SUMPRODUCT(D55:V55,$V$12:$AN$12)/$A$16 -> 604553.28 | Y55: =A46*0 -> 0 | Z55: 0 | AA55: 0 | AB55: 0 | AC55: 0 | AD55: 0 | AE55: 0 | AF55: 0 | AG55: 0 | AH55: 0 | AI55: 0 | AJ55: 0 | AK55: 0 | AL55: 0 | AM55: 0 | AN55: 0 | AO55: 0 | AP55: 0 | AQ55: 0 | AR55: 0 | AS55: =SUMPRODUCT(Y55:AQ55,$V$12:$AN$12)/$A$16 -> 0 | AT55: 604553.28 | AU55: 120 | AV55: =AU55-AW55 -> 0 | AW55: 120 | AX55: =[5]Data!$AU43 -> 120 | AY55: 120 | BB55: =($M$12-$AU$55)*$A$46 -> 0 | BC55: 9000 | BD55: =$BB$55/$BC$55*D55 -> 0 | BE55: =$BB$55/$BC$55*E55 -> 0 | BF55: 0 | BG55: 0 | BH55: 0 | BI55: 0 | BJ55: 0 | BK55: 0 | BL55: 0 | BM55: 0 | BN55: 0 | BO55: 0 | BP55: 0 | BQ55: 0 | BR55: 0 | BS55: 0 | BT55: 0 | BU55: 0 | BV55: 0 | BX55: =$BB$55/$BC$55*Y55 -> 0 | BY55: =$BB$55/$BC$55*Z55 -> 0 | BZ55: 0 | CA55: 0 | CB55: 0 | CC55: 0 | CD55: 0 | CE55: 0 | CF55: 0 | CG55: 0 | CH55: 0 | CI55: 0 | CJ55: 0 | CK55: 0 | CL55: 0 | CM55: 0 | CN55: 0 | CO55: 0 | CP55: 0
AS56: =SUM(AS47:AS55) -> 79527.28214 | AT56: =SUM(AT47:AT55) -> 6986727.036 | AU56: =SUM(AU47:AU55) -> 1355.565789
B57: Autumn Term 2024
A58: 75 | B58: School
A59: 1 | B59: Castle Wood | C59: =10000/$A$16 -> 50 | D59: =D47+BD47 -> 0 | E59: =E47+BE47 -> 0 | F59: =F47+BF47 -> 0 | G59: =G47+BG47 -> 0 | H59: =H47+BH47 -> 0 | I59: =I47+BI47 -> 0 | J59: =J47+BJ47 -> 75.37813042 | K59: =K47+BK47 -> 6444.830151 | L59: =L47+BL47 -> 1029.506571 | M59: =M47+BM47 -> 75.37813042 | N59: =N47+BN47 -> 376.8906521 | O59: =O47+BO47 -> 603.0250434 | P59: =P47+BP47 -> 0 | Q59: =Q47+BQ47 -> 2185.965782 | R59: =R47+BR47 -> 603.0250434 | S59: =S47+BS47 -> 0 | T59: =T47+BT47 -> 417.5551698 | U59: =U47+BU47 -> 113.0671956 | V59: =V47+BV47 -> 0 | W59: =SUM(D59:V59)/$A$46 -> 158.9949583 | X59: =SUMPRODUCT(D59:V59,$V$6:$AN$6)/$A$16 -> 825707.531 | Y59: =Y47+BX47 -> 0 | Z59: =Z47+BY47 -> 0 | AA59: =AA47+BZ47 -> 0 | AB59: =AB47+CA47 -> 0 | AC59: =AC47+CB47 -> 0 | AD59: =AD47+CC47 -> 0 | AE59: =AE47+CD47 -> 0 | AF59: =AF47+CE47 -> 75.37813042 | AG59: =AG47+CF47 -> 0 | AH59: =AH47+CG47 -> 0 | AI59: =AI47+CH47 -> 0 | AJ59: =AJ47+CI47 -> 0 | AK59: =AK47+CJ47 -> 0 | AL59: =AL47+CK47 -> 0 | AM59: =AM47+CL47 -> 0 | AN59: =AN47+CM47 -> 0 | AO59: =AO47+CN47 -> 0 | AP59: =AP47+CO47 -> 0 | AQ59: =AQ47+CP47 -> 0 | AR59: =SUM(Y59:AQ59)/$A$46 -> 1.005041739 | AS59: =SUMPRODUCT(Y59:AQ59,$V$6:$AN$6)/$A$16 -> 4162.928735 | AT59: =X59+AS59 -> 829870.4598 | AU59: =AR59+W59 -> 160 | AV59: =AU59-AW59 -> 0 | AW59: =M4 -> 160 | AX59: =[5]Data!$AU35 -> 160.2 | AY59: =E4 -> 160 | BA59: =(AT59/75*200)/AU59 -> 13831.17433
A60: 2 | B60: Kingsbury | C60: =10000/$A$16 -> 50 | D60: =D48+BD48 -> 0 | E60: 0 | F60: 0 | G60: 0 | H60: 0 | I60: 0 | J60: =J48+BJ48 -> 0 | K60: 4529.70297 | L60: 371.2871287 | M60: 0 | N60: 0 | O60: 248.1761334 | P60: 0 | Q60: =Q48+BQ48 -> 1856.435644 | R60: 148.5148515 | S60: 0 | T60: 0 | U60: 48.85356957 | V60: 0 | W60: 96.03960396 | X60: 490635.9881 | Y60: =Y48+BX48 -> 0 | Z60: 0 | AA60: 0 | AB60: 0 | AC60: 0 | AD60: 0 | AE60: 0 | AF60: 148.5148515 | AG60: 74.25742574 | AH60: 0 | AI60: 0 | AJ60: 0 | AK60: 0 | AL60: 74.25742574 | AM60: 0 | AN60: 0 | AO60: 0 | AP60: 0 | AQ60: 0 | AR60: =SUM(Y60:AQ60)/$A$46 -> 3.96039604 | AS60: 18659.71421 | AT60: 509295.7023 | AU60: 100 | AV60: 0 | AW60: 100 | AX60: =[5]Data!$AU36 -> 100.1428571 | AY60: 100 | BA60: =(AT60/75*200)/AU60 -> 13581.21873
A61: 3 | B61: RiverBank | C61: 50 | D61: 0 | E61: 0 | F61: 0 | G61: 761.4213198 | H61: 1142.13198 | I61: 0 | J61: 0 | K61: 5253.807107 | L61: 4111.675127 | M61: 152.284264 | N61: 532.9949239 | O61: 304.5685279 | P61: 228.4263959 | Q61: 1827.411168 | R61: 380.7106599 | S61: 0 | T61: 152.284264 | U61: 0 | V61: 0 | W61: 197.9695431 | X61: 877904.116 | Y61: 0 | Z61: 0 | AA61: 0 | AB61: 76.14213198 | AC61: 0 | AD61: 0 | AE61: 0 | AF61: 76.14213198 | AG61: 0 | AH61: 0 | AI61: 0 | AJ61: 0 | AK61: 0 | AL61: 0 | AM61: 0 | AN61: 0 | AO61: 0 | AP61: 0 | AQ61: 0 | AR61: 2.030456853 | AS61: 5466.659646 | AT61: 883370.7756 | AU61: 200 | AV61: 0 | AW61: 200 | AX61: =[5]Data!$AU37 -> 198.3142857 | AY61: 200 | BA61: 11778.27701
A62: 4 | B62: Corley | C62: 50 | D62: 0 | E62: 0 | F62: 0 | G62: 0 | H62: 0 | I62: 0 | J62: 0 | K62: 9151.595745 | L62: 247.3404255 | M62: 435.0153975 | N62: 0 | O62: 307.0058791 | P62: 0 | Q62: 1401.595745 | R62: 0 | S62: 0 | T62: 0 | U62: 0 | V62: 0 | W62: 153.9007092 | X62: 711679.1485 | Y62: 0 | Z62: 0 | AA62: 0 | AB62: 0 | AC62: 0 | AD62: 0 | AE62: 0 | AF62: 82.44680851 | AG62: 0 | AH62: 0 | AI62: 0 | AJ62: 0 | AK62: 0 | AL62: 0 | AM62: 0 | AN62: 0 | AO62: 0 | AP62: 0 | AQ62: 0 | AR62: 1.09929078 | AS62: 4553.312563 | AT62: 716232.4611 | AU62: 155 | AV62: 0 | AW62: 155 | AX62: =[5]Data!$AU38 -> 148.6511628 | AY62: 140 | BA62: 12322.2789
A63: 5 | B63: Tiverton | C63: 50 | D63: 0 | E63: 0 | F63: 0 | G63: 0 | H63: 0 | I63: 0 | J63: 0 | K63: 4883.751109 | L63: 994.4653949 | M63: 0 | N63: 458.9840284 | O63: 458.9840284 | P63: 0 | Q63: 1284.350044 | R63: 535.4813665 | S63: 0 | T63: 305.9893523 | U63: 0 | V63: 0 | W63: 118.960071 | X63: 593702.6072 | Y63: 0 | Z63: 0 | AA63: 0 | AB63: 0 | AC63: 0 | AD63: 0 | AE63: 0 | AF63: 76.49733807 | AG63: 0 | AH63: 0 | AI63: 0 | AJ63: 0 | AK63: 0 | AL63: 76.49733807 | AM63: 0 | AN63: 0 | AO63: 0 | AP63: 0 | AQ63: 0 | AR63: 2.039929015 | AS63: 11089.94294 | AT63: 604792.5501 | AU63: 121 | AV63: 0 | AW63: 121 | AX63: =[5]Data!$AU39 -> 119.0535714 | AY63: 118 | BA63: 13328.76143
A64: 6 | B64: Baginton Fields | C64: 50 | D64: 0 | E64: 0 | F64: 0 | G64: 0 | H64: 0 | I64: 0 | J64: 0 | K64: 2249.568828 | L64: 3180.18205 | M64: 0 | N64: 76.46119451 | O64: 691.1689556 | P64: 0 | Q64: 2029.239859 | R64: 917.5343341 | S64: 0 | T64: 152.922389 | U64: 0 | V64: 0 | W64: 123.9610348 | X64: 647888.8614 | Y64: 0 | Z64: 0 | AA64: 0 | AB64: 0 | AC64: 0 | AD64: 0 | AE64: 0 | AF64: 0 | AG64: 152.922389 | AH64: 0 | AI64: 0 | AJ64: 0 | AK64: 0 | AL64: 0 | AM64: 0 | AN64: 0 | AO64: =AO52+CN52 -> 0 | AP64: 0 | AQ64: 0 | AR64: 2.038965187 | AS64: 7812.079607 | AT64: 655700.941 | AU64: 126 | AV64: 0 | AW64: 126 | AX64: =[5]Data!$AU40 -> 124.7517787 | AY64: 126 | BA64: 13877.26859
A65: 7 | B65: Sherbourne Fields | C65: 50 | D65: 0 | E65: 0 | F65: 0 | G65: 0 | H65: 77.67800549 | I65: 0 | J65: 0 | K65: 6210.152123 | L65: 5126.748363 | M65: 0 | N65: 2264.927108 | O65: 233.0340165 | P65: 0 | Q65: 1941.950137 | R65: 1475.882104 | S65: 0 | T65: 1631.238115 | U65: 77.67800549 | V65: 0 | W65: 253.857173 | X65: 1242881.617 | Y65: 0 | Z65: 0 | AA65: 0 | AB65: 0 | AC65: 0 | AD65: 0 | AE65: 0 | AF65: 77.67800549 | AG65: 0 | AH65: 0 | AI65: 77.67800549 | AJ65: 0 | AK65: 0 | AL65: 0 | AM65: 0 | AN65: 0 | AO65: 155.356011 | AP65: 0 | AQ65: 0 | AR65: 4.14282696 | AS65: 22522.20324 | AT65: 1265403.821 | AU65: 258 | AV65: 0 | AW65: 258 | AX65: =[5]Data!$AU41 -> 249.2160557 | AY65: 251 | BA65: 13079.10926
A66: 8 | B66: Woodfield | C66: =10000/$A$16 -> 50 | D66: 0 | E66: 0 | F66: 0 | G66: 0 | H66: 0 | I66: 0 | J66: 0 | K66: 0 | L66: 0 | M66: 0 | N66: 0 | O66: 1034.822957 | P66: 0 | Q66: 0 | R66: 0 | S66: 10192.16821 | T66: 0 | U66: 318.4070637 | V66: 0 | W66: =SUM(D66:V66)/$A$46 -> 153.9386431 | X66: 1120562.734 | Y66: 0 | Z66: 0 | AA66: 0 | AB66: 0 | AC66: 0 | AD66: 0 | AE66: 0 | AF66: 0 | AG66: 0 | AH66: 0 | AI66: 0 | AJ66: 0 | AK66: 0 | AL66: 0 | AM66: 0 | AN66: 79.60176592 | AO66: 0 | AP66: 0 | AQ66: 0 | AR66: 1.061356879 | AS66: 7143.808262 | AT66: 1127706.543 | AU66: 155 | AV66: 0 | AW66: 155 | AX66: =[5]Data!$AU42 -> 151.7857143 | AY66: 155 | BA66: 19401.40288
A67: 9 | B67: Coventry ELC | C67: =10000/$A$16 -> 50 | D67: 9000 | E67: 0 | F67: 0 | G67: 0 | H67: 0 | I67: 0 | J67: 0 | K67: 0 | L67: 0 | M67: 0 | N67: 0 | O67: 0 | P67: 0 | Q67: 0 | R67: 0 | S67: 0 | T67: 0 | U67: 0 | V67: 0 | W67: =SUM(D67:V67)/$A$46 -> 120 | X67: =SUMPRODUCT(D67:V67,$V$12:$AN$12)/$A$16 -> 604553.28 | Y67: 0 | Z67: 0 | AA67: 0 | AB67: 0 | AC67: 0 | AD67: 0 | AE67: 0 | AF67: 0 | AG67: 0 | AH67: 0 | AI67: 0 | AJ67: 0 | AK67: 0 | AL67: 0 | AM67: 0 | AN67: 0 | AO67: 0 | AP67: 0 | AQ67: 0 | AR67: 0 | AS67: =SUMPRODUCT(Y67:AQ67,$V$12:$AN$12)/$A$16 -> 0 | AT67: 604553.28 | AU67: 120 | AV67: =AU67-AW67 -> 0 | AW67: 120 | AX67: =[5]Data!$AU43 -> 120 | AY67: 120 | BA67: 13434.51733
AS68: =SUM(AS59:AS67) -> 81410.6492 | AT68: =SUM(AT59:AT67) -> 7196926.533 | AU68: =SUM(AU59:AU67) -> 1395
D71: Coventry pupils | Y71: Other LA Pupils
B72: Spring Term 2025
A73: 56 | B73: School | BA73: 50
A74: 1 | B74: Castle Wood | C74: =10000/$A$16 -> 50 | D74: 0 | E74: =SUMIFS(SpringProvRep!$H:$H,SpringProvRep!$A:$A,Data!$A$21,SpringProvRep!$G:$G,"Coventry",SpringProvRep!$P:$P,Data!E$17)/$BA$73*$A$73 -> 0 | F74: =SUMIFS(SpringProvRep!$H:$H,SpringProvRep!$A:$A,Data!$A$21,SpringProvRep!$G:$G,"Coventry",SpringProvRep!$P:$P,Data!F$17)/$BA$73*$A$73 -> 0 | G74: =SUMIFS(SpringProvRep!$H:$H,SpringProvRep!$A:$A,Data!$A$21,SpringProvRep!$G:$G,"Coventry",SpringProvRep!$P:$P,Data!G$17)/$BA$73*$A$73 -> 0 | H74: =SUMIFS(SpringProvRep!$H:$H,SpringProvRep!$A:$A,Data!$A$21,SpringProvRep!$G:$G,"Coventry",SpringProvRep!$P:$P,Data!H$17)/$BA$73*$A$73 -> 0 | I74: =SUMIFS(SpringProvRep!$H:$H,SpringProvRep!$A:$A,Data!$A$21,SpringProvRep!$G:$G,"Coventry",SpringProvRep!$P:$P,Data!I$17)/$BA$73*$A$73 -> 0 | J74: =SUMIFS(SpringProvRep!$H:$H,SpringProvRep!$A:$A,Data!$A$21,SpringProvRep!$G:$G,"Coventry",SpringProvRep!$P:$P,Data!J$17)/$BA$73*$A$73 -> 56 | K74: =SUMIFS(SpringProvRep!$H:$H,SpringProvRep!$A:$A,Data!$A$21,SpringProvRep!$G:$G,"Coventry",SpringProvRep!$P:$P,Data!K$17)/$BA$73*$A$73 -> 4816 | L74: =SUMIFS(SpringProvRep!$H:$H,SpringProvRep!$A:$A,Data!$A$21,SpringProvRep!$G:$G,"Coventry",SpringProvRep!$P:$P,Data!L$17)/$BA$73*$A$73 -> 784 | M74: =SUMIFS(SpringProvRep!$H:$H,SpringProvRep!$A:$A,Data!$A$21,SpringProvRep!$G:$G,"Coventry",SpringProvRep!$P:$P,Data!M$17)/$BA$73*$A$73 -> 56 | N74: =SUMIFS(SpringProvRep!$H:$H,SpringProvRep!$A:$A,Data!$A$21,SpringProvRep!$G:$G,"Coventry",SpringProvRep!$P:$P,Data!N$17)/$BA$73*$A$73 -> 280 | O74: =SUMIFS(SpringProvRep!$H:$H,SpringProvRep!$A:$A,Data!$A$21,SpringProvRep!$G:$G,"Coventry",SpringProvRep!$P:$P,Data!O$17)/$BA$73*$A$73 -> 448 | P74: =SUMIFS(SpringProvRep!$H:$H,SpringProvRep!$A:$A,Data!$A$21,SpringProvRep!$G:$G,"Coventry",SpringProvRep!$P:$P,Data!P$17)/$BA$73*$A$73 -> 0 | Q74: =SUMIFS(SpringProvRep!$H:$H,SpringProvRep!$A:$A,Data!$A$21,SpringProvRep!$G:$G,"Coventry",SpringProvRep!$P:$P,Data!Q$17)/$BA$73*$A$73 -> 1624 | R74: =SUMIFS(SpringProvRep!$H:$H,SpringProvRep!$A:$A,Data!$A$21,SpringProvRep!$G:$G,"Coventry",SpringProvRep!$P:$P,Data!R$17)/$BA$73*$A$73 -> 448 | S74: =SUMIFS(SpringProvRep!$H:$H,SpringProvRep!$A:$A,Data!$A$21,SpringProvRep!$G:$G,"Coventry",SpringProvRep!$P:$P,Data!S$17)/$BA$73*$A$73 -> 0 | T74: =SUMIFS(SpringProvRep!$H:$H,SpringProvRep!$A:$A,Data!$A$21,SpringProvRep!$G:$G,"Coventry",SpringProvRep!$P:$P,Data!T$17)/$BA$73*$A$73 -> 336 | U74: =SUMIFS(SpringProvRep!$H:$H,SpringProvRep!$A:$A,Data!$A$21,SpringProvRep!$G:$G,"Coventry",SpringProvRep!$P:$P,Data!U$17)/$BA$73*$A$73 -> 112 | V74: =SUMIFS(SpringProvRep!$H:$H,SpringProvRep!$A:$A,Data!$A$21,SpringProvRep!$G:$G,"Coventry",SpringProvRep!$P:$P,Data!V$17)/$BA$73*$A$73 -> 0 | W74: =SUM(D74:V74)/$A$73 -> 160 | X74: =SUMPRODUCT(E74:V74,$W$6:$AN$6)/$A$16 -> 624993.755 | Y74: 0 | Z74: =SUMIFS(SpringProvRep!$H:$H,SpringProvRep!$A:$A,Data!$A$21,SpringProvRep!$G:$G,"<>Coventry",SpringProvRep!$P:$P,Data!Z$17)/$BA$73*$A$73 -> 0 | AA74: =SUMIFS(SpringProvRep!$H:$H,SpringProvRep!$A:$A,Data!$A$21,SpringProvRep!$G:$G,"<>Coventry",SpringProvRep!$P:$P,Data!AA$17)/$BA$73*$A$73 -> 0 | AB74: =SUMIFS(SpringProvRep!$H:$H,SpringProvRep!$A:$A,Data!$A$21,SpringProvRep!$G:$G,"<>Coventry",SpringProvRep!$P:$P,Data!AB$17)/$BA$73*$A$73 -> 0 | AC74: =SUMIFS(SpringProvRep!$H:$H,SpringProvRep!$A:$A,Data!$A$21,SpringProvRep!$G:$G,"<>Coventry",SpringProvRep!$P:$P,Data!AC$17)/$BA$73*$A$73 -> 0 | AD74: =SUMIFS(SpringProvRep!$H:$H,SpringProvRep!$A:$A,Data!$A$21,SpringProvRep!$G:$G,"<>Coventry",SpringProvRep!$P:$P,Data!AD$17)/$BA$73*$A$73 -> 0 | AE74: =SUMIFS(SpringProvRep!$H:$H,SpringProvRep!$A:$A,Data!$A$21,SpringProvRep!$G:$G,"<>Coventry",SpringProvRep!$P:$P,Data!AE$17)/$BA$73*$A$73 -> 0 | AF74: =SUMIFS(SpringProvRep!$H:$H,SpringProvRep!$A:$A,Data!$A$21,SpringProvRep!$G:$G,"<>Coventry",SpringProvRep!$P:$P,Data!AF$17)/$BA$73*$A$73 -> 56 | AG74: =SUMIFS(SpringProvRep!$H:$H,SpringProvRep!$A:$A,Data!$A$21,SpringProvRep!$G:$G,"<>Coventry",SpringProvRep!$P:$P,Data!AG$17)/$BA$73*$A$73 -> 0 | AH74: =SUMIFS(SpringProvRep!$H:$H,SpringProvRep!$A:$A,Data!$A$21,SpringProvRep!$G:$G,"<>Coventry",SpringProvRep!$P:$P,Data!AH$17)/$BA$73*$A$73 -> 0 | AI74: =SUMIFS(SpringProvRep!$H:$H,SpringProvRep!$A:$A,Data!$A$21,SpringProvRep!$G:$G,"<>Coventry",SpringProvRep!$P:$P,Data!AI$17)/$BA$73*$A$73 -> 0 | AJ74: =SUMIFS(SpringProvRep!$H:$H,SpringProvRep!$A:$A,Data!$A$21,SpringProvRep!$G:$G,"<>Coventry",SpringProvRep!$P:$P,Data!AJ$17)/$BA$73*$A$73 -> 0 | AK74: =SUMIFS(SpringProvRep!$H:$H,SpringProvRep!$A:$A,Data!$A$21,SpringProvRep!$G:$G,"<>Coventry",SpringProvRep!$P:$P,Data!AK$17)/$BA$73*$A$73 -> 0 | AL74: =SUMIFS(SpringProvRep!$H:$H,SpringProvRep!$A:$A,Data!$A$21,SpringProvRep!$G:$G,"<>Coventry",SpringProvRep!$P:$P,Data!AL$17)/$BA$73*$A$73 -> 0 | AM74: =SUMIFS(SpringProvRep!$H:$H,SpringProvRep!$A:$A,Data!$A$21,SpringProvRep!$G:$G,"<>Coventry",SpringProvRep!$P:$P,Data!AM$17)/$BA$73*$A$73 -> 0 | AN74: =SUMIFS(SpringProvRep!$H:$H,SpringProvRep!$A:$A,Data!$A$21,SpringProvRep!$G:$G,"<>Coventry",SpringProvRep!$P:$P,Data!AN$17)/$BA$73*$A$73 -> 0 | AO74: =SUMIFS(SpringProvRep!$H:$H,SpringProvRep!$A:$A,Data!$A$21,SpringProvRep!$G:$G,"<>Coventry",SpringProvRep!$P:$P,Data!AO$17)/$BA$73*$A$73 -> 0 | AP74: =SUMIFS(SpringProvRep!$H:$H,SpringProvRep!$A:$A,Data!$A$21,SpringProvRep!$G:$G,"<>Coventry",SpringProvRep!$P:$P,Data!AP$17)/$BA$73*$A$73 -> 0 | AQ74: =SUMIFS(SpringProvRep!$H:$H,SpringProvRep!$A:$A,Data!$A$21,SpringProvRep!$G:$G,"<>Coventry",SpringProvRep!$P:$P,Data!AQ$17)/$BA$73*$A$73 -> 0 | AR74: =SUM(Z74:AQ74)/$A$73 -> 1 | AS74: =SUMPRODUCT(Z74:AQ74,$W$4:$AN$4)/$A$16 -> 3092.727398 | AT74: =X74+AS74 -> 628086.4824 | AU74: =AR74+W74 -> 161 | AV74: =AU74-AW74 -> 1 | AW74: =AW47 -> 160 | AX74: =[5]Data!$AU49 -> 160.1525424 | AY74: =E4 -> 160 | BB74: =($M$4-$AU$74)*$A$73 -> -56 | BC74: =AU74*$A$73 -> 9016 | BD74: =$BB$74/$BC$74*D74 -> 0 | BE74: =$BB$74/$BC$74*E74 -> 0 | BF74: =$BB$74/$BC$74*F74 -> 0 | BG74: 0 | BH74: 0 | BI74: 0 | BJ74: -0.347826087 | BK74: -29.91304348 | BL74: -4.869565217 | BM74: -0.347826087 | BN74: -1.739130435 | BO74: -2.782608696 | BP74: 0 | BQ74: -10.08695652 | BR74: -2.782608696 | BS74: 0 | BT74: -2.086956522 | BU74: -0.6956521739 | BV74: 0 | BX74: =$BB$74/$BC$74*Y74 -> 0 | BY74: =$BB$74/$BC$74*Z74 -> 0 | BZ74: 0 | CA74: 0 | CB74: 0 | CC74: 0 | CD74: 0 | CE74: -0.347826087 | CF74: 0 | CG74: 0 | CH74: 0 | CI74: 0 | CJ74: 0 | CK74: 0 | CL74: 0 | CM74: 0 | CN74: 0 | CO74: 0 | CP74: 0
A75: 2 | B75: Kingsbury | C75: =10000/$A$16 -> 50 | D75: 0 | E75: =SUMIFS(SpringProvRep!$H:$H,SpringProvRep!$A:$A,Data!$A$22,SpringProvRep!$G:$G,"Coventry",SpringProvRep!$P:$P,Data!E$17)/$BA$73*$A$73 -> 0 | F75: =SUMIFS(SpringProvRep!$H:$H,SpringProvRep!$A:$A,Data!$A$22,SpringProvRep!$G:$G,"Coventry",SpringProvRep!$P:$P,Data!F$17)/$BA$73*$A$73 -> 0 | G75: =SUMIFS(SpringProvRep!$H:$H,SpringProvRep!$A:$A,Data!$A$22,SpringProvRep!$G:$G,"Coventry",SpringProvRep!$P:$P,Data!G$17)/$BA$73*$A$73 -> 0 | H75: =SUMIFS(SpringProvRep!$H:$H,SpringProvRep!$A:$A,Data!$A$22,SpringProvRep!$G:$G,"Coventry",SpringProvRep!$P:$P,Data!H$17)/$BA$73*$A$73 -> 0 | I75: =SUMIFS(SpringProvRep!$H:$H,SpringProvRep!$A:$A,Data!$A$22,SpringProvRep!$G:$G,"Coventry",SpringProvRep!$P:$P,Data!I$17)/$BA$73*$A$73 -> 0 | J75: =SUMIFS(SpringProvRep!$H:$H,SpringProvRep!$A:$A,Data!$A$22,SpringProvRep!$G:$G,"Coventry",SpringProvRep!$P:$P,Data!J$17)/$BA$73*$A$73 -> 0 | K75: =SUMIFS(SpringProvRep!$H:$H,SpringProvRep!$A:$A,Data!$A$22,SpringProvRep!$G:$G,"Coventry",SpringProvRep!$P:$P,Data!K$17)/$BA$73*$A$73 -> 3416 | L75: =SUMIFS(SpringProvRep!$H:$H,SpringProvRep!$A:$A,Data!$A$22,SpringProvRep!$G:$G,"Coventry",SpringProvRep!$P:$P,Data!L$17)/$BA$73*$A$73 -> 280 | M75: =SUMIFS(SpringProvRep!$H:$H,SpringProvRep!$A:$A,Data!$A$22,SpringProvRep!$G:$G,"Coventry",SpringProvRep!$P:$P,Data!M$17)/$BA$73*$A$73 -> 0 | N75: =SUMIFS(SpringProvRep!$H:$H,SpringProvRep!$A:$A,Data!$A$22,SpringProvRep!$G:$G,"Coventry",SpringProvRep!$P:$P,Data!N$17)/$BA$73*$A$73 -> 0 | O75: =SUMIFS(SpringProvRep!$H:$H,SpringProvRep!$A:$A,Data!$A$22,SpringProvRep!$G:$G,"Coventry",SpringProvRep!$P:$P,Data!O$17)/$BA$73*$A$73 -> 224 | P75: =SUMIFS(SpringProvRep!$H:$H,SpringProvRep!$A:$A,Data!$A$22,SpringProvRep!$G:$G,"Coventry",SpringProvRep!$P:$P,Data!P$17)/$BA$73*$A$73 -> 0 | Q75: =SUMIFS(SpringProvRep!$H:$H,SpringProvRep!$A:$A,Data!$A$22,SpringProvRep!$G:$G,"Coventry",SpringProvRep!$P:$P,Data!Q$17)/$BA$73*$A$73 -> 1400 | R75: =SUMIFS(SpringProvRep!$H:$H,SpringProvRep!$A:$A,Data!$A$22,SpringProvRep!$G:$G,"Coventry",SpringProvRep!$P:$P,Data!R$17)/$BA$73*$A$73 -> 112 | S75: =SUMIFS(SpringProvRep!$H:$H,SpringProvRep!$A:$A,Data!$A$22,SpringProvRep!$G:$G,"Coventry",SpringProvRep!$P:$P,Data!S$17)/$BA$73*$A$73 -> 0 | T75: =SUMIFS(SpringProvRep!$H:$H,SpringProvRep!$A:$A,Data!$A$22,SpringProvRep!$G:$G,"Coventry",SpringProvRep!$P:$P,Data!T$17)/$BA$73*$A$73 -> 0 | U75: =SUMIFS(SpringProvRep!$H:$H,SpringProvRep!$A:$A,Data!$A$22,SpringProvRep!$G:$G,"Coventry",SpringProvRep!$P:$P,Data!U$17)/$BA$73*$A$73 -> 56 | V75: =SUMIFS(SpringProvRep!$H:$H,SpringProvRep!$A:$A,Data!$A$22,SpringProvRep!$G:$G,"Coventry",SpringProvRep!$P:$P,Data!V$17)/$BA$73*$A$73 -> 0 | W75: =SUM(D75:V75)/$A$73 -> 98 | X75: 379261.1504 | Y75: 0 | Z75: =SUMIFS(SpringProvRep!$H:$H,SpringProvRep!$A:$A,Data!$A$22,SpringProvRep!$G:$G,"<>Coventry",SpringProvRep!$P:$P,Data!Z$17)/$BA$73*$A$73 -> 0 | AA75: =SUMIFS(SpringProvRep!$H:$H,SpringProvRep!$A:$A,Data!$A$22,SpringProvRep!$G:$G,"<>Coventry",SpringProvRep!$P:$P,Data!AA$17)/$BA$73*$A$73 -> 0 | AB75: =SUMIFS(SpringProvRep!$H:$H,SpringProvRep!$A:$A,Data!$A$22,SpringProvRep!$G:$G,"<>Coventry",SpringProvRep!$P:$P,Data!AB$17)/$BA$73*$A$73 -> 0 | AC75: =SUMIFS(SpringProvRep!$H:$H,SpringProvRep!$A:$A,Data!$A$22,SpringProvRep!$G:$G,"<>Coventry",SpringProvRep!$P:$P,Data!AC$17)/$BA$73*$A$73 -> 0 | AD75: =SUMIFS(SpringProvRep!$H:$H,SpringProvRep!$A:$A,Data!$A$22,SpringProvRep!$G:$G,"<>Coventry",SpringProvRep!$P:$P,Data!AD$17)/$BA$73*$A$73 -> 0 | AE75: =SUMIFS(SpringProvRep!$H:$H,SpringProvRep!$A:$A,Data!$A$22,SpringProvRep!$G:$G,"<>Coventry",SpringProvRep!$P:$P,Data!AE$17)/$BA$73*$A$73 -> 0 | AF75: =SUMIFS(SpringProvRep!$H:$H,SpringProvRep!$A:$A,Data!$A$22,SpringProvRep!$G:$G,"<>Coventry",SpringProvRep!$P:$P,Data!AF$17)/$BA$73*$A$73 -> 112 | AG75: =SUMIFS(SpringProvRep!$H:$H,SpringProvRep!$A:$A,Data!$A$22,SpringProvRep!$G:$G,"<>Coventry",SpringProvRep!$P:$P,Data!AG$17)/$BA$73*$A$73 -> 56 | AH75: =SUMIFS(SpringProvRep!$H:$H,SpringProvRep!$A:$A,Data!$A$22,SpringProvRep!$G:$G,"<>Coventry",SpringProvRep!$P:$P,Data!AH$17)/$BA$73*$A$73 -> 0 | AI75: =SUMIFS(SpringProvRep!$H:$H,SpringProvRep!$A:$A,Data!$A$22,SpringProvRep!$G:$G,"<>Coventry",SpringProvRep!$P:$P,Data!AI$17)/$BA$73*$A$73 -> 0 | AJ75: =SUMIFS(SpringProvRep!$H:$H,SpringProvRep!$A:$A,Data!$A$22,SpringProvRep!$G:$G,"<>Coventry",SpringProvRep!$P:$P,Data!AJ$17)/$BA$73*$A$73 -> 0 | AK75: =SUMIFS(SpringProvRep!$H:$H,SpringProvRep!$A:$A,Data!$A$22,SpringProvRep!$G:$G,"<>Coventry",SpringProvRep!$P:$P,Data!AK$17)/$BA$73*$A$73 -> 0 | AL75: =SUMIFS(SpringProvRep!$H:$H,SpringProvRep!$A:$A,Data!$A$22,SpringProvRep!$G:$G,"<>Coventry",SpringProvRep!$P:$P,Data!AL$17)/$BA$73*$A$73 -> 56 | AM75: =SUMIFS(SpringProvRep!$H:$H,SpringProvRep!$A:$A,Data!$A$22,SpringProvRep!$G:$G,"<>Coventry",SpringProvRep!$P:$P,Data!AM$17)/$BA$73*$A$73 -> 0 | AN75: =SUMIFS(SpringProvRep!$H:$H,SpringProvRep!$A:$A,Data!$A$22,SpringProvRep!$G:$G,"<>Coventry",SpringProvRep!$P:$P,Data!AN$17)/$BA$73*$A$73 -> 0 | AO75: =SUMIFS(SpringProvRep!$H:$H,SpringProvRep!$A:$A,Data!$A$22,SpringProvRep!$G:$G,"<>Coventry",SpringProvRep!$P:$P,Data!AO$17)/$BA$73*$A$73 -> 0 | AP75: =SUMIFS(SpringProvRep!$H:$H,SpringProvRep!$A:$A,Data!$A$22,SpringProvRep!$G:$G,"<>Coventry",SpringProvRep!$P:$P,Data!AP$17)/$BA$73*$A$73 -> 0 | AQ75: =SUMIFS(SpringProvRep!$H:$H,SpringProvRep!$A:$A,Data!$A$22,SpringProvRep!$G:$G,"<>Coventry",SpringProvRep!$P:$P,Data!AQ$17)/$BA$73*$A$73 -> 0 | AR75: =SUM(Z75:AQ75)/$A$73 -> 4 | AS75: 14071.91247 | AT75: 393333.0629 | AU75: =AR75+W75 -> 102 | AV75: =AU75-AW75 -> 2 | AW75: 100 | AX75: =[5]Data!$AU50 -> 101 | AY75: 100 | BB75: =($M$5-$AU$75)*$A$73 -> -112 | BC75: 5712 | BD75: =$BB$75/$BC$75*D75 -> 0 | BE75: =$BB$75/$BC$75*E75 -> 0 | BF75: 0 | BG75: 0 | BH75: 0 | BI75: 0 | BJ75: 0 | BK75: -66.98039216 | BL75: -5.490196078 | BM75: 0 | BN75: 0 | BO75: -4.392156863 | BP75: 0 | BQ75: -27.45098039 | BR75: -2.196078431 | BS75: 0 | BT75: 0 | BU75: -1.098039216 | BV75: 0 | BX75: =$BB$75/$BC$75*Y75 -> 0 | BY75: =$BB$75/$BC$75*Z75 -> 0 | BZ75: 0 | CA75: 0 | CB75: 0 | CC75: 0 | CD75: 0 | CE75: -2.196078431 | CF75: -1.098039216 | CG75: 0 | CH75: 0 | CI75: 0 | CJ75: 0 | CK75: -1.098039216 | CL75: 0 | CM75: 0 | CN75: 0 | CO75: 0 | CP75: 0
A76: 3 | B76: RiverBank | C76: 50 | D76: 0 | E76: =SUMIFS(SpringProvRep!$H:$H,SpringProvRep!$A:$A,Data!$A$23,SpringProvRep!$G:$G,"Coventry",SpringProvRep!$P:$P,Data!E$17)/$BA$73*$A$73 -> 0 | F76: =SUMIFS(SpringProvRep!$H:$H,SpringProvRep!$A:$A,Data!$A$23,SpringProvRep!$G:$G,"Coventry",SpringProvRep!$P:$P,Data!F$17)/$BA$73*$A$73 -> 0 | G76: =SUMIFS(SpringProvRep!$H:$H,SpringProvRep!$A:$A,Data!$A$23,SpringProvRep!$G:$G,"Coventry",SpringProvRep!$P:$P,Data!G$17)/$BA$73*$A$73 -> 560 | H76: =SUMIFS(SpringProvRep!$H:$H,SpringProvRep!$A:$A,Data!$A$23,SpringProvRep!$G:$G,"Coventry",SpringProvRep!$P:$P,Data!H$17)/$BA$73*$A$73 -> 840 | I76: =SUMIFS(SpringProvRep!$H:$H,SpringProvRep!$A:$A,Data!$A$23,SpringProvRep!$G:$G,"Coventry",SpringProvRep!$P:$P,Data!I$17)/$BA$73*$A$73 -> 0 | J76: =SUMIFS(SpringProvRep!$H:$H,SpringProvRep!$A:$A,Data!$A$23,SpringProvRep!$G:$G,"Coventry",SpringProvRep!$P:$P,Data!J$17)/$BA$73*$A$73 -> 0 | K76: =SUMIFS(SpringProvRep!$H:$H,SpringProvRep!$A:$A,Data!$A$23,SpringProvRep!$G:$G,"Coventry",SpringProvRep!$P:$P,Data!K$17)/$BA$73*$A$73 -> 3864 | L76: =SUMIFS(SpringProvRep!$H:$H,SpringProvRep!$A:$A,Data!$A$23,SpringProvRep!$G:$G,"Coventry",SpringProvRep!$P:$P,Data!L$17)/$BA$73*$A$73 -> 3024 | M76: =SUMIFS(SpringProvRep!$H:$H,SpringProvRep!$A:$A,Data!$A$23,SpringProvRep!$G:$G,"Coventry",SpringProvRep!$P:$P,Data!M$17)/$BA$73*$A$73 -> 112 | N76: =SUMIFS(SpringProvRep!$H:$H,SpringProvRep!$A:$A,Data!$A$23,SpringProvRep!$G:$G,"Coventry",SpringProvRep!$P:$P,Data!N$17)/$BA$73*$A$73 -> 392 | O76: =SUMIFS(SpringProvRep!$H:$H,SpringProvRep!$A:$A,Data!$A$23,SpringProvRep!$G:$G,"Coventry",SpringProvRep!$P:$P,Data!O$17)/$BA$73*$A$73 -> 224 | P76: =SUMIFS(SpringProvRep!$H:$H,SpringProvRep!$A:$A,Data!$A$23,SpringProvRep!$G:$G,"Coventry",SpringProvRep!$P:$P,Data!P$17)/$BA$73*$A$73 -> 168 | Q76: =SUMIFS(SpringProvRep!$H:$H,SpringProvRep!$A:$A,Data!$A$23,SpringProvRep!$G:$G,"Coventry",SpringProvRep!$P:$P,Data!Q$17)/$BA$73*$A$73 -> 1344 | R76: =SUMIFS(SpringProvRep!$H:$H,SpringProvRep!$A:$A,Data!$A$23,SpringProvRep!$G:$G,"Coventry",SpringProvRep!$P:$P,Data!R$17)/$BA$73*$A$73 -> 280 | S76: =SUMIFS(SpringProvRep!$H:$H,SpringProvRep!$A:$A,Data!$A$23,SpringProvRep!$G:$G,"Coventry",SpringProvRep!$P:$P,Data!S$17)/$BA$73*$A$73 -> 0 | T76: =SUMIFS(SpringProvRep!$H:$H,SpringProvRep!$A:$A,Data!$A$23,SpringProvRep!$G:$G,"Coventry",SpringProvRep!$P:$P,Data!T$17)/$BA$73*$A$73 -> 112 | U76: =SUMIFS(SpringProvRep!$H:$H,SpringProvRep!$A:$A,Data!$A$23,SpringProvRep!$G:$G,"Coventry",SpringProvRep!$P:$P,Data!U$17)/$BA$73*$A$73 -> 0 | V76: =SUMIFS(SpringProvRep!$H:$H,SpringProvRep!$A:$A,Data!$A$23,SpringProvRep!$G:$G,"Coventry",SpringProvRep!$P:$P,Data!V$17)/$BA$73*$A$73 -> 0 | W76: 195 | X76: 645669.2138 | Y76: 0 | Z76: =SUMIFS(SpringProvRep!$H:$H,SpringProvRep!$A:$A,Data!$A$23,SpringProvRep!$G:$G,"<>Coventry",SpringProvRep!$P:$P,Data!Z$17)/$BA$73*$A$73 -> 0 | AA76: =SUMIFS(SpringProvRep!$H:$H,SpringProvRep!$A:$A,Data!$A$23,SpringProvRep!$G:$G,"<>Coventry",SpringProvRep!$P:$P,Data!AA$17)/$BA$73*$A$73 -> 0 | AB76: =SUMIFS(SpringProvRep!$H:$H,SpringProvRep!$A:$A,Data!$A$23,SpringProvRep!$G:$G,"<>Coventry",SpringProvRep!$P:$P,Data!AB$17)/$BA$73*$A$73 -> 56 | AC76: =SUMIFS(SpringProvRep!$H:$H,SpringProvRep!$A:$A,Data!$A$23,SpringProvRep!$G:$G,"<>Coventry",SpringProvRep!$P:$P,Data!AC$17)/$BA$73*$A$73 -> 0 | AD76: =SUMIFS(SpringProvRep!$H:$H,SpringProvRep!$A:$A,Data!$A$23,SpringProvRep!$G:$G,"<>Coventry",SpringProvRep!$P:$P,Data!AD$17)/$BA$73*$A$73 -> 0 | AE76: =SUMIFS(SpringProvRep!$H:$H,SpringProvRep!$A:$A,Data!$A$23,SpringProvRep!$G:$G,"<>Coventry",SpringProvRep!$P:$P,Data!AE$17)/$BA$73*$A$73 -> 0 | AF76: =SUMIFS(SpringProvRep!$H:$H,SpringProvRep!$A:$A,Data!$A$23,SpringProvRep!$G:$G,"<>Coventry",SpringProvRep!$P:$P,Data!AF$17)/$BA$73*$A$73 -> 56 | AG76: =SUMIFS(SpringProvRep!$H:$H,SpringProvRep!$A:$A,Data!$A$23,SpringProvRep!$G:$G,"<>Coventry",SpringProvRep!$P:$P,Data!AG$17)/$BA$73*$A$73 -> 0 | AH76: =SUMIFS(SpringProvRep!$H:$H,SpringProvRep!$A:$A,Data!$A$23,SpringProvRep!$G:$G,"<>Coventry",SpringProvRep!$P:$P,Data!AH$17)/$BA$73*$A$73 -> 0 | AI76: =SUMIFS(SpringProvRep!$H:$H,SpringProvRep!$A:$A,Data!$A$23,SpringProvRep!$G:$G,"<>Coventry",SpringProvRep!$P:$P,Data!AI$17)/$BA$73*$A$73 -> 0 | AJ76: =SUMIFS(SpringProvRep!$H:$H,SpringProvRep!$A:$A,Data!$A$23,SpringProvRep!$G:$G,"<>Coventry",SpringProvRep!$P:$P,Data!AJ$17)/$BA$73*$A$73 -> 0 | AK76: =SUMIFS(SpringProvRep!$H:$H,SpringProvRep!$A:$A,Data!$A$23,SpringProvRep!$G:$G,"<>Coventry",SpringProvRep!$P:$P,Data!AK$17)/$BA$73*$A$73 -> 0 | AL76: =SUMIFS(SpringProvRep!$H:$H,SpringProvRep!$A:$A,Data!$A$23,SpringProvRep!$G:$G,"<>Coventry",SpringProvRep!$P:$P,Data!AL$17)/$BA$73*$A$73 -> 0 | AM76: =SUMIFS(SpringProvRep!$H:$H,SpringProvRep!$A:$A,Data!$A$23,SpringProvRep!$G:$G,"<>Coventry",SpringProvRep!$P:$P,Data!AM$17)/$BA$73*$A$73 -> 0 | AN76: =SUMIFS(SpringProvRep!$H:$H,SpringProvRep!$A:$A,Data!$A$23,SpringProvRep!$G:$G,"<>Coventry",SpringProvRep!$P:$P,Data!AN$17)/$BA$73*$A$73 -> 0 | AO76: =SUMIFS(SpringProvRep!$H:$H,SpringProvRep!$A:$A,Data!$A$23,SpringProvRep!$G:$G,"<>Coventry",SpringProvRep!$P:$P,Data!AO$17)/$BA$73*$A$73 -> 0 | AP76: =SUMIFS(SpringProvRep!$H:$H,SpringProvRep!$A:$A,Data!$A$23,SpringProvRep!$G:$G,"<>Coventry",SpringProvRep!$P:$P,Data!AP$17)/$BA$73*$A$73 -> 0 | AQ76: =SUMIFS(SpringProvRep!$H:$H,SpringProvRep!$A:$A,Data!$A$23,SpringProvRep!$G:$G,"<>Coventry",SpringProvRep!$P:$P,Data!AQ$17)/$BA$73*$A$73 -> 0 | AR76: 2 | AS76: 4020.545948 | AT76: 649689.7598 | AU76: 197 | AV76: -3 | AW76: 200 | AX76: =[5]Data!$AU51 -> 198.1016949 | AY76: 200 | BB76: =($M$6-$AU$76)*$A$73 -> 168 | BC76: 11032 | BD76: =$BB$76/$BC$76*D76 -> 0 | BE76: =$BB$76/$BC$76*E76 -> 0 | BF76: 0 | BG76: 8.527918782 | BH76: 12.79187817 | BI76: 0 | BJ76: 0 | BK76: 58.84263959 | BL76: 46.05076142 | BM76: 1.705583756 | BN76: 5.969543147 | BO76: 3.411167513 | BP76: 2.558375635 | BQ76: 20.46700508 | BR76: 4.263959391 | BS76: 0 | BT76: 1.705583756 | BU76: 0 | BV76: 0 | BX76: =$BB$76/$BC$76*Y76 -> 0 | BY76: =$BB$76/$BC$76*Z76 -> 0 | BZ76: 0 | CA76: 0.8527918782 | CB76: 0 | CC76: 0 | CD76: 0 | CE76: 0.8527918782 | CF76: 0 | CG76: 0 | CH76: 0 | CI76: 0 | CJ76: 0 | CK76: 0 | CL76: 0 | CM76: 0 | CN76: 0 | CO76: 0 | CP76: 0
A77: 4 | B77: Corley | C77: 50 | D77: 0 | E77: =SUMIFS(SpringProvRep!$H:$H,SpringProvRep!$A:$A,Data!$A$24,SpringProvRep!$G:$G,"Coventry",SpringProvRep!$P:$P,Data!E$17)/$BA$73*$A$73 -> 0 | F77: =SUMIFS(SpringProvRep!$H:$H,SpringProvRep!$A:$A,Data!$A$24,SpringProvRep!$G:$G,"Coventry",SpringProvRep!$P:$P,Data!F$17)/$BA$73*$A$73 -> 0 | G77: =SUMIFS(SpringProvRep!$H:$H,SpringProvRep!$A:$A,Data!$A$24,SpringProvRep!$G:$G,"Coventry",SpringProvRep!$P:$P,Data!G$17)/$BA$73*$A$73 -> 0 | H77: =SUMIFS(SpringProvRep!$H:$H,SpringProvRep!$A:$A,Data!$A$24,SpringProvRep!$G:$G,"Coventry",SpringProvRep!$P:$P,Data!H$17)/$BA$73*$A$73 -> 0 | I77: =SUMIFS(SpringProvRep!$H:$H,SpringProvRep!$A:$A,Data!$A$24,SpringProvRep!$G:$G,"Coventry",SpringProvRep!$P:$P,Data!I$17)/$BA$73*$A$73 -> 0 | J77: =SUMIFS(SpringProvRep!$H:$H,SpringProvRep!$A:$A,Data!$A$24,SpringProvRep!$G:$G,"Coventry",SpringProvRep!$P:$P,Data!J$17)/$BA$73*$A$73 -> 0 | K77: =SUMIFS(SpringProvRep!$H:$H,SpringProvRep!$A:$A,Data!$A$24,SpringProvRep!$G:$G,"Coventry",SpringProvRep!$P:$P,Data!K$17)/$BA$73*$A$73 -> 6216 | L77: =SUMIFS(SpringProvRep!$H:$H,SpringProvRep!$A:$A,Data!$A$24,SpringProvRep!$G:$G,"Coventry",SpringProvRep!$P:$P,Data!L$17)/$BA$73*$A$73 -> 168 | M77: =SUMIFS(SpringProvRep!$H:$H,SpringProvRep!$A:$A,Data!$A$24,SpringProvRep!$G:$G,"Coventry",SpringProvRep!$P:$P,Data!M$17)/$BA$73*$A$73 -> 336 | N77: =SUMIFS(SpringProvRep!$H:$H,SpringProvRep!$A:$A,Data!$A$24,SpringProvRep!$G:$G,"Coventry",SpringProvRep!$P:$P,Data!N$17)/$BA$73*$A$73 -> 0 | O77: =SUMIFS(SpringProvRep!$H:$H,SpringProvRep!$A:$A,Data!$A$24,SpringProvRep!$G:$G,"Coventry",SpringProvRep!$P:$P,Data!O$17)/$BA$73*$A$73 -> 224 | P77: =SUMIFS(SpringProvRep!$H:$H,SpringProvRep!$A:$A,Data!$A$24,SpringProvRep!$G:$G,"Coventry",SpringProvRep!$P:$P,Data!P$17)/$BA$73*$A$73 -> 0 | Q77: =SUMIFS(SpringProvRep!$H:$H,SpringProvRep!$A:$A,Data!$A$24,SpringProvRep!$G:$G,"Coventry",SpringProvRep!$P:$P,Data!Q$17)/$BA$73*$A$73 -> 952 | R77: =SUMIFS(SpringProvRep!$H:$H,SpringProvRep!$A:$A,Data!$A$24,SpringProvRep!$G:$G,"Coventry",SpringProvRep!$P:$P,Data!R$17)/$BA$73*$A$73 -> 0 | S77: =SUMIFS(SpringProvRep!$H:$H,SpringProvRep!$A:$A,Data!$A$24,SpringProvRep!$G:$G,"Coventry",SpringProvRep!$P:$P,Data!S$17)/$BA$73*$A$73 -> 0 | T77: =SUMIFS(SpringProvRep!$H:$H,SpringProvRep!$A:$A,Data!$A$24,SpringProvRep!$G:$G,"Coventry",SpringProvRep!$P:$P,Data!T$17)/$BA$73*$A$73 -> 0 | U77: =SUMIFS(SpringProvRep!$H:$H,SpringProvRep!$A:$A,Data!$A$24,SpringProvRep!$G:$G,"Coventry",SpringProvRep!$P:$P,Data!U$17)/$BA$73*$A$73 -> 0 | V77: =SUMIFS(SpringProvRep!$H:$H,SpringProvRep!$A:$A,Data!$A$24,SpringProvRep!$G:$G,"Coventry",SpringProvRep!$P:$P,Data!V$17)/$BA$73*$A$73 -> 0 | W77: 141 | X77: 488094.2281 | Y77: 0 | Z77: =SUMIFS(SpringProvRep!$H:$H,SpringProvRep!$A:$A,Data!$A$24,SpringProvRep!$G:$G,"<>Coventry",SpringProvRep!$P:$P,Data!Z$17)/$BA$73*$A$73 -> 0 | AA77: =SUMIFS(SpringProvRep!$H:$H,SpringProvRep!$A:$A,Data!$A$24,SpringProvRep!$G:$G,"<>Coventry",SpringProvRep!$P:$P,Data!AA$17)/$BA$73*$A$73 -> 0 | AB77: =SUMIFS(SpringProvRep!$H:$H,SpringProvRep!$A:$A,Data!$A$24,SpringProvRep!$G:$G,"<>Coventry",SpringProvRep!$P:$P,Data!AB$17)/$BA$73*$A$73 -> 0 | AC77: =SUMIFS(SpringProvRep!$H:$H,SpringProvRep!$A:$A,Data!$A$24,SpringProvRep!$G:$G,"<>Coventry",SpringProvRep!$P:$P,Data!AC$17)/$BA$73*$A$73 -> 0 | AD77: =SUMIFS(SpringProvRep!$H:$H,SpringProvRep!$A:$A,Data!$A$24,SpringProvRep!$G:$G,"<>Coventry",SpringProvRep!$P:$P,Data!AD$17)/$BA$73*$A$73 -> 0 | AE77: =SUMIFS(SpringProvRep!$H:$H,SpringProvRep!$A:$A,Data!$A$24,SpringProvRep!$G:$G,"<>Coventry",SpringProvRep!$P:$P,Data!AE$17)/$BA$73*$A$73 -> 0 | AF77: =SUMIFS(SpringProvRep!$H:$H,SpringProvRep!$A:$A,Data!$A$24,SpringProvRep!$G:$G,"<>Coventry",SpringProvRep!$P:$P,Data!AF$17)/$BA$73*$A$73 -> 56 | AG77: =SUMIFS(SpringProvRep!$H:$H,SpringProvRep!$A:$A,Data!$A$24,SpringProvRep!$G:$G,"<>Coventry",SpringProvRep!$P:$P,Data!AG$17)/$BA$73*$A$73 -> 0 | AH77: =SUMIFS(SpringProvRep!$H:$H,SpringProvRep!$A:$A,Data!$A$24,SpringProvRep!$G:$G,"<>Coventry",SpringProvRep!$P:$P,Data!AH$17)/$BA$73*$A$73 -> 0 | AI77: =SUMIFS(SpringProvRep!$H:$H,SpringProvRep!$A:$A,Data!$A$24,SpringProvRep!$G:$G,"<>Coventry",SpringProvRep!$P:$P,Data!AI$17)/$BA$73*$A$73 -> 0 | AJ77: =SUMIFS(SpringProvRep!$H:$H,SpringProvRep!$A:$A,Data!$A$24,SpringProvRep!$G:$G,"<>Coventry",SpringProvRep!$P:$P,Data!AJ$17)/$BA$73*$A$73 -> 0 | AK77: =SUMIFS(SpringProvRep!$H:$H,SpringProvRep!$A:$A,Data!$A$24,SpringProvRep!$G:$G,"<>Coventry",SpringProvRep!$P:$P,Data!AK$17)/$BA$73*$A$73 -> 0 | AL77: =SUMIFS(SpringProvRep!$H:$H,SpringProvRep!$A:$A,Data!$A$24,SpringProvRep!$G:$G,"<>Coventry",SpringProvRep!$P:$P,Data!AL$17)/$BA$73*$A$73 -> 0 | AM77: =SUMIFS(SpringProvRep!$H:$H,SpringProvRep!$A:$A,Data!$A$24,SpringProvRep!$G:$G,"<>Coventry",SpringProvRep!$P:$P,Data!AM$17)/$BA$73*$A$73 -> 0 | AN77: =SUMIFS(SpringProvRep!$H:$H,SpringProvRep!$A:$A,Data!$A$24,SpringProvRep!$G:$G,"<>Coventry",SpringProvRep!$P:$P,Data!AN$17)/$BA$73*$A$73 -> 0 | AO77: =SUMIFS(SpringProvRep!$H:$H,SpringProvRep!$A:$A,Data!$A$24,SpringProvRep!$G:$G,"<>Coventry",SpringProvRep!$P:$P,Data!AO$17)/$BA$73*$A$73 -> 0 | AP77: =SUMIFS(SpringProvRep!$H:$H,SpringProvRep!$A:$A,Data!$A$24,SpringProvRep!$G:$G,"<>Coventry",SpringProvRep!$P:$P,Data!AP$17)/$BA$73*$A$73 -> 0 | AQ77: =SUMIFS(SpringProvRep!$H:$H,SpringProvRep!$A:$A,Data!$A$24,SpringProvRep!$G:$G,"<>Coventry",SpringProvRep!$P:$P,Data!AQ$17)/$BA$73*$A$73 -> 0 | AR77: 1 | AS77: 3092.727398 | AT77: 491186.9555 | AU77: 142 | AV77: -13 | AW77: 155 | AX77: =[5]Data!$AU52 -> 148.2223098 | AY77: 140 | BB77: =($M$7-$AU$77)*$A$73 -> 728 | BC77: 7952 | BD77: =$BB$77/$BC$77*D77 -> 0 | BE77: =$BB$77/$BC$77*E77 -> 0 | BF77: 0 | BG77: 0 | BH77: 0 | BI77: 0 | BJ77: 0 | BK77: 569.0704225 | BL77: 15.38028169 | BM77: 30.76056338 | BN77: 0 | BO77: 20.50704225 | BP77: 0 | BQ77: 87.15492958 | BR77: 0 | BS77: 0 | BT77: 0 | BU77: 0 | BV77: 0 | BX77: =$BB$77/$BC$77*Y77 -> 0 | BY77: =$BB$77/$BC$77*Z77 -> 0 | BZ77: 0 | CA77: 0 | CB77: 0 | CC77: 0 | CD77: 0 | CE77: 5.126760563 | CF77: 0 | CG77: 0 | CH77: 0 | CI77: 0 | CJ77: 0 | CK77: 0 | CL77: 0 | CM77: 0 | CN77: 0 | CO77: 0 | CP77: 0
A78: 5 | B78: Tiverton | C78: 50 | D78: 0 | E78: =SUMIFS(SpringProvRep!$H:$H,SpringProvRep!$A:$A,Data!$A$25,SpringProvRep!$G:$G,"Coventry",SpringProvRep!$P:$P,Data!E$17)/$BA$73*$A$73 -> 0 | F78: =SUMIFS(SpringProvRep!$H:$H,SpringProvRep!$A:$A,Data!$A$25,SpringProvRep!$G:$G,"Coventry",SpringProvRep!$P:$P,Data!F$17)/$BA$73*$A$73 -> 0 | G78: =SUMIFS(SpringProvRep!$H:$H,SpringProvRep!$A:$A,Data!$A$25,SpringProvRep!$G:$G,"Coventry",SpringProvRep!$P:$P,Data!G$17)/$BA$73*$A$73 -> 0 | H78: =SUMIFS(SpringProvRep!$H:$H,SpringProvRep!$A:$A,Data!$A$25,SpringProvRep!$G:$G,"Coventry",SpringProvRep!$P:$P,Data!H$17)/$BA$73*$A$73 -> 0 | I78: =SUMIFS(SpringProvRep!$H:$H,SpringProvRep!$A:$A,Data!$A$25,SpringProvRep!$G:$G,"Coventry",SpringProvRep!$P:$P,Data!I$17)/$BA$73*$A$73 -> 0 | J78: =SUMIFS(SpringProvRep!$H:$H,SpringProvRep!$A:$A,Data!$A$25,SpringProvRep!$G:$G,"Coventry",SpringProvRep!$P:$P,Data!J$17)/$BA$73*$A$73 -> 0 | K78: =SUMIFS(SpringProvRep!$H:$H,SpringProvRep!$A:$A,Data!$A$25,SpringProvRep!$G:$G,"Coventry",SpringProvRep!$P:$P,Data!K$17)/$BA$73*$A$73 -> 3584 | L78: =SUMIFS(SpringProvRep!$H:$H,SpringProvRep!$A:$A,Data!$A$25,SpringProvRep!$G:$G,"Coventry",SpringProvRep!$P:$P,Data!L$17)/$BA$73*$A$73 -> 728 | M78: =SUMIFS(SpringProvRep!$H:$H,SpringProvRep!$A:$A,Data!$A$25,SpringProvRep!$G:$G,"Coventry",SpringProvRep!$P:$P,Data!M$17)/$BA$73*$A$73 -> 0 | N78: =SUMIFS(SpringProvRep!$H:$H,SpringProvRep!$A:$A,Data!$A$25,SpringProvRep!$G:$G,"Coventry",SpringProvRep!$P:$P,Data!N$17)/$BA$73*$A$73 -> 336 | O78: =SUMIFS(SpringProvRep!$H:$H,SpringProvRep!$A:$A,Data!$A$25,SpringProvRep!$G:$G,"Coventry",SpringProvRep!$P:$P,Data!O$17)/$BA$73*$A$73 -> 336 | P78: =SUMIFS(SpringProvRep!$H:$H,SpringProvRep!$A:$A,Data!$A$25,SpringProvRep!$G:$G,"Coventry",SpringProvRep!$P:$P,Data!P$17)/$BA$73*$A$73 -> 0 | Q78: =SUMIFS(SpringProvRep!$H:$H,SpringProvRep!$A:$A,Data!$A$25,SpringProvRep!$G:$G,"Coventry",SpringProvRep!$P:$P,Data!Q$17)/$BA$73*$A$73 -> 952 | R78: =SUMIFS(SpringProvRep!$H:$H,SpringProvRep!$A:$A,Data!$A$25,SpringProvRep!$G:$G,"Coventry",SpringProvRep!$P:$P,Data!R$17)/$BA$73*$A$73 -> 392 | S78: =SUMIFS(SpringProvRep!$H:$H,SpringProvRep!$A:$A,Data!$A$25,SpringProvRep!$G:$G,"Coventry",SpringProvRep!$P:$P,Data!S$17)/$BA$73*$A$73 -> 0 | T78: =SUMIFS(SpringProvRep!$H:$H,SpringProvRep!$A:$A,Data!$A$25,SpringProvRep!$G:$G,"Coventry",SpringProvRep!$P:$P,Data!T$17)/$BA$73*$A$73 -> 224 | U78: =SUMIFS(SpringProvRep!$H:$H,SpringProvRep!$A:$A,Data!$A$25,SpringProvRep!$G:$G,"Coventry",SpringProvRep!$P:$P,Data!U$17)/$BA$73*$A$73 -> 0 | V78: =SUMIFS(SpringProvRep!$H:$H,SpringProvRep!$A:$A,Data!$A$25,SpringProvRep!$G:$G,"Coventry",SpringProvRep!$P:$P,Data!V$17)/$BA$73*$A$73 -> 0 | W78: 117 | X78: 436167.3173 | Y78: 0 | Z78: =SUMIFS(SpringProvRep!$H:$H,SpringProvRep!$A:$A,Data!$A$25,SpringProvRep!$G:$G,"<>Coventry",SpringProvRep!$P:$P,Data!Z$17)/$BA$73*$A$73 -> 0 | AA78: =SUMIFS(SpringProvRep!$H:$H,SpringProvRep!$A:$A,Data!$A$25,SpringProvRep!$G:$G,"<>Coventry",SpringProvRep!$P:$P,Data!AA$17)/$BA$73*$A$73 -> 0 | AB78: =SUMIFS(SpringProvRep!$H:$H,SpringProvRep!$A:$A,Data!$A$25,SpringProvRep!$G:$G,"<>Coventry",SpringProvRep!$P:$P,Data!AB$17)/$BA$73*$A$73 -> 0 | AC78: =SUMIFS(SpringProvRep!$H:$H,SpringProvRep!$A:$A,Data!$A$25,SpringProvRep!$G:$G,"<>Coventry",SpringProvRep!$P:$P,Data!AC$17)/$BA$73*$A$73 -> 0 | AD78: =SUMIFS(SpringProvRep!$H:$H,SpringProvRep!$A:$A,Data!$A$25,SpringProvRep!$G:$G,"<>Coventry",SpringProvRep!$P:$P,Data!AD$17)/$BA$73*$A$73 -> 0 | AE78: =SUMIFS(SpringProvRep!$H:$H,SpringProvRep!$A:$A,Data!$A$25,SpringProvRep!$G:$G,"<>Coventry",SpringProvRep!$P:$P,Data!AE$17)/$BA$73*$A$73 -> 0 | AF78: =SUMIFS(SpringProvRep!$H:$H,SpringProvRep!$A:$A,Data!$A$25,SpringProvRep!$G:$G,"<>Coventry",SpringProvRep!$P:$P,Data!AF$17)/$BA$73*$A$73 -> 56 | AG78: =SUMIFS(SpringProvRep!$H:$H,SpringProvRep!$A:$A,Data!$A$25,SpringProvRep!$G:$G,"<>Coventry",SpringProvRep!$P:$P,Data!AG$17)/$BA$73*$A$73 -> 0 | AH78: =SUMIFS(SpringProvRep!$H:$H,SpringProvRep!$A:$A,Data!$A$25,SpringProvRep!$G:$G,"<>Coventry",SpringProvRep!$P:$P,Data!AH$17)/$BA$73*$A$73 -> 0 | AI78: =SUMIFS(SpringProvRep!$H:$H,SpringProvRep!$A:$A,Data!$A$25,SpringProvRep!$G:$G,"<>Coventry",SpringProvRep!$P:$P,Data!AI$17)/$BA$73*$A$73 -> 0 | AJ78: =SUMIFS(SpringProvRep!$H:$H,SpringProvRep!$A:$A,Data!$A$25,SpringProvRep!$G:$G,"<>Coventry",SpringProvRep!$P:$P,Data!AJ$17)/$BA$73*$A$73 -> 0 | AK78: =SUMIFS(SpringProvRep!$H:$H,SpringProvRep!$A:$A,Data!$A$25,SpringProvRep!$G:$G,"<>Coventry",SpringProvRep!$P:$P,Data!AK$17)/$BA$73*$A$73 -> 0 | AL78: =SUMIFS(SpringProvRep!$H:$H,SpringProvRep!$A:$A,Data!$A$25,SpringProvRep!$G:$G,"<>Coventry",SpringProvRep!$P:$P,Data!AL$17)/$BA$73*$A$73 -> 56 | AM78: =SUMIFS(SpringProvRep!$H:$H,SpringProvRep!$A:$A,Data!$A$25,SpringProvRep!$G:$G,"<>Coventry",SpringProvRep!$P:$P,Data!AM$17)/$BA$73*$A$73 -> 0 | AN78: =SUMIFS(SpringProvRep!$H:$H,SpringProvRep!$A:$A,Data!$A$25,SpringProvRep!$G:$G,"<>Coventry",SpringProvRep!$P:$P,Data!AN$17)/$BA$73*$A$73 -> 0 | AO78: =SUMIFS(SpringProvRep!$H:$H,SpringProvRep!$A:$A,Data!$A$25,SpringProvRep!$G:$G,"<>Coventry",SpringProvRep!$P:$P,Data!AO$17)/$BA$73*$A$73 -> 0 | AP78: =SUMIFS(SpringProvRep!$H:$H,SpringProvRep!$A:$A,Data!$A$25,SpringProvRep!$G:$G,"<>Coventry",SpringProvRep!$P:$P,Data!AP$17)/$BA$73*$A$73 -> 0 | AQ78: =SUMIFS(SpringProvRep!$H:$H,SpringProvRep!$A:$A,Data!$A$25,SpringProvRep!$G:$G,"<>Coventry",SpringProvRep!$P:$P,Data!AQ$17)/$BA$73*$A$73 -> 0 | AR78: 2 | AS78: 8118.41066 | AT78: 444285.728 | AU78: 119 | AV78: -2 | AW78: 121 | AX78: =[5]Data!$AU53 -> 118.25 | AY78: 118 | BB78: =($M$8-$AU$78)*$A$73 -> 112 | BC78: 6664 | BD78: =$BB$78/$BC$78*D78 -> 0 | BE78: =$BB$78/$BC$78*E78 -> 0 | BF78: 0 | BG78: 0 | BH78: 0 | BI78: 0 | BJ78: 0 | BK78: 60.23529412 | BL78: 12.23529412 | BM78: 0 | BN78: 5.647058824 | BO78: 5.647058824 | BP78: 0 | BQ78: 16 | BR78: 6.588235294 | BS78: 0 | BT78: 3.764705882 | BU78: 0 | BV78: 0 | BX78: =$BB$78/$BC$78*Y78 -> 0 | BY78: =$BB$78/$BC$78*Z78 -> 0 | BZ78: 0 | CA78: 0 | CB78: 0 | CC78: 0 | CD78: 0 | CE78: 0.9411764706 | CF78: 0 | CG78: 0 | CH78: 0 | CI78: 0 | CJ78: 0 | CK78: 0.9411764706 | CL78: 0 | CM78: 0 | CN78: 0 | CO78: 0 | CP78: 0
A79: 6 | B79: Baginton Fields | C79: 50 | D79: 0 | E79: =SUMIFS(SpringProvRep!$H:$H,SpringProvRep!$A:$A,Data!$A$26,SpringProvRep!$G:$G,"Coventry",SpringProvRep!$P:$P,Data!E$17)/$BA$73*$A$73 -> 0 | F79: =SUMIFS(SpringProvRep!$H:$H,SpringProvRep!$A:$A,Data!$A$26,SpringProvRep!$G:$G,"Coventry",SpringProvRep!$P:$P,Data!F$17)/$BA$73*$A$73 -> 0 | G79: =SUMIFS(SpringProvRep!$H:$H,SpringProvRep!$A:$A,Data!$A$26,SpringProvRep!$G:$G,"Coventry",SpringProvRep!$P:$P,Data!G$17)/$BA$73*$A$73 -> 0 | H79: =SUMIFS(SpringProvRep!$H:$H,SpringProvRep!$A:$A,Data!$A$26,SpringProvRep!$G:$G,"Coventry",SpringProvRep!$P:$P,Data!H$17)/$BA$73*$A$73 -> 0 | I79: =SUMIFS(SpringProvRep!$H:$H,SpringProvRep!$A:$A,Data!$A$26,SpringProvRep!$G:$G,"Coventry",SpringProvRep!$P:$P,Data!I$17)/$BA$73*$A$73 -> 0 | J79: =SUMIFS(SpringProvRep!$H:$H,SpringProvRep!$A:$A,Data!$A$26,SpringProvRep!$G:$G,"Coventry",SpringProvRep!$P:$P,Data!J$17)/$BA$73*$A$73 -> 0 | K79: =SUMIFS(SpringProvRep!$H:$H,SpringProvRep!$A:$A,Data!$A$26,SpringProvRep!$G:$G,"Coventry",SpringProvRep!$P:$P,Data!K$17)/$BA$73*$A$73 -> 1680 | L79: =SUMIFS(SpringProvRep!$H:$H,SpringProvRep!$A:$A,Data!$A$26,SpringProvRep!$G:$G,"Coventry",SpringProvRep!$P:$P,Data!L$17)/$BA$73*$A$73 -> 2352 | M79: =SUMIFS(SpringProvRep!$H:$H,SpringProvRep!$A:$A,Data!$A$26,SpringProvRep!$G:$G,"Coventry",SpringProvRep!$P:$P,Data!M$17)/$BA$73*$A$73 -> 0 | N79: =SUMIFS(SpringProvRep!$H:$H,SpringProvRep!$A:$A,Data!$A$26,SpringProvRep!$G:$G,"Coventry",SpringProvRep!$P:$P,Data!N$17)/$BA$73*$A$73 -> 56 | O79: =SUMIFS(SpringProvRep!$H:$H,SpringProvRep!$A:$A,Data!$A$26,SpringProvRep!$G:$G,"Coventry",SpringProvRep!$P:$P,Data!O$17)/$BA$73*$A$73 -> 560 | P79: =SUMIFS(SpringProvRep!$H:$H,SpringProvRep!$A:$A,Data!$A$26,SpringProvRep!$G:$G,"Coventry",SpringProvRep!$P:$P,Data!P$17)/$BA$73*$A$73 -> 0 | Q79: =SUMIFS(SpringProvRep!$H:$H,SpringProvRep!$A:$A,Data!$A$26,SpringProvRep!$G:$G,"Coventry",SpringProvRep!$P:$P,Data!Q$17)/$BA$73*$A$73 -> 1512 | R79: =SUMIFS(SpringProvRep!$H:$H,SpringProvRep!$A:$A,Data!$A$26,SpringProvRep!$G:$G,"Coventry",SpringProvRep!$P:$P,Data!R$17)/$BA$73*$A$73 -> 672 | S79: =SUMIFS(SpringProvRep!$H:$H,SpringProvRep!$A:$A,Data!$A$26,SpringProvRep!$G:$G,"Coventry",SpringProvRep!$P:$P,Data!S$17)/$BA$73*$A$73 -> 0 | T79: =SUMIFS(SpringProvRep!$H:$H,SpringProvRep!$A:$A,Data!$A$26,SpringProvRep!$G:$G,"Coventry",SpringProvRep!$P:$P,Data!T$17)/$BA$73*$A$73 -> 112 | U79: =SUMIFS(SpringProvRep!$H:$H,SpringProvRep!$A:$A,Data!$A$26,SpringProvRep!$G:$G,"Coventry",SpringProvRep!$P:$P,Data!U$17)/$BA$73*$A$73 -> 0 | V79: =SUMIFS(SpringProvRep!$H:$H,SpringProvRep!$A:$A,Data!$A$26,SpringProvRep!$G:$G,"Coventry",SpringProvRep!$P:$P,Data!V$17)/$BA$73*$A$73 -> 0 | W79: 124 | X79: 486408.7005 | Y79: 0 | Z79: =SUMIFS(SpringProvRep!$H:$H,SpringProvRep!$A:$A,Data!$A$26,SpringProvRep!$G:$G,"<>Coventry",SpringProvRep!$P:$P,Data!Z$17)/$BA$73*$A$73 -> 0 | AA79: =SUMIFS(SpringProvRep!$H:$H,SpringProvRep!$A:$A,Data!$A$26,SpringProvRep!$G:$G,"<>Coventry",SpringProvRep!$P:$P,Data!AA$17)/$BA$73*$A$73 -> 0 | AB79: =SUMIFS(SpringProvRep!$H:$H,SpringProvRep!$A:$A,Data!$A$26,SpringProvRep!$G:$G,"<>Coventry",SpringProvRep!$P:$P,Data!AB$17)/$BA$73*$A$73 -> 0 | AC79: =SUMIFS(SpringProvRep!$H:$H,SpringProvRep!$A:$A,Data!$A$26,SpringProvRep!$G:$G,"<>Coventry",SpringProvRep!$P:$P,Data!AC$17)/$BA$73*$A$73 -> 0 | AD79: =SUMIFS(SpringProvRep!$H:$H,SpringProvRep!$A:$A,Data!$A$26,SpringProvRep!$G:$G,"<>Coventry",SpringProvRep!$P:$P,Data!AD$17)/$BA$73*$A$73 -> 0 | AE79: =SUMIFS(SpringProvRep!$H:$H,SpringProvRep!$A:$A,Data!$A$26,SpringProvRep!$G:$G,"<>Coventry",SpringProvRep!$P:$P,Data!AE$17)/$BA$73*$A$73 -> 0 | AF79: =SUMIFS(SpringProvRep!$H:$H,SpringProvRep!$A:$A,Data!$A$26,SpringProvRep!$G:$G,"<>Coventry",SpringProvRep!$P:$P,Data!AF$17)/$BA$73*$A$73 -> 0 | AG79: =SUMIFS(SpringProvRep!$H:$H,SpringProvRep!$A:$A,Data!$A$26,SpringProvRep!$G:$G,"<>Coventry",SpringProvRep!$P:$P,Data!AG$17)/$BA$73*$A$73 -> 112 | AH79: =SUMIFS(SpringProvRep!$H:$H,SpringProvRep!$A:$A,Data!$A$26,SpringProvRep!$G:$G,"<>Coventry",SpringProvRep!$P:$P,Data!AH$17)/$BA$73*$A$73 -> 0 | AI79: =SUMIFS(SpringProvRep!$H:$H,SpringProvRep!$A:$A,Data!$A$26,SpringProvRep!$G:$G,"<>Coventry",SpringProvRep!$P:$P,Data!AI$17)/$BA$73*$A$73 -> 0 | AJ79: =SUMIFS(SpringProvRep!$H:$H,SpringProvRep!$A:$A,Data!$A$26,SpringProvRep!$G:$G,"<>Coventry",SpringProvRep!$P:$P,Data!AJ$17)/$BA$73*$A$73 -> 0 | AK79: =SUMIFS(SpringProvRep!$H:$H,SpringProvRep!$A:$A,Data!$A$26,SpringProvRep!$G:$G,"<>Coventry",SpringProvRep!$P:$P,Data!AK$17)/$BA$73*$A$73 -> 0 | AL79: =SUMIFS(SpringProvRep!$H:$H,SpringProvRep!$A:$A,Data!$A$26,SpringProvRep!$G:$G,"<>Coventry",SpringProvRep!$P:$P,Data!AL$17)/$BA$73*$A$73 -> 0 | AM79: =SUMIFS(SpringProvRep!$H:$H,SpringProvRep!$A:$A,Data!$A$26,SpringProvRep!$G:$G,"<>Coventry",SpringProvRep!$P:$P,Data!AM$17)/$BA$73*$A$73 -> 0 | AN79: =SUMIFS(SpringProvRep!$H:$H,SpringProvRep!$A:$A,Data!$A$26,SpringProvRep!$G:$G,"<>Coventry",SpringProvRep!$P:$P,Data!AN$17)/$BA$73*$A$73 -> 0 | AO79: =SUMIFS(SpringProvRep!$H:$H,SpringProvRep!$A:$A,Data!$A$26,SpringProvRep!$G:$G,"<>Coventry",SpringProvRep!$P:$P,Data!AO$17)/$BA$73*$A$73 -> 0 | AP79: =SUMIFS(SpringProvRep!$H:$H,SpringProvRep!$A:$A,Data!$A$26,SpringProvRep!$G:$G,"<>Coventry",SpringProvRep!$P:$P,Data!AP$17)/$BA$73*$A$73 -> 0 | AQ79: =SUMIFS(SpringProvRep!$H:$H,SpringProvRep!$A:$A,Data!$A$26,SpringProvRep!$G:$G,"<>Coventry",SpringProvRep!$P:$P,Data!AQ$17)/$BA$73*$A$73 -> 0 | AR79: 2 | AS79: 5721.54883 | AT79: 492130.2493 | AU79: 126 | AV79: 0 | AW79: 126 | AX79: =[5]Data!$AU54 -> 124.9137931 | AY79: 126 | BB79: =($M$9-$AU$79)*$A$73 -> 0 | BC79: 7056 | BD79: =$BB$79/$BC$79*D79 -> 0 | BE79: =$BB$79/$BC$79*E79 -> 0 | BF79: 0 | BG79: 0 | BH79: 0 | BI79: 0 | BJ79: 0 | BK79: 0 | BL79: 0 | BM79: 0 | BN79: 0 | BO79: 0 | BP79: 0 | BQ79: 0 | BR79: 0 | BS79: 0 | BT79: 0 | BU79: 0 | BV79: 0 | BX79: =$BB$79/$BC$79*Y79 -> 0 | BY79: =$BB$79/$BC$79*Z79 -> 0 | BZ79: 0 | CA79: 0 | CB79: 0 | CC79: 0 | CD79: 0 | CE79: 0 | CF79: 0 | CG79: 0 | CH79: 0 | CI79: 0 | CJ79: 0 | CK79: 0 | CL79: 0 | CM79: 0 | CN79: 0 | CO79: 0 | CP79: 0
A80: 7 | B80: Sherbourne Fields | C80: 50 | D80: 0 | E80: =SUMIFS(SpringProvRep!$H:$H,SpringProvRep!$A:$A,Data!$A$27,SpringProvRep!$G:$G,"Coventry",SpringProvRep!$P:$P,Data!E$17)/$BA$73*$A$73 -> 0 | F80: =SUMIFS(SpringProvRep!$H:$H,SpringProvRep!$A:$A,Data!$A$27,SpringProvRep!$G:$G,"Coventry",SpringProvRep!$P:$P,Data!F$17)/$BA$73*$A$73 -> 0 | G80: =SUMIFS(SpringProvRep!$H:$H,SpringProvRep!$A:$A,Data!$A$27,SpringProvRep!$G:$G,"Coventry",SpringProvRep!$P:$P,Data!G$17)/$BA$73*$A$73 -> 0 | H80: =SUMIFS(SpringProvRep!$H:$H,SpringProvRep!$A:$A,Data!$A$27,SpringProvRep!$G:$G,"Coventry",SpringProvRep!$P:$P,Data!H$17)/$BA$73*$A$73 -> 56 | I80: =SUMIFS(SpringProvRep!$H:$H,SpringProvRep!$A:$A,Data!$A$27,SpringProvRep!$G:$G,"Coventry",SpringProvRep!$P:$P,Data!I$17)/$BA$73*$A$73 -> 0 | J80: =SUMIFS(SpringProvRep!$H:$H,SpringProvRep!$A:$A,Data!$A$27,SpringProvRep!$G:$G,"Coventry",SpringProvRep!$P:$P,Data!J$17)/$BA$73*$A$73 -> 0 | K80: =SUMIFS(SpringProvRep!$H:$H,SpringProvRep!$A:$A,Data!$A$27,SpringProvRep!$G:$G,"Coventry",SpringProvRep!$P:$P,Data!K$17)/$BA$73*$A$73 -> 4480 | L80: =SUMIFS(SpringProvRep!$H:$H,SpringProvRep!$A:$A,Data!$A$27,SpringProvRep!$G:$G,"Coventry",SpringProvRep!$P:$P,Data!L$17)/$BA$73*$A$73 -> 3696 | M80: =SUMIFS(SpringProvRep!$H:$H,SpringProvRep!$A:$A,Data!$A$27,SpringProvRep!$G:$G,"Coventry",SpringProvRep!$P:$P,Data!M$17)/$BA$73*$A$73 -> 0 | N80: =SUMIFS(SpringProvRep!$H:$H,SpringProvRep!$A:$A,Data!$A$27,SpringProvRep!$G:$G,"Coventry",SpringProvRep!$P:$P,Data!N$17)/$BA$73*$A$73 -> 1680 | O80: =SUMIFS(SpringProvRep!$H:$H,SpringProvRep!$A:$A,Data!$A$27,SpringProvRep!$G:$G,"Coventry",SpringProvRep!$P:$P,Data!O$17)/$BA$73*$A$73 -> 168 | P80: =SUMIFS(SpringProvRep!$H:$H,SpringProvRep!$A:$A,Data!$A$27,SpringProvRep!$G:$G,"Coventry",SpringProvRep!$P:$P,Data!P$17)/$BA$73*$A$73 -> 0 | Q80: =SUMIFS(SpringProvRep!$H:$H,SpringProvRep!$A:$A,Data!$A$27,SpringProvRep!$G:$G,"Coventry",SpringProvRep!$P:$P,Data!Q$17)/$BA$73*$A$73 -> 1400 | R80: =SUMIFS(SpringProvRep!$H:$H,SpringProvRep!$A:$A,Data!$A$27,SpringProvRep!$G:$G,"Coventry",SpringProvRep!$P:$P,Data!R$17)/$BA$73*$A$73 -> 1064 | S80: =SUMIFS(SpringProvRep!$H:$H,SpringProvRep!$A:$A,Data!$A$27,SpringProvRep!$G:$G,"Coventry",SpringProvRep!$P:$P,Data!S$17)/$BA$73*$A$73 -> 0 | T80: =SUMIFS(SpringProvRep!$H:$H,SpringProvRep!$A:$A,Data!$A$27,SpringProvRep!$G:$G,"Coventry",SpringProvRep!$P:$P,Data!T$17)/$BA$73*$A$73 -> 1176 | U80: =SUMIFS(SpringProvRep!$H:$H,SpringProvRep!$A:$A,Data!$A$27,SpringProvRep!$G:$G,"Coventry",SpringProvRep!$P:$P,Data!U$17)/$BA$73*$A$73 -> 56 | V80: =SUMIFS(SpringProvRep!$H:$H,SpringProvRep!$A:$A,Data!$A$27,SpringProvRep!$G:$G,"Coventry",SpringProvRep!$P:$P,Data!V$17)/$BA$73*$A$73 -> 0 | W80: 246 | X80: 899442.4493 | Y80: 0 | Z80: =SUMIFS(SpringProvRep!$H:$H,SpringProvRep!$A:$A,Data!$A$27,SpringProvRep!$G:$G,"<>Coventry",SpringProvRep!$P:$P,Data!Z$17)/$BA$73*$A$73 -> 0 | AA80: =SUMIFS(SpringProvRep!$H:$H,SpringProvRep!$A:$A,Data!$A$27,SpringProvRep!$G:$G,"<>Coventry",SpringProvRep!$P:$P,Data!AA$17)/$BA$73*$A$73 -> 0 | AB80: =SUMIFS(SpringProvRep!$H:$H,SpringProvRep!$A:$A,Data!$A$27,SpringProvRep!$G:$G,"<>Coventry",SpringProvRep!$P:$P,Data!AB$17)/$BA$73*$A$73 -> 0 | AC80: =SUMIFS(SpringProvRep!$H:$H,SpringProvRep!$A:$A,Data!$A$27,SpringProvRep!$G:$G,"<>Coventry",SpringProvRep!$P:$P,Data!AC$17)/$BA$73*$A$73 -> 0 | AD80: =SUMIFS(SpringProvRep!$H:$H,SpringProvRep!$A:$A,Data!$A$27,SpringProvRep!$G:$G,"<>Coventry",SpringProvRep!$P:$P,Data!AD$17)/$BA$73*$A$73 -> 0 | AE80: =SUMIFS(SpringProvRep!$H:$H,SpringProvRep!$A:$A,Data!$A$27,SpringProvRep!$G:$G,"<>Coventry",SpringProvRep!$P:$P,Data!AE$17)/$BA$73*$A$73 -> 0 | AF80: =SUMIFS(SpringProvRep!$H:$H,SpringProvRep!$A:$A,Data!$A$27,SpringProvRep!$G:$G,"<>Coventry",SpringProvRep!$P:$P,Data!AF$17)/$BA$73*$A$73 -> 56 | AG80: =SUMIFS(SpringProvRep!$H:$H,SpringProvRep!$A:$A,Data!$A$27,SpringProvRep!$G:$G,"<>Coventry",SpringProvRep!$P:$P,Data!AG$17)/$BA$73*$A$73 -> 0 | AH80: =SUMIFS(SpringProvRep!$H:$H,SpringProvRep!$A:$A,Data!$A$27,SpringProvRep!$G:$G,"<>Coventry",SpringProvRep!$P:$P,Data!AH$17)/$BA$73*$A$73 -> 0 | AI80: =SUMIFS(SpringProvRep!$H:$H,SpringProvRep!$A:$A,Data!$A$27,SpringProvRep!$G:$G,"<>Coventry",SpringProvRep!$P:$P,Data!AI$17)/$BA$73*$A$73 -> 56 | AJ80: =SUMIFS(SpringProvRep!$H:$H,SpringProvRep!$A:$A,Data!$A$27,SpringProvRep!$G:$G,"<>Coventry",SpringProvRep!$P:$P,Data!AJ$17)/$BA$73*$A$73 -> 0 | AK80: =SUMIFS(SpringProvRep!$H:$H,SpringProvRep!$A:$A,Data!$A$27,SpringProvRep!$G:$G,"<>Coventry",SpringProvRep!$P:$P,Data!AK$17)/$BA$73*$A$73 -> 0 | AL80: =SUMIFS(SpringProvRep!$H:$H,SpringProvRep!$A:$A,Data!$A$27,SpringProvRep!$G:$G,"<>Coventry",SpringProvRep!$P:$P,Data!AL$17)/$BA$73*$A$73 -> 0 | AM80: =SUMIFS(SpringProvRep!$H:$H,SpringProvRep!$A:$A,Data!$A$27,SpringProvRep!$G:$G,"<>Coventry",SpringProvRep!$P:$P,Data!AM$17)/$BA$73*$A$73 -> 0 | AN80: =SUMIFS(SpringProvRep!$H:$H,SpringProvRep!$A:$A,Data!$A$27,SpringProvRep!$G:$G,"<>Coventry",SpringProvRep!$P:$P,Data!AN$17)/$BA$73*$A$73 -> 0 | AO80: =SUMIFS(SpringProvRep!$H:$H,SpringProvRep!$A:$A,Data!$A$27,SpringProvRep!$G:$G,"<>Coventry",SpringProvRep!$P:$P,Data!AO$17)/$BA$73*$A$73 -> 112 | AP80: =SUMIFS(SpringProvRep!$H:$H,SpringProvRep!$A:$A,Data!$A$27,SpringProvRep!$G:$G,"<>Coventry",SpringProvRep!$P:$P,Data!AP$17)/$BA$73*$A$73 -> 0 | AQ80: =SUMIFS(SpringProvRep!$H:$H,SpringProvRep!$A:$A,Data!$A$27,SpringProvRep!$G:$G,"<>Coventry",SpringProvRep!$P:$P,Data!AQ$17)/$BA$73*$A$73 -> 0 | AR80: 4 | AS80: 16236.8147 | AT80: 915679.264 | AU80: 250 | AV80: -8 | AW80: 258 | AX80: =[5]Data!$AU55 -> 249.5226772 | AY80: 251 | BB80: =($M$10-$AU$80)*$A$73 -> 448 | BC80: 14000 | BD80: =$BB$80/$BC$80*D80 -> 0 | BE80: =$BB$80/$BC$80*E80 -> 0 | BF80: 0 | BG80: 0 | BH80: 1.792 | BI80: 0 | BJ80: 0 | BK80: 143.36 | BL80: 118.272 | BM80: 0 | BN80: 53.76 | BO80: 5.376 | BP80: 0 | BQ80: 44.8 | BR80: 34.048 | BS80: 0 | BT80: 37.632 | BU80: 1.792 | BV80: 0 | BX80: =$BB$80/$BC$80*Y80 -> 0 | BY80: =$BB$80/$BC$80*Z80 -> 0 | BZ80: 0 | CA80: 0 | CB80: 0 | CC80: 0 | CD80: 0 | CE80: 1.792 | CF80: 0 | CG80: 0 | CH80: 1.792 | CI80: 0 | CJ80: 0 | CK80: 0 | CL80: 0 | CM80: 0 | CN80: 3.584 | CO80: 0 | CP80: 0
A81: 8 | B81: Woodfield | C81: =10000/$A$16 -> 50 | D81: 0 | E81: =SUMIFS(SpringProvRep!$H:$H,SpringProvRep!$A:$A,Data!$A$28,SpringProvRep!$G:$G,"Coventry",SpringProvRep!$P:$P,Data!E$17)/$BA$73*$A$73 -> 0 | F81: =SUMIFS(SpringProvRep!$H:$H,SpringProvRep!$A:$A,Data!$A$28,SpringProvRep!$G:$G,"Coventry",SpringProvRep!$P:$P,Data!F$17)/$BA$73*$A$73 -> 0 | G81: =SUMIFS(SpringProvRep!$H:$H,SpringProvRep!$A:$A,Data!$A$28,SpringProvRep!$G:$G,"Coventry",SpringProvRep!$P:$P,Data!G$17)/$BA$73*$A$73 -> 0 | H81: =SUMIFS(SpringProvRep!$H:$H,SpringProvRep!$A:$A,Data!$A$28,SpringProvRep!$G:$G,"Coventry",SpringProvRep!$P:$P,Data!H$17)/$BA$73*$A$73 -> 0 | I81: =SUMIFS(SpringProvRep!$H:$H,SpringProvRep!$A:$A,Data!$A$28,SpringProvRep!$G:$G,"Coventry",SpringProvRep!$P:$P,Data!I$17)/$BA$73*$A$73 -> 0 | J81: =SUMIFS(SpringProvRep!$H:$H,SpringProvRep!$A:$A,Data!$A$28,SpringProvRep!$G:$G,"Coventry",SpringProvRep!$P:$P,Data!J$17)/$BA$73*$A$73 -> 0 | K81: =SUMIFS(SpringProvRep!$H:$H,SpringProvRep!$A:$A,Data!$A$28,SpringProvRep!$G:$G,"Coventry",SpringProvRep!$P:$P,Data!K$17)/$BA$73*$A$73 -> 0 | L81: =SUMIFS(SpringProvRep!$H:$H,SpringProvRep!$A:$A,Data!$A$28,SpringProvRep!$G:$G,"Coventry",SpringProvRep!$P:$P,Data!L$17)/$BA$73*$A$73 -> 0 | M81: =SUMIFS(SpringProvRep!$H:$H,SpringProvRep!$A:$A,Data!$A$28,SpringProvRep!$G:$G,"Coventry",SpringProvRep!$P:$P,Data!M$17)/$BA$73*$A$73 -> 56 | N81: =SUMIFS(SpringProvRep!$H:$H,SpringProvRep!$A:$A,Data!$A$28,SpringProvRep!$G:$G,"Coventry",SpringProvRep!$P:$P,Data!N$17)/$BA$73*$A$73 -> 0 | O81: =SUMIFS(SpringProvRep!$H:$H,SpringProvRep!$A:$A,Data!$A$28,SpringProvRep!$G:$G,"Coventry",SpringProvRep!$P:$P,Data!O$17)/$BA$73*$A$73 -> 728 | P81: =SUMIFS(SpringProvRep!$H:$H,SpringProvRep!$A:$A,Data!$A$28,SpringProvRep!$G:$G,"Coventry",SpringProvRep!$P:$P,Data!P$17)/$BA$73*$A$73 -> 0 | Q81: =SUMIFS(SpringProvRep!$H:$H,SpringProvRep!$A:$A,Data!$A$28,SpringProvRep!$G:$G,"Coventry",SpringProvRep!$P:$P,Data!Q$17)/$BA$73*$A$73 -> 0 | R81: =SUMIFS(SpringProvRep!$H:$H,SpringProvRep!$A:$A,Data!$A$28,SpringProvRep!$G:$G,"Coventry",SpringProvRep!$P:$P,Data!R$17)/$BA$73*$A$73 -> 0 | S81: =SUMIFS(SpringProvRep!$H:$H,SpringProvRep!$A:$A,Data!$A$28,SpringProvRep!$G:$G,"Coventry",SpringProvRep!$P:$P,Data!S$17)/$BA$73*$A$73 -> 7280 | T81: =SUMIFS(SpringProvRep!$H:$H,SpringProvRep!$A:$A,Data!$A$28,SpringProvRep!$G:$G,"Coventry",SpringProvRep!$P:$P,Data!T$17)/$BA$73*$A$73 -> 0 | U81: =SUMIFS(SpringProvRep!$H:$H,SpringProvRep!$A:$A,Data!$A$28,SpringProvRep!$G:$G,"Coventry",SpringProvRep!$P:$P,Data!U$17)/$BA$73*$A$73 -> 224 | V81: =SUMIFS(SpringProvRep!$H:$H,SpringProvRep!$A:$A,Data!$A$28,SpringProvRep!$G:$G,"Coventry",SpringProvRep!$P:$P,Data!V$17)/$BA$73*$A$73 -> 0 | W81: =SUM(D81:V81)/$A$73 -> 148 | X81: 802036.9959 | Y81: 0 | Z81: =SUMIFS(SpringProvRep!$H:$H,SpringProvRep!$A:$A,Data!$A$28,SpringProvRep!$G:$G,"<>Coventry",SpringProvRep!$P:$P,Data!Z$17)/$BA$73*$A$73 -> 0 | AA81: =SUMIFS(SpringProvRep!$H:$H,SpringProvRep!$A:$A,Data!$A$28,SpringProvRep!$G:$G,"<>Coventry",SpringProvRep!$P:$P,Data!AA$17)/$BA$73*$A$73 -> 0 | AB81: =SUMIFS(SpringProvRep!$H:$H,SpringProvRep!$A:$A,Data!$A$28,SpringProvRep!$G:$G,"<>Coventry",SpringProvRep!$P:$P,Data!AB$17)/$BA$73*$A$73 -> 0 | AC81: =SUMIFS(SpringProvRep!$H:$H,SpringProvRep!$A:$A,Data!$A$28,SpringProvRep!$G:$G,"<>Coventry",SpringProvRep!$P:$P,Data!AC$17)/$BA$73*$A$73 -> 0 | AD81: =SUMIFS(SpringProvRep!$H:$H,SpringProvRep!$A:$A,Data!$A$28,SpringProvRep!$G:$G,"<>Coventry",SpringProvRep!$P:$P,Data!AD$17)/$BA$73*$A$73 -> 0 | AE81: =SUMIFS(SpringProvRep!$H:$H,SpringProvRep!$A:$A,Data!$A$28,SpringProvRep!$G:$G,"<>Coventry",SpringProvRep!$P:$P,Data!AE$17)/$BA$73*$A$73 -> 0 | AF81: =SUMIFS(SpringProvRep!$H:$H,SpringProvRep!$A:$A,Data!$A$28,SpringProvRep!$G:$G,"<>Coventry",SpringProvRep!$P:$P,Data!AF$17)/$BA$73*$A$73 -> 0 | AG81: =SUMIFS(SpringProvRep!$H:$H,SpringProvRep!$A:$A,Data!$A$28,SpringProvRep!$G:$G,"<>Coventry",SpringProvRep!$P:$P,Data!AG$17)/$BA$73*$A$73 -> 0 | AH81: =SUMIFS(SpringProvRep!$H:$H,SpringProvRep!$A:$A,Data!$A$28,SpringProvRep!$G:$G,"<>Coventry",SpringProvRep!$P:$P,Data!AH$17)/$BA$73*$A$73 -> 0 | AI81: =SUMIFS(SpringProvRep!$H:$H,SpringProvRep!$A:$A,Data!$A$28,SpringProvRep!$G:$G,"<>Coventry",SpringProvRep!$P:$P,Data!AI$17)/$BA$73*$A$73 -> 0 | AJ81: =SUMIFS(SpringProvRep!$H:$H,SpringProvRep!$A:$A,Data!$A$28,SpringProvRep!$G:$G,"<>Coventry",SpringProvRep!$P:$P,Data!AJ$17)/$BA$73*$A$73 -> 0 | AK81: =SUMIFS(SpringProvRep!$H:$H,SpringProvRep!$A:$A,Data!$A$28,SpringProvRep!$G:$G,"<>Coventry",SpringProvRep!$P:$P,Data!AK$17)/$BA$73*$A$73 -> 0 | AL81: =SUMIFS(SpringProvRep!$H:$H,SpringProvRep!$A:$A,Data!$A$28,SpringProvRep!$G:$G,"<>Coventry",SpringProvRep!$P:$P,Data!AL$17)/$BA$73*$A$73 -> 0 | AM81: =SUMIFS(SpringProvRep!$H:$H,SpringProvRep!$A:$A,Data!$A$28,SpringProvRep!$G:$G,"<>Coventry",SpringProvRep!$P:$P,Data!AM$17)/$BA$73*$A$73 -> 0 | AN81: =SUMIFS(SpringProvRep!$H:$H,SpringProvRep!$A:$A,Data!$A$28,SpringProvRep!$G:$G,"<>Coventry",SpringProvRep!$P:$P,Data!AN$17)/$BA$73*$A$73 -> 112 | AO81: =SUMIFS(SpringProvRep!$H:$H,SpringProvRep!$A:$A,Data!$A$28,SpringProvRep!$G:$G,"<>Coventry",SpringProvRep!$P:$P,Data!AO$17)/$BA$73*$A$73 -> 0 | AP81: =SUMIFS(SpringProvRep!$H:$H,SpringProvRep!$A:$A,Data!$A$28,SpringProvRep!$G:$G,"<>Coventry",SpringProvRep!$P:$P,Data!AP$17)/$BA$73*$A$73 -> 0 | AQ81: =SUMIFS(SpringProvRep!$H:$H,SpringProvRep!$A:$A,Data!$A$28,SpringProvRep!$G:$G,"<>Coventry",SpringProvRep!$P:$P,Data!AQ$17)/$BA$73*$A$73 -> 0 | AR81: 2 | AS81: 10051.36652 | AT81: 812088.3624 | AU81: =AR81+W81 -> 150 | AV81: -5 | AW81: 155 | AX81: =[5]Data!$AU56 -> 145.220339 | AY81: 155 | BB81: =($M$11-$AU$81)*$A$73 -> 280 | BC81: 8400 | BD81: =$BB$81/$BC$81*D81 -> 0 | BE81: =$BB$81/$BC$81*E81 -> 0 | BF81: 0 | BG81: 0 | BH81: 0 | BI81: 0 | BJ81: 0 | BK81: 0 | BL81: 0 | BM81: 1.866666667 | BN81: 0 | BO81: 24.26666667 | BP81: 0 | BQ81: 0 | BR81: 0 | BS81: 242.6666667 | BT81: 0 | BU81: 7.466666667 | BV81: 0 | BX81: =$BB$81/$BC$81*Y81 -> 0 | BY81: =$BB$81/$BC$81*Z81 -> 0 | BZ81: 0 | CA81: 0 | CB81: 0 | CC81: 0 | CD81: 0 | CE81: 0 | CF81: 0 | CG81: 0 | CH81: 0 | CI81: 0 | CJ81: 0 | CK81: 0 | CL81: 0 | CM81: 3.733333333 | CN81: 0 | CO81: 0 | CP81: 0
A82: 9 | B82: Coventry ELC | C82: =10000/$A$16 -> 50 | D82: =120*A73 -> 6720 | E82: 0 | F82: 0 | G82: 0 | H82: 0 | I82: 0 | J82: 0 | K82: 0 | L82: 0 | M82: 0 | N82: 0 | O82: 0 | P82: 0 | Q82: 0 | R82: 0 | S82: 0 | T82: 0 | U82: 0 | V82: 0 | W82: =SUM(D82:V82)/$A$73 -> 120 | X82: =SUMPRODUCT(D82:V82,$V$12:$AN$12)/$A$16 -> 451399.7824 | Y82: =A73*0 -> 0 | Z82: 0 | AA82: 0 | AB82: 0 | AC82: 0 | AD82: 0 | AE82: 0 | AF82: 0 | AG82: 0 | AH82: 0 | AI82: 0 | AJ82: 0 | AK82: 0 | AL82: 0 | AM82: 0 | AN82: 0 | AO82: 0 | AP82: 0 | AQ82: 0 | AR82: 0 | AS82: 0 | AT82: 451399.7824 | AU82: 120 | AV82: 0 | AW82: 120 | AX82: =[5]Data!$AU57 -> 120 | AY82: 120 | BB82: =($M$12-$AU$82)*$A$74 -> 0 | BC82: 6720 | BD82: =$BB$82/$BC$82*D82 -> 0 | BE82: =$BB$82/$BC$82*E82 -> 0 | BF82: 0 | BG82: 0 | BH82: 0 | BI82: 0 | BJ82: 0 | BK82: 0 | BL82: 0 | BM82: 0 | BN82: 0 | BO82: 0 | BP82: 0 | BQ82: 0 | BR82: 0 | BS82: 0 | BT82: 0 | BU82: 0 | BV82: 0 | BX82: =$BB$82/$BC$82*Y82 -> 0 | BY82: =$BB$82/$BC$82*Z82 -> 0 | BZ82: 0 | CA82: 0 | CB82: 0 | CC82: 0 | CD82: 0 | CE82: 0 | CF82: 0 | CG82: 0 | CH82: 0 | CI82: 0 | CJ82: 0 | CK82: 0 | CL82: 0 | CM82: 0 | CN82: 0 | CO82: 0 | CP82: 0
AS83: =SUM(AS74:AS82) -> 64406.05393 | AT83: =SUM(AT74:AT82) -> 5277879.647 | AU83: =SUM(AU74:AU82) -> 1367
B84: Spring Term 2025
A85: 56 | B85: School
A86: 1 | B86: Castle Wood | C86: =10000/$A$16 -> 50 | D86: =D74+BD74 -> 0 | E86: =E74+BE74 -> 0 | F86: =F74+BF74 -> 0 | G86: =G74+BG74 -> 0 | H86: =H74+BH74 -> 0 | I86: =I74+BI74 -> 0 | J86: =J74+BJ74 -> 55.65217391 | K86: =K74+BK74 -> 4786.086957 | L86: =L74+BL74 -> 779.1304348 | M86: =M74+BM74 -> 55.65217391 | N86: =N74+BN74 -> 278.2608696 | O86: =O74+BO74 -> 445.2173913 | P86: =P74+BP74 -> 0 | Q86: =Q74+BQ74 -> 1613.913043 | R86: =R74+BR74 -> 445.2173913 | S86: =S74+BS74 -> 0 | T86: =T74+BT74 -> 333.9130435 | U86: =U74+BU74 -> 111.3043478 | V86: =V74+BV74 -> 0 | W86: =SUM(D86:V86)/$A$73 -> 159.0062112 | X86: =SUMPRODUCT(D86:V86,$V$6:$AN$6)/$A$16 -> 621111.8062 | Y86: =Y74+BX74 -> 0 | Z86: =Z74+BY74 -> 0 | AA86: =AA74+BZ74 -> 0 | AB86: =AB74+CA74 -> 0 | AC86: =AC74+CB74 -> 0 | AD86: =AD74+CC74 -> 0 | AE86: =AE74+CD74 -> 0 | AF86: =AF74+CE74 -> 55.65217391 | AG86: =AG74+CF74 -> 0 | AH86: =AH74+CG74 -> 0 | AI86: =AI74+CH74 -> 0 | AJ86: =AJ74+CI74 -> 0 | AK86: =AK74+CJ74 -> 0 | AL86: =AL74+CK74 -> 0 | AM86: =AM74+CL74 -> 0 | AN86: =AN74+CM74 -> 0 | AO86: =AO74+CN74 -> 0 | AP86: =AP74+CO74 -> 0 | AQ86: =AQ74+CP74 -> 0 | AR86: =SUM(Y86:AQ86)/$A$73 -> 0.9937888199 | AS86: =SUMPRODUCT(Y86:AQ86,$V$6:$AN$6)/$A$16 -> 3073.517911 | AT86: =X86+AS86 -> 624185.3241 | AU86: =AR86+W86 -> 160 | AV86: =AU86-AW86 -> 0 | AW86: =M4 -> 160 | AX86: =[5]Data!$AU49 -> 160.1525424 | AY86: =E4 -> 160 | BA86: =(AT86/56*200)/AU86 -> 13932.70813
A87: 2 | B87: Kingsbury | C87: =10000/$A$16 -> 50 | D87: =D75+BD75 -> 0 | E87: 0 | F87: 0 | G87: 0 | H87: 0 | I87: 0 | J87: 0 | K87: 3349.019608 | L87: 274.5098039 | M87: 0 | N87: 0 | O87: 219.6078431 | P87: 0 | Q87: =Q75+BQ75 -> 1372.54902 | R87: 109.8039216 | S87: 0 | T87: 0 | U87: 54.90196078 | V87: 0 | W87: =SUM(D87:V87)/$A$73 -> 96.07843137 | X87: 371824.6573 | Y87: =Y75+BX75 -> 0 | Z87: 0 | AA87: 0 | AB87: 0 | AC87: 0 | AD87: 0 | AE87: 0 | AF87: 109.8039216 | AG87: 54.90196078 | AH87: 0 | AI87: 0 | AJ87: 0 | AK87: 0 | AL87: 54.90196078 | AM87: 0 | AN87: 0 | AO87: 0 | AP87: 0 | AQ87: 0 | AR87: =SUM(Y87:AQ87)/$A$73 -> 3.921568627 | AS87: 13795.99262 | AT87: 385620.6499 | AU87: 100 | AV87: 0 | AW87: 100 | AX87: =[5]Data!$AU50 -> 101 | AY87: 100 | BA87: =(AT87/56*200)/AU87 -> 13772.16607
A88: 3 | B88: RiverBank | C88: 50 | D88: 0 | E88: 0 | F88: 0 | G88: 568.5279188 | H88: 852.7918782 | I88: 0 | J88: 0 | K88: 3922.84264 | L88: 3070.050761 | M88: 113.7055838 | N88: 397.9695431 | O88: 227.4111675 | P88: 170.5583756 | Q88: 1364.467005 | R88: 284.2639594 | S88: 0 | T88: 113.7055838 | U88: 0 | V88: 0 | W88: 197.9695431 | X88: 655501.7399 | Y88: 0 | Z88: 0 | AA88: 0 | AB88: 56.85279188 | AC88: 0 | AD88: 0 | AE88: 0 | AF88: 56.85279188 | AG88: 0 | AH88: 0 | AI88: 0 | AJ88: 0 | AK88: 0 | AL88: 0 | AM88: 0 | AN88: 0 | AO88: 0 | AP88: 0 | AQ88: 0 | AR88: 2.030456853 | AS88: 4081.772536 | AT88: 659583.5124 | AU88: 200 | AV88: 0 | AW88: 200 | AX88: =[5]Data!$AU51 -> 198.1016949 | AY88: 200 | BA88: 11778.27701
A89: 4 | B89: Corley | C89: 50 | D89: 0 | E89: 0 | F89: 0 | G89: 0 | H89: 0 | I89: 0 | J89: 0 | K89: 6785.070423 | L89: 183.3802817 | M89: 366.7605634 | N89: 0 | O89: 244.5070423 | P89: 0 | Q89: 1039.15493 | R89: 0 | S89: 0 | T89: 0 | U89: 0 | V89: 0 | W89: 153.9084507 | X89: 532778.911 | Y89: 0 | Z89: 0 | AA89: 0 | AB89: 0 | AC89: 0 | AD89: 0 | AE89: 0 | AF89: 61.12676056 | AG89: 0 | AH89: 0 | AI89: 0 | AJ89: 0 | AK89: 0 | AL89: 0 | AM89: 0 | AN89: 0 | AO89: 0 | AP89: 0 | AQ89: 0 | AR89: 1.091549296 | AS89: 3375.864413 | AT89: 536154.7754 | AU89: 155 | AV89: 0 | AW89: 155 | AX89: =[5]Data!$AU52 -> 148.2223098 | AY89: 140 | BA89: 12353.79667
A90: 5 | B90: Tiverton | C90: 50 | D90: 0 | E90: 0 | F90: 0 | G90: 0 | H90: 0 | I90: 0 | J90: 0 | K90: 3644.235294 | L90: 740.2352941 | M90: 0 | N90: 341.6470588 | O90: 341.6470588 | P90: 0 | Q90: 968 | R90: 398.5882353 | S90: 0 | T90: 227.7647059 | U90: 0 | V90: 0 | W90: 118.9663866 | X90: 443497.8605 | Y90: 0 | Z90: 0 | AA90: 0 | AB90: 0 | AC90: 0 | AD90: 0 | AE90: 0 | AF90: 56.94117647 | AG90: 0 | AH90: 0 | AI90: 0 | AJ90: 0 | AK90: 0 | AL90: 56.94117647 | AM90: 0 | AN90: 0 | AO90: 0 | AP90: 0 | AQ90: 0 | AR90: 2.033613445 | AS90: 8254.854537 | AT90: 451752.715 | AU90: 121 | AV90: 0 | AW90: 121 | AX90: =[5]Data!$AU53 -> 118.25 | AY90: 118 | BA90: 13333.9054
A91: 6 | B91: Baginton Fields | C91: 50 | D91: 0 | E91: 0 | F91: 0 | G91: 0 | H91: 0 | I91: 0 | J91: 0 | K91: 1680 | L91: 2352 | M91: 0 | N91: 56 | O91: 560 | P91: 0 | Q91: 1512 | R91: 672 | S91: 0 | T91: 112 | U91: 0 | V91: 0 | W91: 124 | X91: 486408.7005 | Y91: 0 | Z91: 0 | AA91: 0 | AB91: 0 | AC91: 0 | AD91: 0 | AE91: 0 | AF91: 0 | AG91: 112 | AH91: 0 | AI91: 0 | AJ91: 0 | AK91: 0 | AL91: 0 | AM91: 0 | AN91: 0 | AO91: =AO79+CN79 -> 0 | AP91: 0 | AQ91: 0 | AR91: 2 | AS91: 5721.54883 | AT91: 492130.2493 | AU91: 126 | AV91: 0 | AW91: 126 | AX91: =[5]Data!$AU54 -> 124.9137931 | AY91: 126 | BA91: 13949.27011
A92: 7 | B92: Sherbourne Fields | C92: 50 | D92: 0 | E92: 0 | F92: 0 | G92: 0 | H92: 57.792 | I92: 0 | J92: 0 | K92: 4623.36 | L92: 3814.272 | M92: 0 | N92: 1733.76 | O92: 173.376 | P92: 0 | Q92: 1444.8 | R92: 1098.048 | S92: 0 | T92: 1213.632 | U92: 57.792 | V92: 0 | W92: 253.872 | X92: 928224.6076 | Y92: 0 | Z92: 0 | AA92: 0 | AB92: 0 | AC92: 0 | AD92: 0 | AE92: 0 | AF92: 57.792 | AG92: 0 | AH92: 0 | AI92: 57.792 | AJ92: 0 | AK92: 0 | AL92: 0 | AM92: 0 | AN92: 0 | AO92: =AO80+CN80 -> 115.584 | AP92: 0 | AQ92: 0 | AR92: 4.128 | AS92: 16756.39277 | AT92: 944981.0004 | AU92: 258 | AV92: 0 | AW92: 258 | AX92: =[5]Data!$AU55 -> 249.5226772 | AY92: 251 | BA92: 13081.13234
A93: 8 | B93: Woodfield | C93: =10000/$A$16 -> 50 | D93: 0 | E93: 0 | F93: 0 | G93: 0 | H93: 0 | I93: 0 | J93: 0 | K93: 0 | L93: 0 | M93: 57.86666667 | N93: 0 | O93: 752.2666667 | P93: 0 | Q93: 0 | R93: 0 | S93: 7522.666667 | T93: 0 | U93: 231.4666667 | V93: 0 | W93: =SUM(D93:V93)/$A$73 -> 152.9333333 | X93: 828771.5624 | Y93: 0 | Z93: 0 | AA93: 0 | AB93: 0 | AC93: 0 | AD93: 0 | AE93: 0 | AF93: 0 | AG93: 0 | AH93: 0 | AI93: 0 | AJ93: 0 | AK93: 0 | AL93: 0 | AM93: 0 | AN93: 115.7333333 | AO93: 0 | AP93: 0 | AQ93: 0 | AR93: 2.066666667 | AS93: 10386.41208 | AT93: 839157.9745 | AU93: =AR93+W93 -> 155 | AV93: =AU93-AW93 -> 0 | AW93: 155 | AX93: =[5]Data!$AU56 -> 145.220339 | AY93: 155 | BA93: 19335.4372
A94: 9 | B94: Coventry ELC | C94: =10000/$A$16 -> 50 | D94: =D82+BD82 -> 6720 | E94: 0 | F94: 0 | G94: 0 | H94: 0 | I94: 0 | J94: 0 | K94: 0 | L94: 0 | M94: 0 | N94: 0 | O94: 0 | P94: 0 | Q94: 0 | R94: 0 | S94: 0 | T94: 0 | U94: 0 | V94: 0 | W94: 120 | X94: =SUMPRODUCT(D94:V94,$V$12:$AN$12)/$A$16 -> 451399.7824 | Y94: 0 | Z94: 0 | AA94: 0 | AB94: 0 | AC94: 0 | AD94: 0 | AE94: 0 | AF94: 0 | AG94: 0 | AH94: 0 | AI94: 0 | AJ94: 0 | AK94: 0 | AL94: 0 | AM94: 0 | AN94: 0 | AO94: 0 | AP94: 0 | AQ94: 0 | AR94: 0 | AS94: =SUMPRODUCT(Y94:AQ94,$V$12:$AN$12)/$A$16 -> 0 | AT94: 451399.7824 | AU94: 120 | AV94: =AU94-AW94 -> 0 | AW94: 120 | AX94: =[5]Data!$AU57 -> 120 | AY94: 120 | BA94: 13434.51733
D96: Coventry pupils | Y96: Other LA Pupils
B97: Full Year 2023/24
A99: 1 | B99: Castle Wood | C99: =10000/$A$16 -> 50 | D99: =D33+D59+D86 -> 0 | E99: =E33+E59+E86 -> 0 | F99: 0 | G99: 0 | H99: 0 | I99: 0 | J99: 199.0076595 | K99: =K33+K59+K86 -> 17192.32516 | L99: =L33+L59+L86 -> 2964.252043 | M99: 131.0303043 | N99: 1010.487696 | O99: 1583.400249 | P99: 0 | Q99: 5559.331278 | R99: 1829.982019 | S99: 0 | T99: 1035.737153 | U99: 295.4387784 | V99: 0 | W99: =SUM(D99:V99)/$A$16 -> 159.0049617 | X99: =X33+X59+X86 -> 2192055.577 | Y99: =Y33+Y59+Y86 -> 0 | Z99: 0 | AA99: 0 | AB99: 0 | AC99: 0 | AD99: 0 | AE99: 0 | AF99: 199.0076595 | AG99: 0 | AH99: 0 | AI99: 0 | AJ99: 0 | AK99: 0 | AL99: 0 | AM99: 0 | AN99: 0 | AO99: =AO33+AO59+AO86 -> 0 | AP99: 0 | AQ99: 0 | AR99: =SUM(Y99:AQ99)/$A$16 -> 0.9950382973 | AS99: =AS33+AS59+AS86 -> 10990.65073 | AT99: =AT33+AT59+AT86 -> 2203046.228 | AU99: =AR99+W99 -> 160 | AV99: =AT99/AU99 -> 13769.03892 | BA99: =AVERAGE(BA33,BA59,BA86) -> 13777.51664 | BB99: =BA99-AV99 -> 8.477716065
A100: 2 | B100: Kingsbury | C100: =10000/$A$16 -> 50 | D100: =D34+D60+D87 -> 0 | E100: 0 | F100: 0 | G100: 0 | H100: 0 | I100: 0 | J100: 0 | K100: 11654.47365 | L100: 1134.423542 | M100: 0 | N100: 0 | O100: 956.410586 | P100: 0 | Q100: 5026.961365 | R100: 397.9263758 | S100: 0 | T100: 0 | U100: 103.7555304 | V100: 0 | W100: 96.36975525 | X100: =X34+X60+X87 -> 1329047.795 | Y100: 0 | Z100: 0 | AA100: 0 | AB100: 0 | AC100: 0 | AD100: 0 | AE100: 0 | AF100: 328.1225744 | AG100: 198.9631879 | AH100: 0 | AI100: 0 | AJ100: 0 | AK100: 0 | AL100: 198.9631879 | AM100: 0 | AN100: 0 | AO100: 0 | AP100: 0 | AQ100: 0 | AR100: =SUM(Y100:AQ100)/$A$16 -> 3.630244751 | AS100: =AS34+AS60+AS87 -> 46141.22207 | AT100: =AT34+AT60+AT87 -> 1375189.017 | AU100: =AR100+W100 -> 100 | AV100: =AT100/AU100 -> 13751.89017 | BA100: =AVERAGE(BA34,BA60,BA87) -> 13758.11053 | BB100: =BA100-AV100 -> 6.220363901
A101: 3 | B101: RiverBank | C101: 50 | D101: 0 | E101: 0 | F101: 0 | G101: 2168.687632 | H101: 3322.926314 | I101: 69.89486609 | J101: 69.89486609 | K101: 13230.55198 | L101: 11214.44786 | M101: 405.7795799 | N101: 1490.123396 | O101: 692.9496901 | P101: 678.5642359 | Q101: 4969.961205 | R101: 944.5540836 | S101: 0 | T101: 335.8847138 | U101: 0 | V101: 0 | W101: 197.9711021 | X101: 2325928.849 | Y101: 0 | Z101: 0 | AA101: 0 | AB101: 202.8897899 | AC101: 0 | AD101: 0 | AE101: 0 | AF101: 202.8897899 | AG101: 0 | AH101: 0 | AI101: 0 | AJ101: 0 | AK101: 0 | AL101: 0 | AM101: 0 | AN101: 0 | AO101: 0 | AP101: 0 | AQ101: 0 | AR101: 2.028897899 | AS101: 14566.56648 | AT101: 2340495.416 | AU101: 200 | AV101: 11702.47708 | BA101: 11705.04036 | BB101: 2.56328266
A102: 4 | B102: Corley | C102: 50 | D102: 0 | E102: 0 | F102: 0 | G102: 0 | H102: 0 | I102: 0 | J102: 0 | K102: 23569.09932 | L102: 430.7207072 | M102: 1441.040667 | N102: 0 | O102: 874.3738839 | P102: 0 | Q102: 3435.162439 | R102: 0 | S102: 0 | T102: 0 | U102: 0 | V102: 0 | W102: 148.7519851 | X102: 1839112.912 | Y102: 0 | Z102: 0 | AA102: 0 | AB102: 0 | AC102: 0 | AD102: 0 | AE102: 0 | AF102: 214.6029808 | AG102: 0 | AH102: 0 | AI102: 0 | AJ102: 0 | AK102: 0 | AL102: 0 | AM102: 0 | AN102: 0 | AO102: 0 | AP102: 0 | AQ102: 0 | AR102: 1.073014904 | AS102: 11851.93783 | AT102: 1850964.85 | AU102: 149.825 | AV102: 12354.17887 | BA102: 12356.32894 | BB102: 2.150065109
A103: 5 | B103: Tiverton | C103: 50 | D103: 0 | E103: 0 | F103: 0 | G103: 0 | H103: 0 | I103: 0 | J103: 0 | K103: 12612.56806 | L103: 2751.992724 | M103: 0 | N103: 1309.277105 | O103: 1128.718778 | P103: 0 | Q103: 3507.450608 | R103: 1442.715619 | S103: 0 | T103: 897.0726422 | U103: 0 | V103: 0 | W103: 118.2489777 | X103: 1575142.004 | Y103: 0 | Z103: 0 | AA103: 0 | AB103: 0 | AC103: 0 | AD103: 0 | AE103: 0 | AF103: 206.1022314 | AG103: 0 | AH103: 0 | AI103: 0 | AJ103: 0 | AK103: 0 | AL103: 206.1022314 | AM103: 0 | AN103: 0 | AO103: 0 | AP103: 0 | AQ103: 0 | AR103: 2.061022314 | AS103: 29878.97414 | AT103: 1605020.978 | AU103: 120.31 | AV103: 13340.71131 | BA103: 13340.73397 | BB103: 0.02266120321
A104: 6 | B104: Baginton Fields | C104: 50 | D104: 0 | E104: 0 | F104: 0 | G104: 0 | H104: 0 | I104: 0 | J104: 0 | K104: 5668.368828 | L104: 8329.38205 | M104: 75.6 | N104: 208.0611945 | O104: 2014.041683 | P104: 0 | Q104: 5802.367132 | R104: 2345.534334 | S104: 0 | T104: 416.122389 | U104: 0 | V104: 0 | W104: 124.2973881 | X104: 1755689.892 | Y104: 0 | Z104: 0 | AA104: 0 | AB104: 0 | AC104: 0 | AD104: 0 | AE104: 0 | AF104: 0 | AG104: 340.522389 | AH104: 0 | AI104: 0 | AJ104: 0 | AK104: 0 | AL104: 0 | AM104: 0 | AN104: 0 | AO104: 0 | AP104: 0 | AQ104: 0 | AR104: 1.702611945 | AS104: 17395.6739 | AT104: 1773085.566 | AU104: 126 | AV104: 14072.10767 | BA104: 14070.04074 | BB104: -2.066926852
A105: 7 | B105: Sherbourne Fields | C105: 50 | D105: 0 | E105: 0 | F105: 0 | G105: 0 | H105: 279.3680353 | I105: 0 | J105: 143.8980298 | K105: 15869.94317 | L105: 13617.70633 | M105: 0 | N105: 6013.259525 | O105: 622.2570612 | P105: 0 | Q105: 5257.424525 | R105: 4084.859418 | S105: 0 | T105: 4211.901399 | U105: 207.4190204 | V105: 0 | W105: 251.5401826 | X105: 3287772.567 | Y105: 0 | Z105: 0 | AA105: 0 | AB105: 0 | AC105: 0 | AD105: 0 | AE105: 0 | AF105: 207.4190204 | AG105: 0 | AH105: 0 | AI105: 207.4190204 | AJ105: 0 | AK105: 0 | AL105: 0 | AM105: 0 | AN105: 0 | AO105: 394.1254456 | AP105: 0 | AQ105: 0 | AR105: 4.044817432 | AS105: 58423.86818 | AT105: 3346196.435 | AU105: 255.585 | AV105: 13092.30368 | BA105: 13092.20215 | BB105: -0.1015269578
A106: 8 | B106: Woodfield | C106: =10000/$A$16 -> 50 | D106: 0 | E106: 0 | F106: 0 | G106: 0 | H106: 0 | I106: 0 | J106: 0 | K106: 0 | L106: 0 | M106: 57.86666667 | N106: 0 | O106: 2860.75373 | P106: 0 | Q106: 0 | R106: 0 | S106: 26816.22023 | T106: 0 | U106: 995.5456235 | V106: 0 | W106: 153.6519313 | X106: 3008136.015 | Y106: 0 | Z106: 0 | AA106: 0 | AB106: 0 | AC106: 0 | AD106: 0 | AE106: 0 | AF106: 0 | AG106: 0 | AH106: 0 | AI106: 0 | AJ106: 0 | AK106: 0 | AL106: 0 | AM106: 0 | AN106: 269.6137481 | AO106: 0 | AP106: 0 | AQ106: 0 | AR106: =SUM(Y106:AQ106)/$A$16 -> 1.348068741 | AS106: 24196.30895 | AT106: 3032332.324 | AU106: 155 | AV106: 19563.43435 | BA106: 19553.81225 | BB106: -9.622097356
A107: 9 | B107: Coventry ELC | C107: =10000/$A$16 -> 50 | D107: 24000 | E107: 0 | F107: 0 | G107: 0 | H107: 0 | I107: 0 | J107: 0 | K107: 0 | L107: 0 | M107: 0 | N107: 0 | O107: 0 | P107: 0 | Q107: 0 | R107: 0 | S107: 0 | T107: 0 | U107: 0 | V107: 0 | W107: =SUM(D107:V107)/$A$16 -> 120 | X107: =X41+X67+X94 -> 1612142.08 | Y107: 0 | Z107: 0 | AA107: 0 | AB107: 0 | AC107: 0 | AD107: 0 | AE107: 0 | AF107: 0 | AG107: 0 | AH107: 0 | AI107: 0 | AJ107: 0 | AK107: 0 | AL107: 0 | AM107: 0 | AN107: 0 | AO107: 0 | AP107: 0 | AQ107: 0 | AR107: =SUM(Y107:AQ107)/$A$16 -> 0 | AS107: 0 | AT107: 1612142.08 | AU107: 120 | AV107: 13434.51733 | BA107: 13434.51733 | BB107: 0
B111: TOTALS | C111: Place Led | D111: Coventry | E111: Other LA | F111: Total
B112: School | C112: Funding | D112: Top-up | E112: Top-up | F112: Funding
A113: 1 | B113: Castle Wood | C113: =(K4*4/12+L4*1/12+M4*7/12)*10000 -> 1600000 | D113: =X99 -> 2192055.577 | E113: =AS99 -> 10990.65073 | F113: =SUM(C113:E113) -> 3803046.228 | I113: 13777.51664
A114: 2 | B114: Kingsbury | C114: 1000000 | D114: 1329047.795 | E114: 46141.22207 | F114: =SUM(C114:E114) -> 2375189.017 | I114: 13758.11053
A115: 3 | B115: RiverBank | C115: 2000000 | D115: 2325928.849 | E115: 14566.56648 | F115: 4340495.416 | I115: 11705.04036
A116: 4 | B116: Corley | C116: 1487500 | D116: 1839112.912 | E116: 11851.93783 | F116: 3338464.85 | I116: 12356.32894
A117: 5 | B117: Tiverton | C117: 1201666.667 | D117: 1575142.004 | E117: 29878.97414 | F117: 2806687.645 | I117: 13340.73397
A118: 6 | B118: Baginton Fields | C118: 1260000 | D118: 1755689.892 | E118: 17395.6739 | F118: 3033085.566 | I118: 14070.04074
A119: 7 | B119: Sherbourne Fields | C119: 2550833.333 | D119: 3287772.567 | E119: 58423.86818 | F119: =SUM(C119:E119) -> 5897029.768 | I119: 13092.20215
A120: 8 | B120: Woodfield | C120: 1550000 | D120: 3008136.015 | E120: =AS106 -> 24196.30895 | F120: 4582332.324 | I120: 19553.81225
C121: =SUM(C113:C120) -> 12650000 | D121: =SUM(D113:D120) -> 17312885.61 | E121: =SUM(E113:E120) -> 213445.2023 | F121: =SUM(F113:F120) -> 30176330.81 | G121: =D121+E121 -> 17526330.81 | K121: 16905477.14 | L121: Special School Top Up Value before Goal Seek
A122: 9 | B122: Coventry ELC | C122: =(K12*4/12+L12*1/12+M12*7/12)*10000 -> 1200000 | D122: =X107 -> 1612142.08 | E122: =AS107 -> 0 | F122: 2812142.08 | I122: 13434.51733
C123: =C122 -> 1200000 | D123: =D122 -> 1612142.08 | E123: =E122 -> 0 | F123: =F122 -> 2812142.08 | G123: =D123+E123 -> 1612142.08
C125: =C121+C123 -> 13850000 | D125: =D121+D123 -> 18925027.69 | E125: =E121+E123 -> 213445.2023 | F125: =F121+F123 -> 32988472.89 | G125: =SUM(D125:E125) -> 19138472.89

Sheet SummerProvRep (hidden)
A1: =IF(LEFT(J1,2)="BF",6,IF(LEFT(J1,2)="CW",1,IF(LEFT(J1,2)="CO",4,IF(LEFT(J1,2)="TS",2,IF(LEFT(J1,2)="RB",3,IF(LEFT(J1,2)="SF",7,IF(LEFT(J1,2)="TV",5,IF(LEFT(J1,2)="WF",8,"")))))))) ->  | B1: Name | C1: NCY | D1: UPN | E1: start date | F1: end date | G1: Funding LA | H1: Funded Days | I1: Top Up Amount | J1: Band | K1: FTE | P1: =IF(ISBLANK(A1),"",CONCATENATE($J$1," ",RIGHT(J1,2))) -> Band nd
A2: 6 | B2: Navsarka, Esa | C2: 7 | D2: J331205614044 | E2: 2023-04-01 | F2: 2023-07-25 | G2: Coventry | H2: 66 | I2: 3270.234687 | J2: BF2E | K2: 1 | P2: Band 2E
A3: 6 | B3: Powers, Jesse-James | C3: 7 | D3: E331702415004 | E3: 2023-04-01 | F3: 2023-07-25 | G3: Coventry | H3: 66 | I3: 5303.082812 | J3: BF4F | K3: 1 | P3: Band 4F
A4: 6 | B4: Ntare, Christopher M. | C4: 7 | D4: Z331214915010 | E4: 2023-04-01 | F4: 2023-07-25 | G4: Coventry | H4: 66 | I4: 3270.234687 | J4: BF2E | K4: 1 | P4: Band 2E
A5: 6 | B5: Imran, Isa M. | C5: 7 | D5: V331701714001 | E5: 2023-04-01 | F5: 2023-07-25 | G5: Coventry | H5: 66 | I5: 3270.234687 | J5: BF2E | K5: 1 | P5: Band 2E
A6: 6 | B6: Wakahiu, Yvonne N. | C6: 7 | D6: D331702415013 | E6: 2023-04-01 | F6: 2023-07-25 | G6: Coventry | H6: 66 | I6: 5745.007812 | J6: BF1F | K6: 1 | P6: Band 1F
A7: 6 | B7: Shahrjerdi, Dara | C7: 7 | D7: J331701714002 | E7: 2023-04-01 | F7: 2023-07-25 | G7: Coventry | H7: 66 | I7: 8080.1875 | J7: BF5E | K7: 1 | P7: Band 5E
A8: 6 | B8: Nimpaye, Don C. | C8: 7 | D8: H331215714032 | E8: 2023-04-01 | F8: 2023-07-25 | G8: Coventry | H8: 66 | I8: 5745.007812 | J8: BF1F | K8: 1 | P8: Band 1F
A9: 6 | B9: Mburichen, Onyekachukwu Ki | C9: 7 | D9: E331701714007 | E9: 2023-04-01 | F9: 2023-07-25 | G9: Coventry | H9: 66 | I9: 5745.007812 | J9: BF1F | K9: 1 | P9: Band 1F
A10: 6 | B10: Omar, Shano | C10: 7 | D10: R331214514076 | E10: 2023-04-01 | F10: 2023-07-25 | G10: Coventry | H10: 66 | I10: 3535.389688 | J10: BF1E | K10: 1 | P10: Band 1E
A11: 6 | B11: Njunga, Trevelle C. | C11: 7 | D11: G331702415015 | E11: 2023-04-01 | F11: 2023-07-25 | G11: Coventry | H11: 66 | I11: 5745.007812 | J11: BF1F | K11: 1 | P11: Band 1F
A12: 6 | B12: Mwangi, Asher M. | C12: 7 | D12: V331215615067 | E12: 2023-04-01 | F12: 2023-07-25 | G12: Coventry | H12: 66 | I12: 5745.007812 | J12: BF1F | K12: 1 | P12: Band 1F
A13: 6 | B13: Barrowman, Lee S. | C13: 7 | D13: H331205614024 | E13: 2023-04-01 | F13: 2023-07-25 | G13: Coventry | H13: 66 | I13: 3535.389688 | J13: BF1E | K13: 1 | P13: Band 1E
A14: 6 | B14: McSheffrey, Kayden B. | C14: 7 | D14: R331212514039 | E14: 2023-04-01 | F14: 2023-07-25 | G14: Coventry | H14: 66 | I14: 3535.389688 | J14: BF1E | K14: 1 | P14: Band 1E
A15: 6 | B15: Crowley, Macey B. | C15: 7 | D15: A334205014028 | E15: 2023-04-01 | F15: 2023-07-25 | G15: Coventry | H15: 66 | I15: 3270.234687 | J15: BF2E | K15: 1 | P15: Band 2E
A16: 6 | B16: Zanfir, Leonard | C16: 7 | D16: J331205615045 | E16: 2023-04-01 | F16: 2023-07-25 | G16: Coventry | H16: 66 | I16: 3535.389688 | J16: BF1E | K16: 1 | P16: Band 1E
A17: 6 | B17: Ngemegwai, Leonardo S. | C17: 7 | D17: G331214015117 | E17: 2023-04-01 | F17: 2023-07-25 | G17: Coventry | H17: 66 | I17: 4419.23625 | J17: BF4E | K17: 1 | P17: Band 4E
A18: 6 | B18: Ahmed, Mohammed A. | C18: 7 | D18: E331214516003 | E18: 2023-04-01 | F18: 2023-07-25 | G18: Coventry | H18: 66 | I18: 3270.234687 | J18: BF2E | K18: 1 | P18: Band 2E
A19: 6 | B19: Niculae, Filimon | C19: 7 | D19: H331700018011 | E19: 2023-04-01 | F19: 2023-07-25 | G19: Coventry | H19: 66 | I19: 5745.007812 | J19: BF1F | K19: 1 | P19: Band 1F
A20: 6 | B20: Al Sabban, Bissan Y. | C20: 7 | D20: G886691918118 | E20: 2023-04-01 | F20: 2023-07-25 | G20: Coventry | H20: 66 | I20: 3270.234687 | J20: BF2E | K20: 1 | P20: Band 2E
A21: 6 | B21: Collinson, Catherine j. | C21: 8 | D21: J331214114002 | E21: 2023-04-01 | F21: 2023-07-25 | G21: Coventry | H21: 66 | I21: 3270.234687 | J21: BF2E | K21: 1 | P21: Band 2E
A22: 6 | B22: Skvortsov-Kirsteine, Jessica | C22: 8 | D22: B331340813020 | E22: 2023-04-01 | F22: 2023-07-25 | G22: Coventry | H22: 66 | I22: 3270.234687 | J22: BF2E | K22: 1 | P22: Band 2E
A23: 6 | B23: Molad, Marwan A. | C23: 8 | D23: Q331201513019 | E23: 2023-04-01 | F23: 2023-07-25 | G23: Coventry | H23: 66 | I23: 3270.234687 | J23: BF2E | K23: 1 | P23: Band 2E
A24: 6 | B24: Islam, Mohammed Sami S. | C24: 8 | D24: B331702414001 | E24: 2023-04-01 | F24: 2023-07-25 | G24: Coventry | H24: 66 | I24: 5745.007812 | J24: BF1F | K24: 1 | P24: Band 1F
A25: 6 | B25: Gul, Annum | C25: 8 | D25: M331701713003 | E25: 2023-04-01 | F25: 2023-07-25 | G25: Coventry | H25: 66 | I25: 5303.082812 | J25: BF2F | K25: 1 | P25: Band 2F
A26: 6 | B26: Gibson, Libby G. | C26: 8 | D26: K331100712259 | E26: 2023-04-01 | F26: 2023-07-25 | G26: Coventry | H26: 66 | I26: 5745.007812 | J26: BF1F | K26: 1 | P26: Band 1F
A27: 6 | B27: McGowan, Lucas C. | C27: 8 | D27: W331342314010 | E27: 2023-04-01 | F27: 2023-07-25 | G27: Coventry | H27: 66 | I27: 3270.234687 | J27: BF2E | K27: 1 | P27: Band 2E
A28: 6 | B28: Braithwaite, Lacey P. | C28: 8 | D28: V331330214003 | E28: 2023-04-01 | F28: 2023-07-25 | G28: Coventry | H28: 66 | I28: 8080.1875 | J28: BF5E | K28: 1 | P28: Band 5E
A29: 6 | B29: Woodward, Cody R. | C29: 8 | D29: M331211814023 | E29: 2023-04-01 | F29: 2023-07-25 | G29: Coventry | H29: 66 | I29: 3270.234687 | J29: BF2E | K29: 1 | P29: Band 2E
A30: 6 | B30: Urch, Sophia G. | C30: 8 | D30: B331212214038 | E30: 2023-04-01 | F30: 2023-07-25 | G30: Coventry | H30: 66 | I30: 3270.234687 | J30: BF2E | K30: 1 | P30: Band 2E
A31: 6 | B31: Gleeson, Reece R. | C31: 8 | D31: U331213113033 | E31: 2023-04-01 | F31: 2023-07-25 | G31: Coventry | H31: 66 | I31: 3535.389688 | J31: BF1E | K31: 1 | P31: Band 1E
A32: 6 | B32: Ahmed, Hana H. | C32: 8 | D32: L331702414007 | E32: 2023-04-01 | F32: 2023-07-25 | G32: Coventry | H32: 66 | I32: 3535.389688 | J32: BF1E | K32: 1 | P32: Band 1E
A33: 6 | B33: Ali, Azhar | C33: 8 | D33: B331214114005 | E33: 2023-04-01 | F33: 2023-07-25 | G33: Coventry | H33: 66 | I33: 5745.007812 | J33: BF1F | K33: 1 | P33: Band 1F
A34: 6 | B34: Hyde, Brody J. | C34: 8 | D34: M331214113061 | E34: 2023-04-01 | F34: 2023-07-25 | G34: Coventry | H34: 66 | I34: 3535.389688 | J34: BF1E | K34: 1 | P34: Band 1E
A35: 6 | B35: Madu, Great I. | C35: 8 | D35: M331701719011 | E35: 2023-04-01 | F35: 2023-07-25 | G35: Coventry | H35: 66 | I35: 5303.082812 | J35: BF4F | K35: 1 | P35: Band 4F
A36: 6 | B36: Igbokwe, Francis | C36: 8 | D36: A331701922001 | E36: 2023-04-01 | F36: 2023-07-25 | G36: Coventry | H36: 66 | I36: 5303.082812 | J36: BF2F | K36: 1 | P36: Band 2F
A37: 6 | B37: Cooney, Charlotte B. | C37: 9 | D37: A331702412006 | E37: 2023-04-01 | F37: 2023-07-25 | G37: Coventry | H37: 66 | I37: 5303.082812 | J37: BF2F | K37: 1 | P37: Band 2F
A38: 6 | B38: Chidube, Maurice I. | C38: 9 | D38: J331214913014 | E38: 2023-04-01 | F38: 2023-07-25 | G38: Coventry | H38: 66 | I38: 3270.234687 | J38: BF2E | K38: 1 | P38: Band 2E
A39: 6 | B39: Teensa, Raul S. | C39: 9 | D39: N331212412052 | E39: 2023-04-01 | F39: 2023-07-25 | G39: Coventry | H39: 66 | I39: 3270.234687 | J39: BF2E | K39: 1 | P39: Band 2E
A40: 6 | B40: Zeno, Eryk | C40: 9 | D40: J331343513046 | E40: 2023-04-01 | F40: 2023-07-25 | G40: Coventry | H40: 66 | I40: 5745.007812 | J40: BF1F | K40: 1 | P40: Band 1F
A41: 6 | B41: Carty, Loveonhe D. | C41: 9 | D41: L331343813008 | E41: 2023-04-01 | F41: 2023-07-25 | G41: Coventry | H41: 66 | I41: 3270.234687 | J41: BF2E | K41: 1 | P41: Band 2E
A42: 6 | B42: Karamat, Safiullah | C42: 9 | D42: V331201512013 | E42: 2023-04-01 | F42: 2023-07-25 | G42: Coventry | H42: 66 | I42: 8080.1875 | J42: BF5E | K42: 1 | P42: Band 5E
A43: 6 | B43: GRYSZKIENAS, Santiago A. | C43: 9 | D43: L331212112059 | E43: 2023-04-01 | F43: 2023-07-25 | G43: Coventry | H43: 66 | I43: 3535.389688 | J43: BF1E | K43: 1 | P43: Band 1E
A44: 6 | B44: Bush, Matthew P. | C44: 9 | D44: A331341813003 | E44: 2023-04-01 | F44: 2023-07-25 | G44: Coventry | H44: 66 | I44: 3270.234687 | J44: BF2E | K44: 1 | P44: Band 2E
A45: 6 | B45: Mack, Paige D. | C45: 9 | D45: L331214312064 | E45: 2023-04-01 | F45: 2023-07-25 | G45: Coventry | H45: 66 | I45: 3270.234687 | J45: BF2E | K45: 1 | P45: Band 2E
A46: 6 | B46: McKinlay, Maddox E. | C46: 9 | D46: Y331100711270 | E46: 2023-04-01 | F46: 2023-07-25 | G46: Coventry | H46: 66 | I46: 5745.007812 | J46: BF1F | K46: 1 | P46: Band 1F
A47: 6 | B47: Mula, Elliot J. | C47: 9 | D47: H331330213012 | E47: 2023-04-25 | F47: 2023-07-25 | G47: Coventry | H47: 60 | I47: 5222.734375 | J47: BF1F | K47: 1 | P47: Band 1F
A48: 6 | B48: Mula, Elliot J. | C48: 9 | D48: H331330213012 | E48: 2023-04-01 | F48: 2023-04-24 | G48: Coventry | H48: 6 | I48: 734.5625 | J48: BF5E | K48: 1 | P48: Band 5E
A49: 6 | B49: Molad, MOHAMAD | C49: 9 | D49: M331201512016 | E49: 2023-04-01 | F49: 2023-07-25 | G49: Coventry | H49: 66 | I49: 3270.234687 | J49: BF2E | K49: 1 | P49: Band 2E
A50: 6 | B50: Akhtar, Shumena | C50: 9 | D50: F331214112083 | E50: 2023-04-01 | F50: 2023-07-25 | G50: Coventry | H50: 66 | I50: 3535.389688 | J50: BF1E | K50: 1 | P50: Band 1E
A51: =IF(LEFT(J51,2)="BF",6,IF(LEFT(J51,2)="CW",1,IF(LEFT(J51,2)="CO",4,IF(LEFT(J51,2)="TS",2,IF(LEFT(J51,2)="RB",3,IF(LEFT(J51,2)="SF",7,IF(LEFT(J51,2)="TV",5,IF(LEFT(J51,2)="WF",8,"")))))))) -> 6 | B51: Hudson, Elise A. | C51: 10 | D51: N331300611029 | E51: 2023-04-01 | F51: 2023-07-25 | G51: Warwickshire | H51: 66 | I51: 3270.234687 | J51: BF2E | K51: 1 | P51: Band 2E
A52: =IF(LEFT(J52,2)="BF",6,IF(LEFT(J52,2)="CW",1,IF(LEFT(J52,2)="CO",4,IF(LEFT(J52,2)="TS",2,IF(LEFT(J52,2)="RB",3,IF(LEFT(J52,2)="SF",7,IF(LEFT(J52,2)="TV",5,IF(LEFT(J52,2)="WF",8,"")))))))) -> 6 | B52: Moseley, Holly | C52: 10 | D52: U331702411001 | E52: 2023-04-01 | F52: 2023-07-25 | G52: Coventry | H52: 66 | I52: 5303.082812 | J52: BF2F | K52: 1 | P52: Band 2F
A53: 6 | B53: Abu Baker, Daniel | C53: 10 | D53: P331700911004 | E53: 2023-04-01 | F53: 2023-07-25 | G53: Coventry | H53: 66 | I53: 8080.1875 | J53: BF5E | K53: 1 | P53: Band 5E
A54: 6 | B54: Padan, Rohan S. | C54: 10 | D54: W331341411043 | E54: 2023-04-01 | F54: 2023-07-25 | G54: Coventry | H54: 66 | I54: 3270.234687 | J54: BF2E | K54: 1 | P54: Band 2E
A55: 6 | B55: Jones, Ellis D. | C55: 10 | D55: L937262612011 | E55: 2023-04-01 | F55: 2023-07-25 | G55: Coventry | H55: 66 | I55: 3535.389688 | J55: BF1E | K55: 1 | P55: Band 1E
A56: 6 | B56: Ray, Jasmine | C56: 10 | D56: R331214111023 | E56: 2023-04-01 | F56: 2023-07-25 | G56: Coventry | H56: 66 | I56: 3270.234687 | J56: BF2E | K56: 1 | P56: Band 2E
A57: 6 | B57: Sahota, Joydeep | C57: 10 | D57: Y331214612092 | E57: 2023-04-01 | F57: 2023-07-25 | G57: Coventry | H57: 66 | I57: 3535.389688 | J57: BF1E | K57: 1 | P57: Band 1E
A58: 6 | B58: Mullin, Harley J. | C58: 10 | D58: B331214112061 | E58: 2023-04-01 | F58: 2023-07-25 | G58: Coventry | H58: 66 | I58: 8080.1875 | J58: BF5E | K58: 1 | P58: Band 5E
A59: 6 | B59: Beauchamp, Morgan T. | C59: 10 | D59: H331300712002 | E59: 2023-04-01 | F59: 2023-07-25 | G59: Coventry | H59: 66 | I59: 3270.234687 | J59: BF2E | K59: 1 | P59: Band 2E
A60: 6 | B60: Khapane, Yugandhar | C60: 10 | D60: N331700612005 | E60: 2023-04-01 | F60: 2023-07-25 | G60: Coventry | H60: 66 | I60: 5745.007812 | J60: BF1F | K60: 1 | P60: Band 1F
A61: 6 | B61: Norman, William K. | C61: 10 | D61: G331702418018 | E61: 2023-04-01 | F61: 2023-07-25 | G61: Coventry | H61: 66 | I61: 5745.007812 | J61: BF1F | K61: 1 | P61: Band 1F
A62: 6 | B62: Jose, Aannet | C62: 10 | D62: J331701717005 | E62: 2023-04-01 | F62: 2023-07-25 | G62: Coventry | H62: 66 | I62: 3535.389688 | J62: BF1E | K62: 1 | P62: Band 1E
A63: 6 | B63: Ali, Ifza | C63: 11 | D63: Z331700611003 | E63: 2023-04-01 | F63: 2023-07-25 | G63: Coventry | H63: 66 | I63: 3270.234687 | J63: BF2E | K63: 1 | P63: Band 2E
A64: 6 | B64: ADEMAKINWA, Kikiola O. | C64: 11 | D64: A331702411005 | E64: 2023-04-01 | F64: 2023-07-25 | G64: Coventry | H64: 66 | I64: 5745.007812 | J64: BF1F | K64: 1 | P64: Band 1F
A65: 6 | B65: KASONGO, Tony S. | C65: 11 | D65: R331215610002 | E65: 2023-04-01 | F65: 2023-07-25 | G65: Coventry | H65: 66 | I65: 5745.007812 | J65: BF1F | K65: 1 | P65: =IF(ISBLANK(A65),"",CONCATENATE($J$1," ",RIGHT(J65,2))) -> Band 1F
A66: 6 | B66: MALANGU, Sharon B. | C66: 11 | D66: C331343811047 | E66: 2023-04-01 | F66: 2023-07-25 | G66: Coventry | H66: 66 | I66: 5745.007812 | J66: BF1F | K66: 1 | P66: Band 1F
A67: 6 | B67: Kunasingam, Harryshan | C67: 11 | D67: L331100709018 | E67: 2023-04-01 | F67: 2023-07-25 | G67: Coventry | H67: 66 | I67: 5745.007812 | J67: BF1F | K67: 1 | P67: Band 1F
A68: 6 | B68: Rama, Elbion | C68: 11 | D68: L331702411004 | E68: 2023-04-01 | F68: 2023-07-25 | G68: Coventry | H68: 66 | I68: 5745.007812 | J68: BF1F | K68: 1 | P68: Band 1F
A69: 6 | B69: EKALAKALA, Eliezer | C69: 11 | D69: E331701710003 | E69: 2023-04-01 | F69: 2023-07-25 | G69: Coventry | H69: 66 | I69: 3270.234687 | J69: BF2E | K69: 1 | P69: Band 2E
A70: 6 | B70: Walters, Casadie-Rae J. | C70: 11 | D70: Q331341811022 | E70: 2023-04-01 | F70: 2023-07-25 | G70: Coventry | H70: 66 | I70: 3535.389688 | J70: BF1E | K70: 1 | P70: Band 1E
A71: 6 | B71: Cain, Chanel | C71: 11 | D71: Y331214210011 | E71: 2023-04-01 | F71: 2023-07-25 | G71: Coventry | H71: 66 | I71: 3270.234687 | J71: BF2E | K71: 1 | P71: Band 2E
A72: 6 | B72: Suleiman, Mohammad | C72: 11 | D72: T331110715006 | E72: 2023-04-01 | F72: 2023-07-25 | G72: Coventry | H72: 66 | I72: 5745.007812 | J72: BF1F | K72: 1 | P72: Band 1F
A73: 6 | B73: Singh, Navbir | C73: 11 | D73: K331400418026 | E73: 2023-04-01 | F73: 2023-07-25 | G73: Coventry | H73: 66 | I73: 5745.007812 | J73: BF1F | K73: 1 | P73: Band 1F
A74: 6 | B74: Stokes, Bradley P. | C74: 11 | D74: R312201611091 | E74: 2023-04-01 | F74: 2023-07-25 | G74: Coventry | H74: 66 | I74: 3270.234687 | J74: BF2E | K74: 1 | P74: Band 2E
A75: 6 | B75: Hatem, Ahmed B. | C75: 11 | D75: A856721714003 | E75: 2023-04-01 | F75: 2023-07-25 | G75: Coventry | H75: 66 | I75: 8080.1875 | J75: BF5E | K75: 1 | P75: Band 5E
A76: 6 | B76: Biyasi, Hala | C76: 11 | D76: D331701920001 | E76: 2023-04-01 | F76: 2023-07-25 | G76: Coventry | H76: 66 | I76: 3270.234687 | J76: BF2E | K76: 1 | P76: Band 2E
A77: 6 | B77: Mohammed-Said, Dia-Adin A. | C77: 11 | D77: P331701921001 | E77: 2023-04-01 | F77: 2023-07-25 | G77: Coventry | H77: 66 | I77: 5303.082812 | J77: BF2F | K77: 1 | P77: Band 2F
A78: 6 | B78: Ginova-Pearson, Denisa A. | C78: 12 | D78: B331213610031 | E78: 2023-04-01 | F78: 2023-07-25 | G78: Coventry | H78: 66 | I78: 3270.234687 | J78: BF2E | K78: 1 | P78: Band 2E
A79: 6 | B79: Kazmi, Aleeza | C79: 12 | D79: W331701708004 | E79: 2023-04-01 | F79: 2023-07-25 | G79: Coventry | H79: 66 | I79: 5303.082812 | J79: BF2F | K79: 1 | P79: Band 2F
A80: 6 | B80: Munir, Aisha | C80: 12 | D80: R331702409006 | E80: 2023-04-01 | F80: 2023-07-25 | G80: Coventry | H80: 66 | I80: 5303.082812 | J80: BF2F | K80: 1 | P80: Band 2F
A81: 6 | B81: Bhatti, Aman | C81: 12 | D81: J331702409009 | E81: 2023-04-01 | F81: 2023-07-25 | G81: Coventry | H81: 66 | I81: 5303.082812 | J81: BF2F | K81: 1 | P81: Band 2F
A82: 6 | B82: Leese, Noah | C82: 12 | D82: Y331343709002 | E82: 2023-04-01 | F82: 2023-07-25 | G82: Coventry | H82: 66 | I82: 5745.007812 | J82: BF1F | K82: 1 | P82: Band 1F
A83: 6 | B83: Hughes, Dylan J. | C83: 12 | D83: F331343810048 | E83: 2023-04-01 | F83: 2023-07-25 | G83: Coventry | H83: 66 | I83: 3270.234687 | J83: BF2E | K83: 1 | P83: Band 2E
A84: 6 | B84: Younis, Mohammed E. | C84: 12 | D84: D331701709002 | E84: 2023-04-01 | F84: 2023-07-25 | G84: Coventry | H84: 66 | I84: 5745.007812 | J84: BF1F | K84: 1 | P84: Band 1F
A85: 6 | B85: Moseley, Thomas | C85: 12 | D85: E331202109018 | E85: 2023-04-01 | F85: 2023-07-25 | G85: Coventry | H85: 66 | I85: 3535.389688 | J85: BF1E | K85: 1 | P85: Band 1E
A86: 6 | B86: Abdullah, Nasif | C86: 12 | D86: D331214509052 | E86: 2023-04-01 | F86: 2023-07-25 | G86: Coventry | H86: 66 | I86: 5303.082812 | J86: BF2F | K86: 1 | P86: Band 2F
A87: 6 | B87: Christian, Riquelme N. | C87: 12 | D87: K331300810023 | E87: 2023-04-01 | F87: 2023-07-25 | G87: Coventry | H87: 66 | I87: 3535.389688 | J87: BF1E | K87: 1 | P87: Band 1E
A88: 6 | B88: Cockerill, William | C88: 12 | D88: R331341109030 | E88: 2023-04-01 | F88: 2023-07-25 | G88: Coventry | H88: 66 | I88: 3270.234687 | J88: BF2E | K88: 1 | P88: Band 2E
A89: 6 | B89: Efrem Tekle, Feelmona E. | C89: 12 | D89: M331300810034 | E89: 2023-04-01 | F89: 2023-07-25 | G89: Coventry | H89: 66 | I89: 3270.234687 | J89: BF2E | K89: 1 | P89: Band 2E
A90: 6 | B90: Smith, Katie-Jayne | C90: 12 | D90: K936296309021 | E90: 2023-04-01 | F90: 2023-07-25 | G90: Coventry | H90: 66 | I90: 5745.007812 | J90: BF1F | K90: 1 | P90: Band 1F
A91: 6 | B91: Voicu, Alexandru V. | C91: 12 | D91: N937702017001 | E91: 2023-04-01 | F91: 2023-07-25 | G91: Coventry | H91: 66 | I91: 8080.1875 | J91: BF5E | K91: 1 | P91: Band 5E
A92: 6 | B92: Didiu, Cosmin | C92: 12 | D92: F331701918001 | E92: 2023-04-01 | F92: 2023-07-25 | G92: Coventry | H92: 66 | I92: 3270.234687 | J92: BF2E | K92: 1 | P92: Band 2E
A93: 6 | B93: Jadeszko, Gabriel | C93: 12 | D93: V331701918002 | E93: 2023-04-01 | F93: 2023-07-25 | G93: Coventry | H93: 66 | I93: 3270.234687 | J93: BF2E | K93: 1 | P93: Band 2E
A94: 6 | B94: Hatem, Ibraheem B. | C94: 12 | D94: Q856700314010 | E94: 2023-04-01 | F94: 2023-07-25 | G94: Coventry | H94: 66 | I94: 8080.1875 | J94: BF5E | K94: 1 | P94: Band 5E
A95: 6 | B95: Okorie, Michael | C95: 12 | D95: F331701919002 | E95: 2023-04-01 | F95: 2023-07-25 | G95: Coventry | H95: 66 | I95: 8080.1875 | J95: BF5E | K95: 1 | P95: Band 5E
A96: 6 | B96: ESSEKU-OTOO, Nadia A. | C96: 12 | D96: R307700710005 | E96: 2023-04-01 | F96: 2023-07-25 | G96: Coventry | H96: 66 | I96: 3535.389688 | J96: BF1E | K96: 1 | P96: Band 1E
A97: 6 | B97: Russell, William J. | C97: 13 | D97: Y331700609001 | E97: 2023-04-01 | F97: 2023-07-25 | G97: Coventry | H97: 66 | I97: 5745.007812 | J97: BF1F | K97: 1 | P97: Band 1F
A98: 6 | B98: Ekalakala, Beni T. | C98: 13 | D98: D331343708043 | E98: 2023-04-01 | F98: 2023-07-25 | G98: Coventry | H98: 66 | I98: 3535.389688 | J98: BF1E | K98: 1 | P98: Band 1E
A99: 6 | B99: Clifton, Amy E. | C99: 13 | D99: C331215608046 | E99: 2023-04-01 | F99: 2023-07-25 | G99: Coventry | H99: 66 | I99: 3270.234687 | J99: BF2E | K99: 1 | P99: Band 2E
A100: 6 | B100: Mubele, Quincey | C100: 13 | D100: W331212908067 | E100: 2023-04-01 | F100: 2023-07-25 | G100: Coventry | H100: 66 | I100: 3535.389688 | J100: BF1E | K100: 1 | P100: Band 1E
A101: 6 | B101: Kirkby, Olivia | C101: 13 | D101: T331343708044 | E101: 2023-04-01 | F101: 2023-07-25 | G101: Coventry | H101: 66 | I101: 3535.389688 | J101: BF1E | K101: 1 | P101: Band 1E
A102: 6 | B102: Riley, Kirk S. | C102: 13 | D102: Q336204110010 | E102: 2023-04-01 | F102: 2023-07-25 | G102: Coventry | H102: 66 | I102: 3270.234687 | J102: BF2E | K102: 1 | P102: Band 2E
A103: 6 | B103: Newport, Brandon A. | C103: 13 | D103: K331702408001 | E103: 2023-04-01 | F103: 2023-07-25 | G103: Coventry | H103: 66 | I103: 5745.007812 | J103: BF1F | K103: 1 | P103: Band 1F
A104: 6 | B104: Hussain, Shafee | C104: 14 | D104: W331343707016 | E104: 2023-04-01 | F104: 2023-07-25 | G104: Coventry | H104: 66 | I104: 8080.1875 | J104: BF5E | K104: 1 | P104: Band 5E
A105: 6 | B105: Cooper, Dixie | C105: 14 | D105: K331701705002 | E105: 2023-04-01 | F105: 2023-07-25 | G105: Coventry | H105: 66 | I105: 5303.082812 | J105: BF2F | K105: 1 | P105: Band 2F
A106: 6 | B106: Miguel, Emmanuel | C106: 14 | D106: Z331702408002 | E106: 2023-04-01 | F106: 2023-07-25 | G106: Coventry | H106: 66 | I106: 5745.007812 | J106: BF1F | K106: 1 | P106: Band 1F
A107: 6 | B107: McLaughlin, CHARLIE S. | C107: 14 | D107: G331701707002 | E107: 2023-04-01 | F107: 2023-07-25 | G107: Coventry | H107: 66 | I107: 5745.007812 | J107: BF1F | K107: 1 | P107: Band 1F
A108: 6 | B108: Mackley, Connor K. | C108: 14 | D108: M331200808036 | E108: 2023-04-01 | F108: 2023-07-25 | G108: Coventry | H108: 66 | I108: 3270.234687 | J108: BF2E | K108: 1 | P108: Band 2E
A109: 6 | B109: Miah, Tahim M. | C109: 14 | D109: Z331215607014 | E109: 2023-04-01 | F109: 2023-07-25 | G109: Coventry | H109: 66 | I109: 5745.007812 | J109: BF1F | K109: 1 | P109: Band 1F
A110: 6 | B110: Rawlinson, Jack M. | C110: 14 | D110: B331300908036 | E110: 2023-04-01 | F110: 2023-07-25 | G110: Coventry | H110: 66 | I110: 3535.389688 | J110: BF1E | K110: 1 | P110: Band 1E
A111: 6 | B111: Raja, Mohammed Qasim Q. | C111: 14 | D111: F331214107040 | E111: 2023-04-01 | F111: 2023-07-25 | G111: Coventry | H111: 66 | I111: 3535.389688 | J111: BF1E | K111: 1 | P111: Band 1E
A112: 6 | B112: Edginton, ADAM M. | C112: 14 | D112: W331214207015 | E112: 2023-04-01 | F112: 2023-07-25 | G112: Coventry | H112: 66 | I112: 3270.234687 | J112: BF2E | K112: 1 | P112: Band 2E
A113: 6 | B113: Akhtar, Kerrum | C113: 14 | D113: D331202307051 | E113: 2023-04-01 | F113: 2023-07-25 | G113: Coventry | H113: 66 | I113: 3270.234687 | J113: BF2E | K113: 1 | P113: Band 2E
A114: 6 | B114: James, Kieran | C114: 14 | D114: M331214208057 | E114: 2023-04-01 | F114: 2023-07-25 | G114: Coventry | H114: 66 | I114: 4419.23625 | J114: BF3E | K114: 1 | P114: Band 3E
A115: 6 | B115: Daniels, Cameron J. | C115: 14 | D115: R331300708004 | E115: 2023-04-01 | F115: 2023-07-25 | G115: Coventry | H115: 66 | I115: 3535.389688 | J115: BF1E | K115: 1 | P115: Band 1E
A116: =IF(LEFT(J116,2)="BF",6,IF(LEFT(J116,2)="CW",1,IF(LEFT(J116,2)="CO",4,IF(LEFT(J116,2)="TS",2,IF(LEFT(J116,2)="RB",3,IF(LEFT(J116,2)="SF",7,IF(LEFT(J116,2)="TV",5,IF(LEFT(J116,2)="WF",8,"")))))))) -> 6 | B116: Ben Othman, Shahd B. | C116: 14 | D116: T331701708002 | E116: 2023-04-01 | F116: 2023-07-25 | G116: Coventry | H116: 66 | I116: 3535.389688 | J116: BF1E | K116: 1 | P116: Band 1E
A117: 6 | B117: Madu, Promise | C117: 14 | D117: R331701919001 | E117: 2023-04-01 | F117: 2023-07-25 | G117: Coventry | H117: 66 | I117: 5745.007812 | J117: BF1F | K117: 1 | P117: Band 1F
A118: 1 | B118: Kelly-Symons, Donovan J. | C118: 0 | D118: G331702422004 | E118: 2023-04-01 | F118: 2023-07-25 | G118: Coventry | H118: 66 | I118: 3535.389688 | J118: CW1E | K118: 1 | P118: Band 1E
A119: 1 | B119: Bodinnar, Ava K. | C119: 0 | D119: R331702422012 | E119: 2023-04-01 | F119: 2023-07-25 | G119: Coventry | H119: 66 | I119: 3535.389688 | J119: CW1E | K119: 1 | P119: Band 1E
A120: 1 | B120: Osuagwu, Jeremiah O. | C120: 0 | D120: D331702422002 | E120: 2023-04-01 | F120: 2023-07-25 | G120: Coventry | H120: 66 | I120: 5745.007812 | J120: CW1F | K120: 1 | P120: =IF(ISBLANK(A120),"",CONCATENATE($J$1," ",RIGHT(J120,2))) -> Band 1F
A121: 1 | B121: Martin, Alexander J. | C121: 0 | D121: F331702422013 | E121: 2023-04-01 | F121: 2023-07-25 | G121: Coventry | H121: 66 | I121: 3535.389688 | J121: CW1E | K121: 1 | P121: =IF(ISBLANK(A121),"",CONCATENATE($J$1," ",RIGHT(J121,2))) -> Band 1E
A122: 1 | B122: Whitmore, Lexi J. | C122: 0 | D122: Y331206821005 | E122: 2023-04-01 | F122: 2023-07-25 | G122: Coventry | H122: 66 | I122: 3535.389688 | J122: CW1E | K122: 1 | P122: Band 1E
A123: 1 | B123: Lapworth-Nelson, Amelia | C123: 0 | D123: P331702422001 | E123: 2023-04-01 | F123: 2023-07-25 | G123: Coventry | H123: 66 | I123: 5303.082812 | J123: CW4F | K123: 1 | P123: Band 4F
A124: 1 | B124: Ciobanu, Fabian G. | C124: 0 | D124: C331702422011 | E124: 2023-04-01 | F124: 2023-07-25 | G124: Coventry | H124: 66 | I124: 4419.23625 | J124: CW4E | K124: 1 | P124: Band 4E
A125: 1 | B125: Dima, Gabriel I. | C125: 0 | D125: F331215221033 | E125: 2023-04-01 | F125: 2023-07-25 | G125: Coventry | H125: 66 | I125: 3535.389688 | J125: CW1E | K125: 1 | P125: Band 1E
A126: 1 | B126: Forkuoh, George M. | C126: 0 | D126: A331215120034 | E126: 2023-06-28 | F126: 2023-07-25 | G126: Coventry | H126: 20 | I126: 1740.911458 | J126: CW1F | K126: 1 | P126: Band 1F
A127: 1 | B127: Yonas, Nftaliem | C127: 0 | D127: E331100719093 | E127: 2023-04-01 | F127: 2023-07-25 | G127: Coventry | H127: 66 | I127: 3535.389688 | J127: CW1E | K127: 1 | P127: Band 1E
A128: 1 | B128: Mamud, Abdul Hakim M. | C128: 0 | D128: Z331300621022 | E128: 2023-04-01 | F128: 2023-07-25 | G128: Coventry | H128: 66 | I128: 3535.389688 | J128: CW1E | K128: 1 | P128: Band 1E
A129: 1 | B129: Noor, Zayna | C129: 0 | D129: V331702422014 | E129: 2023-04-01 | F129: 2023-07-25 | G129: Coventry | H129: 66 | I129: 3535.389688 | J129: CW1E | K129: 1 | P129: Band 1E
A130: 1 | B130: Johnson, Esmae V. | C130: 0 | D130: N331702422008 | E130: 2023-04-01 | F130: 2023-07-25 | G130: Coventry | H130: 66 | I130: 5303.082812 | J130: CW4F | K130: 1 | P130: Band 4F
A131: 1 | B131: Randhawa, Ryan S. | C131: 0 | D131: L331213820084 | E131: 2023-04-01 | F131: 2023-07-25 | G131: Coventry | H131: 66 | I131: 3535.389688 | J131: CW1E | K131: 1 | P131: Band 1E
A132: 1 | B132: Binga, Jayden N. | C132: 0 | D132: W331702422005 | E132: 2023-04-01 | F132: 2023-07-25 | G132: Coventry | H132: 66 | I132: 3535.389688 | J132: CW1E | K132: 1 | P132: Band 1E
A133: 1 | B133: Munthali, Namonda L. | C133: 0 | D133: Z331702422007 | E133: 2023-04-01 | F133: 2023-07-25 | G133: Coventry | H133: 66 | I133: 3535.389688 | J133: CW1E | K133: 1 | P133: Band 1E
A134: 1 | B134: Coleman, Alfie J. | C134: 0 | D134: G331214622014 | E134: 2023-04-01 | F134: 2023-07-25 | G134: Coventry | H134: 66 | I134: 3535.389688 | J134: CW1E | K134: 1 | P134: Band 1E
A135: 1 | B135: Barmooz, Rose | C135: 0 | D135: E331200020058 | E135: 2023-04-01 | F135: 2023-07-25 | G135: Coventry | H135: 66 | I135: 3535.389688 | J135: CW1E | K135: 1 | P135: Band 1E
A136: 1 | B136: Noori, Silab | C136: 0 | D136: R331213821042 | E136: 2023-04-01 | F136: 2023-07-25 | G136: Coventry | H136: 66 | I136: 3535.389688 | J136: CW1E | K136: 1 | P136: Band 1E
A137: 1 | B137: Osabuohien, Eloghosa J. | C137: 0 | D137: K331702422006 | E137: 2023-04-01 | F137: 2023-07-25 | G137: Coventry | H137: 66 | I137: 8080.1875 | J137: CW5E | K137: 1 | P137: Band 5E
A138: 1 | B138: Oduro, Nana O. | C138: 0 | D138: Q331341421022 | E138: 2023-04-01 | F138: 2023-06-27 | G138: Coventry | H138: 46 | I138: 2464.059479 | J138: CW1E | K138: 1 | P138: Band 1E
A139: 1 | B139: Oduro, Nana O. | C139: 0 | D139: Q331341421022 | E139: 2023-06-28 | F139: 2023-07-25 | G139: Coventry | H139: 20 | I139: 2448.541667 | J139: CW5E | K139: 1 | P139: Band 5E
A140: 1 | B140: Angus, Jaxon R. | C140: 0 | D140: D331215821038 | E140: 2023-04-01 | F140: 2023-07-25 | G140: Coventry | H140: 66 | I140: 3535.389688 | J140: CW1E | K140: 1 | P140: Band 1E
A141: 1 | B141: Smithson, Harry | C141: 1 | D141: R331702421011 | E141: 2023-04-01 | F141: 2023-07-25 | G141: Coventry | H141: 66 | I141: 3535.389688 | J141: CW1E | K141: 1 | P141: Band 1E
A142: 1 | B142: Mousbaou, Mustapha E. | C142: 1 | D142: F331340620005 | E142: 2023-04-01 | F142: 2023-07-25 | G142: Coventry | H142: 66 | I142: 5745.007812 | J142: CW1F | K142: 1 | P142: Band 1F
A143: 1 | B143: Miah, Maya | C143: 1 | D143: K331702421005 | E143: 2023-04-01 | F143: 2023-07-25 | G143: Coventry | H143: 66 | I143: 3535.389688 | J143: CW1E | K143: 1 | P143: Band 1E
A144: 1 | B144: Feum, Prosper E. | C144: 1 | D144: Z331702421006 | E144: 2023-04-01 | F144: 2023-07-25 | G144: Coventry | H144: 66 | I144: 5745.007812 | J144: CW1F | K144: 1 | P144: Band 1F
A145: 1 | B145: Gallagher, Harry P. | C145: 1 | D145: D331702421001 | E145: 2023-04-01 | F145: 2023-07-25 | G145: Coventry | H145: 66 | I145: 5745.007812 | J145: CW1F | K145: 1 | P145: Band 1F
A146: 1 | B146: Festus, Joctan | C146: 1 | D146: Y331341121008 | E146: 2023-04-01 | F146: 2023-07-25 | G146: Coventry | H146: 66 | I146: 3535.389688 | J146: CW1E | K146: 1 | P146: Band 1E
A147: 1 | B147: Walsh, Henry J. | C147: 1 | D147: T331702421002 | E147: 2023-04-01 | F147: 2023-07-25 | G147: Coventry | H147: 66 | I147: 5303.082812 | J147: CW2F | K147: 1 | P147: Band 2F
A148: 1 | B148: Radwan, Zain | C148: 1 | D148: Z331200919033 | E148: 2023-04-01 | F148: 2023-07-25 | G148: Coventry | H148: 66 | I148: 3535.389688 | J148: CW1E | K148: 1 | P148: Band 1E
A149: 1 | B149: Binning, Blake P. | C149: 1 | D149: C331702421008 | E149: 2023-04-01 | F149: 2023-07-25 | G149: Coventry | H149: 66 | I149: 3535.389688 | J149: CW1E | K149: 1 | P149: Band 1E
A150: 1 | B150: Percival, Arianna J. | C150: 1 | D150: G331702421003 | E150: 2023-04-01 | F150: 2023-07-25 | G150: Coventry | H150: 66 | I150: 3535.389688 | J150: CW1E | K150: 1 | P150: Band 1E
A151: 1 | B151: Kankam, Kingsley | C151: 1 | D151: E331300620005 | E151: 2023-04-01 | F151: 2023-07-25 | G151: Coventry | H151: 66 | I151: 3535.389688 | J151: CW1E | K151: 1 | P151: Band 1E
A152: 1 | B152: Mohammadi, Reyhanah | C152: 1 | D152: A331100720052 | E152: 2023-04-01 | F152: 2023-07-25 | G152: Coventry | H152: 66 | I152: 5745.007812 | J152: CW1F | K152: 1 | P152: Band 1F
A153: 1 | B153: Adam, Amina | C153: 1 | D153: J331702421014 | E153: 2023-04-01 | F153: 2023-07-25 | G153: Coventry | H153: 66 | I153: 3535.389688 | J153: CW1E | K153: 1 | P153: Band 1E
A154: 1 | B154: Wyatt, Belle R. | C154: 1 | D154: M331702421016 | E154: 2023-04-01 | F154: 2023-07-25 | G154: Coventry | H154: 66 | I154: 5303.082812 | J154: CW2F | K154: 1 | P154: Band 2F
A155: 1 | B155: Johnson, Tariq | C155: 1 | D155: Y331100719087 | E155: 2023-04-01 | F155: 2023-07-25 | G155: Coventry | H155: 66 | I155: 3535.389688 | J155: CW1E | K155: 1 | P155: Band 1E
A156: 1 | B156: Akinmolusun, Amy E. | C156: 1 | D156: C331702422009 | E156: 2023-04-01 | F156: 2023-07-25 | G156: Coventry | H156: 66 | I156: 3535.389688 | J156: CW1E | K156: 1 | P156: Band 1E
A157: 1 | B157: Mayurathan, Harikirish | C157: 1 | D157: M331200920053 | E157: 2023-04-01 | F157: 2023-07-25 | G157: Coventry | H157: 66 | I157: 3535.389688 | J157: CW1E | K157: 1 | P157: Band 1E
A158: 1 | B158: Uthayajeevan, Riyaan | C158: 1 | D158: Y331201720029 | E158: 2023-04-01 | F158: 2023-07-25 | G158: Coventry | H158: 66 | I158: 3535.389688 | J158: CW1E | K158: 1 | P158: Band 1E
A159: 1 | B159: Singh, Gurnoor | C159: 1 | D159: X312701221006 | E159: 2023-04-01 | F159: 2023-07-25 | G159: Coventry | H159: 66 | I159: 3535.389688 | J159: CW1E | K159: 1 | P159: Band 1E
A160: 1 | B160: Damon, Eva | C160: 2 | D160: M331702420015 | E160: 2023-04-01 | F160: 2023-07-25 | G160: Coventry | H160: 66 | I160: 3535.389688 | J160: CW1E | K160: 1 | P160: Band 1E
A161: 1 | B161: Bedford, Elle-Leigh G. | C161: 2 | D161: V331200919067 | E161: 2023-04-01 | F161: 2023-07-25 | G161: Coventry | H161: 66 | I161: 3535.389688 | J161: CW1E | K161: 1 | P161: Band 1E
A162: 1 | B162: Rogers, Layla R. | C162: 2 | D162: F331702420011 | E162: 2023-04-01 | F162: 2023-07-25 | G162: Coventry | H162: 66 | I162: 3270.234687 | J162: CW2E | K162: 1 | P162: Band 2E
A163: 1 | B163: Grantham-Healy, Caleb | C163: 2 | D163: F331215019025 | E163: 2023-04-01 | F163: 2023-07-25 | G163: Coventry | H163: 66 | I163: 3535.389688 | J163: CW1E | K163: 1 | P163: Band 1E
A164: 1 | B164: Manak, Jorawar S. | C164: 2 | D164: F331702420009 | E164: 2023-04-01 | F164: 2023-07-25 | G164: Coventry | H164: 66 | I164: 2651.543125 | J164: CW4D | K164: 1 | P164: Band 4D
A165: 1 | B165: Ali, Muhammad Abu-Ba A. | C165: 2 | D165: N331200919063 | E165: 2023-04-01 | F165: 2023-07-25 | G165: Coventry | H165: 66 | I165: 5745.007812 | J165: CW1F | K165: 1 | P165: Band 1F
A166: 1 | B166: Akinwale, Abdullah A. | C166: 2 | D166: R331702420010 | E166: 2023-04-01 | F166: 2023-07-25 | G166: Coventry | H166: 66 | I166: 3270.234687 | J166: CW2E | K166: 1 | P166: Band 2E
A167: 1 | B167: Amad, Mohammad A. | C167: 2 | D167: Y331702420014 | E167: 2023-04-01 | F167: 2023-07-25 | G167: Coventry | H167: 66 | I167: 5745.007812 | J167: CW1F | K167: 1 | P167: Band 1F
A168: 1 | B168: Sawan, Marriah | C168: 2 | D168: T331702420001 | E168: 2023-04-01 | F168: 2023-07-25 | G168: Coventry | H168: 66 | I168: 3270.234687 | J168: CW2E | K168: 1 | P168: Band 2E
A169: 1 | B169: Meah, Aliya K. | C169: 2 | D169: A331200919082 | E169: 2023-04-01 | F169: 2023-07-25 | G169: Coventry | H169: 66 | I169: 3535.389688 | J169: CW1E | K169: 1 | P169: Band 1E
A170: 1 | B170: Fakir, Mohamed | C170: 2 | D170: V331702420012 | E170: 2023-04-01 | F170: 2023-07-25 | G170: Coventry | H170: 66 | I170: 5745.007812 | J170: CW1F | K170: 1 | P170: Band 1F
A171: 1 | B171: Ahmed, George O. | C171: 2 | D171: X331341119006 | E171: 2023-04-01 | F171: 2023-07-25 | G171: Coventry | H171: 66 | I171: 3535.389688 | J171: CW1E | K171: 1 | P171: Band 1E
A172: 1 | B172: Sikorski, Jason | C172: 2 | D172: K331702420004 | E172: 2023-04-01 | F172: 2023-07-25 | G172: Coventry | H172: 66 | I172: 3535.389688 | J172: CW1E | K172: 1 | P172: Band 1E
A173: 1 | B173: Nanthakumar, Prisha | C173: 2 | D173: X861330119060 | E173: 2023-04-01 | F173: 2023-07-25 | G173: Coventry | H173: 66 | I173: 3270.234687 | J173: CW2E | K173: 1 | P173: Band 2E
A174: 1 | B174: SUHAIB, Muhammad Hishaa B. | C174: 2 | D174: W331702420003 | E174: 2023-04-01 | F174: 2023-07-25 | G174: Coventry | H174: 66 | I174: 3535.389688 | J174: CW1E | K174: 1 | P174: Band 1E
A175: 1 | B175: Hadid, Mohammed | C175: 2 | D175: C331702420007 | E175: 2023-04-01 | F175: 2023-07-25 | G175: Coventry | H175: 66 | I175: 3270.234687 | J175: CW2E | K175: 1 | P175: Band 2E
A176: 1 | B176: Kageta, Tamarah T. | C176: 2 | D176: W331200019033 | E176: 2023-04-01 | F176: 2023-07-25 | G176: Coventry | H176: 66 | I176: 3535.389688 | J176: CW1E | K176: 1 | P176: Band 1E
A177: 1 | B177: George, Mason T. | C177: 2 | D177: L331215620010 | E177: 2023-04-01 | F177: 2023-07-25 | G177: Coventry | H177: 66 | I177: 5745.007812 | J177: CW1F | K177: 1 | P177: Band 1F
A178: 1 | B178: Al Yousef, Diyaa A. | C178: 2 | D178: J331702420013 | E178: 2023-04-01 | F178: 2023-07-22 | G178: Coventry | H178: 64 | I178: 7835.333333 | J178: CW5E | K178: 1 | P178: Band 5E
A179: 1 | B179: Williams, Leo P. | C179: 2 | D179: Q331702419007 | E179: 2023-04-01 | F179: 2023-07-25 | G179: Coventry | H179: 66 | I179: 3535.389688 | J179: CW1E | K179: 1 | P179: Band 1E
A180: =IF(LEFT(J180,2)="BF",6,IF(LEFT(J180,2)="CW",1,IF(LEFT(J180,2)="CO",4,IF(LEFT(J180,2)="TS",2,IF(LEFT(J180,2)="RB",3,IF(LEFT(J180,2)="SF",7,IF(LEFT(J180,2)="TV",5,IF(LEFT(J180,2)="WF",8,"")))))))) -> 1 | B180: Yusuf, Zakaria I. | C180: 2 | D180: X331215819023 | E180: 2023-04-01 | F180: 2023-06-28 | G180: Coventry | H180: 47 | I180: 5754.072917 | J180: CW5E | K180: 1 | P180: Band 5E
A181: 1 | B181: Rattu, Abigail | C181: 2 | D181: F331200919037 | E181: 2023-04-01 | F181: 2023-07-25 | G181: Coventry | H181: 66 | I181: 3535.389688 | J181: CW1E | K181: 1 | P181: Band 1E
A182: 1 | B182: Ionita, David A. | C182: 2 | D182: Z331702420005 | E182: 2023-04-01 | F182: 2023-07-25 | G182: Coventry | H182: 66 | I182: 16160.375 | J182: CW5F | K182: 1 | P182: Band 5F
A183: 1 | B183: Bhardwaj, Reyansh | C183: 2 | D183: R331702421009 | E183: 2023-04-01 | F183: 2023-07-25 | G183: Coventry | H183: 66 | I183: 3535.389688 | J183: CW1E | K183: 1 | P183: Band 1E
A184: 1 | B184: Osamudiamen, Iyobosa M. | C184: 2 | D184: W331205619070 | E184: 2023-04-01 | F184: 2023-07-25 | G184: Coventry | H184: 66 | I184: 8080.1875 | J184: CW5E | K184: 1 | P184: Band 5E
A185: 1 | B185: Imran, Zainab | C185: 2 | D185: N331702422010 | E185: 2023-04-01 | F185: 2023-07-25 | G185: Coventry | H185: 66 | I185: 3535.389688 | J185: CW1E | K185: 1 | P185: =IF(ISBLANK(A185),"",CONCATENATE($J$1," ",RIGHT(J185,2))) -> Band 1E
A186: 1 | B186: Lynas, Evie C. | C186: 3 | D186: G331702418020 | E186: 2023-04-01 | F186: 2023-07-25 | G186: Coventry | H186: 66 | I186: 5745.007812 | J186: CW1F | K186: 1 | P186: Band 1F
A187: 1 | B187: Walsh, Samuel J. | C187: 3 | D187: T331215619033 | E187: 2023-04-01 | F187: 2023-07-25 | G187: Coventry | H187: 66 | I187: 5745.007812 | J187: CW1F | K187: 1 | P187: Band 1F
A188: 1 | B188: Hingley, Sofia K. | C188: 3 | D188: B331702418034 | E188: 2023-04-01 | F188: 2023-07-25 | G188: Coventry | H188: 66 | I188: 5303.082812 | J188: CW2F | K188: 1 | P188: Band 2F
A189: 1 | B189: Shane, Ayaan | C189: 3 | D189: M331702419005 | E189: 2023-04-01 | F189: 2023-07-25 | G189: Coventry | H189: 66 | I189: 3535.389688 | J189: CW1E | K189: 1 | P189: Band 1E
A190: 1 | B190: Sutton, Olly J. | C190: 3 | D190: W331702418019 | E190: 2023-04-01 | F190: 2023-07-25 | G190: Coventry | H190: 66 | I190: 5303.082812 | J190: CW4F | K190: 1 | P190: Band 4F
A191: 1 | B191: Russell, Dalton S. | C191: 3 | D191: Y331702419004 | E191: 2023-04-01 | F191: 2023-07-25 | G191: Coventry | H191: 66 | I191: 3535.389688 | J191: CW1E | K191: 1 | P191: Band 1E
A192: 1 | B192: Gallagher, Charlie G. | C192: 3 | D192: C331702418025 | E192: 2023-04-01 | F192: 2023-07-25 | G192: Coventry | H192: 66 | I192: 8080.1875 | J192: CW5E | K192: 1 | P192: Band 5E
A193: 1 | B193: Hill, Dylan-Joe | C193: 3 | D193: W331702418021 | E193: 2023-04-01 | F193: 2023-07-25 | G193: Coventry | H193: 66 | I193: 5745.007812 | J193: CW1F | K193: 1 | P193: Band 1F
A194: 1 | B194: Okai, Nana Wireko W. | C194: 3 | D194: K331702418022 | E194: 2023-04-01 | F194: 2023-07-25 | G194: Coventry | H194: 66 | I194: 5745.007812 | J194: CW1F | K194: 1 | P194: Band 1F
A195: 1 | B195: Padda, Karnveer S. | C195: 3 | D195: Y331201518052 | E195: 2023-04-01 | F195: 2023-07-25 | G195: Coventry | H195: 66 | I195: 3270.234687 | J195: CW2E | K195: 1 | P195: Band 2E
A196: 1 | B196: Wootton, Jonah B. | C196: 3 | D196: F331702418027 | E196: 2023-04-01 | F196: 2023-07-25 | G196: Coventry | H196: 66 | I196: 5745.007812 | J196: CW1F | K196: 1 | P196: Band 1F
A197: 1 | B197: Zohaib, Mohammed S. | C197: 3 | D197: N331214918072 | E197: 2023-04-01 | F197: 2023-07-25 | G197: Coventry | H197: 66 | I197: 3535.389688 | J197: CW1E | K197: 1 | P197: Band 1E
A198: 1 | B198: Friswell, Matilda S. | C198: 3 | D198: J331702418029 | E198: 2023-04-01 | F198: 2023-07-25 | G198: Coventry | H198: 66 | I198: 5745.007812 | J198: CW1F | K198: 1 | P198: Band 1F
A199: 1 | B199: Tsegai, Yoel T. | C199: 3 | D199: N331702418024 | E199: 2023-04-01 | F199: 2023-07-25 | G199: Coventry | H199: 66 | I199: 8080.1875 | J199: CW5E | K199: 1 | P199: Band 5E
A200: 1 | B200: Abdulla, Muadh | C200: 3 | D200: Q331215818016 | E200: 2023-04-01 | F200: 2023-07-25 | G200: Coventry | H200: 66 | I200: 4419.23625 | J200: CW4E | K200: 1 | P200: Band 4E
... 1476 more rows

Sheet AutumnProvRep (hidden)
B1: Name | C1: NCY | D1: UPN | E1: start date | F1: end date | G1: Funding LA | H1: Funded Days | I1: Top Up Amount | J1: Band | K1: FTE
A2: =IF(LEFT(J2,2)="BF",6,IF(LEFT(J2,2)="CW",1,IF(LEFT(J2,2)="CO",4,IF(LEFT(J2,2)="TS",2,IF(LEFT(J2,2)="RB",3,IF(LEFT(J2,2)="SF",7,IF(LEFT(J2,2)="TV",5,IF(LEFT(J2,2)="WF",8,"")))))))) -> 6 | B2: Caraian, Sara | C2: 7 | D2: T331212515089 | E2: 45170 | G2: Coventry | H2: 76 | I2: 3765.726675 | J2: BF2E | K2: 1 | P2: =IF(ISBLANK(A2),"",CONCATENATE($J$1," ",RIGHT(J2,2))) -> Band 2E
A3: 6 | B3: Zibneva, Victoria | C3: 7 | D3: K855100313013 | E3: 45170 | G3: Coventry | H3: 76 | I3: 6106.578263 | J3: BF2F | K3: 1 | P3: =IF(ISBLANK(A3),"",CONCATENATE($J$1," ",RIGHT(J3,2))) -> Band 2F
A4: 6 | B4: Sarosh, Usman M. | C4: 7 | D4: Q331212416038 | E4: 45170 | G4: Coventry | H4: 76 | I4: 3765.726675 | J4: BF2E | K4: 1 | P4: Band 2E
A5: 6 | B5: Muhammad, Awais | C5: 7 | D5: E331702416005 | E5: 45170 | G5: Coventry | H5: 76 | I5: 3765.726675 | J5: BF2E | K5: 1 | P5: Band 2E
A6: 6 | B6: Janjua, Muhammed K. | C6: 7 | D6: B331100711243 | E6: 45170 | G6: Coventry | H6: 76 | I6: 6106.578263 | J6: BF2F | K6: 1 | P6: Band 2F
A7: 6 | B7: Mitchell, Angel J. | C7: 7 | D7: F331341415026 | E7: 45170 | G7: Coventry | H7: 76 | I7: 4071.053627 | J7: BF1E | K7: 1 | P7: Band 1E
A8: 6 | B8: White, Daniel M. | C8: 7 | D8: R331202115025 | E8: 45170 | G8: Coventry | H8: 76 | I8: 4071.053627 | J8: BF1E | K8: 1 | P8: Band 1E
A9: 6 | B9: Tubman, Wesley R. | C9: 7 | D9: K331200516006 | E9: 45170 | G9: Coventry | H9: 76 | I9: 4071.053627 | J9: BF1E | K9: 1 | P9: Band 1E
A10: 6 | B10: Hussain, Sufyaan | C10: 7 | D10: A331201515031 | E10: 45170 | G10: Coventry | H10: 76 | I10: 3765.726675 | J10: BF2E | K10: 1 | P10: Band 2E
A11: 6 | B11: Hussain, Faizaan | C11: 7 | D11: T331201516006 | E11: 45170 | G11: Coventry | H11: 76 | I11: 3765.726675 | J11: BF2E | K11: 1 | P11: Band 2E
A12: 6 | B12: Forshew, Sophie T. | C12: 7 | D12: C331215715018 | E12: 45170 | G12: Coventry | H12: 76 | I12: 3765.726675 | J12: BF2E | K12: 1 | P12: Band 2E
A13: 6 | B13: Cooper, Liam D. | C13: 7 | D13: D331214215029 | E13: 45170 | G13: Coventry | H13: 76 | I13: 4071.053627 | J13: BF1E | K13: 1 | P13: Band 1E
A14: 6 | B14: Choudhury, Rishi P. | C14: 7 | D14: J331340515037 | E14: 45170 | G14: Coventry | H14: 76 | I14: 4071.053627 | J14: BF1E | K14: 1 | P14: Band 1E
A15: 6 | B15: Bailey, Joshua N. | C15: 7 | D15: A331214615050 | E15: 45170 | G15: Coventry | H15: 76 | I15: 4071.053627 | J15: BF1E | K15: 1 | P15: Band 1E
A16: 6 | B16: Dyari, Muhammad | C16: 7 | D16: V331215115005 | E16: 45170 | G16: Coventry | H16: 76 | I16: 6615.463778 | J16: BF1F | K16: 1 | P16: Band 1F
A17: 6 | B17: McKirdle, Matthew W. | C17: 7 | D17: Q331213016080 | E17: 45170 | G17: Coventry | H17: 76 | I17: 4071.053627 | J17: BF1E | K17: 1 | P17: Band 1E
A18: 6 | B18: Cain, Ryan K. | C18: 7 | D18: L331214215026 | E18: 45170 | G18: Coventry | H18: 76 | I18: 3765.726675 | J18: BF2E | K18: 1 | P18: Band 2E
A19: 6 | B19: Ricardo, Emma | C19: 7 | D19: J331202315054 | E19: 45170 | G19: Coventry | H19: 76 | I19: 6615.463778 | J19: BF1F | K19: 1 | P19: Band 1F
A20: 6 | B20: Rajarajan, Arin | C20: 7 | D20: M815233315018 | E20: 45170 | G20: Coventry | H20: 76 | I20: 3765.726675 | J20: BF2E | K20: 1 | P20: Band 2E
A21: 6 | B21: McDuke, Jaedon N. | C21: 7 | D21: Z331701720009 | E21: 45170 | G21: Coventry | H21: 76 | I21: 4071.053627 | J21: BF1E | K21: 1 | P21: Band 1E
A22: 6 | B22: Kyeremeh, Philip G. | C22: 7 | D22: R301207215116 | E22: 45170 | F22: 45215 | G22: Coventry | H22: 32 | I22: 1714.127843 | J22: BF1E | K22: 0.4210526316 | P22: Band 1E
A23: 6 | B23: Kyeremeh, Philip G. | C23: 7 | D23: R301207215116 | E23: 45216 | G23: Coventry | H23: 44 | I23: 5386.791667 | J23: BF5E | K23: 0.5789473684 | P23: Band 5E
A24: 6 | B24: ADBULAHI, Abdirahman M. | C24: 7 | D24: H331214021073 | E24: 45170 | G24: Coventry | H24: 76 | I24: 4071.053627 | J24: BF1E | K24: 1 | P24: Band 1E
A25: 6 | B25: Molad, Marwan A. | C25: 8 | D25: Q331201513019 | E25: 45170 | G25: Coventry | H25: 76 | I25: 3765.726675 | J25: BF2E | K25: 1 | P25: Band 2E
A26: 6 | B26: Navsarka, Esa | C26: 8 | D26: J331205614044 | E26: 45170 | G26: Coventry | H26: 76 | I26: 3765.726675 | J26: BF2E | K26: 1 | P26: Band 2E
A27: 6 | B27: Powers, Jesse-James | C27: 8 | D27: E331702415004 | E27: 45170 | G27: Coventry | H27: 76 | I27: 6106.578263 | J27: BF4F | K27: 1 | P27: Band 4F
A28: 6 | B28: Ntare, Christopher M. | C28: 8 | D28: Z331214915010 | E28: 45170 | G28: Coventry | H28: 76 | I28: 3765.726675 | J28: BF2E | K28: 1 | P28: Band 2E
A29: 6 | B29: Imran, Isa M. | C29: 8 | D29: V331701714001 | E29: 45170 | G29: Coventry | H29: 76 | I29: 3765.726675 | J29: BF2E | K29: 1 | P29: Band 2E
A30: 6 | B30: Wakahiu, Yvonne N. | C30: 8 | D30: D331702415013 | E30: 45170 | G30: Coventry | H30: 76 | I30: 6615.463778 | J30: BF1F | K30: 1 | P30: Band 1F
A31: 6 | B31: Shahrjerdi, Dara | C31: 8 | D31: J331701714002 | E31: 45170 | G31: Coventry | H31: 76 | I31: 9304.458333 | J31: BF5E | K31: 1 | P31: Band 5E
A32: 6 | B32: Nimpaye, Don C. | C32: 8 | D32: H331215714032 | E32: 45170 | G32: Coventry | H32: 76 | I32: 6615.463778 | J32: BF1F | K32: 1 | P32: Band 1F
A33: 6 | B33: Mburichen, Onyekachukwu Ki | C33: 8 | D33: E331701714007 | E33: 45170 | G33: Coventry | H33: 76 | I33: 6615.463778 | J33: BF1F | K33: 1 | P33: Band 1F
A34: 6 | B34: Omar, Shano | C34: 8 | D34: R331214514076 | E34: 45170 | G34: Coventry | H34: 76 | I34: 4071.053627 | J34: BF1E | K34: 1 | P34: Band 1E
A35: 6 | B35: Njunga, Trevelle C. | C35: 8 | D35: G331702415015 | E35: 45170 | G35: Coventry | H35: 76 | I35: 6615.463778 | J35: BF1F | K35: 1 | P35: Band 1F
A36: 6 | B36: Mwangi, Asher M. | C36: 8 | D36: V331215615067 | E36: 45170 | G36: Coventry | H36: 76 | I36: 6615.463778 | J36: BF1F | K36: 1 | P36: Band 1F
A37: 6 | B37: Barrowman, Lee S. | C37: 8 | D37: H331205614024 | E37: 45170 | G37: Coventry | H37: 76 | I37: 4071.053627 | J37: BF1E | K37: 1 | P37: Band 1E
A38: 6 | B38: McSheffrey, Kayden B. | C38: 8 | D38: R331212514039 | E38: 45170 | G38: Coventry | H38: 76 | I38: 4071.053627 | J38: BF1E | K38: 1 | P38: Band 1E
A39: 6 | B39: Crowley, Macey B. | C39: 8 | D39: A334205014028 | E39: 45170 | G39: Coventry | H39: 76 | I39: 3765.726675 | J39: BF2E | K39: 1 | P39: Band 2E
A40: 6 | B40: Zanfir, Leonard | C40: 8 | D40: J331205615045 | E40: 45170 | G40: Coventry | H40: 76 | I40: 4071.053627 | J40: BF1E | K40: 1 | P40: Band 1E
A41: 6 | B41: Moubeke, Jayden D. | C41: 8 | D41: P331215515042 | E41: 45170 | G41: Coventry | H41: 76 | I41: 4071.053627 | J41: BF1E | K41: 1 | P41: Band 1E
A42: 6 | B42: Ngemegwai, Leonardo S. | C42: 8 | D42: G331214015117 | E42: 45170 | G42: Coventry | H42: 76 | I42: 5088.815945 | J42: BF4E | K42: 1 | P42: Band 4E
A43: 6 | B43: Ahmed, Mohammed A. | C43: 8 | D43: E331214516003 | E43: 45170 | G43: Coventry | H43: 76 | I43: 3765.726675 | J43: BF2E | K43: 1 | P43: Band 2E
A44: 6 | B44: Niculae, Filimon | C44: 8 | D44: H331700018011 | E44: 45170 | G44: Coventry | H44: 76 | I44: 6615.463778 | J44: BF1F | K44: 1 | P44: Band 1F
A45: 6 | B45: Al Sabban, Bissan Y. | C45: 8 | D45: G886691918118 | E45: 45170 | G45: Coventry | H45: 76 | I45: 3765.726675 | J45: BF2E | K45: 1 | P45: Band 2E
A46: 6 | B46: Collinson, Catherine j. | C46: 9 | D46: J331214114002 | E46: 45170 | G46: Warwickshire | H46: 76 | I46: 3765.726675 | J46: BF2E | K46: 1 | P46: Band 2E
A47: 6 | B47: Skvortsov-Kirsteine, Jessica | C47: 9 | D47: B331340813020 | E47: 45170 | G47: Coventry | H47: 76 | I47: 3765.726675 | J47: BF2E | K47: 1 | P47: Band 2E
A48: 6 | B48: Islam, Mohammed Sami S. | C48: 9 | D48: B331702414001 | E48: 45170 | G48: Coventry | H48: 76 | I48: 6615.463778 | J48: BF1F | K48: 1 | P48: Band 1F
A49: 6 | B49: Gul, Annum | C49: 9 | D49: M331701713003 | E49: 45170 | G49: Coventry | H49: 76 | I49: 6106.578263 | J49: BF2F | K49: 1 | P49: Band 2F
A50: 6 | B50: Gibson, Libby G. | C50: 9 | D50: K331100712259 | E50: 45170 | G50: Coventry | H50: 76 | I50: 6615.463778 | J50: BF1F | K50: 1 | P50: Band 1F
A51: =IF(LEFT(J51,2)="BF",6,IF(LEFT(J51,2)="CW",1,IF(LEFT(J51,2)="CO",4,IF(LEFT(J51,2)="TS",2,IF(LEFT(J51,2)="RB",3,IF(LEFT(J51,2)="SF",7,IF(LEFT(J51,2)="TV",5,IF(LEFT(J51,2)="WF",8,"")))))))) -> 6 | B51: McGowan, Lucas C. | C51: 9 | D51: W331342314010 | E51: 2023-09-01 | G51: Coventry | H51: 76 | I51: 3765.726675 | J51: BF2E | K51: 1 | P51: Band 2E
A52: =IF(LEFT(J52,2)="BF",6,IF(LEFT(J52,2)="CW",1,IF(LEFT(J52,2)="CO",4,IF(LEFT(J52,2)="TS",2,IF(LEFT(J52,2)="RB",3,IF(LEFT(J52,2)="SF",7,IF(LEFT(J52,2)="TV",5,IF(LEFT(J52,2)="WF",8,"")))))))) -> 6 | B52: Braithwaite, Lacey P. | C52: 9 | D52: V331330214003 | E52: 2023-09-01 | G52: Coventry | H52: 76 | I52: 9304.458333 | J52: BF5E | K52: 1 | P52: Band 5E
A53: 6 | B53: Woodward, Cody R. | C53: 9 | D53: M331211814023 | E53: 2023-09-01 | G53: Coventry | H53: 76 | I53: 3765.726675 | J53: BF2E | K53: 1 | P53: Band 2E
A54: 6 | B54: Urch, Sophia G. | C54: 9 | D54: B331212214038 | E54: 2023-09-01 | G54: Coventry | H54: 76 | I54: 3765.726675 | J54: BF2E | K54: 1 | P54: Band 2E
A55: 6 | B55: Gleeson, Reece R. | C55: 9 | D55: U331213113033 | E55: 2023-09-01 | G55: Coventry | H55: 76 | I55: 4071.053627 | J55: BF1E | K55: 1 | P55: Band 1E
A56: 6 | B56: Ahmed, Hana H. | C56: 9 | D56: L331702414007 | E56: 2023-09-01 | G56: Coventry | H56: 76 | I56: 4071.053627 | J56: BF1E | K56: 1 | P56: Band 1E
A57: 6 | B57: Ali, Azhar | C57: 9 | D57: B331214114005 | E57: 2023-09-01 | G57: Coventry | H57: 76 | I57: 6615.463778 | J57: BF1F | K57: 1 | P57: Band 1F
A58: 6 | B58: Hyde, Brody J. | C58: 9 | D58: M331214113061 | E58: 2023-09-01 | G58: Coventry | H58: 76 | I58: 4071.053627 | J58: BF1E | K58: 1 | P58: Band 1E
A59: 6 | B59: Madu, Great I. | C59: 9 | D59: M331701719011 | E59: 2023-09-01 | G59: Coventry | H59: 76 | I59: 6106.578263 | J59: BF4F | K59: 1 | P59: Band 4F
A60: 6 | B60: Igbokwe, Francis | C60: 9 | D60: A331701922001 | E60: 2023-09-01 | G60: Coventry | H60: 76 | I60: 6106.578263 | J60: BF2F | K60: 1 | P60: Band 2F
A61: 6 | B61: Cooney, Charlotte B. | C61: 10 | D61: A331702412006 | E61: 2023-09-01 | G61: Coventry | H61: 76 | I61: 6106.578263 | J61: BF2F | K61: 1 | P61: Band 2F
A62: 6 | B62: Chidube, Maurice I. | C62: 10 | D62: J331214913014 | E62: 2023-09-01 | G62: Coventry | H62: 76 | I62: 3765.726675 | J62: BF2E | K62: 1 | P62: Band 2E
A63: 6 | B63: Teensa, Raul S. | C63: 10 | D63: N331212412052 | E63: 2023-09-01 | G63: Coventry | H63: 76 | I63: 3765.726675 | J63: BF2E | K63: 1 | P63: Band 2E
A64: 6 | B64: Zeno, Eryk | C64: 10 | D64: J331343513046 | E64: 2023-09-01 | G64: Coventry | H64: 76 | I64: 6615.463778 | J64: BF1F | K64: 1 | P64: Band 1F
A65: 6 | B65: Carty, Loveonhe D. | C65: 10 | D65: L331343813008 | E65: 2023-09-01 | G65: Coventry | H65: 76 | I65: 3765.726675 | J65: BF2E | K65: 1 | P65: Band 2E
A66: 6 | B66: Karamat, Safiullah | C66: 10 | D66: V331201512013 | E66: 2023-09-01 | G66: Coventry | H66: 76 | I66: 9304.458333 | J66: BF5E | K66: 1 | P66: Band 5E
A67: 6 | B67: GRYSZKIENAS, Santiago A. | C67: 10 | D67: L331212112059 | E67: 2023-09-01 | G67: Coventry | H67: 76 | I67: 4071.053627 | J67: BF1E | K67: 1 | P67: =IF(ISBLANK(A67),"",CONCATENATE($J$1," ",RIGHT(J67,2))) -> Band 1E
A68: 6 | B68: Bush, Matthew P. | C68: 10 | D68: A331341813003 | E68: 2023-09-01 | G68: Coventry | H68: 76 | I68: 3765.726675 | J68: BF2E | K68: 1 | P68: Band 2E
A69: 6 | B69: Mack, Paige D. | C69: 10 | D69: L331214312064 | E69: 2023-09-01 | G69: Coventry | H69: 76 | I69: 3765.726675 | J69: BF2E | K69: 1 | P69: Band 2E
A70: 6 | B70: McKinlay, Maddox E. | C70: 10 | D70: Y331100711270 | E70: 2023-09-01 | G70: Coventry | H70: 76 | I70: 6615.463778 | J70: BF1F | K70: 1 | P70: Band 1F
A71: 6 | B71: Mula, Elliot J. | C71: 10 | D71: H331330213012 | E71: 2023-09-01 | G71: Coventry | H71: 76 | I71: 6615.463778 | J71: BF1F | K71: 1 | P71: Band 1F
A72: 6 | B72: Molad, MOHAMAD | C72: 10 | D72: M331201512016 | E72: 2023-09-01 | G72: Coventry | H72: 76 | I72: 3765.726675 | J72: BF2E | K72: 1 | P72: Band 2E
A73: 6 | B73: Akhtar, Shumena | C73: 10 | D73: F331214112083 | E73: 2023-09-01 | G73: Coventry | H73: 76 | I73: 4071.053627 | J73: BF1E | K73: 1 | P73: Band 1E
A74: 6 | B74: Hudson, Elise A. | C74: 11 | D74: N331300611029 | E74: 2023-09-01 | G74: Warwickshire | H74: 76 | I74: 3765.726675 | J74: BF2E | K74: 1 | P74: Band 2E
A75: 6 | B75: Moseley, Holly | C75: 11 | D75: U331702411001 | E75: 2023-09-01 | G75: Coventry | H75: 76 | I75: 6106.578263 | J75: BF2F | K75: 1 | P75: Band 2F
A76: 6 | B76: Abu Baker, Daniel | C76: 11 | D76: P331700911004 | E76: 2023-09-01 | G76: Coventry | H76: 76 | I76: 9304.458333 | J76: BF5E | K76: 1 | P76: Band 5E
A77: 6 | B77: Padan, Rohan S. | C77: 11 | D77: W331341411043 | E77: 2023-09-01 | G77: Coventry | H77: 76 | I77: 3765.726675 | J77: BF2E | K77: 1 | P77: Band 2E
A78: 6 | B78: Jones, Ellis D. | C78: 11 | D78: L937262612011 | E78: 2023-09-01 | G78: Coventry | H78: 76 | I78: 4071.053627 | J78: BF1E | K78: 1 | P78: Band 1E
A79: 6 | B79: Ray, Jasmine | C79: 11 | D79: R331214111023 | E79: 2023-09-01 | G79: Coventry | H79: 76 | I79: 3765.726675 | J79: BF2E | K79: 1 | P79: Band 2E
A80: 6 | B80: Sahota, Joydeep | C80: 11 | D80: Y331214612092 | E80: 2023-09-01 | G80: Coventry | H80: 76 | I80: 4071.053627 | J80: BF1E | K80: 1 | P80: Band 1E
A81: 6 | B81: Mullin, Harley J. | C81: 11 | D81: B331214112061 | E81: 2023-09-01 | G81: Coventry | H81: 76 | I81: 9304.458333 | J81: BF5E | K81: 1 | P81: Band 5E
A82: 6 | B82: Beauchamp, Morgan T. | C82: 11 | D82: H331300712002 | E82: 2023-09-01 | G82: Coventry | H82: 76 | I82: 3765.726675 | J82: BF2E | K82: 1 | P82: Band 2E
A83: 6 | B83: Khapane, Yugandhar | C83: 11 | D83: N331700612005 | E83: 2023-09-01 | G83: Coventry | H83: 76 | I83: 6615.463778 | J83: BF1F | K83: 1 | P83: Band 1F
A84: 6 | B84: Norman, William K. | C84: 11 | D84: G331702418018 | E84: 2023-09-01 | G84: Coventry | H84: 76 | I84: 6615.463778 | J84: BF1F | K84: 1 | P84: Band 1F
A85: 6 | B85: Jose, Aannet | C85: 11 | D85: J331701717005 | E85: 2023-09-01 | G85: Coventry | H85: 76 | I85: 4071.053627 | J85: BF1E | K85: 1 | P85: Band 1E
A86: 6 | B86: Welch, Shania | C86: 11 | D86: J332330611027 | E86: 2023-10-16 | G86: Coventry | H86: 45 | I86: 2229.706584 | J86: BF2E | K86: 0.5921052632 | P86: Band 2E
A87: 6 | B87: Ali, Ifza | C87: 12 | D87: Z331700611003 | E87: 2023-09-01 | G87: Coventry | H87: 76 | I87: 3765.726675 | J87: BF2E | K87: 1 | P87: Band 2E
A88: 6 | B88: ADEMAKINWA, Kikiola O. | C88: 12 | D88: A331702411005 | E88: 2023-09-01 | G88: Coventry | H88: 76 | I88: 6615.463778 | J88: BF1F | K88: 1 | P88: Band 1F
A89: 6 | B89: KASONGO, Tony S. | C89: 12 | D89: R331215610002 | E89: 2023-09-01 | G89: Coventry | H89: 76 | I89: 6615.463778 | J89: BF1F | K89: 1 | P89: Band 1F
A90: 6 | B90: MALANGU, Sharon B. | C90: 12 | D90: C331343811047 | E90: 2023-09-01 | G90: Coventry | H90: 76 | I90: 6615.463778 | J90: BF1F | K90: 1 | P90: Band 1F
A91: 6 | B91: Kunasingam, Harryshan | C91: 12 | D91: L331100709018 | E91: 2023-09-01 | G91: Coventry | H91: 76 | I91: 6615.463778 | J91: BF1F | K91: 1 | P91: Band 1F
A92: 6 | B92: Rama, Elbion | C92: 12 | D92: L331702411004 | E92: 2023-09-01 | F92: 2023-11-05 | G92: Coventry | H92: 41 | I92: 3568.868617 | J92: BF1F | K92: 0.5394736842 | P92: Band 1F
A93: 6 | B93: Rama, Elbion | C93: 12 | D93: L331702411004 | E93: 2023-11-06 | G93: Coventry | H93: 35 | I93: 4284.947917 | J93: BF5E | K93: 0.4605263158 | P93: Band 5E
A94: 6 | B94: EKALAKALA, Eliezer E. | C94: 12 | D94: E331701710003 | E94: 2023-09-01 | G94: Coventry | H94: 76 | I94: 3765.726675 | J94: BF2E | K94: 1 | P94: Band 2E
A95: 6 | B95: Walters, Casadie-Rae J. | C95: 12 | D95: Q331341811022 | E95: 2023-09-01 | G95: Coventry | H95: 76 | I95: 4071.053627 | J95: BF1E | K95: 1 | P95: Band 1E
A96: 6 | B96: Cain, Chanel | C96: 12 | D96: Y331214210011 | E96: 2023-09-01 | G96: Coventry | H96: 76 | I96: 3765.726675 | J96: BF2E | K96: 1 | P96: Band 2E
A97: 6 | B97: Suleiman, Mohammad | C97: 12 | D97: T331110715006 | E97: 2023-09-01 | G97: Coventry | H97: 76 | I97: 6615.463778 | J97: BF1F | K97: 1 | P97: Band 1F
A98: 6 | B98: Singh, Navbir | C98: 12 | D98: K331400418026 | E98: 2023-09-01 | G98: Coventry | H98: 76 | I98: 6615.463778 | J98: BF1F | K98: 1 | P98: Band 1F
A99: 6 | B99: Stokes, Bradley P. | C99: 12 | D99: R312201611091 | E99: 2023-09-01 | G99: Coventry | H99: 76 | I99: 3765.726675 | J99: BF2E | K99: 1 | P99: Band 2E
A100: 6 | B100: Hatem, Ahmed B. | C100: 12 | D100: A856721714003 | E100: 2023-09-01 | G100: Coventry | H100: 76 | I100: 9304.458333 | J100: BF5E | K100: 1 | P100: Band 5E
A101: 6 | B101: Biyasi, Hala | C101: 12 | D101: D331701920001 | E101: 2023-09-01 | G101: Coventry | H101: 76 | I101: 3765.726675 | J101: BF2E | K101: 1 | P101: Band 2E
A102: 6 | B102: Mohammed-Said, Dia-Adin A. | C102: 12 | D102: P331701921001 | E102: 2023-09-01 | G102: Coventry | H102: 76 | I102: 6106.578263 | J102: BF2F | K102: 1 | P102: Band 2F
A103: 6 | B103: Ginova-Pearson, Denisa A. | C103: 13 | D103: B331213610031 | E103: 2023-09-01 | G103: Coventry | H103: 76 | I103: 3765.726675 | J103: BF2E | K103: 1 | P103: Band 2E
A104: 6 | B104: Kazmi, Aleeza | C104: 13 | D104: W331701708004 | E104: 2023-09-01 | G104: Coventry | H104: 76 | I104: 6106.578263 | J104: BF2F | K104: 1 | P104: Band 2F
A105: 6 | B105: Munir, Aisha | C105: 13 | D105: R331702409006 | E105: 2023-09-01 | G105: Coventry | H105: 76 | I105: 6106.578263 | J105: BF2F | K105: 1 | P105: Band 2F
A106: 6 | B106: Bhatti, Aman | C106: 13 | D106: J331702409009 | E106: 2023-09-01 | G106: Coventry | H106: 76 | I106: 6106.578263 | J106: BF2F | K106: 1 | P106: Band 2F
A107: 6 | B107: Leese, Noah | C107: 13 | D107: Y331343709002 | E107: 2023-09-01 | G107: Coventry | H107: 76 | I107: 6615.463778 | J107: BF1F | K107: 1 | P107: Band 1F
A108: 6 | B108: Hughes, Dylan J. | C108: 13 | D108: F331343810048 | E108: 2023-09-01 | G108: Coventry | H108: 76 | I108: 3765.726675 | J108: BF2E | K108: 1 | P108: Band 2E
A109: 6 | B109: Younis, Mohammed E. | C109: 13 | D109: D331701709002 | E109: 2023-09-01 | G109: Coventry | H109: 76 | I109: 6615.463778 | J109: BF1F | K109: 1 | P109: Band 1F
A110: 6 | B110: Moseley, Thomas | C110: 13 | D110: E331202109018 | E110: 2023-09-01 | G110: Coventry | H110: 76 | I110: 4071.053627 | J110: BF1E | K110: 1 | P110: Band 1E
A111: 6 | B111: Abdullah, Nasif | C111: 13 | D111: D331214509052 | E111: 2023-09-01 | G111: Coventry | H111: 76 | I111: 6106.578263 | J111: BF2F | K111: 1 | P111: Band 2F
A112: 6 | B112: Christian, Riquelme N. | C112: 13 | D112: K331300810023 | E112: 2023-09-01 | G112: Coventry | H112: 76 | I112: 4071.053627 | J112: BF1E | K112: 1 | P112: Band 1E
A113: 6 | B113: Cockerill, William | C113: 13 | D113: R331341109030 | E113: 2023-09-01 | G113: Coventry | H113: 76 | I113: 3765.726675 | J113: BF2E | K113: 1 | P113: Band 2E
A114: 6 | B114: Efrem Tekle, Feelmona E. | C114: 13 | D114: M331300810034 | E114: 2023-09-01 | G114: Coventry | H114: 76 | I114: 3765.726675 | J114: BF2E | K114: 1 | P114: Band 2E
A115: 6 | B115: Smith, Katie-Jayne | C115: 13 | D115: K936296309021 | E115: 2023-09-01 | G115: Coventry | H115: 76 | I115: 6615.463778 | J115: BF1F | K115: 1 | P115: Band 1F
A116: =IF(LEFT(J116,2)="BF",6,IF(LEFT(J116,2)="CW",1,IF(LEFT(J116,2)="CO",4,IF(LEFT(J116,2)="TS",2,IF(LEFT(J116,2)="RB",3,IF(LEFT(J116,2)="SF",7,IF(LEFT(J116,2)="TV",5,IF(LEFT(J116,2)="WF",8,"")))))))) -> 6 | B116: Voicu, Alexandru V. | C116: 13 | D116: N937702017001 | E116: 2023-09-01 | G116: Coventry | H116: 76 | I116: 6106.578263 | J116: BF2F | K116: 1 | P116: Band 2F
A117: 6 | B117: Didiu, Cosmin | C117: 13 | D117: F331701918001 | E117: 2023-09-01 | G117: Coventry | H117: 76 | I117: 3765.726675 | J117: BF2E | K117: 1 | P117: Band 2E
A118: 6 | B118: Jadeszko, Gabriel | C118: 13 | D118: V331701918002 | E118: 2023-09-01 | G118: Coventry | H118: 76 | I118: 3765.726675 | J118: BF2E | K118: 1 | P118: Band 2E
A119: 6 | B119: Hatem, Ibraheem B. | C119: 13 | D119: Q856700314010 | E119: 2023-09-01 | G119: Coventry | H119: 76 | I119: 9304.458333 | J119: BF5E | K119: 1 | P119: Band 5E
A120: 6 | B120: Okorie, Michael | C120: 13 | D120: F331701919002 | E120: 2023-09-01 | G120: Coventry | H120: 76 | I120: 9304.458333 | J120: BF5E | K120: 1 | P120: Band 5E
A121: 6 | B121: ESSEKU-OTOO, Nadia A. | C121: 13 | D121: R307700710005 | E121: 2023-09-01 | G121: Coventry | H121: 76 | I121: 4071.053627 | J121: BF1E | K121: 1 | P121: Band 1E
A122: 6 | B122: Ekalakala, Beni L. | C122: 14 | D122: D331343708043 | E122: 2023-09-01 | G122: Coventry | H122: 76 | I122: 4071.053627 | J122: BF1E | K122: 1 | P122: Band 1E
A123: 6 | B123: Clifton, Amy E. | C123: 14 | D123: C331215608046 | E123: 2023-09-01 | G123: Coventry | H123: 76 | I123: 3765.726675 | J123: BF2E | K123: 1 | P123: Band 2E
A124: 6 | B124: Mubele, Quincey | C124: 14 | D124: W331212908067 | E124: 2023-09-01 | G124: Coventry | H124: 76 | I124: 4071.053627 | J124: BF1E | K124: 1 | P124: Band 1E
A125: 6 | B125: Kirkby, Olivia | C125: 14 | D125: T331343708044 | E125: 2023-09-01 | G125: Coventry | H125: 76 | I125: 4071.053627 | J125: BF1E | K125: 1 | P125: Band 1E
A126: 6 | B126: Riley, Kirk S. | C126: 14 | D126: Q336204110010 | E126: 2023-09-01 | G126: Coventry | H126: 76 | I126: 3765.726675 | J126: BF2E | K126: 1 | P126: Band 2E
A127: 6 | B127: Newport, Brandon A. | C127: 14 | D127: K331702408001 | E127: 2023-09-01 | G127: Coventry | H127: 76 | I127: 6615.463778 | J127: BF1F | K127: 1 | P127: Band 1F
A128: 1 | B128: Bodinnar, Lexeigh A. | C128: 0 | D128: L331702423000 | E128: 2023-09-01 | G128: Coventry | H128: 76 | I128: 4071.053627 | J128: CW1E | K128: 1 | P128: Band 1E
A129: 1 | B129: Enueze, Ryan | C129: 0 | D129: G331702423005 | E129: 2023-09-01 | G129: Coventry | H129: 76 | I129: 5088.815945 | J129: CW3E | K129: 1 | P129: Band 3E
A130: 1 | B130: Moalim, Aliyah M. | C130: 0 | D130: C331215622053 | E130: 2023-09-01 | G130: Coventry | H130: 76 | I130: 4071.053627 | J130: CW1E | K130: 1 | P130: Band 1E
A131: 1 | B131: Doughty, Reggie H. | C131: 0 | D131: T331702423004 | E131: 2023-09-01 | G131: Coventry | H131: 76 | I131: 6615.463778 | J131: CW1F | K131: 1 | P131: =IF(ISBLANK(A131),"",CONCATENATE($J$1," ",RIGHT(J131,2))) -> Band 1F
A132: 1 | B132: Cleaver, Harley P. | C132: 0 | D132: P331702423002 | E132: 2023-09-01 | G132: Coventry | H132: 76 | I132: 4071.053627 | J132: CW1E | K132: 1 | P132: Band 1E
A133: 1 | B133: Pankowski, Natan | C133: 0 | D133: Z331702423008 | E133: 2023-09-01 | G133: Coventry | H133: 76 | I133: 6106.578263 | J133: CW4F | K133: 1 | P133: Band 4F
A134: 1 | B134: Evans, Cameron | C134: 0 | D134: W331702423006 | E134: 2023-09-01 | G134: Coventry | H134: 76 | I134: 5088.815945 | J134: CW4E | K134: 1 | P134: Band 4E
A135: 1 | B135: Shahid, Arfa | C135: 0 | D135: N331702423009 | E135: 2023-09-01 | G135: Coventry | H135: 76 | I135: 6106.578263 | J135: CW2F | K135: 1 | P135: Band 2F
A136: 1 | B136: Ighavogbe, Dominic E. | C136: 0 | D136: F331100720065 | E136: 2023-09-01 | G136: Coventry | H136: 76 | I136: 6615.463778 | J136: CW1F | K136: 1 | P136: Band 1F
A137: 1 | B137: Ba, Hope Ayesha A. | C137: 0 | D137: A331702423001 | E137: 2023-09-01 | G137: Coventry | H137: 76 | I137: 3765.726675 | J137: CW2E | K137: 1 | P137: Band 2E
A138: 1 | B138: Ofosu, Jayden S. | C138: 0 | D138: F331340422041 | E138: 2023-09-01 | G138: Coventry | H138: 76 | I138: 6615.463778 | J138: CW1F | K138: 1 | P138: Band 1F
A139: 1 | B139: Muzammil, Mustafa A. | C139: 0 | D139: W331100721031 | E139: 2023-09-01 | G139: Coventry | H139: 76 | I139: 4071.053627 | J139: CW1E | K139: 1 | P139: Band 1E
A140: 1 | B140: Ahmed, Mahir | C140: 0 | D140: X331100721103 | E140: 2023-09-01 | G140: Coventry | H140: 76 | I140: 6615.463778 | J140: CW1F | K140: 1 | P140: Band 1F
A141: 1 | B141: Ajilo, Glorious O. | C141: 0 | D141: J331213222030 | E141: 2023-09-01 | G141: Coventry | H141: 76 | I141: 4071.053627 | J141: CW1E | K141: 1 | P141: Band 1E
A142: 1 | B142: Christopher, Joshua O. | C142: 0 | D142: A331215222019 | E142: 2023-09-01 | G142: Coventry | H142: 76 | I142: 4071.053627 | J142: CW1E | K142: 1 | P142: Band 1E
A143: 1 | B143: Morrison, Taiyo | C143: 0 | D143: K331702423007 | E143: 2023-09-01 | G143: Coventry | H143: 76 | I143: 4071.053627 | J143: CW1E | K143: 1 | P143: Band 1E
A144: 1 | B144: Sangha, Tegbir S. | C144: 0 | D144: W331201722022 | E144: 2023-09-01 | G144: Coventry | H144: 76 | I144: 6615.463778 | J144: CW1F | K144: 1 | P144: Band 1F
A145: 1 | B145: Kelly-Symons, Donovan J. | C145: 1 | D145: G331702422004 | E145: 2023-09-01 | G145: Coventry | H145: 76 | I145: 4071.053627 | J145: CW1E | K145: 1 | P145: Band 1E
A146: 1 | B146: Bodinnar, Ava K. | C146: 1 | D146: R331702422012 | E146: 2023-09-01 | G146: Coventry | H146: 76 | I146: 4071.053627 | J146: CW1E | K146: 1 | P146: Band 1E
A147: 1 | B147: Osuagwu, Jeremiah O. | C147: 1 | D147: D331702422002 | E147: 2023-09-01 | G147: Coventry | H147: 76 | I147: 6615.463778 | J147: CW1F | K147: 1 | P147: Band 1F
A148: 1 | B148: Martin, Alexander J. | C148: 1 | D148: F331702422013 | E148: 2023-09-01 | G148: Coventry | H148: 76 | I148: 4071.053627 | J148: CW1E | K148: 1 | P148: Band 1E
A149: 1 | B149: Whitmore, Lexi J. | C149: 1 | D149: Y331206821005 | E149: 2023-09-01 | G149: Coventry | H149: 76 | I149: 4071.053627 | J149: CW1E | K149: 1 | P149: Band 1E
A150: 1 | B150: Lapworth-Nelson, Amelia | C150: 1 | D150: P331702422001 | E150: 2023-09-01 | G150: Coventry | H150: 76 | I150: 6106.578263 | J150: CW4F | K150: 1 | P150: Band 4F
A151: 1 | B151: Ciobanu, Fabian G. | C151: 1 | D151: C331702422011 | E151: 2023-09-01 | G151: Coventry | H151: 76 | I151: 5088.815945 | J151: CW4E | K151: 1 | P151: Band 4E
A152: 1 | B152: Dima, Gabriel I. | C152: 1 | D152: F331215221033 | E152: 2023-09-01 | G152: Coventry | H152: 76 | I152: 4071.053627 | J152: CW1E | K152: 1 | P152: Band 1E
A153: 1 | B153: Forkuoh, George M. | C153: 1 | D153: A331215120034 | E153: 2023-09-01 | G153: Coventry | H153: 76 | I153: 6615.463778 | J153: CW1F | K153: 1 | P153: Band 1F
A154: 1 | B154: Yonas, Nftaliem | C154: 1 | D154: E331100719093 | E154: 2023-09-01 | G154: Coventry | H154: 76 | I154: 4071.053627 | J154: CW1E | K154: 1 | P154: Band 1E
A155: 1 | B155: Mamud, Abdul Hakim M. | C155: 1 | D155: Z331300621022 | E155: 2023-09-01 | G155: Coventry | H155: 76 | I155: 4071.053627 | J155: CW1E | K155: 1 | P155: Band 1E
A156: 1 | B156: Noor, Zayna | C156: 1 | D156: V331702422014 | E156: 2023-09-01 | G156: Coventry | H156: 76 | I156: 4071.053627 | J156: CW1E | K156: 1 | P156: Band 1E
A157: 1 | B157: Johnson, Esmae V. | C157: 1 | D157: N331702422008 | E157: 2023-09-01 | G157: Coventry | H157: 76 | I157: 6106.578263 | J157: CW4F | K157: 1 | P157: Band 4F
A158: 1 | B158: Randhawa, Ryan S. | C158: 1 | D158: L331213820084 | E158: 2023-09-01 | G158: Coventry | H158: 76 | I158: 4071.053627 | J158: CW1E | K158: 1 | P158: Band 1E
A159: 1 | B159: Binga, Jayden N. | C159: 1 | D159: W331702422005 | E159: 2023-09-01 | G159: Coventry | H159: 76 | I159: 4071.053627 | J159: CW1E | K159: 1 | P159: Band 1E
A160: 1 | B160: Munthali, Namonda L. | C160: 1 | D160: Z331702422007 | E160: 2023-09-01 | G160: Coventry | H160: 76 | I160: 4071.053627 | J160: CW1E | K160: 1 | P160: Band 1E
A161: 1 | B161: Coleman, Alfie J. | C161: 1 | D161: G331214622014 | E161: 2023-09-01 | G161: Coventry | H161: 76 | I161: 4071.053627 | J161: CW1E | K161: 1 | P161: Band 1E
A162: 1 | B162: Barmooz, Rose | C162: 1 | D162: E331200020058 | E162: 2023-09-01 | G162: Coventry | H162: 76 | I162: 4071.053627 | J162: CW1E | K162: 1 | P162: Band 1E
A163: 1 | B163: Noori, Silab | C163: 1 | D163: R331213821042 | E163: 2023-09-01 | G163: Coventry | H163: 76 | I163: 4071.053627 | J163: CW1E | K163: 1 | P163: Band 1E
A164: 1 | B164: Osabuohien, Eloghosa J. | C164: 1 | D164: K331702422006 | E164: 2023-09-01 | G164: Coventry | H164: 76 | I164: 9304.458333 | J164: CW5E | K164: 1 | P164: Band 5E
A165: 1 | B165: Oduro, Nana O. | C165: 1 | D165: Q331341421022 | E165: 2023-09-01 | G165: Coventry | H165: 76 | I165: 9304.458333 | J165: CW5E | K165: 1 | P165: Band 5E
A166: 1 | B166: Angus, Jaxon R. | C166: 1 | D166: D331215821038 | E166: 2023-09-01 | G166: Coventry | H166: 76 | I166: 4071.053627 | J166: CW1E | K166: 1 | P166: Band 1E
A167: 1 | B167: Singh, Guransh | C167: 1 | D167: X331215021021 | E167: 2023-09-01 | G167: Coventry | H167: 76 | I167: 4071.053627 | J167: CW1E | K167: 1 | P167: Band 1E
A168: 1 | B168: Warman, Ethan I. | C168: 1 | D168: D871102521001 | E168: 45170 | G168: Coventry | H168: 76 | I168: 6106.578263 | J168: CW4F | K168: 1 | P168: Band 4F
A169: 1 | B169: Smithson, Harry | C169: 2 | D169: R331702421011 | E169: 45170 | G169: Coventry | H169: 76 | I169: 4071.053627 | J169: CW1E | K169: 1 | P169: Band 1E
